Workbook

Sheet Cover
A1: =RIGHT(CELL("filename", $A$1), LEN(CELL("filename", $A$1)) - SEARCH("]", CELL("filename", $A$1))) -> Cover
B3: PR24 IED Model
B5: Model code: | C5: PR24CA26
B6: Version number: | C6: 1
B7: File name: | C7: =MID(CELL("filename"), FIND("[", CELL("filename"), 1) + 1, FIND("]", CELL("filename"), 1) - FIND("[", CELL("filename"), 1) - 1) -> PR24CA26 - IED opex.xlsm
B8: Date: | C8: 2024-12-19
B10: For enquiries please contact: | C10: PR24@ofwat.gov.uk
B12: Instructions: | C12: N/A
B30: Changes since previously published model:
B32: Company | C32: Issue | D32: Sheet(s) in current model | E32: Description of change made | F32: Model link(s)
B33: United Utilities | C33: The company acronym in the analysis tab was incorrect. The allowance calculated in the analysis tab was not included in the final outputs from this model and was not included in the overall DD cost allowance. | D33: Analysis | E33: Corrected the acronym | F33: Base aggregator

Sheet Conceptual model
A1: =RIGHT(CELL("filename", A1), LEN(CELL("filename", A1)) - SEARCH("]", CELL("filename", A1))) -> Conceptual model
A3: Conceptual model
A37: End of sheet

Sheet F_Inputs (APR)
C1: PR24_FM_IED_APR | E1: Run on 04 Sep 2024 12:08
A2: Acronym | B2: Reference | C2: Item description | D2: Unit | E2: Model | F2: 2018-19 | G2: 2019-20 | H2: 2020-21 | I2: 2021-22 | J2: 2022-23 | K2: 2023-24
F4: Cyclical | G4: Cyclical | H4: Cyclical | I4: Cyclical | J4: Cyclical | K4: Cyclical
F5: Default for Cyclical base run | G5: Default for Cyclical base run | H5: Default for Cyclical base run | I5: Default for Cyclical base run | J5: Default for Cyclical base run | K5: Default for Cyclical base run
F6: Latest | G6: Latest | H6: Latest | I6: Latest | J6: Latest | K6: Latest
A7: ANH | B7: W3036SL | C7: Costs associated with Industrial Emissions Directive - Sludge | D7: £m | E7: Cyclical Foundation | F7: 0 | G7: 0
A8: ANH | B8: W3036OTHTOT | C8: Costs associated with Industrial Emissions Directive - Advanced AD | D8: £m | E8: Cyclical Foundation | F8: 0 | G8: 0
A9: ANH | B9: WWS1105STP | C9: Other expenditure - Costs associated with Industrial Emissions Directive - Sludge Transport | D9: £m | E9: Cyclical Foundation | H9: 0 | I9: 0 | J9: 0 | K9: 0
A10: ANH | B10: WWS1105SDT | C10: Other expenditure - Costs associated with Industrial Emissions Directive - Sludge Treatment | D10: £m | E10: Cyclical Foundation | H10: 0 | I10: 0 | J10: 0 | K10: 0
A11: ANH | B11: WWS1105SDD | C11: Other expenditure - Costs associated with Industrial Emissions Directive - Sludge Disposal | D11: £m | E11: Cyclical Foundation | H11: 0 | I11: 0 | J11: 0 | K11: 0
A12: ANH | B12: WWS1105CAS | C12: Other expenditure - Costs associated with Industrial Emissions Directive - Total | D12: £m | E12: Cyclical Foundation | H12: 0 | I12: 0 | J12: 0 | K12: 0
A13: WSH | B13: W3036SL | C13: Costs associated with Industrial Emissions Directive - Sludge | D13: £m | E13: Cyclical Foundation | F13: 0.026 | G13: 0.048
A14: WSH | B14: W3036OTHTOT | C14: Costs associated with Industrial Emissions Directive - Advanced AD | D14: £m | E14: Cyclical Foundation | F14: 0.026 | G14: 0.048
A15: WSH | B15: WWS1105STP | C15: Other expenditure - Costs associated with Industrial Emissions Directive - Sludge Transport | D15: £m | E15: Cyclical Foundation | H15: 0 | I15: 0 | J15: 0 | K15: 0
A16: WSH | B16: WWS1105SDT | C16: Other expenditure - Costs associated with Industrial Emissions Directive - Sludge Treatment | D16: £m | E16: Cyclical Foundation | H16: 0.034 | I16: 0.034 | J16: 0.027 | K16: 0.03
A17: WSH | B17: WWS1105SDD | C17: Other expenditure - Costs associated with Industrial Emissions Directive - Sludge Disposal | D17: £m | E17: Cyclical Foundation | H17: 0 | I17: 0 | J17: 0 | K17: 0
A18: WSH | B18: WWS1105CAS | C18: Other expenditure - Costs associated with Industrial Emissions Directive - Total | D18: £m | E18: Cyclical Foundation | H18: 0.034 | I18: 0.034 | J18: 0.027 | K18: 0.03
A19: HDD | B19: W3036SL | C19: Costs associated with Industrial Emissions Directive - Sludge | D19: £m | E19: Cyclical Foundation | F19: 0 | G19: 0
A20: HDD | B20: W3036OTHTOT | C20: Costs associated with Industrial Emissions Directive - Advanced AD | D20: £m | E20: Cyclical Foundation | F20: 0 | G20: 0
A21: HDD | B21: WWS1105STP | C21: Other expenditure - Costs associated with Industrial Emissions Directive - Sludge Transport | D21: £m | E21: Cyclical Foundation | H21: 0 | I21: 0 | J21: 0 | K21: 0
A22: HDD | B22: WWS1105SDT | C22: Other expenditure - Costs associated with Industrial Emissions Directive - Sludge Treatment | D22: £m | E22: Cyclical Foundation | H22: 0 | I22: 0 | J22: 0 | K22: 0
A23: HDD | B23: WWS1105SDD | C23: Other expenditure - Costs associated with Industrial Emissions Directive - Sludge Disposal | D23: £m | E23: Cyclical Foundation | H23: 0 | I23: 0 | J23: 0 | K23: 0
A24: HDD | B24: WWS1105CAS | C24: Other expenditure - Costs associated with Industrial Emissions Directive - Total | D24: £m | E24: Cyclical Foundation | H24: 0 | I24: 0 | J24: 0 | K24: 0
A25: NES | B25: W3036SL | C25: Costs associated with Industrial Emissions Directive - Sludge | D25: £m | E25: Cyclical Foundation | F25: 0 | G25: 0
A26: NES | B26: W3036OTHTOT | C26: Costs associated with Industrial Emissions Directive - Advanced AD | D26: £m | E26: Cyclical Foundation | F26: 0 | G26: 0
A27: NES | B27: WWS1105STP | C27: Other expenditure - Costs associated with Industrial Emissions Directive - Sludge Transport | D27: £m | E27: Cyclical Foundation | H27: 0 | I27: 0 | J27: 0 | K27: 0
A28: NES | B28: WWS1105SDT | C28: Other expenditure - Costs associated with Industrial Emissions Directive - Sludge Treatment | D28: £m | E28: Cyclical Foundation | H28: 0 | I28: 0 | J28: 0 | K28: 0
A29: NES | B29: WWS1105SDD | C29: Other expenditure - Costs associated with Industrial Emissions Directive - Sludge Disposal | D29: £m | E29: Cyclical Foundation | H29: 0 | I29: 0 | J29: 0 | K29: 0
A30: NES | B30: WWS1105CAS | C30: Other expenditure - Costs associated with Industrial Emissions Directive - Total | D30: £m | E30: Cyclical Foundation | H30: 0 | I30: 0 | J30: 0 | K30: 0
A31: SVE | B31: W3036SL | C31: Costs associated with Industrial Emissions Directive - Sludge | D31: £m | E31: Cyclical Foundation | F31: 0.139 | G31: 0.16
A32: SVE | B32: W3036OTHTOT | C32: Costs associated with Industrial Emissions Directive - Advanced AD | D32: £m | E32: Cyclical Foundation | F32: 0.139 | G32: 0.16
A33: SVE | B33: WWS1105STP | C33: Other expenditure - Costs associated with Industrial Emissions Directive - Sludge Transport | D33: £m | E33: Cyclical Foundation | H33: 0 | I33: 0 | J33: 0 | K33: 0.043
A34: SVE | B34: WWS1105SDT | C34: Other expenditure - Costs associated with Industrial Emissions Directive - Sludge Treatment | D34: £m | E34: Cyclical Foundation | H34: 0 | I34: 0 | J34: 0.117 | K34: 0.043
A35: SVE | B35: WWS1105SDD | C35: Other expenditure - Costs associated with Industrial Emissions Directive - Sludge Disposal | D35: £m | E35: Cyclical Foundation | H35: 0 | I35: 0 | J35: 0 | K35: 0.043
A36: SVE | B36: WWS1105CAS | C36: Other expenditure - Costs associated with Industrial Emissions Directive - Total | D36: £m | E36: Cyclical Foundation | H36: 0 | I36: 0 | J36: 0.117 | K36: 0.182
A37: SWB | B37: W3036SL | C37: Costs associated with Industrial Emissions Directive - Sludge | D37: £m | E37: Cyclical Foundation | F37: 0 | G37: 0
A38: SWB | B38: W3036OTHTOT | C38: Costs associated with Industrial Emissions Directive - Advanced AD | D38: £m | E38: Cyclical Foundation | F38: 0 | G38: 0
A39: SWB | B39: WWS1105STP | C39: Other expenditure - Costs associated with Industrial Emissions Directive - Sludge Transport | D39: £m | E39: Cyclical Foundation | H39: 0 | I39: 0 | J39: 0 | K39: 0
A40: SWB | B40: WWS1105SDT | C40: Other expenditure - Costs associated with Industrial Emissions Directive - Sludge Treatment | D40: £m | E40: Cyclical Foundation | H40: 0 | I40: 0 | J40: 0 | K40: 0
A41: SWB | B41: WWS1105SDD | C41: Other expenditure - Costs associated with Industrial Emissions Directive - Sludge Disposal | D41: £m | E41: Cyclical Foundation | H41: 0 | I41: 0 | J41: 0 | K41: 0
A42: SWB | B42: WWS1105CAS | C42: Other expenditure - Costs associated with Industrial Emissions Directive - Total | D42: £m | E42: Cyclical Foundation | H42: 0 | I42: 0 | J42: 0 | K42: 0
A43: SRN | B43: W3036SL | C43: Costs associated with Industrial Emissions Directive - Sludge | D43: £m | E43: Cyclical Foundation | F43: 0 | G43: 0
A44: SRN | B44: W3036OTHTOT | C44: Costs associated with Industrial Emissions Directive - Advanced AD | D44: £m | E44: Cyclical Foundation | F44: 0 | G44: 0
A45: SRN | B45: WWS1105STP | C45: Other expenditure - Costs associated with Industrial Emissions Directive - Sludge Transport | D45: £m | E45: Cyclical Foundation | H45: 0 | I45: 0 | J45: 0 | K45: 0
A46: SRN | B46: WWS1105SDT | C46: Other expenditure - Costs associated with Industrial Emissions Directive - Sludge Treatment | D46: £m | E46: Cyclical Foundation | H46: 0 | I46: 0 | J46: 0 | K46: 0
A47: SRN | B47: WWS1105SDD | C47: Other expenditure - Costs associated with Industrial Emissions Directive - Sludge Disposal | D47: £m | E47: Cyclical Foundation | H47: 0 | I47: 0 | J47: 0 | K47: 0
A48: SRN | B48: WWS1105CAS | C48: Other expenditure - Costs associated with Industrial Emissions Directive - Total | D48: £m | E48: Cyclical Foundation | H48: 0 | I48: 0.083 | J48: 0 | K48: 0
A49: TMS | B49: W3036SL | C49: Costs associated with Industrial Emissions Directive - Sludge | D49: £m | E49: Cyclical Foundation | F49: 0.054 | G49: 0.068
A50: TMS | B50: W3036OTHTOT | C50: Costs associated with Industrial Emissions Directive - Advanced AD | D50: £m | E50: Cyclical Foundation | F50: 0.054 | G50: 0.068
A51: TMS | B51: WWS1105STP | C51: Other expenditure - Costs associated with Industrial Emissions Directive - Sludge Transport | D51: £m | E51: Cyclical Foundation | H51: 0 | I51: 0 | J51: 0 | K51: 0
A52: TMS | B52: WWS1105SDT | C52: Other expenditure - Costs associated with Industrial Emissions Directive - Sludge Treatment | D52: £m | E52: Cyclical Foundation | H52: 0.042 | I52: 0.029 | J52: 0.053 | K52: 0.08
A53: TMS | B53: WWS1105SDD | C53: Other expenditure - Costs associated with Industrial Emissions Directive - Sludge Disposal | D53: £m | E53: Cyclical Foundation | H53: 0 | I53: 0 | J53: 0 | K53: 0
A54: TMS | B54: WWS1105CAS | C54: Other expenditure - Costs associated with Industrial Emissions Directive - Total | D54: £m | E54: Cyclical Foundation | H54: 0.042 | I54: 0.029 | J54: 0.053 | K54: 0.08
A55: NWT | B55: W3036SL | C55: Costs associated with Industrial Emissions Directive - Sludge | D55: £m | E55: Cyclical Foundation | F55: 1.527557966 | G55: 1.165458928
A56: NWT | B56: W3036OTHTOT | C56: Costs associated with Industrial Emissions Directive - Advanced AD | D56: £m | E56: Cyclical Foundation | F56: 1.527557966 | G56: 1.165458928
A57: NWT | B57: WWS1105STP | C57: Other expenditure - Costs associated with Industrial Emissions Directive - Sludge Transport | D57: £m | E57: Cyclical Foundation | H57: 0 | I57: 0 | J57: 0 | K57: 0
A58: NWT | B58: WWS1105SDT | C58: Other expenditure - Costs associated with Industrial Emissions Directive - Sludge Treatment | D58: £m | E58: Cyclical Foundation | H58: 1.089157745 | I58: 1.138719959 | J58: 1.075316214 | K58: 1.792305344
A59: NWT | B59: WWS1105SDD | C59: Other expenditure - Costs associated with Industrial Emissions Directive - Sludge Disposal | D59: £m | E59: Cyclical Foundation | H59: 0 | I59: 0 | J59: 0 | K59: 0
A60: NWT | B60: WWS1105CAS | C60: Other expenditure - Costs associated with Industrial Emissions Directive - Total | D60: £m | E60: Cyclical Foundation | H60: 1.192403451 | I60: 1.260744537 | J60: 1.180435701 | K60: 1.835942178
A61: WSX | B61: W3036SL | C61: Costs associated with Industrial Emissions Directive - Sludge | D61: £m | E61: Cyclical Foundation | F61: 0 | G61: 0
A62: WSX | B62: W3036OTHTOT | C62: Costs associated with Industrial Emissions Directive - Advanced AD | D62: £m | E62: Cyclical Foundation | F62: 0 | G62: 0
A63: WSX | B63: WWS1105STP | C63: Other expenditure - Costs associated with Industrial Emissions Directive - Sludge Transport | D63: £m | E63: Cyclical Foundation | H63: 0 | I63: 0 | J63: 0 | K63: 0
A64: WSX | B64: WWS1105SDT | C64: Other expenditure - Costs associated with Industrial Emissions Directive - Sludge Treatment | D64: £m | E64: Cyclical Foundation | H64: 0 | I64: 0 | J64: 0 | K64: 0
A65: WSX | B65: WWS1105SDD | C65: Other expenditure - Costs associated with Industrial Emissions Directive - Sludge Disposal | D65: £m | E65: Cyclical Foundation | H65: 0 | I65: 0 | J65: 0 | K65: 0
A66: WSX | B66: WWS1105CAS | C66: Other expenditure - Costs associated with Industrial Emissions Directive - Total | D66: £m | E66: Cyclical Foundation | H66: 0 | I66: 0 | J66: 0 | K66: 0
A67: YKY | B67: W3036SL | C67: Costs associated with Industrial Emissions Directive - Sludge | D67: £m | E67: Cyclical Foundation | F67: 0 | G67: 0
A68: YKY | B68: W3036OTHTOT | C68: Costs associated with Industrial Emissions Directive - Advanced AD | D68: £m | E68: Cyclical Foundation | F68: 0 | G68: 0
A69: YKY | B69: WWS1105STP | C69: Other expenditure - Costs associated with Industrial Emissions Directive - Sludge Transport | D69: £m | E69: Cyclical Foundation | H69: 0 | I69: 0 | J69: 0 | K69: 0
A70: YKY | B70: WWS1105SDT | C70: Other expenditure - Costs associated with Industrial Emissions Directive - Sludge Treatment | D70: £m | E70: Cyclical Foundation | H70: 0 | I70: 0 | J70: 0 | K70: 0
A71: YKY | B71: WWS1105SDD | C71: Other expenditure - Costs associated with Industrial Emissions Directive - Sludge Disposal | D71: £m | E71: Cyclical Foundation | H71: 0 | I71: 0 | J71: 0 | K71: 0
A72: YKY | B72: WWS1105CAS | C72: Other expenditure - Costs associated with Industrial Emissions Directive - Total | D72: £m | E72: Cyclical Foundation | H72: 0 | I72: 0 | J72: 0 | K72: 0

Sheet F_Inputs
C1: PR24_FM_IED_BP | E1: Run on 04 Sep 2024 12:11
A2: Acronym | B2: Reference | C2: Item description | D2: Unit | E2: Model | F2: 2022-23 | G2: 2023-24 | H2: 2024-25 | I2: 2025-26 | J2: 2026-27 | K2: 2027-28 | L2: 2028-29 | M2: 2029-30
F4: Price Review 2024 | G4: Price Review 2024 | H4: Price Review 2024 | I4: Price Review 2024 | J4: Price Review 2024 | K4: Price Review 2024 | L4: Price Review 2024 | M4: Price Review 2024
F5: Run 11 - PR24 FD Data | G5: Run 11 - PR24 FD Data | H5: Run 11 - PR24 FD Data | I5: Run 11 - PR24 FD Data | J5: Run 11 - PR24 FD Data | K5: Run 11 - PR24 FD Data | L5: Run 11 - PR24 FD Data | M5: Run 11 - PR24 FD Data
F6: Latest | G6: Latest | H6: Latest | I6: Latest | J6: Latest | K6: Latest | L6: Latest | M6: Latest
A7: ANH | B7: CWW2_013STP_PR24 | C7: Location specific costs & obligations - Cost associated with the Industrial Emissions Directive - Sludge Transport - Bioresources | D7: £m | E7: Price Review 2024 | F7: 0 | G7: 0 | H7: 0 | I7: 0 | J7: 0 | K7: 0 | L7: 0 | M7: 0
A8: ANH | B8: CWW2_013SDT_PR24 | C8: Location specific costs & obligations - Cost associated with the Industrial Emissions Directive - Sludge Treatment - Bioresources | D8: £m | E8: Price Review 2024 | F8: 0 | G8: 0 | H8: 0 | I8: 0.529 | J8: 0.529 | K8: 0.529 | L8: 0.529 | M8: 0.529
A9: ANH | B9: CWW2_013SDD_PR24 | C9: Location specific costs & obligations - Cost associated with the Industrial Emissions Directive - Sludge Disposal - Bioresources | D9: £m | E9: Price Review 2024 | F9: 0 | G9: 0 | H9: 0 | I9: 0 | J9: 0 | K9: 0 | L9: 0 | M9: 0
A10: ANH | B10: CWW2_013TOT_PR24 | C10: Location specific costs & obligations - Cost associated with the Industrial Emissions Directive - Total | D10: £m | E10: Price Review 2024 | F10: 0 | G10: 0 | H10: 0 | I10: 0.529 | J10: 0.529 | K10: 0.529 | L10: 0.529 | M10: 0.529
A11: WSH | B11: CWW2_013STP_PR24 | C11: Location specific costs & obligations - Cost associated with the Industrial Emissions Directive - Sludge Transport - Bioresources | D11: £m | E11: Price Review 2024 | F11: 0 | G11: 0 | H11: 0 | I11: 0 | J11: 0 | K11: 0 | L11: 0 | M11: 0
A12: WSH | B12: CWW2_013SDT_PR24 | C12: Location specific costs & obligations - Cost associated with the Industrial Emissions Directive - Sludge Treatment - Bioresources | D12: £m | E12: Price Review 2024 | F12: 0.027 | G12: 0.028 | H12: 0.04 | I12: 0.024 | J12: 0.023 | K12: 0.023 | L12: 0.023 | M12: 0.022
A13: WSH | B13: CWW2_013SDD_PR24 | C13: Location specific costs & obligations - Cost associated with the Industrial Emissions Directive - Sludge Disposal - Bioresources | D13: £m | E13: Price Review 2024 | F13: 0 | G13: 0 | H13: 0 | I13: 0 | J13: 0 | K13: 0 | L13: 0 | M13: 0
A14: WSH | B14: CWW2_013TOT_PR24 | C14: Location specific costs & obligations - Cost associated with the Industrial Emissions Directive - Total | D14: £m | E14: Price Review 2024 | F14: 0.027 | G14: 0.028 | H14: 0.04 | I14: 0.024 | J14: 0.023 | K14: 0.023 | L14: 0.023 | M14: 0.022
A15: HDD | B15: CWW2_013STP_PR24 | C15: Location specific costs & obligations - Cost associated with the Industrial Emissions Directive - Sludge Transport - Bioresources | D15: £m | E15: Price Review 2024 | F15: 0 | G15: 0 | H15: 0 | I15: 0 | J15: 0 | K15: 0 | L15: 0 | M15: 0
A16: HDD | B16: CWW2_013SDT_PR24 | C16: Location specific costs & obligations - Cost associated with the Industrial Emissions Directive - Sludge Treatment - Bioresources | D16: £m | E16: Price Review 2024 | F16: 0 | G16: 0 | H16: 0 | I16: 0 | J16: 0 | K16: 0 | L16: 0 | M16: 0
A17: HDD | B17: CWW2_013SDD_PR24 | C17: Location specific costs & obligations - Cost associated with the Industrial Emissions Directive - Sludge Disposal - Bioresources | D17: £m | E17: Price Review 2024 | F17: 0 | G17: 0 | H17: 0 | I17: 0 | J17: 0 | K17: 0 | L17: 0 | M17: 0
A18: HDD | B18: CWW2_013TOT_PR24 | C18: Location specific costs & obligations - Cost associated with the Industrial Emissions Directive - Total | D18: £m | E18: Price Review 2024 | F18: 0 | G18: 0 | H18: 0 | I18: 0 | J18: 0 | K18: 0 | L18: 0 | M18: 0
A19: NES | B19: CWW2_013STP_PR24 | C19: Location specific costs & obligations - Cost associated with the Industrial Emissions Directive - Sludge Transport - Bioresources | D19: £m | E19: Price Review 2024 | F19: 0 | G19: 0 | H19: 0 | I19: 0 | J19: 0 | K19: 0 | L19: 0 | M19: 0
A20: NES | B20: CWW2_013SDT_PR24 | C20: Location specific costs & obligations - Cost associated with the Industrial Emissions Directive - Sludge Treatment - Bioresources | D20: £m | E20: Price Review 2024 | F20: 0 | G20: 0 | H20: 0 | I20: 0 | J20: 0 | K20: 0 | L20: 0 | M20: 0
A21: NES | B21: CWW2_013SDD_PR24 | C21: Location specific costs & obligations - Cost associated with the Industrial Emissions Directive - Sludge Disposal - Bioresources | D21: £m | E21: Price Review 2024 | F21: 0 | G21: 0 | H21: 0 | I21: 0 | J21: 0 | K21: 0 | L21: 0 | M21: 0
A22: NES | B22: CWW2_013TOT_PR24 | C22: Location specific costs & obligations - Cost associated with the Industrial Emissions Directive - Total | D22: £m | E22: Price Review 2024 | F22: 0 | G22: 0 | H22: 0 | I22: 0 | J22: 0 | K22: 0 | L22: 0 | M22: 0
A23: SVE | B23: CWW2_013STP_PR24 | C23: Location specific costs & obligations - Cost associated with the Industrial Emissions Directive - Sludge Transport - Bioresources | D23: £m | E23: Price Review 2024 | F23: 0 | G23: 0 | H23: 0 | I23: 0 | J23: 0 | K23: 0 | L23: 0 | M23: 0
A24: SVE | B24: CWW2_013SDT_PR24 | C24: Location specific costs & obligations - Cost associated with the Industrial Emissions Directive - Sludge Treatment - Bioresources | D24: £m | E24: Price Review 2024 | F24: 0.117 | G24: 0.2311137 | H24: 0.232520917 | I24: 0.233936702 | J24: 0.235361107 | K24: 0.236794185 | L24: 0.23823599 | M24: 0.239686573
A25: SVE | B25: CWW2_013SDD_PR24 | C25: Location specific costs & obligations - Cost associated with the Industrial Emissions Directive - Sludge Disposal - Bioresources | D25: £m | E25: Price Review 2024 | F25: 0 | G25: 0 | H25: 0 | I25: 0 | J25: 0 | K25: 0 | L25: 0 | M25: 0
A26: SVE | B26: CWW2_013TOT_PR24 | C26: Location specific costs & obligations - Cost associated with the Industrial Emissions Directive - Total | D26: £m | E26: Price Review 2024 | F26: 0.117 | G26: 0.2311137 | H26: 0.232520917 | I26: 0.233936702 | J26: 0.235361107 | K26: 0.236794185 | L26: 0.23823599 | M26: 0.239686573
A27: SWB | B27: CWW2_013STP_PR24 | C27: Location specific costs & obligations - Cost associated with the Industrial Emissions Directive - Sludge Transport - Bioresources | D27: £m | E27: Price Review 2024 | F27: 0 | G27: 0 | H27: 0 | I27: 0 | J27: 0 | K27: 0 | L27: 0 | M27: 0
A28: SWB | B28: CWW2_013SDT_PR24 | C28: Location specific costs & obligations - Cost associated with the Industrial Emissions Directive - Sludge Treatment - Bioresources | D28: £m | E28: Price Review 2024 | F28: 0 | G28: 0 | H28: 0 | I28: 0 | J28: 0.440553612 | K28: 0.442590167 | L28: 0.443951526 | M28: 0.445103062
A29: SWB | B29: CWW2_013SDD_PR24 | C29: Location specific costs & obligations - Cost associated with the Industrial Emissions Directive - Sludge Disposal - Bioresources | D29: £m | E29: Price Review 2024 | F29: 0 | G29: 0 | H29: 0 | I29: 0 | J29: 0 | K29: 0 | L29: 0 | M29: 0
A30: SWB | B30: CWW2_013TOT_PR24 | C30: Location specific costs & obligations - Cost associated with the Industrial Emissions Directive - Total | D30: £m | E30: Price Review 2024 | F30: 0 | G30: 0 | H30: 0 | I30: 0 | J30: 0.514235421 | K30: 0.516564312 | L30: 0.518138086 | M30: 0.519477486
A31: SRN | B31: CWW2_013STP_PR24 | C31: Location specific costs & obligations - Cost associated with the Industrial Emissions Directive - Sludge Transport - Bioresources | D31: £m | E31: Price Review 2024 | F31: 0 | G31: 0 | H31: 0 | I31: 0 | J31: 0 | K31: 0 | L31: 0 | M31: 0
A32: SRN | B32: CWW2_013SDT_PR24 | C32: Location specific costs & obligations - Cost associated with the Industrial Emissions Directive - Sludge Treatment - Bioresources | D32: £m | E32: Price Review 2024 | F32: 0 | G32: 0 | H32: 0 | I32: 0 | J32: 0 | K32: 0 | L32: 0 | M32: 0
A33: SRN | B33: CWW2_013SDD_PR24 | C33: Location specific costs & obligations - Cost associated with the Industrial Emissions Directive - Sludge Disposal - Bioresources | D33: £m | E33: Price Review 2024 | F33: 0 | G33: 0 | H33: 0 | I33: 0 | J33: 0 | K33: 0 | L33: 0 | M33: 0
A34: SRN | B34: CWW2_013TOT_PR24 | C34: Location specific costs & obligations - Cost associated with the Industrial Emissions Directive - Total | D34: £m | E34: Price Review 2024 | F34: 0 | G34: 0 | H34: 0 | I34: 0 | J34: 0 | K34: 0 | L34: 0 | M34: 0
A35: TMS | B35: CWW2_013STP_PR24 | C35: Location specific costs & obligations - Cost associated with the Industrial Emissions Directive - Sludge Transport - Bioresources | D35: £m | E35: Price Review 2024 | F35: 0 | G35: 0 | H35: 0 | I35: 0 | J35: 0 | K35: 0 | L35: 0 | M35: 0
A36: TMS | B36: CWW2_013SDT_PR24 | C36: Location specific costs & obligations - Cost associated with the Industrial Emissions Directive - Sludge Treatment - Bioresources | D36: £m | E36: Price Review 2024 | F36: 0.053 | G36: 0.07590132827 | H36: 0.051 | I36: 0.051 | J36: 0.051 | K36: 0.051 | L36: 0.051 | M36: 0.051
A37: TMS | B37: CWW2_013SDD_PR24 | C37: Location specific costs & obligations - Cost associated with the Industrial Emissions Directive - Sludge Disposal - Bioresources | D37: £m | E37: Price Review 2024 | F37: 0 | G37: 0 | H37: 0 | I37: 0 | J37: 0 | K37: 0 | L37: 0 | M37: 0
A38: TMS | B38: CWW2_013TOT_PR24 | C38: Location specific costs & obligations - Cost associated with the Industrial Emissions Directive - Total | D38: £m | E38: Price Review 2024 | F38: 0.053 | G38: 0.07590132827 | H38: 0.051 | I38: 0.051 | J38: 0.051 | K38: 0.051 | L38: 0.051 | M38: 0.051
A39: NWT | B39: CWW2_013STP_PR24 | C39: Location specific costs & obligations - Cost associated with the Industrial Emissions Directive - Sludge Transport - Bioresources | D39: £m | E39: Price Review 2024 | F39: 0 | G39: 0 | H39: 0 | I39: 0 | J39: 0 | K39: 0 | L39: 0 | M39: 0
A40: NWT | B40: CWW2_013SDT_PR24 | C40: Location specific costs & obligations - Cost associated with the Industrial Emissions Directive - Sludge Treatment - Bioresources | D40: £m | E40: Price Review 2024 | F40: 1.075316214 | G40: 1.698112706 | H40: 0.8095451713 | I40: 0.5087784657 | J40: 0.5087784657 | K40: 0.5087784657 | L40: 0.5087784657 | M40: 0.5087784657
A41: NWT | B41: CWW2_013SDD_PR24 | C41: Location specific costs & obligations - Cost associated with the Industrial Emissions Directive - Sludge Disposal - Bioresources | D41: £m | E41: Price Review 2024 | F41: 0 | G41: 0 | H41: 0 | I41: 0 | J41: 0 | K41: 0 | L41: 0 | M41: 0
A42: NWT | B42: CWW2_013TOT_PR24 | C42: Location specific costs & obligations - Cost associated with the Industrial Emissions Directive - Total | D42: £m | E42: Price Review 2024 | F42: 1.180435701 | G42: 1.739456253 | H42: 0.8095451713 | I42: 0.5754864285 | J42: 0.5754864285 | K42: 0.5754864285 | L42: 0.5754864285 | M42: 0.5754864285
A43: WSX | B43: CWW2_013STP_PR24 | C43: Location specific costs & obligations - Cost associated with the Industrial Emissions Directive - Sludge Transport - Bioresources | D43: £m | E43: Price Review 2024 | F43: 0 | G43: 0 | H43: 0 | I43: 0 | J43: 0 | K43: 0 | L43: 0 | M43: 0
A44: WSX | B44: CWW2_013SDT_PR24 | C44: Location specific costs & obligations - Cost associated with the Industrial Emissions Directive - Sludge Treatment - Bioresources | D44: £m | E44: Price Review 2024 | F44: 0 | G44: 0 | H44: 0 | I44: 0 | J44: 0 | K44: 0 | L44: 0 | M44: 0
A45: WSX | B45: CWW2_013SDD_PR24 | C45: Location specific costs & obligations - Cost associated with the Industrial Emissions Directive - Sludge Disposal - Bioresources | D45: £m | E45: Price Review 2024 | F45: 0 | G45: 0 | H45: 0 | I45: 0 | J45: 0 | K45: 0 | L45: 0 | M45: 0
A46: WSX | B46: CWW2_013TOT_PR24 | C46: Location specific costs & obligations - Cost associated with the Industrial Emissions Directive - Total | D46: £m | E46: Price Review 2024 | F46: 0 | G46: 0 | H46: 0 | I46: 0 | J46: 0 | K46: 0 | L46: 0 | M46: 0
A47: YKY | B47: CWW2_013STP_PR24 | C47: Location specific costs & obligations - Cost associated with the Industrial Emissions Directive - Sludge Transport - Bioresources | D47: £m | E47: Price Review 2024 | F47: 0 | G47: 0 | H47: 0 | I47: 0 | J47: 0 | K47: 0 | L47: 0 | M47: 0
A48: YKY | B48: CWW2_013SDT_PR24 | C48: Location specific costs & obligations - Cost associated with the Industrial Emissions Directive - Sludge Treatment - Bioresources | D48: £m | E48: Price Review 2024 | F48: 0 | G48: 0 | H48: 0 | I48: 0.132 | J48: 0.132 | K48: 0.132 | L48: 0.132 | M48: 0.132
A49: YKY | B49: CWW2_013SDD_PR24 | C49: Location specific costs & obligations - Cost associated with the Industrial Emissions Directive - Sludge Disposal - Bioresources | D49: £m | E49: Price Review 2024 | F49: 0 | G49: 0 | H49: 0 | I49: 0 | J49: 0 | K49: 0 | L49: 0 | M49: 0
A50: YKY | B50: CWW2_013TOT_PR24 | C50: Location specific costs & obligations - Cost associated with the Industrial Emissions Directive - Total | D50: £m | E50: Price Review 2024 | F50: 0 | G50: 0 | H50: 0 | I50: 0.132 | J50: 0.132 | K50: 0.132 | L50: 0.132 | M50: 0.132

Sheet InpC
A1: =RIGHT(CELL("filename", A1), LEN(CELL("filename", A1)) - SEARCH("]", CELL("filename", A1))) -> InpC
K2: =IF(K4 = $F4, "q", "") -> q | L2: =IF(L4 = $F4, "q", "") ->  | M2: =IF(M4 = $F4, "q", "") -> 
F3: =INDEX(J3:O3,MATCH(F4,J4:O4)) -> Base case 1 | K3: Base case 1 | L3: Base case 2 | M3: Base case 3
E4: Active scenario | F4: 1 | I4: =MATCH(F4, $J$4:$O$4) -> 2 | K4: 1 | L4: 2 | M4: 3
E5: Comparison scenario | F5: 1 | I5: =MATCH(F5, $J$4:$O$4) -> 2
E6: Base case | F6: =INDEX(J6:O6,MATCH(F4,J4:O4,0)) -> 1 | I6: =MATCH(F6, $J$4:$O$4) -> 2 | K6: 1 | L6: 2 | M6: 3
E7: Input differences | F7: =COUNTIF(I10:I65, "tu") -> 0 | K7: =IF(K6 = $F$6, "Base case", "") -> Base case | L7: =IF(L6 = $F$6, "Base case", "") ->  | M7: =IF(M6 = $F$6, "Base case", "") -> 
F9: Constant | G9: Unit
A11: TIMING ASSUMPTIONS
E13: First date first FY | F13: =IF( INDEX(J13:O13, $I$4) = "", INDEX(J13:N13, $I$6), INDEX(J13:O13, $I$4)) -> 2018-04-01 | G13: date | I13: =IF( INDEX(J13:O13, I$5) = "", IF( INDEX(J13:O13, I$6) = F13, "vw", "tu"), IF(INDEX(J13:O13, I$5) = F13, "vw", "tu")) -> vw | K13: 2018-04-01 | L13: 2024-04-01 | M13: 2024-04-01
E14: Annual year end date of first operating period | F14: =IF( INDEX(J14:O14, $I$4) = "", INDEX(J14:N14, $I$6), INDEX(J14:O14, $I$4)) -> 2019-03-31 | G14: date | I14: =IF( INDEX(J14:O14, I$5) = "", IF( INDEX(J14:O14, I$6) = F14, "vw", "tu"), IF(INDEX(J14:O14, I$5) = F14, "vw", "tu")) -> vw | K14: =EOMONTH(K13,11) -> 2019-03-31 | L14: =EOMONTH(L13,11) -> 2025-03-31 | M14: =EOMONTH(M13,11) -> 2025-03-31
B16: Timeline label
E17: APR | F17: =IF( INDEX(J17:O17, $I$4) = "", INDEX(J17:N17, $I$6), INDEX(J17:O17, $I$4)) -> 2023-04-30 | G17: label | I17: =IF( INDEX(J17:O17, I$5) = "", IF( INDEX(J17:O17, I$6) = F17, "vw", "tu"), IF(INDEX(J17:O17, I$5) = F17, "vw", "tu")) -> vw | K17: 2023-04-30 | L17: 2029-04-30 | M17: 2029-04-30
E18: PR24 | F18: =IF( INDEX(J18:O18, $I$4) = "", INDEX(J18:N18, $I$6), INDEX(J18:O18, $I$4)) -> 2030-04-30 | G18: label | I18: =IF( INDEX(J18:O18, I$5) = "", IF( INDEX(J18:O18, I$6) = F18, "vw", "tu"), IF(INDEX(J18:O18, I$5) = F18, "vw", "tu")) -> vw | K18: 2030-04-30 | L18: 2034-04-30 | M18: 2034-04-30
E19: not used | F19: =IF( INDEX(J19:O19, $I$4) = "", INDEX(J19:N19, $I$6), INDEX(J19:O19, $I$4)) -> 2034-04-30 | G19: label | I19: =IF( INDEX(J19:O19, I$5) = "", IF( INDEX(J19:O19, I$6) = F19, "vw", "tu"), IF(INDEX(J19:O19, I$5) = F19, "vw", "tu")) -> vw | K19: 2034-04-30 | L19: 2039-04-30 | M19: 2039-04-30
A21: OPERATIONS
B23: Company details
E25: Anglian Water | F25: ANH
E26: Dŵr Cymru | F26: WSH
E27: Hafren Dyfrdwy | F27: HDD
E28: Northumbrian Water | F28: NES
E29: Severn Trent Water | F29: SVE
E30: South West Water | F30: SWB
E31: Southern Water | F31: SRN
E32: Thames Water | F32: TMS
E33: United Utilities | F33: NWT
E34: Wessex Water | F34: WSX
E35: Yorkshire Water | F35: YKY
E36: Industry total
B38: Item description
B40: APR | F40: APR ref | G40: PR24 ref
E42: Costs associated with Industrial Emissions Directive - Sludge | F42: W3036SL | H42: Costs associated with Industrial Emissions Directive | I42: Sludge
E43: Costs associated with Industrial Emissions Directive - Advanced AD | F43: W3036OTHTOT | G43: =E57 -> Location specific costs & obligations - Cost associated with the Industrial Emissions Directive - Total | H43: Costs associated with Industrial Emissions Directive | I43: Total
E44: Other expenditure - Costs associated with Industrial Emissions Directive - Sludge Transport | F44: WWS1105STP | G44: =+E54 -> Location specific costs & obligations - Cost associated with the Industrial Emissions Directive - Sludge Transport - Bioresources | H44: Other expenditure | I44: Sludge
E45: Other expenditure - Costs associated with Industrial Emissions Directive - Sludge Treatment | F45: WWS1105SDT | G45: =+E55 -> Location specific costs & obligations - Cost associated with the Industrial Emissions Directive - Sludge Treatment - Bioresources | H45: Other expenditure | I45: Sludge
E46: Other expenditure - Costs associated with Industrial Emissions Directive - Sludge Disposal | F46: WWS1105SDD | G46: =E56 -> Location specific costs & obligations - Cost associated with the Industrial Emissions Directive - Sludge Disposal - Bioresources | H46: Other expenditure | I46: Sludge
E47: Other expenditure - Costs associated with Industrial Emissions Directive - Total | F47: WWS1105CAS | G47: =+E57 -> Location specific costs & obligations - Cost associated with the Industrial Emissions Directive - Total | H47: Other expenditure | I47: Total
B52: PR24 | F52: APR ref | G52: PR24 ref
E54: Location specific costs & obligations - Cost associated with the Industrial Emissions Directive - Sludge Transport - Bioresources | F54: =F44 -> WWS1105STP | G54: CWW2_013STP_PR24 | H54: Cost associated with the Industrial Emissions Directive
E55: Location specific costs & obligations - Cost associated with the Industrial Emissions Directive - Sludge Treatment - Bioresources | F55: =+F45 -> WWS1105SDT | G55: CWW2_013SDT_PR24 | H55: Cost associated with the Industrial Emissions Directive
E56: Location specific costs & obligations - Cost associated with the Industrial Emissions Directive - Sludge Disposal - Bioresources | F56: =+F46 -> WWS1105SDD | G56: CWW2_013SDD_PR24 | H56: Cost associated with the Industrial Emissions Directive
E57: Location specific costs & obligations - Cost associated with the Industrial Emissions Directive - Total | F57: =+F47 -> WWS1105CAS | G57: CWW2_013TOT_PR24 | H57: Cost associated with the Industrial Emissions Directive | I57: Total
B61: Model labels
E63: Missing data values | F63: N/A
A65: MODEL TECHNICAL INPUTS - DO NOT CHANGE
E67: Model track tolerance level | F67: 0.001 | G67: tolerance
E68: Model check tolerance level | F68: 0.001 | G68: tolerance
E69: Standard Monetary Unit | F69: £m | G69: named "SMU"
B71: YesNo
E72: Yes | F72: Yes | G72: label
E73: No | F73: No | G73: label
A75: END

Sheet InpT
A1: =RIGHT(CELL("filename", A1), LEN(CELL("filename", A1)) - SEARCH("]", CELL("filename", A1))) -> InpT
E2: =Time!E2 -> Model period ending | J2: =Time!J2 -> 2019-03-31 | K2: =Time!K2 -> 2020-03-31 | L2: =Time!L2 -> 2021-03-31 | M2: =Time!M2 -> 2022-03-31 | N2: =Time!N2 -> 2023-03-31 | O2: =Time!O2 -> 2024-03-31 | P2: =Time!P2 -> 2025-03-31 | Q2: =Time!Q2 -> 2026-03-31 | R2: =Time!R2 -> 2027-03-31 | S2: =Time!S2 -> 2028-03-31 | T2: =Time!T2 -> 2029-03-31 | U2: =Time!U2 -> 2030-03-31
E3: =Time!E3 -> Timeline label | J3: =Time!J3 -> APR | K3: =Time!K3 -> APR | L3: =Time!L3 -> APR | M3: =Time!M3 -> APR | N3: =Time!N3 -> APR | O3: =Time!O3 -> PR24 | P3: =Time!P3 -> PR24 | Q3: =Time!Q3 -> PR24 | R3: =Time!R3 -> PR24 | S3: =Time!S3 -> PR24 | T3: =Time!T3 -> PR24 | U3: =Time!U3 -> PR24
E4: =Time!E4 -> Model column counter | F4: Constant | G4: Unit | J4: =Time!J4 -> 1 | K4: =Time!K4 -> 2 | L4: =Time!L4 -> 3 | M4: =Time!M4 -> 4 | N4: =Time!N4 -> 5 | O4: =Time!O4 -> 6 | P4: =Time!P4 -> 7 | Q4: =Time!Q4 -> 8 | R4: =Time!R4 -> 9 | S4: =Time!S4 -> 10 | T4: =Time!T4 -> 11 | U4: =Time!U4 -> 12
B6: Indexation
E8: PR24 base year | F8: 2023-03-31 | G8: select | J8: =($F8>=J$2)*1 -> 1 | K8: 1 | L8: 1 | M8: 1 | N8: 1 | O8: 0 | P8: 0 | Q8: 0 | R8: 0 | S8: 0 | T8: 0 | U8: 0
E10: CPIH factor | G10: factor | J10: 106.4 | K10: 108.2 | L10: 109.1 | M10: 113.1 | N10: 123
E11: CPIH factor in base year | G11: factor | J11: =INDEX($J$10:$U$10,,MATCH($F$8,$J$2:$U$2,0)) -> 123 | K11: 123 | L11: 123 | M11: 123 | N11: 123 | O11: 123 | P11: 123 | Q11: 123 | R11: 123 | S11: 123 | T11: 123 | U11: 123
E13: Indexation applied to APR | J13: =IF(J10=0,1,J11/J10) -> 1.156015038 | K13: 1.136783734 | L13: 1.127406049 | M13: 1.087533156 | N13: 1 | O13: 1 | P13: 1 | Q13: 1 | R13: 1 | S13: 1 | T13: 1 | U13: 1
A15: END

Sheet IED
A1: =RIGHT(CELL("filename", A1), LEN(CELL("filename", A1)) - SEARCH("]", CELL("filename", A1))) -> IED | G1: =A1&" - Errors on sheet" -> IED - Errors on sheet | H1: =H34+H170+H58+H82+H106+H226 -> 0
E2: =Time!E2 -> Model period ending | G2: Error chks | H2: =Check!$F$9 -> 0 | J2: =Time!J2 -> 2019-03-31 | K2: =Time!K2 -> 2020-03-31 | L2: =Time!L2 -> 2021-03-31 | M2: =Time!M2 -> 2022-03-31 | N2: =Time!N2 -> 2023-03-31 | O2: =Time!O2 -> 2024-03-31 | P2: =Time!P2 -> 2025-03-31 | Q2: =Time!Q2 -> 2026-03-31 | R2: =Time!R2 -> 2027-03-31 | S2: =Time!S2 -> 2028-03-31 | T2: =Time!T2 -> 2029-03-31 | U2: =Time!U2 -> 2030-03-31 | W2: PR24 Average | X2: PR24 Total
E3: =Time!E3 -> Timeline label | J3: =Time!J3 -> APR | K3: =Time!K3 -> APR | L3: =Time!L3 -> APR | M3: =Time!M3 -> APR | N3: =Time!N3 -> APR | O3: =Time!O3 -> PR24 | P3: =Time!P3 -> PR24 | Q3: =Time!Q3 -> PR24 | R3: =Time!R3 -> PR24 | S3: =Time!S3 -> PR24 | T3: =Time!T3 -> PR24 | U3: =Time!U3 -> PR24
E4: =Time!E4 -> Model column counter | J4: =Time!J4 -> 1 | K4: =Time!K4 -> 2 | L4: =Time!L4 -> 3 | M4: =Time!M4 -> 4 | N4: =Time!N4 -> 5 | O4: =Time!O4 -> 6 | P4: =Time!P4 -> 7 | Q4: =Time!Q4 -> 8 | R4: =Time!R4 -> 9 | S4: =Time!S4 -> 10 | T4: =Time!T4 -> 11 | U4: =Time!U4 -> 12
J5: ='F_Inputs (APR)'!F4 -> Cyclical | K5: ='F_Inputs (APR)'!G4 -> Cyclical | L5: ='F_Inputs (APR)'!H4 -> Cyclical | M5: ='F_Inputs (APR)'!I4 -> Cyclical | N5: ='F_Inputs (APR)'!J4 -> Cyclical | O5: =F_Inputs!F4 -> Price Review 2024 | P5: =F_Inputs!G4 -> Price Review 2024 | Q5: =F_Inputs!H4 -> Price Review 2024 | R5: =F_Inputs!I4 -> Price Review 2024 | S5: =F_Inputs!J4 -> Price Review 2024 | T5: =F_Inputs!K4 -> Price Review 2024 | U5: =F_Inputs!L4 -> Price Review 2024
J6: ='F_Inputs (APR)'!F5 -> Default for Cyclical base run | K6: ='F_Inputs (APR)'!G5 -> Default for Cyclical base run | L6: ='F_Inputs (APR)'!H5 -> Default for Cyclical base run | M6: ='F_Inputs (APR)'!I5 -> Default for Cyclical base run | N6: ='F_Inputs (APR)'!J5 -> Default for Cyclical base run | O6: =F_Inputs!F5 -> Run 11 - PR24 FD Data | P6: =F_Inputs!G5 -> Run 11 - PR24 FD Data | Q6: =F_Inputs!H5 -> Run 11 - PR24 FD Data | R6: =F_Inputs!I5 -> Run 11 - PR24 FD Data | S6: =F_Inputs!J5 -> Run 11 - PR24 FD Data | T6: =F_Inputs!K5 -> Run 11 - PR24 FD Data | U6: =F_Inputs!L5 -> Run 11 - PR24 FD Data
F7: Constant | G7: Unit | J7: ='F_Inputs (APR)'!F6 -> Latest | K7: ='F_Inputs (APR)'!G6 -> Latest | L7: ='F_Inputs (APR)'!H6 -> Latest | M7: ='F_Inputs (APR)'!I6 -> Latest | N7: ='F_Inputs (APR)'!J6 -> Latest | O7: =F_Inputs!F6 -> Latest | P7: =F_Inputs!G6 -> Latest | Q7: =F_Inputs!H6 -> Latest | R7: =F_Inputs!I6 -> Latest | S7: =F_Inputs!J6 -> Latest | T7: =F_Inputs!K6 -> Latest | U7: =F_Inputs!L6 -> Latest
C8: Indexation factor
E10: Bringing APR nominal to real | G10: factor | J10: =InpT!J13 -> 1.156015038 | K10: =InpT!K13 -> 1.136783734 | L10: =InpT!L13 -> 1.127406049 | M10: =InpT!M13 -> 1.087533156 | N10: =InpT!N13 -> 1 | O10: =InpT!O13 -> 1 | P10: =InpT!P13 -> 1 | Q10: =InpT!Q13 -> 1 | R10: =InpT!R13 -> 1 | S10: =InpT!S13 -> 1 | T10: =InpT!T13 -> 1 | U10: =InpT!U13 -> 1
C12: =InpC!$E$44 -> Other expenditure - Costs associated with Industrial Emissions Directive - Sludge Transport | J12: =J$2 -> 2019-03-31 | K12: 2020-03-31 | L12: 2021-03-31 | M12: 2022-03-31 | N12: 2023-03-31 | O12: 2024-03-31 | P12: 2025-03-31 | Q12: 2026-03-31 | R12: 2027-03-31 | S12: 2028-03-31 | T12: 2029-03-31 | U12: 2030-03-31 | W12: =W$2 -> PR24 Average | X12: =X$2 -> PR24 Total
D13: Location specific costs & obligations - Cost associated with the Industrial Emissions Directive - Sludge Transport - Bioresources
E14: Cost data before override
G15: APR | H15: =InpC!F44 -> WWS1105STP
E16: £m, real | G16: PR24 | H16: =InpC!G54 -> CWW2_013STP_PR24
E17: =InpT!$F$8 -> 2023-03-31 | G17: prices
E19: =InpC!$E$25 -> Anglian Water | F19: =InpC!$F$25 -> ANH | G19: £m | J19: =(SUMIFS('F_Inputs (APR)'!F$7:F$85,'F_Inputs (APR)'!$A$7:$A$85,$F19,'F_Inputs (APR)'!$B$7:$B$85,$H$15)) *J$10 -> 0 | K19: =(SUMIFS('F_Inputs (APR)'!G$7:G$85,'F_Inputs (APR)'!$A$7:$A$85,$F19,'F_Inputs (APR)'!$B$7:$B$85,$H$15)) *K$10 -> 0 | L19: =(SUMIFS('F_Inputs (APR)'!H$7:H$85,'F_Inputs (APR)'!$A$7:$A$85,$F19,'F_Inputs (APR)'!$B$7:$B$85,$H$15)) *L$10 -> 0 | M19: =(SUMIFS('F_Inputs (APR)'!I$7:I$85,'F_Inputs (APR)'!$A$7:$A$85,$F19,'F_Inputs (APR)'!$B$7:$B$85,$H$15)) *M$10 -> 0 | N19: =(SUMIFS('F_Inputs (APR)'!J$7:J$85,'F_Inputs (APR)'!$A$7:$A$85,$F19,'F_Inputs (APR)'!$B$7:$B$85,$H$15)) *N$10 -> 0 | O19: =SUMIFS(F_Inputs!G$7:G$65,F_Inputs!$A$7:$A$65,$F19,F_Inputs!$B$7:$B$65,$H$16)*O$10 -> 0 | P19: =SUMIFS(F_Inputs!H$7:H$65,F_Inputs!$A$7:$A$65,$F19,F_Inputs!$B$7:$B$65,$H$16)*P$10 -> 0 | Q19: =SUMIFS(F_Inputs!I$7:I$65,F_Inputs!$A$7:$A$65,$F19,F_Inputs!$B$7:$B$65,$H$16)*Q$10 -> 0 | R19: =SUMIFS(F_Inputs!J$7:J$65,F_Inputs!$A$7:$A$65,$F19,F_Inputs!$B$7:$B$65,$H$16)*R$10 -> 0 | S19: =SUMIFS(F_Inputs!K$7:K$65,F_Inputs!$A$7:$A$65,$F19,F_Inputs!$B$7:$B$65,$H$16)*S$10 -> 0 | T19: =SUMIFS(F_Inputs!L$7:L$65,F_Inputs!$A$7:$A$65,$F19,F_Inputs!$B$7:$B$65,$H$16)*T$10 -> 0 | U19: =SUMIFS(F_Inputs!M$7:M$65,F_Inputs!$A$7:$A$65,$F19,F_Inputs!$B$7:$B$65,$H$16)*U$10 -> 0 | W19: =IF(SUM(--ISNUMBER(Q19:U19)),AVERAGE(Q19:U19),N_A) -> 0 | X19: =SUM(Q19:U19) -> 0
E20: =InpC!$E$26 -> Dŵr Cymru | F20: =InpC!$F$26 -> WSH | G20: £m | J20: =(SUMIFS('F_Inputs (APR)'!F$7:F$85,'F_Inputs (APR)'!$A$7:$A$85,$F20,'F_Inputs (APR)'!$B$7:$B$85,$H$15)) *J$10 -> 0 | K20: =(SUMIFS('F_Inputs (APR)'!G$7:G$85,'F_Inputs (APR)'!$A$7:$A$85,$F20,'F_Inputs (APR)'!$B$7:$B$85,$H$15)) *K$10 -> 0 | L20: =(SUMIFS('F_Inputs (APR)'!H$7:H$85,'F_Inputs (APR)'!$A$7:$A$85,$F20,'F_Inputs (APR)'!$B$7:$B$85,$H$15)) *L$10 -> 0 | M20: =(SUMIFS('F_Inputs (APR)'!I$7:I$85,'F_Inputs (APR)'!$A$7:$A$85,$F20,'F_Inputs (APR)'!$B$7:$B$85,$H$15)) *M$10 -> 0 | N20: =(SUMIFS('F_Inputs (APR)'!J$7:J$85,'F_Inputs (APR)'!$A$7:$A$85,$F20,'F_Inputs (APR)'!$B$7:$B$85,$H$15)) *N$10 -> 0 | O20: =SUMIFS(F_Inputs!G$7:G$65,F_Inputs!$A$7:$A$65,$F20,F_Inputs!$B$7:$B$65,$H$16)*O$10 -> 0 | P20: =SUMIFS(F_Inputs!H$7:H$65,F_Inputs!$A$7:$A$65,$F20,F_Inputs!$B$7:$B$65,$H$16)*P$10 -> 0 | Q20: =SUMIFS(F_Inputs!I$7:I$65,F_Inputs!$A$7:$A$65,$F20,F_Inputs!$B$7:$B$65,$H$16)*Q$10 -> 0 | R20: =SUMIFS(F_Inputs!J$7:J$65,F_Inputs!$A$7:$A$65,$F20,F_Inputs!$B$7:$B$65,$H$16)*R$10 -> 0 | S20: =SUMIFS(F_Inputs!K$7:K$65,F_Inputs!$A$7:$A$65,$F20,F_Inputs!$B$7:$B$65,$H$16)*S$10 -> 0 | T20: =SUMIFS(F_Inputs!L$7:L$65,F_Inputs!$A$7:$A$65,$F20,F_Inputs!$B$7:$B$65,$H$16)*T$10 -> 0 | U20: =SUMIFS(F_Inputs!M$7:M$65,F_Inputs!$A$7:$A$65,$F20,F_Inputs!$B$7:$B$65,$H$16)*U$10 -> 0 | W20: =IF(SUM(--ISNUMBER(Q20:U20)),AVERAGE(Q20:U20),N_A) -> 0 | X20: 0
E21: =InpC!$E$27 -> Hafren Dyfrdwy | F21: =InpC!$F$27 -> HDD | G21: £m | J21: =(SUMIFS('F_Inputs (APR)'!F$7:F$85,'F_Inputs (APR)'!$A$7:$A$85,$F21,'F_Inputs (APR)'!$B$7:$B$85,$H$15)) *J$10 -> 0 | K21: =(SUMIFS('F_Inputs (APR)'!G$7:G$85,'F_Inputs (APR)'!$A$7:$A$85,$F21,'F_Inputs (APR)'!$B$7:$B$85,$H$15)) *K$10 -> 0 | L21: =(SUMIFS('F_Inputs (APR)'!H$7:H$85,'F_Inputs (APR)'!$A$7:$A$85,$F21,'F_Inputs (APR)'!$B$7:$B$85,$H$15)) *L$10 -> 0 | M21: =(SUMIFS('F_Inputs (APR)'!I$7:I$85,'F_Inputs (APR)'!$A$7:$A$85,$F21,'F_Inputs (APR)'!$B$7:$B$85,$H$15)) *M$10 -> 0 | N21: =(SUMIFS('F_Inputs (APR)'!J$7:J$85,'F_Inputs (APR)'!$A$7:$A$85,$F21,'F_Inputs (APR)'!$B$7:$B$85,$H$15)) *N$10 -> 0 | O21: =SUMIFS(F_Inputs!G$7:G$65,F_Inputs!$A$7:$A$65,$F21,F_Inputs!$B$7:$B$65,$H$16)*O$10 -> 0 | P21: =SUMIFS(F_Inputs!H$7:H$65,F_Inputs!$A$7:$A$65,$F21,F_Inputs!$B$7:$B$65,$H$16)*P$10 -> 0 | Q21: =SUMIFS(F_Inputs!I$7:I$65,F_Inputs!$A$7:$A$65,$F21,F_Inputs!$B$7:$B$65,$H$16)*Q$10 -> 0 | R21: =SUMIFS(F_Inputs!J$7:J$65,F_Inputs!$A$7:$A$65,$F21,F_Inputs!$B$7:$B$65,$H$16)*R$10 -> 0 | S21: =SUMIFS(F_Inputs!K$7:K$65,F_Inputs!$A$7:$A$65,$F21,F_Inputs!$B$7:$B$65,$H$16)*S$10 -> 0 | T21: =SUMIFS(F_Inputs!L$7:L$65,F_Inputs!$A$7:$A$65,$F21,F_Inputs!$B$7:$B$65,$H$16)*T$10 -> 0 | U21: =SUMIFS(F_Inputs!M$7:M$65,F_Inputs!$A$7:$A$65,$F21,F_Inputs!$B$7:$B$65,$H$16)*U$10 -> 0 | W21: =IF(SUM(--ISNUMBER(Q21:U21)),AVERAGE(Q21:U21),N_A) -> 0 | X21: 0
E22: =InpC!$E$28 -> Northumbrian Water | F22: =InpC!$F$28 -> NES | G22: £m | J22: =(SUMIFS('F_Inputs (APR)'!F$7:F$85,'F_Inputs (APR)'!$A$7:$A$85,$F22,'F_Inputs (APR)'!$B$7:$B$85,$H$15)) *J$10 -> 0 | K22: =(SUMIFS('F_Inputs (APR)'!G$7:G$85,'F_Inputs (APR)'!$A$7:$A$85,$F22,'F_Inputs (APR)'!$B$7:$B$85,$H$15)) *K$10 -> 0 | L22: =(SUMIFS('F_Inputs (APR)'!H$7:H$85,'F_Inputs (APR)'!$A$7:$A$85,$F22,'F_Inputs (APR)'!$B$7:$B$85,$H$15)) *L$10 -> 0 | M22: =(SUMIFS('F_Inputs (APR)'!I$7:I$85,'F_Inputs (APR)'!$A$7:$A$85,$F22,'F_Inputs (APR)'!$B$7:$B$85,$H$15)) *M$10 -> 0 | N22: =(SUMIFS('F_Inputs (APR)'!J$7:J$85,'F_Inputs (APR)'!$A$7:$A$85,$F22,'F_Inputs (APR)'!$B$7:$B$85,$H$15)) *N$10 -> 0 | O22: =SUMIFS(F_Inputs!G$7:G$65,F_Inputs!$A$7:$A$65,$F22,F_Inputs!$B$7:$B$65,$H$16)*O$10 -> 0 | P22: =SUMIFS(F_Inputs!H$7:H$65,F_Inputs!$A$7:$A$65,$F22,F_Inputs!$B$7:$B$65,$H$16)*P$10 -> 0 | Q22: =SUMIFS(F_Inputs!I$7:I$65,F_Inputs!$A$7:$A$65,$F22,F_Inputs!$B$7:$B$65,$H$16)*Q$10 -> 0 | R22: =SUMIFS(F_Inputs!J$7:J$65,F_Inputs!$A$7:$A$65,$F22,F_Inputs!$B$7:$B$65,$H$16)*R$10 -> 0 | S22: =SUMIFS(F_Inputs!K$7:K$65,F_Inputs!$A$7:$A$65,$F22,F_Inputs!$B$7:$B$65,$H$16)*S$10 -> 0 | T22: =SUMIFS(F_Inputs!L$7:L$65,F_Inputs!$A$7:$A$65,$F22,F_Inputs!$B$7:$B$65,$H$16)*T$10 -> 0 | U22: =SUMIFS(F_Inputs!M$7:M$65,F_Inputs!$A$7:$A$65,$F22,F_Inputs!$B$7:$B$65,$H$16)*U$10 -> 0 | W22: =IF(SUM(--ISNUMBER(Q22:U22)),AVERAGE(Q22:U22),N_A) -> 0 | X22: 0
E23: =InpC!$E$29 -> Severn Trent Water | F23: =InpC!$F$29 -> SVE | G23: £m | J23: =(SUMIFS('F_Inputs (APR)'!F$7:F$85,'F_Inputs (APR)'!$A$7:$A$85,$F23,'F_Inputs (APR)'!$B$7:$B$85,$H$15)) *J$10 -> 0 | K23: =(SUMIFS('F_Inputs (APR)'!G$7:G$85,'F_Inputs (APR)'!$A$7:$A$85,$F23,'F_Inputs (APR)'!$B$7:$B$85,$H$15)) *K$10 -> 0 | L23: =(SUMIFS('F_Inputs (APR)'!H$7:H$85,'F_Inputs (APR)'!$A$7:$A$85,$F23,'F_Inputs (APR)'!$B$7:$B$85,$H$15)) *L$10 -> 0 | M23: =(SUMIFS('F_Inputs (APR)'!I$7:I$85,'F_Inputs (APR)'!$A$7:$A$85,$F23,'F_Inputs (APR)'!$B$7:$B$85,$H$15)) *M$10 -> 0 | N23: =(SUMIFS('F_Inputs (APR)'!J$7:J$85,'F_Inputs (APR)'!$A$7:$A$85,$F23,'F_Inputs (APR)'!$B$7:$B$85,$H$15)) *N$10 -> 0 | O23: =SUMIFS(F_Inputs!G$7:G$65,F_Inputs!$A$7:$A$65,$F23,F_Inputs!$B$7:$B$65,$H$16)*O$10 -> 0 | P23: =SUMIFS(F_Inputs!H$7:H$65,F_Inputs!$A$7:$A$65,$F23,F_Inputs!$B$7:$B$65,$H$16)*P$10 -> 0 | Q23: =SUMIFS(F_Inputs!I$7:I$65,F_Inputs!$A$7:$A$65,$F23,F_Inputs!$B$7:$B$65,$H$16)*Q$10 -> 0 | R23: =SUMIFS(F_Inputs!J$7:J$65,F_Inputs!$A$7:$A$65,$F23,F_Inputs!$B$7:$B$65,$H$16)*R$10 -> 0 | S23: =SUMIFS(F_Inputs!K$7:K$65,F_Inputs!$A$7:$A$65,$F23,F_Inputs!$B$7:$B$65,$H$16)*S$10 -> 0 | T23: =SUMIFS(F_Inputs!L$7:L$65,F_Inputs!$A$7:$A$65,$F23,F_Inputs!$B$7:$B$65,$H$16)*T$10 -> 0 | U23: =SUMIFS(F_Inputs!M$7:M$65,F_Inputs!$A$7:$A$65,$F23,F_Inputs!$B$7:$B$65,$H$16)*U$10 -> 0 | W23: =IF(SUM(--ISNUMBER(Q23:U23)),AVERAGE(Q23:U23),N_A) -> 0 | X23: 0
E24: =InpC!$E$30 -> South West Water | F24: =InpC!$F$30 -> SWB | G24: £m | J24: =(SUMIFS('F_Inputs (APR)'!F$7:F$85,'F_Inputs (APR)'!$A$7:$A$85,$F24,'F_Inputs (APR)'!$B$7:$B$85,$H$15)) *J$10 -> 0 | K24: =(SUMIFS('F_Inputs (APR)'!G$7:G$85,'F_Inputs (APR)'!$A$7:$A$85,$F24,'F_Inputs (APR)'!$B$7:$B$85,$H$15)) *K$10 -> 0 | L24: =(SUMIFS('F_Inputs (APR)'!H$7:H$85,'F_Inputs (APR)'!$A$7:$A$85,$F24,'F_Inputs (APR)'!$B$7:$B$85,$H$15)) *L$10 -> 0 | M24: =(SUMIFS('F_Inputs (APR)'!I$7:I$85,'F_Inputs (APR)'!$A$7:$A$85,$F24,'F_Inputs (APR)'!$B$7:$B$85,$H$15)) *M$10 -> 0 | N24: =(SUMIFS('F_Inputs (APR)'!J$7:J$85,'F_Inputs (APR)'!$A$7:$A$85,$F24,'F_Inputs (APR)'!$B$7:$B$85,$H$15)) *N$10 -> 0 | O24: =SUMIFS(F_Inputs!G$7:G$65,F_Inputs!$A$7:$A$65,$F24,F_Inputs!$B$7:$B$65,$H$16)*O$10 -> 0 | P24: =SUMIFS(F_Inputs!H$7:H$65,F_Inputs!$A$7:$A$65,$F24,F_Inputs!$B$7:$B$65,$H$16)*P$10 -> 0 | Q24: =SUMIFS(F_Inputs!I$7:I$65,F_Inputs!$A$7:$A$65,$F24,F_Inputs!$B$7:$B$65,$H$16)*Q$10 -> 0 | R24: =SUMIFS(F_Inputs!J$7:J$65,F_Inputs!$A$7:$A$65,$F24,F_Inputs!$B$7:$B$65,$H$16)*R$10 -> 0 | S24: =SUMIFS(F_Inputs!K$7:K$65,F_Inputs!$A$7:$A$65,$F24,F_Inputs!$B$7:$B$65,$H$16)*S$10 -> 0 | T24: =SUMIFS(F_Inputs!L$7:L$65,F_Inputs!$A$7:$A$65,$F24,F_Inputs!$B$7:$B$65,$H$16)*T$10 -> 0 | U24: =SUMIFS(F_Inputs!M$7:M$65,F_Inputs!$A$7:$A$65,$F24,F_Inputs!$B$7:$B$65,$H$16)*U$10 -> 0 | W24: =IF(SUM(--ISNUMBER(Q24:U24)),AVERAGE(Q24:U24),N_A) -> 0 | X24: 0
E25: =InpC!$E$31 -> Southern Water | F25: =InpC!$F$31 -> SRN | G25: £m | J25: =(SUMIFS('F_Inputs (APR)'!F$7:F$85,'F_Inputs (APR)'!$A$7:$A$85,$F25,'F_Inputs (APR)'!$B$7:$B$85,$H$15)) *J$10 -> 0 | K25: =(SUMIFS('F_Inputs (APR)'!G$7:G$85,'F_Inputs (APR)'!$A$7:$A$85,$F25,'F_Inputs (APR)'!$B$7:$B$85,$H$15)) *K$10 -> 0 | L25: =(SUMIFS('F_Inputs (APR)'!H$7:H$85,'F_Inputs (APR)'!$A$7:$A$85,$F25,'F_Inputs (APR)'!$B$7:$B$85,$H$15)) *L$10 -> 0 | M25: =(SUMIFS('F_Inputs (APR)'!I$7:I$85,'F_Inputs (APR)'!$A$7:$A$85,$F25,'F_Inputs (APR)'!$B$7:$B$85,$H$15)) *M$10 -> 0 | N25: =(SUMIFS('F_Inputs (APR)'!J$7:J$85,'F_Inputs (APR)'!$A$7:$A$85,$F25,'F_Inputs (APR)'!$B$7:$B$85,$H$15)) *N$10 -> 0 | O25: =SUMIFS(F_Inputs!G$7:G$65,F_Inputs!$A$7:$A$65,$F25,F_Inputs!$B$7:$B$65,$H$16)*O$10 -> 0 | P25: =SUMIFS(F_Inputs!H$7:H$65,F_Inputs!$A$7:$A$65,$F25,F_Inputs!$B$7:$B$65,$H$16)*P$10 -> 0 | Q25: =SUMIFS(F_Inputs!I$7:I$65,F_Inputs!$A$7:$A$65,$F25,F_Inputs!$B$7:$B$65,$H$16)*Q$10 -> 0 | R25: =SUMIFS(F_Inputs!J$7:J$65,F_Inputs!$A$7:$A$65,$F25,F_Inputs!$B$7:$B$65,$H$16)*R$10 -> 0 | S25: =SUMIFS(F_Inputs!K$7:K$65,F_Inputs!$A$7:$A$65,$F25,F_Inputs!$B$7:$B$65,$H$16)*S$10 -> 0 | T25: =SUMIFS(F_Inputs!L$7:L$65,F_Inputs!$A$7:$A$65,$F25,F_Inputs!$B$7:$B$65,$H$16)*T$10 -> 0 | U25: =SUMIFS(F_Inputs!M$7:M$65,F_Inputs!$A$7:$A$65,$F25,F_Inputs!$B$7:$B$65,$H$16)*U$10 -> 0 | W25: =IF(SUM(--ISNUMBER(Q25:U25)),AVERAGE(Q25:U25),N_A) -> 0 | X25: 0
E26: =InpC!$E$32 -> Thames Water | F26: =InpC!$F$32 -> TMS | G26: £m | J26: =(SUMIFS('F_Inputs (APR)'!F$7:F$85,'F_Inputs (APR)'!$A$7:$A$85,$F26,'F_Inputs (APR)'!$B$7:$B$85,$H$15)) *J$10 -> 0 | K26: =(SUMIFS('F_Inputs (APR)'!G$7:G$85,'F_Inputs (APR)'!$A$7:$A$85,$F26,'F_Inputs (APR)'!$B$7:$B$85,$H$15)) *K$10 -> 0 | L26: =(SUMIFS('F_Inputs (APR)'!H$7:H$85,'F_Inputs (APR)'!$A$7:$A$85,$F26,'F_Inputs (APR)'!$B$7:$B$85,$H$15)) *L$10 -> 0 | M26: =(SUMIFS('F_Inputs (APR)'!I$7:I$85,'F_Inputs (APR)'!$A$7:$A$85,$F26,'F_Inputs (APR)'!$B$7:$B$85,$H$15)) *M$10 -> 0 | N26: =(SUMIFS('F_Inputs (APR)'!J$7:J$85,'F_Inputs (APR)'!$A$7:$A$85,$F26,'F_Inputs (APR)'!$B$7:$B$85,$H$15)) *N$10 -> 0 | O26: =SUMIFS(F_Inputs!G$7:G$65,F_Inputs!$A$7:$A$65,$F26,F_Inputs!$B$7:$B$65,$H$16)*O$10 -> 0 | P26: =SUMIFS(F_Inputs!H$7:H$65,F_Inputs!$A$7:$A$65,$F26,F_Inputs!$B$7:$B$65,$H$16)*P$10 -> 0 | Q26: =SUMIFS(F_Inputs!I$7:I$65,F_Inputs!$A$7:$A$65,$F26,F_Inputs!$B$7:$B$65,$H$16)*Q$10 -> 0 | R26: =SUMIFS(F_Inputs!J$7:J$65,F_Inputs!$A$7:$A$65,$F26,F_Inputs!$B$7:$B$65,$H$16)*R$10 -> 0 | S26: =SUMIFS(F_Inputs!K$7:K$65,F_Inputs!$A$7:$A$65,$F26,F_Inputs!$B$7:$B$65,$H$16)*S$10 -> 0 | T26: =SUMIFS(F_Inputs!L$7:L$65,F_Inputs!$A$7:$A$65,$F26,F_Inputs!$B$7:$B$65,$H$16)*T$10 -> 0 | U26: =SUMIFS(F_Inputs!M$7:M$65,F_Inputs!$A$7:$A$65,$F26,F_Inputs!$B$7:$B$65,$H$16)*U$10 -> 0 | W26: =IF(SUM(--ISNUMBER(Q26:U26)),AVERAGE(Q26:U26),N_A) -> 0 | X26: 0
E27: =InpC!$E$33 -> United Utilities | F27: =InpC!$F$33 -> NWT | G27: £m | J27: =(SUMIFS('F_Inputs (APR)'!F$7:F$85,'F_Inputs (APR)'!$A$7:$A$85,$F27,'F_Inputs (APR)'!$B$7:$B$85,$H$15)) *J$10 -> 0 | K27: =(SUMIFS('F_Inputs (APR)'!G$7:G$85,'F_Inputs (APR)'!$A$7:$A$85,$F27,'F_Inputs (APR)'!$B$7:$B$85,$H$15)) *K$10 -> 0 | L27: =(SUMIFS('F_Inputs (APR)'!H$7:H$85,'F_Inputs (APR)'!$A$7:$A$85,$F27,'F_Inputs (APR)'!$B$7:$B$85,$H$15)) *L$10 -> 0 | M27: =(SUMIFS('F_Inputs (APR)'!I$7:I$85,'F_Inputs (APR)'!$A$7:$A$85,$F27,'F_Inputs (APR)'!$B$7:$B$85,$H$15)) *M$10 -> 0 | N27: =(SUMIFS('F_Inputs (APR)'!J$7:J$85,'F_Inputs (APR)'!$A$7:$A$85,$F27,'F_Inputs (APR)'!$B$7:$B$85,$H$15)) *N$10 -> 0 | O27: =SUMIFS(F_Inputs!G$7:G$65,F_Inputs!$A$7:$A$65,$F27,F_Inputs!$B$7:$B$65,$H$16)*O$10 -> 0 | P27: =SUMIFS(F_Inputs!H$7:H$65,F_Inputs!$A$7:$A$65,$F27,F_Inputs!$B$7:$B$65,$H$16)*P$10 -> 0 | Q27: =SUMIFS(F_Inputs!I$7:I$65,F_Inputs!$A$7:$A$65,$F27,F_Inputs!$B$7:$B$65,$H$16)*Q$10 -> 0 | R27: =SUMIFS(F_Inputs!J$7:J$65,F_Inputs!$A$7:$A$65,$F27,F_Inputs!$B$7:$B$65,$H$16)*R$10 -> 0 | S27: =SUMIFS(F_Inputs!K$7:K$65,F_Inputs!$A$7:$A$65,$F27,F_Inputs!$B$7:$B$65,$H$16)*S$10 -> 0 | T27: =SUMIFS(F_Inputs!L$7:L$65,F_Inputs!$A$7:$A$65,$F27,F_Inputs!$B$7:$B$65,$H$16)*T$10 -> 0 | U27: =SUMIFS(F_Inputs!M$7:M$65,F_Inputs!$A$7:$A$65,$F27,F_Inputs!$B$7:$B$65,$H$16)*U$10 -> 0 | W27: =IF(SUM(--ISNUMBER(Q27:U27)),AVERAGE(Q27:U27),N_A) -> 0 | X27: 0
E28: =InpC!$E$34 -> Wessex Water | F28: =InpC!$F$34 -> WSX | G28: £m | J28: =(SUMIFS('F_Inputs (APR)'!F$7:F$85,'F_Inputs (APR)'!$A$7:$A$85,$F28,'F_Inputs (APR)'!$B$7:$B$85,$H$15)) *J$10 -> 0 | K28: =(SUMIFS('F_Inputs (APR)'!G$7:G$85,'F_Inputs (APR)'!$A$7:$A$85,$F28,'F_Inputs (APR)'!$B$7:$B$85,$H$15)) *K$10 -> 0 | L28: =(SUMIFS('F_Inputs (APR)'!H$7:H$85,'F_Inputs (APR)'!$A$7:$A$85,$F28,'F_Inputs (APR)'!$B$7:$B$85,$H$15)) *L$10 -> 0 | M28: =(SUMIFS('F_Inputs (APR)'!I$7:I$85,'F_Inputs (APR)'!$A$7:$A$85,$F28,'F_Inputs (APR)'!$B$7:$B$85,$H$15)) *M$10 -> 0 | N28: =(SUMIFS('F_Inputs (APR)'!J$7:J$85,'F_Inputs (APR)'!$A$7:$A$85,$F28,'F_Inputs (APR)'!$B$7:$B$85,$H$15)) *N$10 -> 0 | O28: =SUMIFS(F_Inputs!G$7:G$65,F_Inputs!$A$7:$A$65,$F28,F_Inputs!$B$7:$B$65,$H$16)*O$10 -> 0 | P28: =SUMIFS(F_Inputs!H$7:H$65,F_Inputs!$A$7:$A$65,$F28,F_Inputs!$B$7:$B$65,$H$16)*P$10 -> 0 | Q28: =SUMIFS(F_Inputs!I$7:I$65,F_Inputs!$A$7:$A$65,$F28,F_Inputs!$B$7:$B$65,$H$16)*Q$10 -> 0 | R28: =SUMIFS(F_Inputs!J$7:J$65,F_Inputs!$A$7:$A$65,$F28,F_Inputs!$B$7:$B$65,$H$16)*R$10 -> 0 | S28: =SUMIFS(F_Inputs!K$7:K$65,F_Inputs!$A$7:$A$65,$F28,F_Inputs!$B$7:$B$65,$H$16)*S$10 -> 0 | T28: =SUMIFS(F_Inputs!L$7:L$65,F_Inputs!$A$7:$A$65,$F28,F_Inputs!$B$7:$B$65,$H$16)*T$10 -> 0 | U28: =SUMIFS(F_Inputs!M$7:M$65,F_Inputs!$A$7:$A$65,$F28,F_Inputs!$B$7:$B$65,$H$16)*U$10 -> 0 | W28: =IF(SUM(--ISNUMBER(Q28:U28)),AVERAGE(Q28:U28),N_A) -> 0 | X28: 0
E29: =InpC!$E$35 -> Yorkshire Water | F29: =InpC!$F$35 -> YKY | G29: £m | J29: =(SUMIFS('F_Inputs (APR)'!F$7:F$85,'F_Inputs (APR)'!$A$7:$A$85,$F29,'F_Inputs (APR)'!$B$7:$B$85,$H$15)) *J$10 -> 0 | K29: =(SUMIFS('F_Inputs (APR)'!G$7:G$85,'F_Inputs (APR)'!$A$7:$A$85,$F29,'F_Inputs (APR)'!$B$7:$B$85,$H$15)) *K$10 -> 0 | L29: =(SUMIFS('F_Inputs (APR)'!H$7:H$85,'F_Inputs (APR)'!$A$7:$A$85,$F29,'F_Inputs (APR)'!$B$7:$B$85,$H$15)) *L$10 -> 0 | M29: =(SUMIFS('F_Inputs (APR)'!I$7:I$85,'F_Inputs (APR)'!$A$7:$A$85,$F29,'F_Inputs (APR)'!$B$7:$B$85,$H$15)) *M$10 -> 0 | N29: =(SUMIFS('F_Inputs (APR)'!J$7:J$85,'F_Inputs (APR)'!$A$7:$A$85,$F29,'F_Inputs (APR)'!$B$7:$B$85,$H$15)) *N$10 -> 0 | O29: =SUMIFS(F_Inputs!G$7:G$65,F_Inputs!$A$7:$A$65,$F29,F_Inputs!$B$7:$B$65,$H$16)*O$10 -> 0 | P29: =SUMIFS(F_Inputs!H$7:H$65,F_Inputs!$A$7:$A$65,$F29,F_Inputs!$B$7:$B$65,$H$16)*P$10 -> 0 | Q29: =SUMIFS(F_Inputs!I$7:I$65,F_Inputs!$A$7:$A$65,$F29,F_Inputs!$B$7:$B$65,$H$16)*Q$10 -> 0 | R29: =SUMIFS(F_Inputs!J$7:J$65,F_Inputs!$A$7:$A$65,$F29,F_Inputs!$B$7:$B$65,$H$16)*R$10 -> 0 | S29: =SUMIFS(F_Inputs!K$7:K$65,F_Inputs!$A$7:$A$65,$F29,F_Inputs!$B$7:$B$65,$H$16)*S$10 -> 0 | T29: =SUMIFS(F_Inputs!L$7:L$65,F_Inputs!$A$7:$A$65,$F29,F_Inputs!$B$7:$B$65,$H$16)*T$10 -> 0 | U29: =SUMIFS(F_Inputs!M$7:M$65,F_Inputs!$A$7:$A$65,$F29,F_Inputs!$B$7:$B$65,$H$16)*U$10 -> 0 | W29: =IF(SUM(--ISNUMBER(Q29:U29)),AVERAGE(Q29:U29),N_A) -> 0 | X29: 0
E30: Industry total | G30: £m | J30: =SUM(J19:J29) -> 0 | K30: 0 | L30: 0 | M30: 0 | N30: 0 | O30: 0 | P30: 0 | Q30: 0 | R30: 0 | S30: 0 | T30: 0 | U30: 0 | W30: =SUM(W19:W29) -> 0 | X30: =SUM(X19:X29) -> 0
E32: ='F_Inputs(APR)_chk'!E$116 -> Other exp. - Sludge transport | J32: ='F_Inputs(APR)_chk'!F$116 -> 0 | K32: ='F_Inputs(APR)_chk'!G$116 -> 0 | L32: ='F_Inputs(APR)_chk'!H$116 -> 0 | M32: ='F_Inputs(APR)_chk'!I$116 -> 0 | N32: ='F_Inputs(APR)_chk'!J$116 -> 0
E33: ='F_Inputs(PR24)_chk'!E$81 -> Location specific costs & obligations - sludge transport | O33: ='F_Inputs(PR24)_chk'!G$81 -> 0 | P33: ='F_Inputs(PR24)_chk'!H$81 -> 0 | Q33: ='F_Inputs(PR24)_chk'!I$81 -> 0 | R33: ='F_Inputs(PR24)_chk'!J$81 -> 0 | S33: ='F_Inputs(PR24)_chk'!K$81 -> 0 | T33: ='F_Inputs(PR24)_chk'!L$81 -> 0 | U33: ='F_Inputs(PR24)_chk'!M$81 -> 0
E34: Error check | H34: =IF(SUM(J34:U34)>0,1,0) -> 0 | J34: =IF(ABS(J30-J32)>CHK_TOL,1,0) -> 0 | K34: =IF(ABS(K30-K32)>CHK_TOL,1,0) -> 0 | L34: =IF(ABS(L30-L32)>CHK_TOL,1,0) -> 0 | M34: =IF(ABS(M30-M32)>CHK_TOL,1,0) -> 0 | N34: =IF(ABS(N30-N32)>CHK_TOL,1,0) -> 0 | O34: =IF(ABS(O30-O33)>CHK_TOL,1,0) -> 0 | P34: 0 | Q34: 0 | R34: 0 | S34: 0 | T34: 0 | U34: 0
C36: =InpC!$E$45 -> Other expenditure - Costs associated with Industrial Emissions Directive - Sludge Treatment | J36: =J$2 -> 2019-03-31 | K36: 2020-03-31 | L36: 2021-03-31 | M36: 2022-03-31 | N36: 2023-03-31 | O36: 2024-03-31 | P36: 2025-03-31 | Q36: 2026-03-31 | R36: 2027-03-31 | S36: 2028-03-31 | T36: 2029-03-31 | U36: 2030-03-31 | W36: =W$2 -> PR24 Average | X36: =X$2 -> PR24 Total
D37: Location specific costs & obligations - Cost associated with the Industrial Emissions Directive - Sludge Treatment - Bioresources
E38: Cost data before override
F39: APR | G39: =InpC!F42 -> W3036SL | H39: =InpC!F45 -> WWS1105SDT
E40: £m, real | F40: PR24 | G40: =InpC!G55 -> CWW2_013SDT_PR24
E41: =InpT!$F$8 -> 2023-03-31 | G41: prices
E43: =InpC!$E$25 -> Anglian Water | F43: =InpC!$F$25 -> ANH | G43: £m | J43: =((SUMIFS('F_Inputs (APR)'!F$7:F$85,'F_Inputs (APR)'!$A$7:$A$85,$F43,'F_Inputs (APR)'!$B$7:$B$85,$G$39))+(SUMIFS('F_Inputs (APR)'!F$7:F$85,'F_Inputs (APR)'!$A$7:$A$85,$F43,'F_Inputs (APR)'!$B$7:$B$85,$H$39))) *J$10 -> 0 | K43: =((SUMIFS('F_Inputs (APR)'!G$7:G$85,'F_Inputs (APR)'!$A$7:$A$85,$F43,'F_Inputs (APR)'!$B$7:$B$85,$G$39))+(SUMIFS('F_Inputs (APR)'!G$7:G$85,'F_Inputs (APR)'!$A$7:$A$85,$F43,'F_Inputs (APR)'!$B$7:$B$85,$H$39))) *K$10 -> 0 | L43: =((SUMIFS('F_Inputs (APR)'!H$7:H$85,'F_Inputs (APR)'!$A$7:$A$85,$F43,'F_Inputs (APR)'!$B$7:$B$85,$G$39))+(SUMIFS('F_Inputs (APR)'!H$7:H$85,'F_Inputs (APR)'!$A$7:$A$85,$F43,'F_Inputs (APR)'!$B$7:$B$85,$H$39))) *L$10 -> 0 | M43: =((SUMIFS('F_Inputs (APR)'!I$7:I$85,'F_Inputs (APR)'!$A$7:$A$85,$F43,'F_Inputs (APR)'!$B$7:$B$85,$G$39))+(SUMIFS('F_Inputs (APR)'!I$7:I$85,'F_Inputs (APR)'!$A$7:$A$85,$F43,'F_Inputs (APR)'!$B$7:$B$85,$H$39))) *M$10 -> 0 | N43: =((SUMIFS('F_Inputs (APR)'!J$7:J$85,'F_Inputs (APR)'!$A$7:$A$85,$F43,'F_Inputs (APR)'!$B$7:$B$85,$G$39))+(SUMIFS('F_Inputs (APR)'!J$7:J$85,'F_Inputs (APR)'!$A$7:$A$85,$F43,'F_Inputs (APR)'!$B$7:$B$85,$H$39))) *N$10 -> 0 | O43: =SUMIFS(F_Inputs!G$7:G$65,F_Inputs!$A$7:$A$65,$F43,F_Inputs!$B$7:$B$65,$G$40)*O$10 -> 0 | P43: =SUMIFS(F_Inputs!H$7:H$65,F_Inputs!$A$7:$A$65,$F43,F_Inputs!$B$7:$B$65,$G$40)*P$10 -> 0 | Q43: =SUMIFS(F_Inputs!I$7:I$65,F_Inputs!$A$7:$A$65,$F43,F_Inputs!$B$7:$B$65,$G$40)*Q$10 -> 0.529 | R43: =SUMIFS(F_Inputs!J$7:J$65,F_Inputs!$A$7:$A$65,$F43,F_Inputs!$B$7:$B$65,$G$40)*R$10 -> 0.529 | S43: =SUMIFS(F_Inputs!K$7:K$65,F_Inputs!$A$7:$A$65,$F43,F_Inputs!$B$7:$B$65,$G$40)*S$10 -> 0.529 | T43: =SUMIFS(F_Inputs!L$7:L$65,F_Inputs!$A$7:$A$65,$F43,F_Inputs!$B$7:$B$65,$G$40)*T$10 -> 0.529 | U43: =SUMIFS(F_Inputs!M$7:M$65,F_Inputs!$A$7:$A$65,$F43,F_Inputs!$B$7:$B$65,$G$40)*U$10 -> 0.529 | W43: =IF(SUM(--ISNUMBER(Q43:U43)),AVERAGE(Q43:U43),N_A) -> 0.529 | X43: =SUM(Q43:U43) -> 2.645
E44: =InpC!$E$26 -> Dŵr Cymru | F44: =InpC!$F$26 -> WSH | G44: £m | J44: =((SUMIFS('F_Inputs (APR)'!F$7:F$85,'F_Inputs (APR)'!$A$7:$A$85,$F44,'F_Inputs (APR)'!$B$7:$B$85,$G$39))+(SUMIFS('F_Inputs (APR)'!F$7:F$85,'F_Inputs (APR)'!$A$7:$A$85,$F44,'F_Inputs (APR)'!$B$7:$B$85,$H$39))) *J$10 -> 0.03005639098 | K44: =((SUMIFS('F_Inputs (APR)'!G$7:G$85,'F_Inputs (APR)'!$A$7:$A$85,$F44,'F_Inputs (APR)'!$B$7:$B$85,$G$39))+(SUMIFS('F_Inputs (APR)'!G$7:G$85,'F_Inputs (APR)'!$A$7:$A$85,$F44,'F_Inputs (APR)'!$B$7:$B$85,$H$39))) *K$10 -> 0.05456561922 | L44: =((SUMIFS('F_Inputs (APR)'!H$7:H$85,'F_Inputs (APR)'!$A$7:$A$85,$F44,'F_Inputs (APR)'!$B$7:$B$85,$G$39))+(SUMIFS('F_Inputs (APR)'!H$7:H$85,'F_Inputs (APR)'!$A$7:$A$85,$F44,'F_Inputs (APR)'!$B$7:$B$85,$H$39))) *L$10 -> 0.03833180568 | M44: =((SUMIFS('F_Inputs (APR)'!I$7:I$85,'F_Inputs (APR)'!$A$7:$A$85,$F44,'F_Inputs (APR)'!$B$7:$B$85,$G$39))+(SUMIFS('F_Inputs (APR)'!I$7:I$85,'F_Inputs (APR)'!$A$7:$A$85,$F44,'F_Inputs (APR)'!$B$7:$B$85,$H$39))) *M$10 -> 0.03697612732 | N44: =((SUMIFS('F_Inputs (APR)'!J$7:J$85,'F_Inputs (APR)'!$A$7:$A$85,$F44,'F_Inputs (APR)'!$B$7:$B$85,$G$39))+(SUMIFS('F_Inputs (APR)'!J$7:J$85,'F_Inputs (APR)'!$A$7:$A$85,$F44,'F_Inputs (APR)'!$B$7:$B$85,$H$39))) *N$10 -> 0.027 | O44: =SUMIFS(F_Inputs!G$7:G$65,F_Inputs!$A$7:$A$65,$F44,F_Inputs!$B$7:$B$65,$G$40)*O$10 -> 0.028 | P44: =SUMIFS(F_Inputs!H$7:H$65,F_Inputs!$A$7:$A$65,$F44,F_Inputs!$B$7:$B$65,$G$40)*P$10 -> 0.04 | Q44: =SUMIFS(F_Inputs!I$7:I$65,F_Inputs!$A$7:$A$65,$F44,F_Inputs!$B$7:$B$65,$G$40)*Q$10 -> 0.024 | R44: =SUMIFS(F_Inputs!J$7:J$65,F_Inputs!$A$7:$A$65,$F44,F_Inputs!$B$7:$B$65,$G$40)*R$10 -> 0.023 | S44: =SUMIFS(F_Inputs!K$7:K$65,F_Inputs!$A$7:$A$65,$F44,F_Inputs!$B$7:$B$65,$G$40)*S$10 -> 0.023 | T44: =SUMIFS(F_Inputs!L$7:L$65,F_Inputs!$A$7:$A$65,$F44,F_Inputs!$B$7:$B$65,$G$40)*T$10 -> 0.023 | U44: =SUMIFS(F_Inputs!M$7:M$65,F_Inputs!$A$7:$A$65,$F44,F_Inputs!$B$7:$B$65,$G$40)*U$10 -> 0.022 | W44: =IF(SUM(--ISNUMBER(Q44:U44)),AVERAGE(Q44:U44),N_A) -> 0.023 | X44: 0.115
E45: =InpC!$E$27 -> Hafren Dyfrdwy | F45: =InpC!$F$27 -> HDD | G45: £m | J45: =((SUMIFS('F_Inputs (APR)'!F$7:F$85,'F_Inputs (APR)'!$A$7:$A$85,$F45,'F_Inputs (APR)'!$B$7:$B$85,$G$39))+(SUMIFS('F_Inputs (APR)'!F$7:F$85,'F_Inputs (APR)'!$A$7:$A$85,$F45,'F_Inputs (APR)'!$B$7:$B$85,$H$39))) *J$10 -> 0 | K45: =((SUMIFS('F_Inputs (APR)'!G$7:G$85,'F_Inputs (APR)'!$A$7:$A$85,$F45,'F_Inputs (APR)'!$B$7:$B$85,$G$39))+(SUMIFS('F_Inputs (APR)'!G$7:G$85,'F_Inputs (APR)'!$A$7:$A$85,$F45,'F_Inputs (APR)'!$B$7:$B$85,$H$39))) *K$10 -> 0 | L45: =((SUMIFS('F_Inputs (APR)'!H$7:H$85,'F_Inputs (APR)'!$A$7:$A$85,$F45,'F_Inputs (APR)'!$B$7:$B$85,$G$39))+(SUMIFS('F_Inputs (APR)'!H$7:H$85,'F_Inputs (APR)'!$A$7:$A$85,$F45,'F_Inputs (APR)'!$B$7:$B$85,$H$39))) *L$10 -> 0 | M45: =((SUMIFS('F_Inputs (APR)'!I$7:I$85,'F_Inputs (APR)'!$A$7:$A$85,$F45,'F_Inputs (APR)'!$B$7:$B$85,$G$39))+(SUMIFS('F_Inputs (APR)'!I$7:I$85,'F_Inputs (APR)'!$A$7:$A$85,$F45,'F_Inputs (APR)'!$B$7:$B$85,$H$39))) *M$10 -> 0 | N45: =((SUMIFS('F_Inputs (APR)'!J$7:J$85,'F_Inputs (APR)'!$A$7:$A$85,$F45,'F_Inputs (APR)'!$B$7:$B$85,$G$39))+(SUMIFS('F_Inputs (APR)'!J$7:J$85,'F_Inputs (APR)'!$A$7:$A$85,$F45,'F_Inputs (APR)'!$B$7:$B$85,$H$39))) *N$10 -> 0 | O45: =SUMIFS(F_Inputs!G$7:G$65,F_Inputs!$A$7:$A$65,$F45,F_Inputs!$B$7:$B$65,$G$40)*O$10 -> 0 | P45: =SUMIFS(F_Inputs!H$7:H$65,F_Inputs!$A$7:$A$65,$F45,F_Inputs!$B$7:$B$65,$G$40)*P$10 -> 0 | Q45: =SUMIFS(F_Inputs!I$7:I$65,F_Inputs!$A$7:$A$65,$F45,F_Inputs!$B$7:$B$65,$G$40)*Q$10 -> 0 | R45: =SUMIFS(F_Inputs!J$7:J$65,F_Inputs!$A$7:$A$65,$F45,F_Inputs!$B$7:$B$65,$G$40)*R$10 -> 0 | S45: =SUMIFS(F_Inputs!K$7:K$65,F_Inputs!$A$7:$A$65,$F45,F_Inputs!$B$7:$B$65,$G$40)*S$10 -> 0 | T45: =SUMIFS(F_Inputs!L$7:L$65,F_Inputs!$A$7:$A$65,$F45,F_Inputs!$B$7:$B$65,$G$40)*T$10 -> 0 | U45: =SUMIFS(F_Inputs!M$7:M$65,F_Inputs!$A$7:$A$65,$F45,F_Inputs!$B$7:$B$65,$G$40)*U$10 -> 0 | W45: =IF(SUM(--ISNUMBER(Q45:U45)),AVERAGE(Q45:U45),N_A) -> 0 | X45: 0
E46: =InpC!$E$28 -> Northumbrian Water | F46: =InpC!$F$28 -> NES | G46: £m | J46: =((SUMIFS('F_Inputs (APR)'!F$7:F$85,'F_Inputs (APR)'!$A$7:$A$85,$F46,'F_Inputs (APR)'!$B$7:$B$85,$G$39))+(SUMIFS('F_Inputs (APR)'!F$7:F$85,'F_Inputs (APR)'!$A$7:$A$85,$F46,'F_Inputs (APR)'!$B$7:$B$85,$H$39))) *J$10 -> 0 | K46: =((SUMIFS('F_Inputs (APR)'!G$7:G$85,'F_Inputs (APR)'!$A$7:$A$85,$F46,'F_Inputs (APR)'!$B$7:$B$85,$G$39))+(SUMIFS('F_Inputs (APR)'!G$7:G$85,'F_Inputs (APR)'!$A$7:$A$85,$F46,'F_Inputs (APR)'!$B$7:$B$85,$H$39))) *K$10 -> 0 | L46: =((SUMIFS('F_Inputs (APR)'!H$7:H$85,'F_Inputs (APR)'!$A$7:$A$85,$F46,'F_Inputs (APR)'!$B$7:$B$85,$G$39))+(SUMIFS('F_Inputs (APR)'!H$7:H$85,'F_Inputs (APR)'!$A$7:$A$85,$F46,'F_Inputs (APR)'!$B$7:$B$85,$H$39))) *L$10 -> 0 | M46: =((SUMIFS('F_Inputs (APR)'!I$7:I$85,'F_Inputs (APR)'!$A$7:$A$85,$F46,'F_Inputs (APR)'!$B$7:$B$85,$G$39))+(SUMIFS('F_Inputs (APR)'!I$7:I$85,'F_Inputs (APR)'!$A$7:$A$85,$F46,'F_Inputs (APR)'!$B$7:$B$85,$H$39))) *M$10 -> 0 | N46: =((SUMIFS('F_Inputs (APR)'!J$7:J$85,'F_Inputs (APR)'!$A$7:$A$85,$F46,'F_Inputs (APR)'!$B$7:$B$85,$G$39))+(SUMIFS('F_Inputs (APR)'!J$7:J$85,'F_Inputs (APR)'!$A$7:$A$85,$F46,'F_Inputs (APR)'!$B$7:$B$85,$H$39))) *N$10 -> 0 | O46: =SUMIFS(F_Inputs!G$7:G$65,F_Inputs!$A$7:$A$65,$F46,F_Inputs!$B$7:$B$65,$G$40)*O$10 -> 0 | P46: =SUMIFS(F_Inputs!H$7:H$65,F_Inputs!$A$7:$A$65,$F46,F_Inputs!$B$7:$B$65,$G$40)*P$10 -> 0 | Q46: =SUMIFS(F_Inputs!I$7:I$65,F_Inputs!$A$7:$A$65,$F46,F_Inputs!$B$7:$B$65,$G$40)*Q$10 -> 0 | R46: =SUMIFS(F_Inputs!J$7:J$65,F_Inputs!$A$7:$A$65,$F46,F_Inputs!$B$7:$B$65,$G$40)*R$10 -> 0 | S46: =SUMIFS(F_Inputs!K$7:K$65,F_Inputs!$A$7:$A$65,$F46,F_Inputs!$B$7:$B$65,$G$40)*S$10 -> 0 | T46: =SUMIFS(F_Inputs!L$7:L$65,F_Inputs!$A$7:$A$65,$F46,F_Inputs!$B$7:$B$65,$G$40)*T$10 -> 0 | U46: =SUMIFS(F_Inputs!M$7:M$65,F_Inputs!$A$7:$A$65,$F46,F_Inputs!$B$7:$B$65,$G$40)*U$10 -> 0 | W46: =IF(SUM(--ISNUMBER(Q46:U46)),AVERAGE(Q46:U46),N_A) -> 0 | X46: 0
E47: =InpC!$E$29 -> Severn Trent Water | F47: =InpC!$F$29 -> SVE | G47: £m | J47: =((SUMIFS('F_Inputs (APR)'!F$7:F$85,'F_Inputs (APR)'!$A$7:$A$85,$F47,'F_Inputs (APR)'!$B$7:$B$85,$G$39))+(SUMIFS('F_Inputs (APR)'!F$7:F$85,'F_Inputs (APR)'!$A$7:$A$85,$F47,'F_Inputs (APR)'!$B$7:$B$85,$H$39))) *J$10 -> 0.1606860902 | K47: =((SUMIFS('F_Inputs (APR)'!G$7:G$85,'F_Inputs (APR)'!$A$7:$A$85,$F47,'F_Inputs (APR)'!$B$7:$B$85,$G$39))+(SUMIFS('F_Inputs (APR)'!G$7:G$85,'F_Inputs (APR)'!$A$7:$A$85,$F47,'F_Inputs (APR)'!$B$7:$B$85,$H$39))) *K$10 -> 0.1818853974 | L47: =((SUMIFS('F_Inputs (APR)'!H$7:H$85,'F_Inputs (APR)'!$A$7:$A$85,$F47,'F_Inputs (APR)'!$B$7:$B$85,$G$39))+(SUMIFS('F_Inputs (APR)'!H$7:H$85,'F_Inputs (APR)'!$A$7:$A$85,$F47,'F_Inputs (APR)'!$B$7:$B$85,$H$39))) *L$10 -> 0 | M47: =((SUMIFS('F_Inputs (APR)'!I$7:I$85,'F_Inputs (APR)'!$A$7:$A$85,$F47,'F_Inputs (APR)'!$B$7:$B$85,$G$39))+(SUMIFS('F_Inputs (APR)'!I$7:I$85,'F_Inputs (APR)'!$A$7:$A$85,$F47,'F_Inputs (APR)'!$B$7:$B$85,$H$39))) *M$10 -> 0 | N47: =((SUMIFS('F_Inputs (APR)'!J$7:J$85,'F_Inputs (APR)'!$A$7:$A$85,$F47,'F_Inputs (APR)'!$B$7:$B$85,$G$39))+(SUMIFS('F_Inputs (APR)'!J$7:J$85,'F_Inputs (APR)'!$A$7:$A$85,$F47,'F_Inputs (APR)'!$B$7:$B$85,$H$39))) *N$10 -> 0.117 | O47: =SUMIFS(F_Inputs!G$7:G$65,F_Inputs!$A$7:$A$65,$F47,F_Inputs!$B$7:$B$65,$G$40)*O$10 -> 0.2311137 | P47: =SUMIFS(F_Inputs!H$7:H$65,F_Inputs!$A$7:$A$65,$F47,F_Inputs!$B$7:$B$65,$G$40)*P$10 -> 0.232520917 | Q47: =SUMIFS(F_Inputs!I$7:I$65,F_Inputs!$A$7:$A$65,$F47,F_Inputs!$B$7:$B$65,$G$40)*Q$10 -> 0.233936702 | R47: =SUMIFS(F_Inputs!J$7:J$65,F_Inputs!$A$7:$A$65,$F47,F_Inputs!$B$7:$B$65,$G$40)*R$10 -> 0.235361107 | S47: =SUMIFS(F_Inputs!K$7:K$65,F_Inputs!$A$7:$A$65,$F47,F_Inputs!$B$7:$B$65,$G$40)*S$10 -> 0.236794185 | T47: =SUMIFS(F_Inputs!L$7:L$65,F_Inputs!$A$7:$A$65,$F47,F_Inputs!$B$7:$B$65,$G$40)*T$10 -> 0.23823599 | U47: =SUMIFS(F_Inputs!M$7:M$65,F_Inputs!$A$7:$A$65,$F47,F_Inputs!$B$7:$B$65,$G$40)*U$10 -> 0.239686573 | W47: =IF(SUM(--ISNUMBER(Q47:U47)),AVERAGE(Q47:U47),N_A) -> 0.2368029114 | X47: 1.184014557
E48: =InpC!$E$30 -> South West Water | F48: =InpC!$F$30 -> SWB | G48: £m | J48: =((SUMIFS('F_Inputs (APR)'!F$7:F$85,'F_Inputs (APR)'!$A$7:$A$85,$F48,'F_Inputs (APR)'!$B$7:$B$85,$G$39))+(SUMIFS('F_Inputs (APR)'!F$7:F$85,'F_Inputs (APR)'!$A$7:$A$85,$F48,'F_Inputs (APR)'!$B$7:$B$85,$H$39))) *J$10 -> 0 | K48: =((SUMIFS('F_Inputs (APR)'!G$7:G$85,'F_Inputs (APR)'!$A$7:$A$85,$F48,'F_Inputs (APR)'!$B$7:$B$85,$G$39))+(SUMIFS('F_Inputs (APR)'!G$7:G$85,'F_Inputs (APR)'!$A$7:$A$85,$F48,'F_Inputs (APR)'!$B$7:$B$85,$H$39))) *K$10 -> 0 | L48: =((SUMIFS('F_Inputs (APR)'!H$7:H$85,'F_Inputs (APR)'!$A$7:$A$85,$F48,'F_Inputs (APR)'!$B$7:$B$85,$G$39))+(SUMIFS('F_Inputs (APR)'!H$7:H$85,'F_Inputs (APR)'!$A$7:$A$85,$F48,'F_Inputs (APR)'!$B$7:$B$85,$H$39))) *L$10 -> 0 | M48: =((SUMIFS('F_Inputs (APR)'!I$7:I$85,'F_Inputs (APR)'!$A$7:$A$85,$F48,'F_Inputs (APR)'!$B$7:$B$85,$G$39))+(SUMIFS('F_Inputs (APR)'!I$7:I$85,'F_Inputs (APR)'!$A$7:$A$85,$F48,'F_Inputs (APR)'!$B$7:$B$85,$H$39))) *M$10 -> 0 | N48: =((SUMIFS('F_Inputs (APR)'!J$7:J$85,'F_Inputs (APR)'!$A$7:$A$85,$F48,'F_Inputs (APR)'!$B$7:$B$85,$G$39))+(SUMIFS('F_Inputs (APR)'!J$7:J$85,'F_Inputs (APR)'!$A$7:$A$85,$F48,'F_Inputs (APR)'!$B$7:$B$85,$H$39))) *N$10 -> 0 | O48: =SUMIFS(F_Inputs!G$7:G$65,F_Inputs!$A$7:$A$65,$F48,F_Inputs!$B$7:$B$65,$G$40)*O$10 -> 0 | P48: =SUMIFS(F_Inputs!H$7:H$65,F_Inputs!$A$7:$A$65,$F48,F_Inputs!$B$7:$B$65,$G$40)*P$10 -> 0 | Q48: =SUMIFS(F_Inputs!I$7:I$65,F_Inputs!$A$7:$A$65,$F48,F_Inputs!$B$7:$B$65,$G$40)*Q$10 -> 0 | R48: =SUMIFS(F_Inputs!J$7:J$65,F_Inputs!$A$7:$A$65,$F48,F_Inputs!$B$7:$B$65,$G$40)*R$10 -> 0.440553612 | S48: =SUMIFS(F_Inputs!K$7:K$65,F_Inputs!$A$7:$A$65,$F48,F_Inputs!$B$7:$B$65,$G$40)*S$10 -> 0.442590167 | T48: =SUMIFS(F_Inputs!L$7:L$65,F_Inputs!$A$7:$A$65,$F48,F_Inputs!$B$7:$B$65,$G$40)*T$10 -> 0.443951526 | U48: =SUMIFS(F_Inputs!M$7:M$65,F_Inputs!$A$7:$A$65,$F48,F_Inputs!$B$7:$B$65,$G$40)*U$10 -> 0.445103062 | W48: =IF(SUM(--ISNUMBER(Q48:U48)),AVERAGE(Q48:U48),N_A) -> 0.3544396734 | X48: 1.772198367
E49: =InpC!$E$31 -> Southern Water | F49: =InpC!$F$31 -> SRN | G49: £m | J49: =((SUMIFS('F_Inputs (APR)'!F$7:F$85,'F_Inputs (APR)'!$A$7:$A$85,$F49,'F_Inputs (APR)'!$B$7:$B$85,$G$39))+(SUMIFS('F_Inputs (APR)'!F$7:F$85,'F_Inputs (APR)'!$A$7:$A$85,$F49,'F_Inputs (APR)'!$B$7:$B$85,$H$39))) *J$10 -> 0 | K49: =((SUMIFS('F_Inputs (APR)'!G$7:G$85,'F_Inputs (APR)'!$A$7:$A$85,$F49,'F_Inputs (APR)'!$B$7:$B$85,$G$39))+(SUMIFS('F_Inputs (APR)'!G$7:G$85,'F_Inputs (APR)'!$A$7:$A$85,$F49,'F_Inputs (APR)'!$B$7:$B$85,$H$39))) *K$10 -> 0 | L49: =((SUMIFS('F_Inputs (APR)'!H$7:H$85,'F_Inputs (APR)'!$A$7:$A$85,$F49,'F_Inputs (APR)'!$B$7:$B$85,$G$39))+(SUMIFS('F_Inputs (APR)'!H$7:H$85,'F_Inputs (APR)'!$A$7:$A$85,$F49,'F_Inputs (APR)'!$B$7:$B$85,$H$39))) *L$10 -> 0 | M49: =((SUMIFS('F_Inputs (APR)'!I$7:I$85,'F_Inputs (APR)'!$A$7:$A$85,$F49,'F_Inputs (APR)'!$B$7:$B$85,$G$39))+(SUMIFS('F_Inputs (APR)'!I$7:I$85,'F_Inputs (APR)'!$A$7:$A$85,$F49,'F_Inputs (APR)'!$B$7:$B$85,$H$39))) *M$10 -> 0 | N49: =((SUMIFS('F_Inputs (APR)'!J$7:J$85,'F_Inputs (APR)'!$A$7:$A$85,$F49,'F_Inputs (APR)'!$B$7:$B$85,$G$39))+(SUMIFS('F_Inputs (APR)'!J$7:J$85,'F_Inputs (APR)'!$A$7:$A$85,$F49,'F_Inputs (APR)'!$B$7:$B$85,$H$39))) *N$10 -> 0 | O49: =SUMIFS(F_Inputs!G$7:G$65,F_Inputs!$A$7:$A$65,$F49,F_Inputs!$B$7:$B$65,$G$40)*O$10 -> 0 | P49: =SUMIFS(F_Inputs!H$7:H$65,F_Inputs!$A$7:$A$65,$F49,F_Inputs!$B$7:$B$65,$G$40)*P$10 -> 0 | Q49: =SUMIFS(F_Inputs!I$7:I$65,F_Inputs!$A$7:$A$65,$F49,F_Inputs!$B$7:$B$65,$G$40)*Q$10 -> 0 | R49: =SUMIFS(F_Inputs!J$7:J$65,F_Inputs!$A$7:$A$65,$F49,F_Inputs!$B$7:$B$65,$G$40)*R$10 -> 0 | S49: =SUMIFS(F_Inputs!K$7:K$65,F_Inputs!$A$7:$A$65,$F49,F_Inputs!$B$7:$B$65,$G$40)*S$10 -> 0 | T49: =SUMIFS(F_Inputs!L$7:L$65,F_Inputs!$A$7:$A$65,$F49,F_Inputs!$B$7:$B$65,$G$40)*T$10 -> 0 | U49: =SUMIFS(F_Inputs!M$7:M$65,F_Inputs!$A$7:$A$65,$F49,F_Inputs!$B$7:$B$65,$G$40)*U$10 -> 0 | W49: =IF(SUM(--ISNUMBER(Q49:U49)),AVERAGE(Q49:U49),N_A) -> 0 | X49: 0
E50: =InpC!$E$32 -> Thames Water | F50: =InpC!$F$32 -> TMS | G50: £m | J50: =((SUMIFS('F_Inputs (APR)'!F$7:F$85,'F_Inputs (APR)'!$A$7:$A$85,$F50,'F_Inputs (APR)'!$B$7:$B$85,$G$39))+(SUMIFS('F_Inputs (APR)'!F$7:F$85,'F_Inputs (APR)'!$A$7:$A$85,$F50,'F_Inputs (APR)'!$B$7:$B$85,$H$39))) *J$10 -> 0.06242481203 | K50: =((SUMIFS('F_Inputs (APR)'!G$7:G$85,'F_Inputs (APR)'!$A$7:$A$85,$F50,'F_Inputs (APR)'!$B$7:$B$85,$G$39))+(SUMIFS('F_Inputs (APR)'!G$7:G$85,'F_Inputs (APR)'!$A$7:$A$85,$F50,'F_Inputs (APR)'!$B$7:$B$85,$H$39))) *K$10 -> 0.0773012939 | L50: =((SUMIFS('F_Inputs (APR)'!H$7:H$85,'F_Inputs (APR)'!$A$7:$A$85,$F50,'F_Inputs (APR)'!$B$7:$B$85,$G$39))+(SUMIFS('F_Inputs (APR)'!H$7:H$85,'F_Inputs (APR)'!$A$7:$A$85,$F50,'F_Inputs (APR)'!$B$7:$B$85,$H$39))) *L$10 -> 0.04735105408 | M50: =((SUMIFS('F_Inputs (APR)'!I$7:I$85,'F_Inputs (APR)'!$A$7:$A$85,$F50,'F_Inputs (APR)'!$B$7:$B$85,$G$39))+(SUMIFS('F_Inputs (APR)'!I$7:I$85,'F_Inputs (APR)'!$A$7:$A$85,$F50,'F_Inputs (APR)'!$B$7:$B$85,$H$39))) *M$10 -> 0.03153846154 | N50: =((SUMIFS('F_Inputs (APR)'!J$7:J$85,'F_Inputs (APR)'!$A$7:$A$85,$F50,'F_Inputs (APR)'!$B$7:$B$85,$G$39))+(SUMIFS('F_Inputs (APR)'!J$7:J$85,'F_Inputs (APR)'!$A$7:$A$85,$F50,'F_Inputs (APR)'!$B$7:$B$85,$H$39))) *N$10 -> 0.053 | O50: =SUMIFS(F_Inputs!G$7:G$65,F_Inputs!$A$7:$A$65,$F50,F_Inputs!$B$7:$B$65,$G$40)*O$10 -> 0.07590132827 | P50: =SUMIFS(F_Inputs!H$7:H$65,F_Inputs!$A$7:$A$65,$F50,F_Inputs!$B$7:$B$65,$G$40)*P$10 -> 0.051 | Q50: =SUMIFS(F_Inputs!I$7:I$65,F_Inputs!$A$7:$A$65,$F50,F_Inputs!$B$7:$B$65,$G$40)*Q$10 -> 0.051 | R50: =SUMIFS(F_Inputs!J$7:J$65,F_Inputs!$A$7:$A$65,$F50,F_Inputs!$B$7:$B$65,$G$40)*R$10 -> 0.051 | S50: =SUMIFS(F_Inputs!K$7:K$65,F_Inputs!$A$7:$A$65,$F50,F_Inputs!$B$7:$B$65,$G$40)*S$10 -> 0.051 | T50: =SUMIFS(F_Inputs!L$7:L$65,F_Inputs!$A$7:$A$65,$F50,F_Inputs!$B$7:$B$65,$G$40)*T$10 -> 0.051 | U50: =SUMIFS(F_Inputs!M$7:M$65,F_Inputs!$A$7:$A$65,$F50,F_Inputs!$B$7:$B$65,$G$40)*U$10 -> 0.051 | W50: =IF(SUM(--ISNUMBER(Q50:U50)),AVERAGE(Q50:U50),N_A) -> 0.051 | X50: 0.255
E51: =InpC!$E$33 -> United Utilities | F51: =InpC!$F$33 -> NWT | G51: £m | J51: =((SUMIFS('F_Inputs (APR)'!F$7:F$85,'F_Inputs (APR)'!$A$7:$A$85,$F51,'F_Inputs (APR)'!$B$7:$B$85,$G$39))+(SUMIFS('F_Inputs (APR)'!F$7:F$85,'F_Inputs (APR)'!$A$7:$A$85,$F51,'F_Inputs (APR)'!$B$7:$B$85,$H$39))) *J$10 -> 1.765879979 | K51: =((SUMIFS('F_Inputs (APR)'!G$7:G$85,'F_Inputs (APR)'!$A$7:$A$85,$F51,'F_Inputs (APR)'!$B$7:$B$85,$G$39))+(SUMIFS('F_Inputs (APR)'!G$7:G$85,'F_Inputs (APR)'!$A$7:$A$85,$F51,'F_Inputs (APR)'!$B$7:$B$85,$H$39))) *K$10 -> 1.324874752 | L51: =((SUMIFS('F_Inputs (APR)'!H$7:H$85,'F_Inputs (APR)'!$A$7:$A$85,$F51,'F_Inputs (APR)'!$B$7:$B$85,$G$39))+(SUMIFS('F_Inputs (APR)'!H$7:H$85,'F_Inputs (APR)'!$A$7:$A$85,$F51,'F_Inputs (APR)'!$B$7:$B$85,$H$39))) *L$10 -> 1.227923031 | M51: =((SUMIFS('F_Inputs (APR)'!I$7:I$85,'F_Inputs (APR)'!$A$7:$A$85,$F51,'F_Inputs (APR)'!$B$7:$B$85,$G$39))+(SUMIFS('F_Inputs (APR)'!I$7:I$85,'F_Inputs (APR)'!$A$7:$A$85,$F51,'F_Inputs (APR)'!$B$7:$B$85,$H$39))) *M$10 -> 1.238395711 | N51: =((SUMIFS('F_Inputs (APR)'!J$7:J$85,'F_Inputs (APR)'!$A$7:$A$85,$F51,'F_Inputs (APR)'!$B$7:$B$85,$G$39))+(SUMIFS('F_Inputs (APR)'!J$7:J$85,'F_Inputs (APR)'!$A$7:$A$85,$F51,'F_Inputs (APR)'!$B$7:$B$85,$H$39))) *N$10 -> 1.075316214 | O51: =SUMIFS(F_Inputs!G$7:G$65,F_Inputs!$A$7:$A$65,$F51,F_Inputs!$B$7:$B$65,$G$40)*O$10 -> 1.698112706 | P51: =SUMIFS(F_Inputs!H$7:H$65,F_Inputs!$A$7:$A$65,$F51,F_Inputs!$B$7:$B$65,$G$40)*P$10 -> 0.8095451713 | Q51: =SUMIFS(F_Inputs!I$7:I$65,F_Inputs!$A$7:$A$65,$F51,F_Inputs!$B$7:$B$65,$G$40)*Q$10 -> 0.5087784657 | R51: =SUMIFS(F_Inputs!J$7:J$65,F_Inputs!$A$7:$A$65,$F51,F_Inputs!$B$7:$B$65,$G$40)*R$10 -> 0.5087784657 | S51: =SUMIFS(F_Inputs!K$7:K$65,F_Inputs!$A$7:$A$65,$F51,F_Inputs!$B$7:$B$65,$G$40)*S$10 -> 0.5087784657 | T51: =SUMIFS(F_Inputs!L$7:L$65,F_Inputs!$A$7:$A$65,$F51,F_Inputs!$B$7:$B$65,$G$40)*T$10 -> 0.5087784657 | U51: =SUMIFS(F_Inputs!M$7:M$65,F_Inputs!$A$7:$A$65,$F51,F_Inputs!$B$7:$B$65,$G$40)*U$10 -> 0.5087784657 | W51: =IF(SUM(--ISNUMBER(Q51:U51)),AVERAGE(Q51:U51),N_A) -> 0.5087784657 | X51: 2.543892329
E52: =InpC!$E$34 -> Wessex Water | F52: =InpC!$F$34 -> WSX | G52: £m | J52: =((SUMIFS('F_Inputs (APR)'!F$7:F$85,'F_Inputs (APR)'!$A$7:$A$85,$F52,'F_Inputs (APR)'!$B$7:$B$85,$G$39))+(SUMIFS('F_Inputs (APR)'!F$7:F$85,'F_Inputs (APR)'!$A$7:$A$85,$F52,'F_Inputs (APR)'!$B$7:$B$85,$H$39))) *J$10 -> 0 | K52: =((SUMIFS('F_Inputs (APR)'!G$7:G$85,'F_Inputs (APR)'!$A$7:$A$85,$F52,'F_Inputs (APR)'!$B$7:$B$85,$G$39))+(SUMIFS('F_Inputs (APR)'!G$7:G$85,'F_Inputs (APR)'!$A$7:$A$85,$F52,'F_Inputs (APR)'!$B$7:$B$85,$H$39))) *K$10 -> 0 | L52: =((SUMIFS('F_Inputs (APR)'!H$7:H$85,'F_Inputs (APR)'!$A$7:$A$85,$F52,'F_Inputs (APR)'!$B$7:$B$85,$G$39))+(SUMIFS('F_Inputs (APR)'!H$7:H$85,'F_Inputs (APR)'!$A$7:$A$85,$F52,'F_Inputs (APR)'!$B$7:$B$85,$H$39))) *L$10 -> 0 | M52: =((SUMIFS('F_Inputs (APR)'!I$7:I$85,'F_Inputs (APR)'!$A$7:$A$85,$F52,'F_Inputs (APR)'!$B$7:$B$85,$G$39))+(SUMIFS('F_Inputs (APR)'!I$7:I$85,'F_Inputs (APR)'!$A$7:$A$85,$F52,'F_Inputs (APR)'!$B$7:$B$85,$H$39))) *M$10 -> 0 | N52: =((SUMIFS('F_Inputs (APR)'!J$7:J$85,'F_Inputs (APR)'!$A$7:$A$85,$F52,'F_Inputs (APR)'!$B$7:$B$85,$G$39))+(SUMIFS('F_Inputs (APR)'!J$7:J$85,'F_Inputs (APR)'!$A$7:$A$85,$F52,'F_Inputs (APR)'!$B$7:$B$85,$H$39))) *N$10 -> 0 | O52: =SUMIFS(F_Inputs!G$7:G$65,F_Inputs!$A$7:$A$65,$F52,F_Inputs!$B$7:$B$65,$G$40)*O$10 -> 0 | P52: =SUMIFS(F_Inputs!H$7:H$65,F_Inputs!$A$7:$A$65,$F52,F_Inputs!$B$7:$B$65,$G$40)*P$10 -> 0 | Q52: =SUMIFS(F_Inputs!I$7:I$65,F_Inputs!$A$7:$A$65,$F52,F_Inputs!$B$7:$B$65,$G$40)*Q$10 -> 0 | R52: =SUMIFS(F_Inputs!J$7:J$65,F_Inputs!$A$7:$A$65,$F52,F_Inputs!$B$7:$B$65,$G$40)*R$10 -> 0 | S52: =SUMIFS(F_Inputs!K$7:K$65,F_Inputs!$A$7:$A$65,$F52,F_Inputs!$B$7:$B$65,$G$40)*S$10 -> 0 | T52: =SUMIFS(F_Inputs!L$7:L$65,F_Inputs!$A$7:$A$65,$F52,F_Inputs!$B$7:$B$65,$G$40)*T$10 -> 0 | U52: =SUMIFS(F_Inputs!M$7:M$65,F_Inputs!$A$7:$A$65,$F52,F_Inputs!$B$7:$B$65,$G$40)*U$10 -> 0 | W52: =IF(SUM(--ISNUMBER(Q52:U52)),AVERAGE(Q52:U52),N_A) -> 0 | X52: 0
E53: =InpC!$E$35 -> Yorkshire Water | F53: =InpC!$F$35 -> YKY | G53: £m | J53: =((SUMIFS('F_Inputs (APR)'!F$7:F$85,'F_Inputs (APR)'!$A$7:$A$85,$F53,'F_Inputs (APR)'!$B$7:$B$85,$G$39))+(SUMIFS('F_Inputs (APR)'!F$7:F$85,'F_Inputs (APR)'!$A$7:$A$85,$F53,'F_Inputs (APR)'!$B$7:$B$85,$H$39))) *J$10 -> 0 | K53: =((SUMIFS('F_Inputs (APR)'!G$7:G$85,'F_Inputs (APR)'!$A$7:$A$85,$F53,'F_Inputs (APR)'!$B$7:$B$85,$G$39))+(SUMIFS('F_Inputs (APR)'!G$7:G$85,'F_Inputs (APR)'!$A$7:$A$85,$F53,'F_Inputs (APR)'!$B$7:$B$85,$H$39))) *K$10 -> 0 | L53: =((SUMIFS('F_Inputs (APR)'!H$7:H$85,'F_Inputs (APR)'!$A$7:$A$85,$F53,'F_Inputs (APR)'!$B$7:$B$85,$G$39))+(SUMIFS('F_Inputs (APR)'!H$7:H$85,'F_Inputs (APR)'!$A$7:$A$85,$F53,'F_Inputs (APR)'!$B$7:$B$85,$H$39))) *L$10 -> 0 | M53: =((SUMIFS('F_Inputs (APR)'!I$7:I$85,'F_Inputs (APR)'!$A$7:$A$85,$F53,'F_Inputs (APR)'!$B$7:$B$85,$G$39))+(SUMIFS('F_Inputs (APR)'!I$7:I$85,'F_Inputs (APR)'!$A$7:$A$85,$F53,'F_Inputs (APR)'!$B$7:$B$85,$H$39))) *M$10 -> 0 | N53: =((SUMIFS('F_Inputs (APR)'!J$7:J$85,'F_Inputs (APR)'!$A$7:$A$85,$F53,'F_Inputs (APR)'!$B$7:$B$85,$G$39))+(SUMIFS('F_Inputs (APR)'!J$7:J$85,'F_Inputs (APR)'!$A$7:$A$85,$F53,'F_Inputs (APR)'!$B$7:$B$85,$H$39))) *N$10 -> 0 | O53: =SUMIFS(F_Inputs!G$7:G$65,F_Inputs!$A$7:$A$65,$F53,F_Inputs!$B$7:$B$65,$G$40)*O$10 -> 0 | P53: =SUMIFS(F_Inputs!H$7:H$65,F_Inputs!$A$7:$A$65,$F53,F_Inputs!$B$7:$B$65,$G$40)*P$10 -> 0 | Q53: =SUMIFS(F_Inputs!I$7:I$65,F_Inputs!$A$7:$A$65,$F53,F_Inputs!$B$7:$B$65,$G$40)*Q$10 -> 0.132 | R53: =SUMIFS(F_Inputs!J$7:J$65,F_Inputs!$A$7:$A$65,$F53,F_Inputs!$B$7:$B$65,$G$40)*R$10 -> 0.132 | S53: =SUMIFS(F_Inputs!K$7:K$65,F_Inputs!$A$7:$A$65,$F53,F_Inputs!$B$7:$B$65,$G$40)*S$10 -> 0.132 | T53: =SUMIFS(F_Inputs!L$7:L$65,F_Inputs!$A$7:$A$65,$F53,F_Inputs!$B$7:$B$65,$G$40)*T$10 -> 0.132 | U53: =SUMIFS(F_Inputs!M$7:M$65,F_Inputs!$A$7:$A$65,$F53,F_Inputs!$B$7:$B$65,$G$40)*U$10 -> 0.132 | W53: =IF(SUM(--ISNUMBER(Q53:U53)),AVERAGE(Q53:U53),N_A) -> 0.132 | X53: 0.66
E54: Industry total | G54: £m | J54: =SUM(J43:J53) -> 2.019047272 | K54: 1.638627063 | L54: 1.313605891 | M54: 1.3069103 | N54: 1.272316214 | O54: 2.033127734 | P54: 1.133066088 | Q54: 1.478715168 | R54: 1.919693185 | S54: 1.923162818 | T54: 1.925965982 | U54: 1.927568101 | W54: =SUM(W43:W53) -> 1.835021051 | X54: =SUM(X43:X53) -> 9.175105253
E56: ='F_Inputs(APR)_chk'!E$117 -> Other exp. - Sludge treatment | J56: ='F_Inputs(APR)_chk'!F$117 -> 2.019047272 | K56: ='F_Inputs(APR)_chk'!G$117 -> 1.638627063 | L56: ='F_Inputs(APR)_chk'!H$117 -> 1.313605891 | M56: ='F_Inputs(APR)_chk'!I$117 -> 1.3069103 | N56: ='F_Inputs(APR)_chk'!J$117 -> 1.272316214
E57: ='F_Inputs(PR24)_chk'!E$82 -> Location specific costs & obligations - sludge treatment | O57: ='F_Inputs(PR24)_chk'!G$82 -> 2.033127734 | P57: ='F_Inputs(PR24)_chk'!H$82 -> 1.133066088 | Q57: ='F_Inputs(PR24)_chk'!I$82 -> 1.478715168 | R57: ='F_Inputs(PR24)_chk'!J$82 -> 1.919693185 | S57: ='F_Inputs(PR24)_chk'!K$82 -> 1.923162818 | T57: ='F_Inputs(PR24)_chk'!L$82 -> 1.925965982 | U57: ='F_Inputs(PR24)_chk'!M$82 -> 1.927568101
E58: Error check | H58: =IF(SUM(J58:U58)>0,1,0) -> 0 | J58: =IF(ABS(J54-J56)>CHK_TOL,1,0) -> 0 | K58: =IF(ABS(K54-K56)>CHK_TOL,1,0) -> 0 | L58: =IF(ABS(L54-L56)>CHK_TOL,1,0) -> 0 | M58: =IF(ABS(M54-M56)>CHK_TOL,1,0) -> 0 | N58: =IF(ABS(N54-N56)>CHK_TOL,1,0) -> 0 | O58: =IF(ABS(O54-O57)>CHK_TOL,1,0) -> 0 | P58: 0 | Q58: 0 | R58: 0 | S58: 0 | T58: 0 | U58: 0
C60: =InpC!$E$46 -> Other expenditure - Costs associated with Industrial Emissions Directive - Sludge Disposal | J60: =J$2 -> 2019-03-31 | K60: 2020-03-31 | L60: 2021-03-31 | M60: 2022-03-31 | N60: 2023-03-31 | O60: 2024-03-31 | P60: 2025-03-31 | Q60: 2026-03-31 | R60: 2027-03-31 | S60: 2028-03-31 | T60: 2029-03-31 | U60: 2030-03-31 | W60: =W$2 -> PR24 Average | X60: =X$2 -> PR24 Total
D61: Location specific costs & obligations - Cost associated with the Industrial Emissions Directive - Sludge Disposal - Bioresources
E62: Cost data before override
G63: APR | H63: =InpC!F46 -> WWS1105SDD
E64: £m, real | G64: PR24 | H64: =InpC!G56 -> CWW2_013SDD_PR24
E65: =InpT!$F$8 -> 2023-03-31 | G65: prices
E67: =InpC!$E$25 -> Anglian Water | F67: =InpC!$F$25 -> ANH | G67: £m | J67: =(SUMIFS('F_Inputs (APR)'!F$7:F$85,'F_Inputs (APR)'!$A$7:$A$85,$F67,'F_Inputs (APR)'!$B$7:$B$85,$H$63)) *J$10 -> 0 | K67: =(SUMIFS('F_Inputs (APR)'!G$7:G$85,'F_Inputs (APR)'!$A$7:$A$85,$F67,'F_Inputs (APR)'!$B$7:$B$85,$H$63)) *K$10 -> 0 | L67: =(SUMIFS('F_Inputs (APR)'!H$7:H$85,'F_Inputs (APR)'!$A$7:$A$85,$F67,'F_Inputs (APR)'!$B$7:$B$85,$H$63)) *L$10 -> 0 | M67: =(SUMIFS('F_Inputs (APR)'!I$7:I$85,'F_Inputs (APR)'!$A$7:$A$85,$F67,'F_Inputs (APR)'!$B$7:$B$85,$H$63)) *M$10 -> 0 | N67: =(SUMIFS('F_Inputs (APR)'!J$7:J$85,'F_Inputs (APR)'!$A$7:$A$85,$F67,'F_Inputs (APR)'!$B$7:$B$85,$H$63)) *N$10 -> 0 | O67: =SUMIFS(F_Inputs!G$7:G$65,F_Inputs!$A$7:$A$65,$F67,F_Inputs!$B$7:$B$65,$H$64)*O$10 -> 0 | P67: =SUMIFS(F_Inputs!H$7:H$65,F_Inputs!$A$7:$A$65,$F67,F_Inputs!$B$7:$B$65,$H$64)*P$10 -> 0 | Q67: =SUMIFS(F_Inputs!I$7:I$65,F_Inputs!$A$7:$A$65,$F67,F_Inputs!$B$7:$B$65,$H$64)*Q$10 -> 0 | R67: =SUMIFS(F_Inputs!J$7:J$65,F_Inputs!$A$7:$A$65,$F67,F_Inputs!$B$7:$B$65,$H$64)*R$10 -> 0 | S67: =SUMIFS(F_Inputs!K$7:K$65,F_Inputs!$A$7:$A$65,$F67,F_Inputs!$B$7:$B$65,$H$64)*S$10 -> 0 | T67: =SUMIFS(F_Inputs!L$7:L$65,F_Inputs!$A$7:$A$65,$F67,F_Inputs!$B$7:$B$65,$H$64)*T$10 -> 0 | U67: =SUMIFS(F_Inputs!M$7:M$65,F_Inputs!$A$7:$A$65,$F67,F_Inputs!$B$7:$B$65,$H$64)*U$10 -> 0 | W67: =IF(SUM(--ISNUMBER(Q67:U67)),AVERAGE(Q67:U67),N_A) -> 0 | X67: =SUM(Q67:U67) -> 0
E68: =InpC!$E$26 -> Dŵr Cymru | F68: =InpC!$F$26 -> WSH | G68: £m | J68: =(SUMIFS('F_Inputs (APR)'!F$7:F$85,'F_Inputs (APR)'!$A$7:$A$85,$F68,'F_Inputs (APR)'!$B$7:$B$85,$H$63)) *J$10 -> 0 | K68: =(SUMIFS('F_Inputs (APR)'!G$7:G$85,'F_Inputs (APR)'!$A$7:$A$85,$F68,'F_Inputs (APR)'!$B$7:$B$85,$H$63)) *K$10 -> 0 | L68: =(SUMIFS('F_Inputs (APR)'!H$7:H$85,'F_Inputs (APR)'!$A$7:$A$85,$F68,'F_Inputs (APR)'!$B$7:$B$85,$H$63)) *L$10 -> 0 | M68: =(SUMIFS('F_Inputs (APR)'!I$7:I$85,'F_Inputs (APR)'!$A$7:$A$85,$F68,'F_Inputs (APR)'!$B$7:$B$85,$H$63)) *M$10 -> 0 | N68: =(SUMIFS('F_Inputs (APR)'!J$7:J$85,'F_Inputs (APR)'!$A$7:$A$85,$F68,'F_Inputs (APR)'!$B$7:$B$85,$H$63)) *N$10 -> 0 | O68: =SUMIFS(F_Inputs!G$7:G$65,F_Inputs!$A$7:$A$65,$F68,F_Inputs!$B$7:$B$65,$H$64)*O$10 -> 0 | P68: =SUMIFS(F_Inputs!H$7:H$65,F_Inputs!$A$7:$A$65,$F68,F_Inputs!$B$7:$B$65,$H$64)*P$10 -> 0 | Q68: =SUMIFS(F_Inputs!I$7:I$65,F_Inputs!$A$7:$A$65,$F68,F_Inputs!$B$7:$B$65,$H$64)*Q$10 -> 0 | R68: =SUMIFS(F_Inputs!J$7:J$65,F_Inputs!$A$7:$A$65,$F68,F_Inputs!$B$7:$B$65,$H$64)*R$10 -> 0 | S68: =SUMIFS(F_Inputs!K$7:K$65,F_Inputs!$A$7:$A$65,$F68,F_Inputs!$B$7:$B$65,$H$64)*S$10 -> 0 | T68: =SUMIFS(F_Inputs!L$7:L$65,F_Inputs!$A$7:$A$65,$F68,F_Inputs!$B$7:$B$65,$H$64)*T$10 -> 0 | U68: =SUMIFS(F_Inputs!M$7:M$65,F_Inputs!$A$7:$A$65,$F68,F_Inputs!$B$7:$B$65,$H$64)*U$10 -> 0 | W68: =IF(SUM(--ISNUMBER(Q68:U68)),AVERAGE(Q68:U68),N_A) -> 0 | X68: 0
E69: =InpC!$E$27 -> Hafren Dyfrdwy | F69: =InpC!$F$27 -> HDD | G69: £m | J69: =(SUMIFS('F_Inputs (APR)'!F$7:F$85,'F_Inputs (APR)'!$A$7:$A$85,$F69,'F_Inputs (APR)'!$B$7:$B$85,$H$63)) *J$10 -> 0 | K69: =(SUMIFS('F_Inputs (APR)'!G$7:G$85,'F_Inputs (APR)'!$A$7:$A$85,$F69,'F_Inputs (APR)'!$B$7:$B$85,$H$63)) *K$10 -> 0 | L69: =(SUMIFS('F_Inputs (APR)'!H$7:H$85,'F_Inputs (APR)'!$A$7:$A$85,$F69,'F_Inputs (APR)'!$B$7:$B$85,$H$63)) *L$10 -> 0 | M69: =(SUMIFS('F_Inputs (APR)'!I$7:I$85,'F_Inputs (APR)'!$A$7:$A$85,$F69,'F_Inputs (APR)'!$B$7:$B$85,$H$63)) *M$10 -> 0 | N69: =(SUMIFS('F_Inputs (APR)'!J$7:J$85,'F_Inputs (APR)'!$A$7:$A$85,$F69,'F_Inputs (APR)'!$B$7:$B$85,$H$63)) *N$10 -> 0 | O69: =SUMIFS(F_Inputs!G$7:G$65,F_Inputs!$A$7:$A$65,$F69,F_Inputs!$B$7:$B$65,$H$64)*O$10 -> 0 | P69: =SUMIFS(F_Inputs!H$7:H$65,F_Inputs!$A$7:$A$65,$F69,F_Inputs!$B$7:$B$65,$H$64)*P$10 -> 0 | Q69: =SUMIFS(F_Inputs!I$7:I$65,F_Inputs!$A$7:$A$65,$F69,F_Inputs!$B$7:$B$65,$H$64)*Q$10 -> 0 | R69: =SUMIFS(F_Inputs!J$7:J$65,F_Inputs!$A$7:$A$65,$F69,F_Inputs!$B$7:$B$65,$H$64)*R$10 -> 0 | S69: =SUMIFS(F_Inputs!K$7:K$65,F_Inputs!$A$7:$A$65,$F69,F_Inputs!$B$7:$B$65,$H$64)*S$10 -> 0 | T69: =SUMIFS(F_Inputs!L$7:L$65,F_Inputs!$A$7:$A$65,$F69,F_Inputs!$B$7:$B$65,$H$64)*T$10 -> 0 | U69: =SUMIFS(F_Inputs!M$7:M$65,F_Inputs!$A$7:$A$65,$F69,F_Inputs!$B$7:$B$65,$H$64)*U$10 -> 0 | W69: =IF(SUM(--ISNUMBER(Q69:U69)),AVERAGE(Q69:U69),N_A) -> 0 | X69: 0
E70: =InpC!$E$28 -> Northumbrian Water | F70: =InpC!$F$28 -> NES | G70: £m | J70: =(SUMIFS('F_Inputs (APR)'!F$7:F$85,'F_Inputs (APR)'!$A$7:$A$85,$F70,'F_Inputs (APR)'!$B$7:$B$85,$H$63)) *J$10 -> 0 | K70: =(SUMIFS('F_Inputs (APR)'!G$7:G$85,'F_Inputs (APR)'!$A$7:$A$85,$F70,'F_Inputs (APR)'!$B$7:$B$85,$H$63)) *K$10 -> 0 | L70: =(SUMIFS('F_Inputs (APR)'!H$7:H$85,'F_Inputs (APR)'!$A$7:$A$85,$F70,'F_Inputs (APR)'!$B$7:$B$85,$H$63)) *L$10 -> 0 | M70: =(SUMIFS('F_Inputs (APR)'!I$7:I$85,'F_Inputs (APR)'!$A$7:$A$85,$F70,'F_Inputs (APR)'!$B$7:$B$85,$H$63)) *M$10 -> 0 | N70: =(SUMIFS('F_Inputs (APR)'!J$7:J$85,'F_Inputs (APR)'!$A$7:$A$85,$F70,'F_Inputs (APR)'!$B$7:$B$85,$H$63)) *N$10 -> 0 | O70: =SUMIFS(F_Inputs!G$7:G$65,F_Inputs!$A$7:$A$65,$F70,F_Inputs!$B$7:$B$65,$H$64)*O$10 -> 0 | P70: =SUMIFS(F_Inputs!H$7:H$65,F_Inputs!$A$7:$A$65,$F70,F_Inputs!$B$7:$B$65,$H$64)*P$10 -> 0 | Q70: =SUMIFS(F_Inputs!I$7:I$65,F_Inputs!$A$7:$A$65,$F70,F_Inputs!$B$7:$B$65,$H$64)*Q$10 -> 0 | R70: =SUMIFS(F_Inputs!J$7:J$65,F_Inputs!$A$7:$A$65,$F70,F_Inputs!$B$7:$B$65,$H$64)*R$10 -> 0 | S70: =SUMIFS(F_Inputs!K$7:K$65,F_Inputs!$A$7:$A$65,$F70,F_Inputs!$B$7:$B$65,$H$64)*S$10 -> 0 | T70: =SUMIFS(F_Inputs!L$7:L$65,F_Inputs!$A$7:$A$65,$F70,F_Inputs!$B$7:$B$65,$H$64)*T$10 -> 0 | U70: =SUMIFS(F_Inputs!M$7:M$65,F_Inputs!$A$7:$A$65,$F70,F_Inputs!$B$7:$B$65,$H$64)*U$10 -> 0 | W70: =IF(SUM(--ISNUMBER(Q70:U70)),AVERAGE(Q70:U70),N_A) -> 0 | X70: 0
E71: =InpC!$E$29 -> Severn Trent Water | F71: =InpC!$F$29 -> SVE | G71: £m | J71: =(SUMIFS('F_Inputs (APR)'!F$7:F$85,'F_Inputs (APR)'!$A$7:$A$85,$F71,'F_Inputs (APR)'!$B$7:$B$85,$H$63)) *J$10 -> 0 | K71: =(SUMIFS('F_Inputs (APR)'!G$7:G$85,'F_Inputs (APR)'!$A$7:$A$85,$F71,'F_Inputs (APR)'!$B$7:$B$85,$H$63)) *K$10 -> 0 | L71: =(SUMIFS('F_Inputs (APR)'!H$7:H$85,'F_Inputs (APR)'!$A$7:$A$85,$F71,'F_Inputs (APR)'!$B$7:$B$85,$H$63)) *L$10 -> 0 | M71: =(SUMIFS('F_Inputs (APR)'!I$7:I$85,'F_Inputs (APR)'!$A$7:$A$85,$F71,'F_Inputs (APR)'!$B$7:$B$85,$H$63)) *M$10 -> 0 | N71: =(SUMIFS('F_Inputs (APR)'!J$7:J$85,'F_Inputs (APR)'!$A$7:$A$85,$F71,'F_Inputs (APR)'!$B$7:$B$85,$H$63)) *N$10 -> 0 | O71: =SUMIFS(F_Inputs!G$7:G$65,F_Inputs!$A$7:$A$65,$F71,F_Inputs!$B$7:$B$65,$H$64)*O$10 -> 0 | P71: =SUMIFS(F_Inputs!H$7:H$65,F_Inputs!$A$7:$A$65,$F71,F_Inputs!$B$7:$B$65,$H$64)*P$10 -> 0 | Q71: =SUMIFS(F_Inputs!I$7:I$65,F_Inputs!$A$7:$A$65,$F71,F_Inputs!$B$7:$B$65,$H$64)*Q$10 -> 0 | R71: =SUMIFS(F_Inputs!J$7:J$65,F_Inputs!$A$7:$A$65,$F71,F_Inputs!$B$7:$B$65,$H$64)*R$10 -> 0 | S71: =SUMIFS(F_Inputs!K$7:K$65,F_Inputs!$A$7:$A$65,$F71,F_Inputs!$B$7:$B$65,$H$64)*S$10 -> 0 | T71: =SUMIFS(F_Inputs!L$7:L$65,F_Inputs!$A$7:$A$65,$F71,F_Inputs!$B$7:$B$65,$H$64)*T$10 -> 0 | U71: =SUMIFS(F_Inputs!M$7:M$65,F_Inputs!$A$7:$A$65,$F71,F_Inputs!$B$7:$B$65,$H$64)*U$10 -> 0 | W71: =IF(SUM(--ISNUMBER(Q71:U71)),AVERAGE(Q71:U71),N_A) -> 0 | X71: 0
E72: =InpC!$E$30 -> South West Water | F72: =InpC!$F$30 -> SWB | G72: £m | J72: =(SUMIFS('F_Inputs (APR)'!F$7:F$85,'F_Inputs (APR)'!$A$7:$A$85,$F72,'F_Inputs (APR)'!$B$7:$B$85,$H$63)) *J$10 -> 0 | K72: =(SUMIFS('F_Inputs (APR)'!G$7:G$85,'F_Inputs (APR)'!$A$7:$A$85,$F72,'F_Inputs (APR)'!$B$7:$B$85,$H$63)) *K$10 -> 0 | L72: =(SUMIFS('F_Inputs (APR)'!H$7:H$85,'F_Inputs (APR)'!$A$7:$A$85,$F72,'F_Inputs (APR)'!$B$7:$B$85,$H$63)) *L$10 -> 0 | M72: =(SUMIFS('F_Inputs (APR)'!I$7:I$85,'F_Inputs (APR)'!$A$7:$A$85,$F72,'F_Inputs (APR)'!$B$7:$B$85,$H$63)) *M$10 -> 0 | N72: =(SUMIFS('F_Inputs (APR)'!J$7:J$85,'F_Inputs (APR)'!$A$7:$A$85,$F72,'F_Inputs (APR)'!$B$7:$B$85,$H$63)) *N$10 -> 0 | O72: =SUMIFS(F_Inputs!G$7:G$65,F_Inputs!$A$7:$A$65,$F72,F_Inputs!$B$7:$B$65,$H$64)*O$10 -> 0 | P72: =SUMIFS(F_Inputs!H$7:H$65,F_Inputs!$A$7:$A$65,$F72,F_Inputs!$B$7:$B$65,$H$64)*P$10 -> 0 | Q72: =SUMIFS(F_Inputs!I$7:I$65,F_Inputs!$A$7:$A$65,$F72,F_Inputs!$B$7:$B$65,$H$64)*Q$10 -> 0 | R72: =SUMIFS(F_Inputs!J$7:J$65,F_Inputs!$A$7:$A$65,$F72,F_Inputs!$B$7:$B$65,$H$64)*R$10 -> 0 | S72: =SUMIFS(F_Inputs!K$7:K$65,F_Inputs!$A$7:$A$65,$F72,F_Inputs!$B$7:$B$65,$H$64)*S$10 -> 0 | T72: =SUMIFS(F_Inputs!L$7:L$65,F_Inputs!$A$7:$A$65,$F72,F_Inputs!$B$7:$B$65,$H$64)*T$10 -> 0 | U72: =SUMIFS(F_Inputs!M$7:M$65,F_Inputs!$A$7:$A$65,$F72,F_Inputs!$B$7:$B$65,$H$64)*U$10 -> 0 | W72: =IF(SUM(--ISNUMBER(Q72:U72)),AVERAGE(Q72:U72),N_A) -> 0 | X72: 0
E73: =InpC!$E$31 -> Southern Water | F73: =InpC!$F$31 -> SRN | G73: £m | J73: =(SUMIFS('F_Inputs (APR)'!F$7:F$85,'F_Inputs (APR)'!$A$7:$A$85,$F73,'F_Inputs (APR)'!$B$7:$B$85,$H$63)) *J$10 -> 0 | K73: =(SUMIFS('F_Inputs (APR)'!G$7:G$85,'F_Inputs (APR)'!$A$7:$A$85,$F73,'F_Inputs (APR)'!$B$7:$B$85,$H$63)) *K$10 -> 0 | L73: =(SUMIFS('F_Inputs (APR)'!H$7:H$85,'F_Inputs (APR)'!$A$7:$A$85,$F73,'F_Inputs (APR)'!$B$7:$B$85,$H$63)) *L$10 -> 0 | M73: =(SUMIFS('F_Inputs (APR)'!I$7:I$85,'F_Inputs (APR)'!$A$7:$A$85,$F73,'F_Inputs (APR)'!$B$7:$B$85,$H$63)) *M$10 -> 0 | N73: =(SUMIFS('F_Inputs (APR)'!J$7:J$85,'F_Inputs (APR)'!$A$7:$A$85,$F73,'F_Inputs (APR)'!$B$7:$B$85,$H$63)) *N$10 -> 0 | O73: =SUMIFS(F_Inputs!G$7:G$65,F_Inputs!$A$7:$A$65,$F73,F_Inputs!$B$7:$B$65,$H$64)*O$10 -> 0 | P73: =SUMIFS(F_Inputs!H$7:H$65,F_Inputs!$A$7:$A$65,$F73,F_Inputs!$B$7:$B$65,$H$64)*P$10 -> 0 | Q73: =SUMIFS(F_Inputs!I$7:I$65,F_Inputs!$A$7:$A$65,$F73,F_Inputs!$B$7:$B$65,$H$64)*Q$10 -> 0 | R73: =SUMIFS(F_Inputs!J$7:J$65,F_Inputs!$A$7:$A$65,$F73,F_Inputs!$B$7:$B$65,$H$64)*R$10 -> 0 | S73: =SUMIFS(F_Inputs!K$7:K$65,F_Inputs!$A$7:$A$65,$F73,F_Inputs!$B$7:$B$65,$H$64)*S$10 -> 0 | T73: =SUMIFS(F_Inputs!L$7:L$65,F_Inputs!$A$7:$A$65,$F73,F_Inputs!$B$7:$B$65,$H$64)*T$10 -> 0 | U73: =SUMIFS(F_Inputs!M$7:M$65,F_Inputs!$A$7:$A$65,$F73,F_Inputs!$B$7:$B$65,$H$64)*U$10 -> 0 | W73: =IF(SUM(--ISNUMBER(Q73:U73)),AVERAGE(Q73:U73),N_A) -> 0 | X73: 0
E74: =InpC!$E$32 -> Thames Water | F74: =InpC!$F$32 -> TMS | G74: £m | J74: =(SUMIFS('F_Inputs (APR)'!F$7:F$85,'F_Inputs (APR)'!$A$7:$A$85,$F74,'F_Inputs (APR)'!$B$7:$B$85,$H$63)) *J$10 -> 0 | K74: =(SUMIFS('F_Inputs (APR)'!G$7:G$85,'F_Inputs (APR)'!$A$7:$A$85,$F74,'F_Inputs (APR)'!$B$7:$B$85,$H$63)) *K$10 -> 0 | L74: =(SUMIFS('F_Inputs (APR)'!H$7:H$85,'F_Inputs (APR)'!$A$7:$A$85,$F74,'F_Inputs (APR)'!$B$7:$B$85,$H$63)) *L$10 -> 0 | M74: =(SUMIFS('F_Inputs (APR)'!I$7:I$85,'F_Inputs (APR)'!$A$7:$A$85,$F74,'F_Inputs (APR)'!$B$7:$B$85,$H$63)) *M$10 -> 0 | N74: =(SUMIFS('F_Inputs (APR)'!J$7:J$85,'F_Inputs (APR)'!$A$7:$A$85,$F74,'F_Inputs (APR)'!$B$7:$B$85,$H$63)) *N$10 -> 0 | O74: =SUMIFS(F_Inputs!G$7:G$65,F_Inputs!$A$7:$A$65,$F74,F_Inputs!$B$7:$B$65,$H$64)*O$10 -> 0 | P74: =SUMIFS(F_Inputs!H$7:H$65,F_Inputs!$A$7:$A$65,$F74,F_Inputs!$B$7:$B$65,$H$64)*P$10 -> 0 | Q74: =SUMIFS(F_Inputs!I$7:I$65,F_Inputs!$A$7:$A$65,$F74,F_Inputs!$B$7:$B$65,$H$64)*Q$10 -> 0 | R74: =SUMIFS(F_Inputs!J$7:J$65,F_Inputs!$A$7:$A$65,$F74,F_Inputs!$B$7:$B$65,$H$64)*R$10 -> 0 | S74: =SUMIFS(F_Inputs!K$7:K$65,F_Inputs!$A$7:$A$65,$F74,F_Inputs!$B$7:$B$65,$H$64)*S$10 -> 0 | T74: =SUMIFS(F_Inputs!L$7:L$65,F_Inputs!$A$7:$A$65,$F74,F_Inputs!$B$7:$B$65,$H$64)*T$10 -> 0 | U74: =SUMIFS(F_Inputs!M$7:M$65,F_Inputs!$A$7:$A$65,$F74,F_Inputs!$B$7:$B$65,$H$64)*U$10 -> 0 | W74: =IF(SUM(--ISNUMBER(Q74:U74)),AVERAGE(Q74:U74),N_A) -> 0 | X74: 0
E75: =InpC!$E$33 -> United Utilities | F75: =InpC!$F$33 -> NWT | G75: £m | J75: =(SUMIFS('F_Inputs (APR)'!F$7:F$85,'F_Inputs (APR)'!$A$7:$A$85,$F75,'F_Inputs (APR)'!$B$7:$B$85,$H$63)) *J$10 -> 0 | K75: =(SUMIFS('F_Inputs (APR)'!G$7:G$85,'F_Inputs (APR)'!$A$7:$A$85,$F75,'F_Inputs (APR)'!$B$7:$B$85,$H$63)) *K$10 -> 0 | L75: =(SUMIFS('F_Inputs (APR)'!H$7:H$85,'F_Inputs (APR)'!$A$7:$A$85,$F75,'F_Inputs (APR)'!$B$7:$B$85,$H$63)) *L$10 -> 0 | M75: =(SUMIFS('F_Inputs (APR)'!I$7:I$85,'F_Inputs (APR)'!$A$7:$A$85,$F75,'F_Inputs (APR)'!$B$7:$B$85,$H$63)) *M$10 -> 0 | N75: =(SUMIFS('F_Inputs (APR)'!J$7:J$85,'F_Inputs (APR)'!$A$7:$A$85,$F75,'F_Inputs (APR)'!$B$7:$B$85,$H$63)) *N$10 -> 0 | O75: =SUMIFS(F_Inputs!G$7:G$65,F_Inputs!$A$7:$A$65,$F75,F_Inputs!$B$7:$B$65,$H$64)*O$10 -> 0 | P75: =SUMIFS(F_Inputs!H$7:H$65,F_Inputs!$A$7:$A$65,$F75,F_Inputs!$B$7:$B$65,$H$64)*P$10 -> 0 | Q75: =SUMIFS(F_Inputs!I$7:I$65,F_Inputs!$A$7:$A$65,$F75,F_Inputs!$B$7:$B$65,$H$64)*Q$10 -> 0 | R75: =SUMIFS(F_Inputs!J$7:J$65,F_Inputs!$A$7:$A$65,$F75,F_Inputs!$B$7:$B$65,$H$64)*R$10 -> 0 | S75: =SUMIFS(F_Inputs!K$7:K$65,F_Inputs!$A$7:$A$65,$F75,F_Inputs!$B$7:$B$65,$H$64)*S$10 -> 0 | T75: =SUMIFS(F_Inputs!L$7:L$65,F_Inputs!$A$7:$A$65,$F75,F_Inputs!$B$7:$B$65,$H$64)*T$10 -> 0 | U75: =SUMIFS(F_Inputs!M$7:M$65,F_Inputs!$A$7:$A$65,$F75,F_Inputs!$B$7:$B$65,$H$64)*U$10 -> 0 | W75: =IF(SUM(--ISNUMBER(Q75:U75)),AVERAGE(Q75:U75),N_A) -> 0 | X75: 0
E76: =InpC!$E$34 -> Wessex Water | F76: =InpC!$F$34 -> WSX | G76: £m | J76: =(SUMIFS('F_Inputs (APR)'!F$7:F$85,'F_Inputs (APR)'!$A$7:$A$85,$F76,'F_Inputs (APR)'!$B$7:$B$85,$H$63)) *J$10 -> 0 | K76: =(SUMIFS('F_Inputs (APR)'!G$7:G$85,'F_Inputs (APR)'!$A$7:$A$85,$F76,'F_Inputs (APR)'!$B$7:$B$85,$H$63)) *K$10 -> 0 | L76: =(SUMIFS('F_Inputs (APR)'!H$7:H$85,'F_Inputs (APR)'!$A$7:$A$85,$F76,'F_Inputs (APR)'!$B$7:$B$85,$H$63)) *L$10 -> 0 | M76: =(SUMIFS('F_Inputs (APR)'!I$7:I$85,'F_Inputs (APR)'!$A$7:$A$85,$F76,'F_Inputs (APR)'!$B$7:$B$85,$H$63)) *M$10 -> 0 | N76: =(SUMIFS('F_Inputs (APR)'!J$7:J$85,'F_Inputs (APR)'!$A$7:$A$85,$F76,'F_Inputs (APR)'!$B$7:$B$85,$H$63)) *N$10 -> 0 | O76: =SUMIFS(F_Inputs!G$7:G$65,F_Inputs!$A$7:$A$65,$F76,F_Inputs!$B$7:$B$65,$H$64)*O$10 -> 0 | P76: =SUMIFS(F_Inputs!H$7:H$65,F_Inputs!$A$7:$A$65,$F76,F_Inputs!$B$7:$B$65,$H$64)*P$10 -> 0 | Q76: =SUMIFS(F_Inputs!I$7:I$65,F_Inputs!$A$7:$A$65,$F76,F_Inputs!$B$7:$B$65,$H$64)*Q$10 -> 0 | R76: =SUMIFS(F_Inputs!J$7:J$65,F_Inputs!$A$7:$A$65,$F76,F_Inputs!$B$7:$B$65,$H$64)*R$10 -> 0 | S76: =SUMIFS(F_Inputs!K$7:K$65,F_Inputs!$A$7:$A$65,$F76,F_Inputs!$B$7:$B$65,$H$64)*S$10 -> 0 | T76: =SUMIFS(F_Inputs!L$7:L$65,F_Inputs!$A$7:$A$65,$F76,F_Inputs!$B$7:$B$65,$H$64)*T$10 -> 0 | U76: =SUMIFS(F_Inputs!M$7:M$65,F_Inputs!$A$7:$A$65,$F76,F_Inputs!$B$7:$B$65,$H$64)*U$10 -> 0 | W76: =IF(SUM(--ISNUMBER(Q76:U76)),AVERAGE(Q76:U76),N_A) -> 0 | X76: 0
E77: =InpC!$E$35 -> Yorkshire Water | F77: =InpC!$F$35 -> YKY | G77: £m | J77: =(SUMIFS('F_Inputs (APR)'!F$7:F$85,'F_Inputs (APR)'!$A$7:$A$85,$F77,'F_Inputs (APR)'!$B$7:$B$85,$H$63)) *J$10 -> 0 | K77: =(SUMIFS('F_Inputs (APR)'!G$7:G$85,'F_Inputs (APR)'!$A$7:$A$85,$F77,'F_Inputs (APR)'!$B$7:$B$85,$H$63)) *K$10 -> 0 | L77: =(SUMIFS('F_Inputs (APR)'!H$7:H$85,'F_Inputs (APR)'!$A$7:$A$85,$F77,'F_Inputs (APR)'!$B$7:$B$85,$H$63)) *L$10 -> 0 | M77: =(SUMIFS('F_Inputs (APR)'!I$7:I$85,'F_Inputs (APR)'!$A$7:$A$85,$F77,'F_Inputs (APR)'!$B$7:$B$85,$H$63)) *M$10 -> 0 | N77: =(SUMIFS('F_Inputs (APR)'!J$7:J$85,'F_Inputs (APR)'!$A$7:$A$85,$F77,'F_Inputs (APR)'!$B$7:$B$85,$H$63)) *N$10 -> 0 | O77: =SUMIFS(F_Inputs!G$7:G$65,F_Inputs!$A$7:$A$65,$F77,F_Inputs!$B$7:$B$65,$H$64)*O$10 -> 0 | P77: =SUMIFS(F_Inputs!H$7:H$65,F_Inputs!$A$7:$A$65,$F77,F_Inputs!$B$7:$B$65,$H$64)*P$10 -> 0 | Q77: =SUMIFS(F_Inputs!I$7:I$65,F_Inputs!$A$7:$A$65,$F77,F_Inputs!$B$7:$B$65,$H$64)*Q$10 -> 0 | R77: =SUMIFS(F_Inputs!J$7:J$65,F_Inputs!$A$7:$A$65,$F77,F_Inputs!$B$7:$B$65,$H$64)*R$10 -> 0 | S77: =SUMIFS(F_Inputs!K$7:K$65,F_Inputs!$A$7:$A$65,$F77,F_Inputs!$B$7:$B$65,$H$64)*S$10 -> 0 | T77: =SUMIFS(F_Inputs!L$7:L$65,F_Inputs!$A$7:$A$65,$F77,F_Inputs!$B$7:$B$65,$H$64)*T$10 -> 0 | U77: =SUMIFS(F_Inputs!M$7:M$65,F_Inputs!$A$7:$A$65,$F77,F_Inputs!$B$7:$B$65,$H$64)*U$10 -> 0 | W77: =IF(SUM(--ISNUMBER(Q77:U77)),AVERAGE(Q77:U77),N_A) -> 0 | X77: 0
E78: Industry total | G78: £m | J78: =SUM(J67:J77) -> 0 | K78: 0 | L78: 0 | M78: 0 | N78: 0 | O78: 0 | P78: 0 | Q78: 0 | R78: 0 | S78: 0 | T78: 0 | U78: 0 | W78: =SUM(W67:W77) -> 0 | X78: =SUM(X67:X77) -> 0
E80: ='F_Inputs(APR)_chk'!E$118 -> Other exp. - Sludge disposal | J80: ='F_Inputs(APR)_chk'!F$118 -> 0 | K80: ='F_Inputs(APR)_chk'!G$118 -> 0 | L80: ='F_Inputs(APR)_chk'!H$118 -> 0 | M80: ='F_Inputs(APR)_chk'!I$118 -> 0 | N80: ='F_Inputs(APR)_chk'!J$118 -> 0
E81: ='F_Inputs(PR24)_chk'!E$83 -> Location specific costs & obligations - sludge disposal | O81: ='F_Inputs(PR24)_chk'!G$83 -> 0 | P81: ='F_Inputs(PR24)_chk'!H$83 -> 0 | Q81: ='F_Inputs(PR24)_chk'!I$83 -> 0 | R81: ='F_Inputs(PR24)_chk'!J$83 -> 0 | S81: ='F_Inputs(PR24)_chk'!K$83 -> 0 | T81: ='F_Inputs(PR24)_chk'!L$83 -> 0 | U81: ='F_Inputs(PR24)_chk'!M$83 -> 0
E82: Error check | H82: =IF(SUM(J82:U82)>0,1,0) -> 0 | J82: =IF(ABS(J80-J78)>CHK_TOL,1,0) -> 0 | K82: =IF(ABS(K80-K78)>CHK_TOL,1,0) -> 0 | L82: =IF(ABS(L80-L78)>CHK_TOL,1,0) -> 0 | M82: =IF(ABS(M80-M78)>CHK_TOL,1,0) -> 0 | N82: =IF(ABS(N80-N78)>CHK_TOL,1,0) -> 0 | O82: =IF(ABS(O81-O78)>CHK_TOL,1,0) -> 0 | P82: 0 | Q82: 0 | R82: 0 | S82: 0 | T82: 0 | U82: 0
C84: Other expenditure - costs associated with the Industrial Emissions directive - Bioresources total | J84: =J$2 -> 2019-03-31 | K84: 2020-03-31 | L84: 2021-03-31 | M84: 2022-03-31 | N84: 2023-03-31 | O84: 2024-03-31 | P84: 2025-03-31 | Q84: 2026-03-31 | R84: 2027-03-31 | S84: 2028-03-31 | T84: 2029-03-31 | U84: 2030-03-31 | W84: =W$2 -> PR24 Average | X84: =X$2 -> PR24 Total
D85: Location specific costs & obligations - Cost associated with the Industrial Emissions Directive - Bioresources total
E86: Calculation
E88: £m, real
E89: =InpT!$F$8 -> 2023-03-31 | G89: prices
E91: =InpC!$E$25 -> Anglian Water | F91: =InpC!$F$25 -> ANH | G91: £m | J91: =J19+J43+J67 -> 0 | K91: 0 | L91: 0 | M91: 0 | N91: 0 | O91: 0 | P91: 0 | Q91: 0.529 | R91: 0.529 | S91: 0.529 | T91: 0.529 | U91: 0.529 | W91: =IF(SUM(--ISNUMBER(Q91:U91)),AVERAGE(Q91:U91),N_A) -> 0.529 | X91: =SUM(Q91:U91) -> 2.645
E92: =InpC!$E$26 -> Dŵr Cymru | F92: =InpC!$F$26 -> WSH | G92: £m | J92: =J20+J44+J68 -> 0.03005639098 | K92: 0.05456561922 | L92: 0.03833180568 | M92: 0.03697612732 | N92: 0.027 | O92: 0.028 | P92: 0.04 | Q92: 0.024 | R92: 0.023 | S92: 0.023 | T92: 0.023 | U92: 0.022 | W92: =IF(SUM(--ISNUMBER(Q92:U92)),AVERAGE(Q92:U92),N_A) -> 0.023 | X92: 0.115
E93: =InpC!$E$27 -> Hafren Dyfrdwy | F93: =InpC!$F$27 -> HDD | G93: £m | J93: =J21+J45+J69 -> 0 | K93: 0 | L93: 0 | M93: 0 | N93: 0 | O93: 0 | P93: 0 | Q93: 0 | R93: 0 | S93: 0 | T93: 0 | U93: 0 | W93: =IF(SUM(--ISNUMBER(Q93:U93)),AVERAGE(Q93:U93),N_A) -> 0 | X93: 0
E94: =InpC!$E$28 -> Northumbrian Water | F94: =InpC!$F$28 -> NES | G94: £m | J94: =J22+J46+J70 -> 0 | K94: 0 | L94: 0 | M94: 0 | N94: 0 | O94: 0 | P94: 0 | Q94: 0 | R94: 0 | S94: 0 | T94: 0 | U94: 0 | W94: =IF(SUM(--ISNUMBER(Q94:U94)),AVERAGE(Q94:U94),N_A) -> 0 | X94: 0
E95: =InpC!$E$29 -> Severn Trent Water | F95: =InpC!$F$29 -> SVE | G95: £m | J95: =J23+J47+J71 -> 0.1606860902 | K95: 0.1818853974 | L95: 0 | M95: 0 | N95: 0.117 | O95: 0.2311137 | P95: 0.232520917 | Q95: 0.233936702 | R95: 0.235361107 | S95: 0.236794185 | T95: 0.23823599 | U95: 0.239686573 | W95: =IF(SUM(--ISNUMBER(Q95:U95)),AVERAGE(Q95:U95),N_A) -> 0.2368029114 | X95: 1.184014557
E96: =InpC!$E$30 -> South West Water | F96: =InpC!$F$30 -> SWB | G96: £m | J96: =J24+J48+J72 -> 0 | K96: 0 | L96: 0 | M96: 0 | N96: 0 | O96: 0 | P96: 0 | Q96: 0 | R96: 0.440553612 | S96: 0.442590167 | T96: 0.443951526 | U96: 0.445103062 | W96: =IF(SUM(--ISNUMBER(Q96:U96)),AVERAGE(Q96:U96),N_A) -> 0.3544396734 | X96: 1.772198367
E97: =InpC!$E$31 -> Southern Water | F97: =InpC!$F$31 -> SRN | G97: £m | J97: =J25+J49+J73 -> 0 | K97: 0 | L97: 0 | M97: 0 | N97: 0 | O97: 0 | P97: 0 | Q97: 0 | R97: 0 | S97: 0 | T97: 0 | U97: 0 | W97: =IF(SUM(--ISNUMBER(Q97:U97)),AVERAGE(Q97:U97),N_A) -> 0 | X97: 0
E98: =InpC!$E$32 -> Thames Water | F98: =InpC!$F$32 -> TMS | G98: £m | J98: =J26+J50+J74 -> 0.06242481203 | K98: 0.0773012939 | L98: 0.04735105408 | M98: 0.03153846154 | N98: 0.053 | O98: 0.07590132827 | P98: 0.051 | Q98: 0.051 | R98: 0.051 | S98: 0.051 | T98: 0.051 | U98: 0.051 | W98: =IF(SUM(--ISNUMBER(Q98:U98)),AVERAGE(Q98:U98),N_A) -> 0.051 | X98: 0.255
E99: =InpC!$E$33 -> United Utilities | F99: =InpC!$F$33 -> NWT | G99: £m | J99: =J27+J51+J75 -> 1.765879979 | K99: 1.324874752 | L99: 1.227923031 | M99: 1.238395711 | N99: 1.075316214 | O99: 1.698112706 | P99: 0.8095451713 | Q99: 0.5087784657 | R99: 0.5087784657 | S99: 0.5087784657 | T99: 0.5087784657 | U99: 0.5087784657 | W99: =IF(SUM(--ISNUMBER(Q99:U99)),AVERAGE(Q99:U99),N_A) -> 0.5087784657 | X99: 2.543892329
E100: =InpC!$E$34 -> Wessex Water | F100: =InpC!$F$34 -> WSX | G100: £m | J100: =J28+J52+J76 -> 0 | K100: 0 | L100: 0 | M100: 0 | N100: 0 | O100: 0 | P100: 0 | Q100: 0 | R100: 0 | S100: 0 | T100: 0 | U100: 0 | W100: =IF(SUM(--ISNUMBER(Q100:U100)),AVERAGE(Q100:U100),N_A) -> 0 | X100: 0
E101: =InpC!$E$35 -> Yorkshire Water | F101: =InpC!$F$35 -> YKY | G101: £m | J101: =J29+J53+J77 -> 0 | K101: 0 | L101: 0 | M101: 0 | N101: 0 | O101: 0 | P101: 0 | Q101: 0.132 | R101: 0.132 | S101: 0.132 | T101: 0.132 | U101: 0.132 | W101: =IF(SUM(--ISNUMBER(Q101:U101)),AVERAGE(Q101:U101),N_A) -> 0.132 | X101: 0.66
E102: Industry total | G102: £m | J102: =SUM(J91:J101) -> 2.019047272 | K102: 1.638627063 | L102: 1.313605891 | M102: 1.3069103 | N102: 1.272316214 | O102: 2.033127734 | P102: 1.133066088 | Q102: 1.478715168 | R102: 1.919693185 | S102: 1.923162818 | T102: 1.925965982 | U102: 1.927568101 | W102: =SUM(W91:W101) -> 1.835021051 | X102: =SUM(X91:X101) -> 9.175105253
E104: F_Inputs_APR sludge total | J104: =SUM('F_Inputs(APR)_chk'!F116:F118) -> 2.019047272 | K104: =SUM('F_Inputs(APR)_chk'!G116:G118) -> 1.638627063 | L104: =SUM('F_Inputs(APR)_chk'!H116:H118) -> 1.313605891 | M104: =SUM('F_Inputs(APR)_chk'!I116:I118) -> 1.3069103 | N104: =SUM('F_Inputs(APR)_chk'!J116:J118) -> 1.272316214
E105: F_Inputs_BP sludge total | O105: =SUM('F_Inputs(PR24)_chk'!G81:G83) -> 2.033127734 | P105: =SUM('F_Inputs(PR24)_chk'!H81:H83) -> 1.133066088 | Q105: =SUM('F_Inputs(PR24)_chk'!I81:I83) -> 1.478715168 | R105: =SUM('F_Inputs(PR24)_chk'!J81:J83) -> 1.919693185 | S105: =SUM('F_Inputs(PR24)_chk'!K81:K83) -> 1.923162818 | T105: =SUM('F_Inputs(PR24)_chk'!L81:L83) -> 1.925965982 | U105: =SUM('F_Inputs(PR24)_chk'!M81:M83) -> 1.927568101
E106: Error check | H106: =IF(SUM(J106:U106)>0,1,0) -> 0 | J106: =IF(ABS(J104-J102)>CHK_TOL,1,0) -> 0 | K106: =IF(ABS(K104-K102)>CHK_TOL,1,0) -> 0 | L106: =IF(ABS(L104-L102)>CHK_TOL,1,0) -> 0 | M106: =IF(ABS(M104-M102)>CHK_TOL,1,0) -> 0 | N106: =IF(ABS(N104-N102)>CHK_TOL,1,0) -> 0 | O106: =IF(ABS(O105-O102)>CHK_TOL,1,0) -> 0 | P106: 0 | Q106: 0 | R106: 0 | S106: 0 | T106: 0 | U106: 0
C108: Other expenditure - costs associated with the Industrial Emissions directive - Bioresources total | J108: =J$2 -> 2019-03-31 | K108: 2020-03-31 | L108: 2021-03-31 | M108: 2022-03-31 | N108: 2023-03-31 | O108: 2024-03-31 | P108: 2025-03-31 | Q108: 2026-03-31 | R108: 2027-03-31 | S108: 2028-03-31 | T108: 2029-03-31 | U108: 2030-03-31 | W108: =W$2 -> PR24 Average | X108: =X$2 -> PR24 Total
D109: Location specific costs & obligations - Cost associated with the Industrial Emissions Directive - Bioresources total
E110: Cost data override
E112: £m, real
E113: =InpT!$F$8 -> 2023-03-31 | G113: prices
E115: =InpC!$E$25 -> Anglian Water | F115: =InpC!$F$25 -> ANH | G115: £m | W115: =IF(SUM(--ISNUMBER(Q115:U115)),AVERAGE(Q115:U115),N_A) -> N/A | X115: =SUM(Q115:U115) -> 0
E116: =InpC!$E$26 -> Dŵr Cymru | F116: =InpC!$F$26 -> WSH | G116: £m | W116: =IF(SUM(--ISNUMBER(Q116:U116)),AVERAGE(Q116:U116),N_A) -> N/A | X116: 0
E117: =InpC!$E$27 -> Hafren Dyfrdwy | F117: =InpC!$F$27 -> HDD | G117: £m | W117: =IF(SUM(--ISNUMBER(Q117:U117)),AVERAGE(Q117:U117),N_A) -> N/A | X117: 0
E118: =InpC!$E$28 -> Northumbrian Water | F118: =InpC!$F$28 -> NES | G118: £m | W118: =IF(SUM(--ISNUMBER(Q118:U118)),AVERAGE(Q118:U118),N_A) -> N/A | X118: 0
E119: =InpC!$E$29 -> Severn Trent Water | F119: =InpC!$F$29 -> SVE | G119: £m | W119: =IF(SUM(--ISNUMBER(Q119:U119)),AVERAGE(Q119:U119),N_A) -> N/A | X119: 0
E120: =InpC!$E$30 -> South West Water | F120: =InpC!$F$30 -> SWB | G120: £m | W120: =IF(SUM(--ISNUMBER(Q120:U120)),AVERAGE(Q120:U120),N_A) -> N/A | X120: 0
E121: =InpC!$E$31 -> Southern Water | F121: =InpC!$F$31 -> SRN | G121: £m | W121: =IF(SUM(--ISNUMBER(Q121:U121)),AVERAGE(Q121:U121),N_A) -> N/A | X121: 0
E122: =InpC!$E$32 -> Thames Water | F122: =InpC!$F$32 -> TMS | G122: £m | W122: =IF(SUM(--ISNUMBER(Q122:U122)),AVERAGE(Q122:U122),N_A) -> N/A | X122: 0
E123: =InpC!$E$33 -> United Utilities | F123: =InpC!$F$33 -> NWT | G123: £m | W123: =IF(SUM(--ISNUMBER(Q123:U123)),AVERAGE(Q123:U123),N_A) -> N/A | X123: 0
E124: =InpC!$E$34 -> Wessex Water | F124: =InpC!$F$34 -> WSX | G124: £m | W124: =IF(SUM(--ISNUMBER(Q124:U124)),AVERAGE(Q124:U124),N_A) -> N/A | X124: 0
E125: =InpC!$E$35 -> Yorkshire Water | F125: =InpC!$F$35 -> YKY | G125: £m | W125: =IF(SUM(--ISNUMBER(Q125:U125)),AVERAGE(Q125:U125),N_A) -> N/A | X125: 0
E126: Industry total | G126: £m | J126: =SUM(J115:J125) -> 0 | K126: 0 | L126: 0 | M126: 0 | N126: 0 | O126: 0 | P126: 0 | Q126: 0 | R126: 0 | S126: 0 | T126: 0 | U126: 0 | W126: =SUM(W115:W125) -> 0 | X126: =SUM(X115:X125) -> 0
C128: Other expenditure - costs associated with the Industrial Emissions directive - Bioresources total | J128: =J$2 -> 2019-03-31 | K128: 2020-03-31 | L128: 2021-03-31 | M128: 2022-03-31 | N128: 2023-03-31 | O128: 2024-03-31 | P128: 2025-03-31 | Q128: 2026-03-31 | R128: 2027-03-31 | S128: 2028-03-31 | T128: 2029-03-31 | U128: 2030-03-31 | W128: =W$2 -> PR24 Average | X128: =X$2 -> PR24 Total
D129: Location specific costs & obligations - Cost associated with the Industrial Emissions Directive - Bioresources total
E130: Cost data post override
E132: £m, real
E133: =InpT!$F$8 -> 2023-03-31 | G133: prices
E135: =InpC!$E$25 -> Anglian Water | F135: =InpC!$F$25 -> ANH | G135: £m | J135: =IF(ISBLANK(J115),J91,J115) -> 0 | K135: 0 | L135: 0 | M135: 0 | N135: 0 | O135: 0 | P135: 0 | Q135: 0.529 | R135: 0.529 | S135: 0.529 | T135: 0.529 | U135: 0.529 | W135: =IF(SUM(--ISNUMBER(Q135:U135)),AVERAGE(Q135:U135),N_A) -> 0.529 | X135: =SUM(Q135:U135) -> 2.645
E136: =InpC!$E$26 -> Dŵr Cymru | F136: =InpC!$F$26 -> WSH | G136: £m | J136: =IF(ISBLANK(J116),J92,J116) -> 0.03005639098 | K136: 0.05456561922 | L136: 0.03833180568 | M136: 0.03697612732 | N136: 0.027 | O136: 0.028 | P136: 0.04 | Q136: 0.024 | R136: 0.023 | S136: 0.023 | T136: 0.023 | U136: 0.022 | W136: =IF(SUM(--ISNUMBER(Q136:U136)),AVERAGE(Q136:U136),N_A) -> 0.023 | X136: 0.115
E137: =InpC!$E$27 -> Hafren Dyfrdwy | F137: =InpC!$F$27 -> HDD | G137: £m | J137: =IF(ISBLANK(J117),J93,J117) -> 0 | K137: 0 | L137: 0 | M137: 0 | N137: 0 | O137: 0 | P137: 0 | Q137: 0 | R137: 0 | S137: 0 | T137: 0 | U137: 0 | W137: =IF(SUM(--ISNUMBER(Q137:U137)),AVERAGE(Q137:U137),N_A) -> 0 | X137: 0
E138: =InpC!$E$28 -> Northumbrian Water | F138: =InpC!$F$28 -> NES | G138: £m | J138: =IF(ISBLANK(J118),J94,J118) -> 0 | K138: 0 | L138: 0 | M138: 0 | N138: 0 | O138: 0 | P138: 0 | Q138: 0 | R138: 0 | S138: 0 | T138: 0 | U138: 0 | W138: =IF(SUM(--ISNUMBER(Q138:U138)),AVERAGE(Q138:U138),N_A) -> 0 | X138: 0
E139: =InpC!$E$29 -> Severn Trent Water | F139: =InpC!$F$29 -> SVE | G139: £m | J139: =IF(ISBLANK(J119),J95,J119) -> 0.1606860902 | K139: 0.1818853974 | L139: 0 | M139: 0 | N139: 0.117 | O139: 0.2311137 | P139: 0.232520917 | Q139: 0.233936702 | R139: 0.235361107 | S139: 0.236794185 | T139: 0.23823599 | U139: 0.239686573 | W139: =IF(SUM(--ISNUMBER(Q139:U139)),AVERAGE(Q139:U139),N_A) -> 0.2368029114 | X139: 1.184014557
E140: =InpC!$E$30 -> South West Water | F140: =InpC!$F$30 -> SWB | G140: £m | J140: =IF(ISBLANK(J120),J96,J120) -> 0 | K140: 0 | L140: 0 | M140: 0 | N140: 0 | O140: 0 | P140: 0 | Q140: 0 | R140: 0.440553612 | S140: 0.442590167 | T140: 0.443951526 | U140: 0.445103062 | W140: =IF(SUM(--ISNUMBER(Q140:U140)),AVERAGE(Q140:U140),N_A) -> 0.3544396734 | X140: 1.772198367
E141: =InpC!$E$31 -> Southern Water | F141: =InpC!$F$31 -> SRN | G141: £m | J141: =IF(ISBLANK(J121),J97,J121) -> 0 | K141: 0 | L141: 0 | M141: 0 | N141: 0 | O141: 0 | P141: 0 | Q141: 0 | R141: 0 | S141: 0 | T141: 0 | U141: 0 | W141: =IF(SUM(--ISNUMBER(Q141:U141)),AVERAGE(Q141:U141),N_A) -> 0 | X141: 0
E142: =InpC!$E$32 -> Thames Water | F142: =InpC!$F$32 -> TMS | G142: £m | J142: =IF(ISBLANK(J122),J98,J122) -> 0.06242481203 | K142: 0.0773012939 | L142: 0.04735105408 | M142: 0.03153846154 | N142: 0.053 | O142: 0.07590132827 | P142: 0.051 | Q142: 0.051 | R142: 0.051 | S142: 0.051 | T142: 0.051 | U142: 0.051 | W142: =IF(SUM(--ISNUMBER(Q142:U142)),AVERAGE(Q142:U142),N_A) -> 0.051 | X142: 0.255
E143: =InpC!$E$33 -> United Utilities | F143: =InpC!$F$33 -> NWT | G143: £m | J143: =IF(ISBLANK(J123),J99,J123) -> 1.765879979 | K143: 1.324874752 | L143: 1.227923031 | M143: 1.238395711 | N143: 1.075316214 | O143: 1.698112706 | P143: 0.8095451713 | Q143: 0.5087784657 | R143: 0.5087784657 | S143: 0.5087784657 | T143: 0.5087784657 | U143: 0.5087784657 | W143: =IF(SUM(--ISNUMBER(Q143:U143)),AVERAGE(Q143:U143),N_A) -> 0.5087784657 | X143: 2.543892329
E144: =InpC!$E$34 -> Wessex Water | F144: =InpC!$F$34 -> WSX | G144: £m | J144: =IF(ISBLANK(J124),J100,J124) -> 0 | K144: 0 | L144: 0 | M144: 0 | N144: 0 | O144: 0 | P144: 0 | Q144: 0 | R144: 0 | S144: 0 | T144: 0 | U144: 0 | W144: =IF(SUM(--ISNUMBER(Q144:U144)),AVERAGE(Q144:U144),N_A) -> 0 | X144: 0
E145: =InpC!$E$35 -> Yorkshire Water | F145: =InpC!$F$35 -> YKY | G145: £m | J145: =IF(ISBLANK(J125),J101,J125) -> 0 | K145: 0 | L145: 0 | M145: 0 | N145: 0 | O145: 0 | P145: 0 | Q145: 0.132 | R145: 0.132 | S145: 0.132 | T145: 0.132 | U145: 0.132 | W145: =IF(SUM(--ISNUMBER(Q145:U145)),AVERAGE(Q145:U145),N_A) -> 0.132 | X145: 0.66
E146: Industry total | G146: £m | J146: =SUM(J135:J145) -> 2.019047272 | K146: 1.638627063 | L146: 1.313605891 | M146: 1.3069103 | N146: 1.272316214 | O146: 2.033127734 | P146: 1.133066088 | Q146: 1.478715168 | R146: 1.919693185 | S146: 1.923162818 | T146: 1.925965982 | U146: 1.927568101 | W146: =SUM(W135:W145) -> 1.835021051 | X146: =SUM(X135:X145) -> 9.175105253
C148: =InpC!$E$47 -> Other expenditure - Costs associated with Industrial Emissions Directive - Total | J148: =J$2 -> 2019-03-31 | K148: 2020-03-31 | L148: 2021-03-31 | M148: 2022-03-31 | N148: 2023-03-31 | O148: 2024-03-31 | P148: 2025-03-31 | Q148: 2026-03-31 | R148: 2027-03-31 | S148: 2028-03-31 | T148: 2029-03-31 | U148: 2030-03-31 | W148: =W$2 -> PR24 Average | X148: =X$2 -> PR24 Total
D149: Location specific costs & obligations - Cost associated with the Industrial Emissions Directive - Total
E150: Cost data before override
F151: APR | G151: =InpC!$F$47 -> WWS1105CAS | H151: =InpC!$F$43 -> W3036OTHTOT
E152: £m, real | F152: PR24 | G152: =InpC!$G$57 -> CWW2_013TOT_PR24
E153: =InpT!$F$8 -> 2023-03-31 | G153: prices
E155: =InpC!$E$25 -> Anglian Water | F155: =InpC!$F$25 -> ANH | G155: £m | J155: =J$10*((SUMIFS('F_Inputs (APR)'!F$7:F$85,'F_Inputs (APR)'!$A$7:$A$85,$F155,'F_Inputs (APR)'!$B$7:$B$85,$H$151))+(SUMIFS('F_Inputs (APR)'!F$7:F$85,'F_Inputs (APR)'!$A$7:$A$85,$F155,'F_Inputs (APR)'!$B$7:$B$85,$G$151))) -> 0 | K155: =K$10*((SUMIFS('F_Inputs (APR)'!G$7:G$85,'F_Inputs (APR)'!$A$7:$A$85,$F155,'F_Inputs (APR)'!$B$7:$B$85,$H$151))+(SUMIFS('F_Inputs (APR)'!G$7:G$85,'F_Inputs (APR)'!$A$7:$A$85,$F155,'F_Inputs (APR)'!$B$7:$B$85,$G$151))) -> 0 | L155: =L$10*((SUMIFS('F_Inputs (APR)'!H$7:H$85,'F_Inputs (APR)'!$A$7:$A$85,$F155,'F_Inputs (APR)'!$B$7:$B$85,$H$151))+(SUMIFS('F_Inputs (APR)'!H$7:H$85,'F_Inputs (APR)'!$A$7:$A$85,$F155,'F_Inputs (APR)'!$B$7:$B$85,$G$151))) -> 0 | M155: =M$10*((SUMIFS('F_Inputs (APR)'!I$7:I$85,'F_Inputs (APR)'!$A$7:$A$85,$F155,'F_Inputs (APR)'!$B$7:$B$85,$H$151))+(SUMIFS('F_Inputs (APR)'!I$7:I$85,'F_Inputs (APR)'!$A$7:$A$85,$F155,'F_Inputs (APR)'!$B$7:$B$85,$G$151))) -> 0 | N155: =N$10*((SUMIFS('F_Inputs (APR)'!J$7:J$85,'F_Inputs (APR)'!$A$7:$A$85,$F155,'F_Inputs (APR)'!$B$7:$B$85,$H$151))+(SUMIFS('F_Inputs (APR)'!J$7:J$85,'F_Inputs (APR)'!$A$7:$A$85,$F155,'F_Inputs (APR)'!$B$7:$B$85,$G$151))) -> 0 | O155: =O$10*SUMIFS(F_Inputs!G$7:G$65,F_Inputs!$A$7:$A$65,$F155,F_Inputs!$B$7:$B$65,$G$152) -> 0 | P155: =P$10*SUMIFS(F_Inputs!H$7:H$65,F_Inputs!$A$7:$A$65,$F155,F_Inputs!$B$7:$B$65,$G$152) -> 0 | Q155: =Q$10*SUMIFS(F_Inputs!I$7:I$65,F_Inputs!$A$7:$A$65,$F155,F_Inputs!$B$7:$B$65,$G$152) -> 0.529 | R155: =R$10*SUMIFS(F_Inputs!J$7:J$65,F_Inputs!$A$7:$A$65,$F155,F_Inputs!$B$7:$B$65,$G$152) -> 0.529 | S155: =S$10*SUMIFS(F_Inputs!K$7:K$65,F_Inputs!$A$7:$A$65,$F155,F_Inputs!$B$7:$B$65,$G$152) -> 0.529 | T155: =T$10*SUMIFS(F_Inputs!L$7:L$65,F_Inputs!$A$7:$A$65,$F155,F_Inputs!$B$7:$B$65,$G$152) -> 0.529 | U155: =U$10*SUMIFS(F_Inputs!M$7:M$65,F_Inputs!$A$7:$A$65,$F155,F_Inputs!$B$7:$B$65,$G$152) -> 0.529 | W155: =IF(SUM(--ISNUMBER(Q155:U155)),AVERAGE(Q155:U155),N_A) -> 0.529 | X155: =SUM(Q155:U155) -> 2.645
E156: =InpC!$E$26 -> Dŵr Cymru | F156: =InpC!$F$26 -> WSH | G156: £m | J156: =J$10*((SUMIFS('F_Inputs (APR)'!F$7:F$85,'F_Inputs (APR)'!$A$7:$A$85,$F156,'F_Inputs (APR)'!$B$7:$B$85,$H$151))+(SUMIFS('F_Inputs (APR)'!F$7:F$85,'F_Inputs (APR)'!$A$7:$A$85,$F156,'F_Inputs (APR)'!$B$7:$B$85,$G$151))) -> 0.03005639098 | K156: =K$10*((SUMIFS('F_Inputs (APR)'!G$7:G$85,'F_Inputs (APR)'!$A$7:$A$85,$F156,'F_Inputs (APR)'!$B$7:$B$85,$H$151))+(SUMIFS('F_Inputs (APR)'!G$7:G$85,'F_Inputs (APR)'!$A$7:$A$85,$F156,'F_Inputs (APR)'!$B$7:$B$85,$G$151))) -> 0.05456561922 | L156: =L$10*((SUMIFS('F_Inputs (APR)'!H$7:H$85,'F_Inputs (APR)'!$A$7:$A$85,$F156,'F_Inputs (APR)'!$B$7:$B$85,$H$151))+(SUMIFS('F_Inputs (APR)'!H$7:H$85,'F_Inputs (APR)'!$A$7:$A$85,$F156,'F_Inputs (APR)'!$B$7:$B$85,$G$151))) -> 0.03833180568 | M156: =M$10*((SUMIFS('F_Inputs (APR)'!I$7:I$85,'F_Inputs (APR)'!$A$7:$A$85,$F156,'F_Inputs (APR)'!$B$7:$B$85,$H$151))+(SUMIFS('F_Inputs (APR)'!I$7:I$85,'F_Inputs (APR)'!$A$7:$A$85,$F156,'F_Inputs (APR)'!$B$7:$B$85,$G$151))) -> 0.03697612732 | N156: =N$10*((SUMIFS('F_Inputs (APR)'!J$7:J$85,'F_Inputs (APR)'!$A$7:$A$85,$F156,'F_Inputs (APR)'!$B$7:$B$85,$H$151))+(SUMIFS('F_Inputs (APR)'!J$7:J$85,'F_Inputs (APR)'!$A$7:$A$85,$F156,'F_Inputs (APR)'!$B$7:$B$85,$G$151))) -> 0.027 | O156: =O$10*SUMIFS(F_Inputs!G$7:G$65,F_Inputs!$A$7:$A$65,$F156,F_Inputs!$B$7:$B$65,$G$152) -> 0.028 | P156: =P$10*SUMIFS(F_Inputs!H$7:H$65,F_Inputs!$A$7:$A$65,$F156,F_Inputs!$B$7:$B$65,$G$152) -> 0.04 | Q156: =Q$10*SUMIFS(F_Inputs!I$7:I$65,F_Inputs!$A$7:$A$65,$F156,F_Inputs!$B$7:$B$65,$G$152) -> 0.024 | R156: =R$10*SUMIFS(F_Inputs!J$7:J$65,F_Inputs!$A$7:$A$65,$F156,F_Inputs!$B$7:$B$65,$G$152) -> 0.023 | S156: =S$10*SUMIFS(F_Inputs!K$7:K$65,F_Inputs!$A$7:$A$65,$F156,F_Inputs!$B$7:$B$65,$G$152) -> 0.023 | T156: =T$10*SUMIFS(F_Inputs!L$7:L$65,F_Inputs!$A$7:$A$65,$F156,F_Inputs!$B$7:$B$65,$G$152) -> 0.023 | U156: =U$10*SUMIFS(F_Inputs!M$7:M$65,F_Inputs!$A$7:$A$65,$F156,F_Inputs!$B$7:$B$65,$G$152) -> 0.022 | W156: =IF(SUM(--ISNUMBER(Q156:U156)),AVERAGE(Q156:U156),N_A) -> 0.023 | X156: 0.115
E157: =InpC!$E$27 -> Hafren Dyfrdwy | F157: =InpC!$F$27 -> HDD | G157: £m | J157: =J$10*((SUMIFS('F_Inputs (APR)'!F$7:F$85,'F_Inputs (APR)'!$A$7:$A$85,$F157,'F_Inputs (APR)'!$B$7:$B$85,$H$151))+(SUMIFS('F_Inputs (APR)'!F$7:F$85,'F_Inputs (APR)'!$A$7:$A$85,$F157,'F_Inputs (APR)'!$B$7:$B$85,$G$151))) -> 0 | K157: =K$10*((SUMIFS('F_Inputs (APR)'!G$7:G$85,'F_Inputs (APR)'!$A$7:$A$85,$F157,'F_Inputs (APR)'!$B$7:$B$85,$H$151))+(SUMIFS('F_Inputs (APR)'!G$7:G$85,'F_Inputs (APR)'!$A$7:$A$85,$F157,'F_Inputs (APR)'!$B$7:$B$85,$G$151))) -> 0 | L157: =L$10*((SUMIFS('F_Inputs (APR)'!H$7:H$85,'F_Inputs (APR)'!$A$7:$A$85,$F157,'F_Inputs (APR)'!$B$7:$B$85,$H$151))+(SUMIFS('F_Inputs (APR)'!H$7:H$85,'F_Inputs (APR)'!$A$7:$A$85,$F157,'F_Inputs (APR)'!$B$7:$B$85,$G$151))) -> 0 | M157: =M$10*((SUMIFS('F_Inputs (APR)'!I$7:I$85,'F_Inputs (APR)'!$A$7:$A$85,$F157,'F_Inputs (APR)'!$B$7:$B$85,$H$151))+(SUMIFS('F_Inputs (APR)'!I$7:I$85,'F_Inputs (APR)'!$A$7:$A$85,$F157,'F_Inputs (APR)'!$B$7:$B$85,$G$151))) -> 0 | N157: =N$10*((SUMIFS('F_Inputs (APR)'!J$7:J$85,'F_Inputs (APR)'!$A$7:$A$85,$F157,'F_Inputs (APR)'!$B$7:$B$85,$H$151))+(SUMIFS('F_Inputs (APR)'!J$7:J$85,'F_Inputs (APR)'!$A$7:$A$85,$F157,'F_Inputs (APR)'!$B$7:$B$85,$G$151))) -> 0 | O157: =O$10*SUMIFS(F_Inputs!G$7:G$65,F_Inputs!$A$7:$A$65,$F157,F_Inputs!$B$7:$B$65,$G$152) -> 0 | P157: =P$10*SUMIFS(F_Inputs!H$7:H$65,F_Inputs!$A$7:$A$65,$F157,F_Inputs!$B$7:$B$65,$G$152) -> 0 | Q157: =Q$10*SUMIFS(F_Inputs!I$7:I$65,F_Inputs!$A$7:$A$65,$F157,F_Inputs!$B$7:$B$65,$G$152) -> 0 | R157: =R$10*SUMIFS(F_Inputs!J$7:J$65,F_Inputs!$A$7:$A$65,$F157,F_Inputs!$B$7:$B$65,$G$152) -> 0 | S157: =S$10*SUMIFS(F_Inputs!K$7:K$65,F_Inputs!$A$7:$A$65,$F157,F_Inputs!$B$7:$B$65,$G$152) -> 0 | T157: =T$10*SUMIFS(F_Inputs!L$7:L$65,F_Inputs!$A$7:$A$65,$F157,F_Inputs!$B$7:$B$65,$G$152) -> 0 | U157: =U$10*SUMIFS(F_Inputs!M$7:M$65,F_Inputs!$A$7:$A$65,$F157,F_Inputs!$B$7:$B$65,$G$152) -> 0 | W157: =IF(SUM(--ISNUMBER(Q157:U157)),AVERAGE(Q157:U157),N_A) -> 0 | X157: 0
E158: =InpC!$E$28 -> Northumbrian Water | F158: =InpC!$F$28 -> NES | G158: £m | J158: =J$10*((SUMIFS('F_Inputs (APR)'!F$7:F$85,'F_Inputs (APR)'!$A$7:$A$85,$F158,'F_Inputs (APR)'!$B$7:$B$85,$H$151))+(SUMIFS('F_Inputs (APR)'!F$7:F$85,'F_Inputs (APR)'!$A$7:$A$85,$F158,'F_Inputs (APR)'!$B$7:$B$85,$G$151))) -> 0 | K158: =K$10*((SUMIFS('F_Inputs (APR)'!G$7:G$85,'F_Inputs (APR)'!$A$7:$A$85,$F158,'F_Inputs (APR)'!$B$7:$B$85,$H$151))+(SUMIFS('F_Inputs (APR)'!G$7:G$85,'F_Inputs (APR)'!$A$7:$A$85,$F158,'F_Inputs (APR)'!$B$7:$B$85,$G$151))) -> 0 | L158: =L$10*((SUMIFS('F_Inputs (APR)'!H$7:H$85,'F_Inputs (APR)'!$A$7:$A$85,$F158,'F_Inputs (APR)'!$B$7:$B$85,$H$151))+(SUMIFS('F_Inputs (APR)'!H$7:H$85,'F_Inputs (APR)'!$A$7:$A$85,$F158,'F_Inputs (APR)'!$B$7:$B$85,$G$151))) -> 0 | M158: =M$10*((SUMIFS('F_Inputs (APR)'!I$7:I$85,'F_Inputs (APR)'!$A$7:$A$85,$F158,'F_Inputs (APR)'!$B$7:$B$85,$H$151))+(SUMIFS('F_Inputs (APR)'!I$7:I$85,'F_Inputs (APR)'!$A$7:$A$85,$F158,'F_Inputs (APR)'!$B$7:$B$85,$G$151))) -> 0 | N158: =N$10*((SUMIFS('F_Inputs (APR)'!J$7:J$85,'F_Inputs (APR)'!$A$7:$A$85,$F158,'F_Inputs (APR)'!$B$7:$B$85,$H$151))+(SUMIFS('F_Inputs (APR)'!J$7:J$85,'F_Inputs (APR)'!$A$7:$A$85,$F158,'F_Inputs (APR)'!$B$7:$B$85,$G$151))) -> 0 | O158: =O$10*SUMIFS(F_Inputs!G$7:G$65,F_Inputs!$A$7:$A$65,$F158,F_Inputs!$B$7:$B$65,$G$152) -> 0 | P158: =P$10*SUMIFS(F_Inputs!H$7:H$65,F_Inputs!$A$7:$A$65,$F158,F_Inputs!$B$7:$B$65,$G$152) -> 0 | Q158: =Q$10*SUMIFS(F_Inputs!I$7:I$65,F_Inputs!$A$7:$A$65,$F158,F_Inputs!$B$7:$B$65,$G$152) -> 0 | R158: =R$10*SUMIFS(F_Inputs!J$7:J$65,F_Inputs!$A$7:$A$65,$F158,F_Inputs!$B$7:$B$65,$G$152) -> 0 | S158: =S$10*SUMIFS(F_Inputs!K$7:K$65,F_Inputs!$A$7:$A$65,$F158,F_Inputs!$B$7:$B$65,$G$152) -> 0 | T158: =T$10*SUMIFS(F_Inputs!L$7:L$65,F_Inputs!$A$7:$A$65,$F158,F_Inputs!$B$7:$B$65,$G$152) -> 0 | U158: =U$10*SUMIFS(F_Inputs!M$7:M$65,F_Inputs!$A$7:$A$65,$F158,F_Inputs!$B$7:$B$65,$G$152) -> 0 | W158: =IF(SUM(--ISNUMBER(Q158:U158)),AVERAGE(Q158:U158),N_A) -> 0 | X158: 0
E159: =InpC!$E$29 -> Severn Trent Water | F159: =InpC!$F$29 -> SVE | G159: £m | J159: =J$10*((SUMIFS('F_Inputs (APR)'!F$7:F$85,'F_Inputs (APR)'!$A$7:$A$85,$F159,'F_Inputs (APR)'!$B$7:$B$85,$H$151))+(SUMIFS('F_Inputs (APR)'!F$7:F$85,'F_Inputs (APR)'!$A$7:$A$85,$F159,'F_Inputs (APR)'!$B$7:$B$85,$G$151))) -> 0.1606860902 | K159: =K$10*((SUMIFS('F_Inputs (APR)'!G$7:G$85,'F_Inputs (APR)'!$A$7:$A$85,$F159,'F_Inputs (APR)'!$B$7:$B$85,$H$151))+(SUMIFS('F_Inputs (APR)'!G$7:G$85,'F_Inputs (APR)'!$A$7:$A$85,$F159,'F_Inputs (APR)'!$B$7:$B$85,$G$151))) -> 0.1818853974 | L159: =L$10*((SUMIFS('F_Inputs (APR)'!H$7:H$85,'F_Inputs (APR)'!$A$7:$A$85,$F159,'F_Inputs (APR)'!$B$7:$B$85,$H$151))+(SUMIFS('F_Inputs (APR)'!H$7:H$85,'F_Inputs (APR)'!$A$7:$A$85,$F159,'F_Inputs (APR)'!$B$7:$B$85,$G$151))) -> 0 | M159: =M$10*((SUMIFS('F_Inputs (APR)'!I$7:I$85,'F_Inputs (APR)'!$A$7:$A$85,$F159,'F_Inputs (APR)'!$B$7:$B$85,$H$151))+(SUMIFS('F_Inputs (APR)'!I$7:I$85,'F_Inputs (APR)'!$A$7:$A$85,$F159,'F_Inputs (APR)'!$B$7:$B$85,$G$151))) -> 0 | N159: =N$10*((SUMIFS('F_Inputs (APR)'!J$7:J$85,'F_Inputs (APR)'!$A$7:$A$85,$F159,'F_Inputs (APR)'!$B$7:$B$85,$H$151))+(SUMIFS('F_Inputs (APR)'!J$7:J$85,'F_Inputs (APR)'!$A$7:$A$85,$F159,'F_Inputs (APR)'!$B$7:$B$85,$G$151))) -> 0.117 | O159: =O$10*SUMIFS(F_Inputs!G$7:G$65,F_Inputs!$A$7:$A$65,$F159,F_Inputs!$B$7:$B$65,$G$152) -> 0.2311137 | P159: =P$10*SUMIFS(F_Inputs!H$7:H$65,F_Inputs!$A$7:$A$65,$F159,F_Inputs!$B$7:$B$65,$G$152) -> 0.232520917 | Q159: =Q$10*SUMIFS(F_Inputs!I$7:I$65,F_Inputs!$A$7:$A$65,$F159,F_Inputs!$B$7:$B$65,$G$152) -> 0.233936702 | R159: =R$10*SUMIFS(F_Inputs!J$7:J$65,F_Inputs!$A$7:$A$65,$F159,F_Inputs!$B$7:$B$65,$G$152) -> 0.235361107 | S159: =S$10*SUMIFS(F_Inputs!K$7:K$65,F_Inputs!$A$7:$A$65,$F159,F_Inputs!$B$7:$B$65,$G$152) -> 0.236794185 | T159: =T$10*SUMIFS(F_Inputs!L$7:L$65,F_Inputs!$A$7:$A$65,$F159,F_Inputs!$B$7:$B$65,$G$152) -> 0.23823599 | U159: =U$10*SUMIFS(F_Inputs!M$7:M$65,F_Inputs!$A$7:$A$65,$F159,F_Inputs!$B$7:$B$65,$G$152) -> 0.239686573 | W159: =IF(SUM(--ISNUMBER(Q159:U159)),AVERAGE(Q159:U159),N_A) -> 0.2368029114 | X159: 1.184014557
E160: =InpC!$E$30 -> South West Water | F160: =InpC!$F$30 -> SWB | G160: £m | J160: =J$10*((SUMIFS('F_Inputs (APR)'!F$7:F$85,'F_Inputs (APR)'!$A$7:$A$85,$F160,'F_Inputs (APR)'!$B$7:$B$85,$H$151))+(SUMIFS('F_Inputs (APR)'!F$7:F$85,'F_Inputs (APR)'!$A$7:$A$85,$F160,'F_Inputs (APR)'!$B$7:$B$85,$G$151))) -> 0 | K160: =K$10*((SUMIFS('F_Inputs (APR)'!G$7:G$85,'F_Inputs (APR)'!$A$7:$A$85,$F160,'F_Inputs (APR)'!$B$7:$B$85,$H$151))+(SUMIFS('F_Inputs (APR)'!G$7:G$85,'F_Inputs (APR)'!$A$7:$A$85,$F160,'F_Inputs (APR)'!$B$7:$B$85,$G$151))) -> 0 | L160: =L$10*((SUMIFS('F_Inputs (APR)'!H$7:H$85,'F_Inputs (APR)'!$A$7:$A$85,$F160,'F_Inputs (APR)'!$B$7:$B$85,$H$151))+(SUMIFS('F_Inputs (APR)'!H$7:H$85,'F_Inputs (APR)'!$A$7:$A$85,$F160,'F_Inputs (APR)'!$B$7:$B$85,$G$151))) -> 0 | M160: =M$10*((SUMIFS('F_Inputs (APR)'!I$7:I$85,'F_Inputs (APR)'!$A$7:$A$85,$F160,'F_Inputs (APR)'!$B$7:$B$85,$H$151))+(SUMIFS('F_Inputs (APR)'!I$7:I$85,'F_Inputs (APR)'!$A$7:$A$85,$F160,'F_Inputs (APR)'!$B$7:$B$85,$G$151))) -> 0 | N160: =N$10*((SUMIFS('F_Inputs (APR)'!J$7:J$85,'F_Inputs (APR)'!$A$7:$A$85,$F160,'F_Inputs (APR)'!$B$7:$B$85,$H$151))+(SUMIFS('F_Inputs (APR)'!J$7:J$85,'F_Inputs (APR)'!$A$7:$A$85,$F160,'F_Inputs (APR)'!$B$7:$B$85,$G$151))) -> 0 | O160: =O$10*SUMIFS(F_Inputs!G$7:G$65,F_Inputs!$A$7:$A$65,$F160,F_Inputs!$B$7:$B$65,$G$152) -> 0 | P160: =P$10*SUMIFS(F_Inputs!H$7:H$65,F_Inputs!$A$7:$A$65,$F160,F_Inputs!$B$7:$B$65,$G$152) -> 0 | Q160: =Q$10*SUMIFS(F_Inputs!I$7:I$65,F_Inputs!$A$7:$A$65,$F160,F_Inputs!$B$7:$B$65,$G$152) -> 0 | R160: =R$10*SUMIFS(F_Inputs!J$7:J$65,F_Inputs!$A$7:$A$65,$F160,F_Inputs!$B$7:$B$65,$G$152) -> 0.514235421 | S160: =S$10*SUMIFS(F_Inputs!K$7:K$65,F_Inputs!$A$7:$A$65,$F160,F_Inputs!$B$7:$B$65,$G$152) -> 0.516564312 | T160: =T$10*SUMIFS(F_Inputs!L$7:L$65,F_Inputs!$A$7:$A$65,$F160,F_Inputs!$B$7:$B$65,$G$152) -> 0.518138086 | U160: =U$10*SUMIFS(F_Inputs!M$7:M$65,F_Inputs!$A$7:$A$65,$F160,F_Inputs!$B$7:$B$65,$G$152) -> 0.519477486 | W160: =IF(SUM(--ISNUMBER(Q160:U160)),AVERAGE(Q160:U160),N_A) -> 0.413683061 | X160: 2.068415305
E161: =InpC!$E$31 -> Southern Water | F161: =InpC!$F$31 -> SRN | G161: £m | J161: =J$10*((SUMIFS('F_Inputs (APR)'!F$7:F$85,'F_Inputs (APR)'!$A$7:$A$85,$F161,'F_Inputs (APR)'!$B$7:$B$85,$H$151))+(SUMIFS('F_Inputs (APR)'!F$7:F$85,'F_Inputs (APR)'!$A$7:$A$85,$F161,'F_Inputs (APR)'!$B$7:$B$85,$G$151))) -> 0 | K161: =K$10*((SUMIFS('F_Inputs (APR)'!G$7:G$85,'F_Inputs (APR)'!$A$7:$A$85,$F161,'F_Inputs (APR)'!$B$7:$B$85,$H$151))+(SUMIFS('F_Inputs (APR)'!G$7:G$85,'F_Inputs (APR)'!$A$7:$A$85,$F161,'F_Inputs (APR)'!$B$7:$B$85,$G$151))) -> 0 | L161: =L$10*((SUMIFS('F_Inputs (APR)'!H$7:H$85,'F_Inputs (APR)'!$A$7:$A$85,$F161,'F_Inputs (APR)'!$B$7:$B$85,$H$151))+(SUMIFS('F_Inputs (APR)'!H$7:H$85,'F_Inputs (APR)'!$A$7:$A$85,$F161,'F_Inputs (APR)'!$B$7:$B$85,$G$151))) -> 0 | M161: =M$10*((SUMIFS('F_Inputs (APR)'!I$7:I$85,'F_Inputs (APR)'!$A$7:$A$85,$F161,'F_Inputs (APR)'!$B$7:$B$85,$H$151))+(SUMIFS('F_Inputs (APR)'!I$7:I$85,'F_Inputs (APR)'!$A$7:$A$85,$F161,'F_Inputs (APR)'!$B$7:$B$85,$G$151))) -> 0.09026525199 | N161: =N$10*((SUMIFS('F_Inputs (APR)'!J$7:J$85,'F_Inputs (APR)'!$A$7:$A$85,$F161,'F_Inputs (APR)'!$B$7:$B$85,$H$151))+(SUMIFS('F_Inputs (APR)'!J$7:J$85,'F_Inputs (APR)'!$A$7:$A$85,$F161,'F_Inputs (APR)'!$B$7:$B$85,$G$151))) -> 0 | O161: =O$10*SUMIFS(F_Inputs!G$7:G$65,F_Inputs!$A$7:$A$65,$F161,F_Inputs!$B$7:$B$65,$G$152) -> 0 | P161: =P$10*SUMIFS(F_Inputs!H$7:H$65,F_Inputs!$A$7:$A$65,$F161,F_Inputs!$B$7:$B$65,$G$152) -> 0 | Q161: =Q$10*SUMIFS(F_Inputs!I$7:I$65,F_Inputs!$A$7:$A$65,$F161,F_Inputs!$B$7:$B$65,$G$152) -> 0 | R161: =R$10*SUMIFS(F_Inputs!J$7:J$65,F_Inputs!$A$7:$A$65,$F161,F_Inputs!$B$7:$B$65,$G$152) -> 0 | S161: =S$10*SUMIFS(F_Inputs!K$7:K$65,F_Inputs!$A$7:$A$65,$F161,F_Inputs!$B$7:$B$65,$G$152) -> 0 | T161: =T$10*SUMIFS(F_Inputs!L$7:L$65,F_Inputs!$A$7:$A$65,$F161,F_Inputs!$B$7:$B$65,$G$152) -> 0 | U161: =U$10*SUMIFS(F_Inputs!M$7:M$65,F_Inputs!$A$7:$A$65,$F161,F_Inputs!$B$7:$B$65,$G$152) -> 0 | W161: =IF(SUM(--ISNUMBER(Q161:U161)),AVERAGE(Q161:U161),N_A) -> 0 | X161: 0
E162: =InpC!$E$32 -> Thames Water | F162: =InpC!$F$32 -> TMS | G162: £m | J162: =J$10*((SUMIFS('F_Inputs (APR)'!F$7:F$85,'F_Inputs (APR)'!$A$7:$A$85,$F162,'F_Inputs (APR)'!$B$7:$B$85,$H$151))+(SUMIFS('F_Inputs (APR)'!F$7:F$85,'F_Inputs (APR)'!$A$7:$A$85,$F162,'F_Inputs (APR)'!$B$7:$B$85,$G$151))) -> 0.06242481203 | K162: =K$10*((SUMIFS('F_Inputs (APR)'!G$7:G$85,'F_Inputs (APR)'!$A$7:$A$85,$F162,'F_Inputs (APR)'!$B$7:$B$85,$H$151))+(SUMIFS('F_Inputs (APR)'!G$7:G$85,'F_Inputs (APR)'!$A$7:$A$85,$F162,'F_Inputs (APR)'!$B$7:$B$85,$G$151))) -> 0.0773012939 | L162: =L$10*((SUMIFS('F_Inputs (APR)'!H$7:H$85,'F_Inputs (APR)'!$A$7:$A$85,$F162,'F_Inputs (APR)'!$B$7:$B$85,$H$151))+(SUMIFS('F_Inputs (APR)'!H$7:H$85,'F_Inputs (APR)'!$A$7:$A$85,$F162,'F_Inputs (APR)'!$B$7:$B$85,$G$151))) -> 0.04735105408 | M162: =M$10*((SUMIFS('F_Inputs (APR)'!I$7:I$85,'F_Inputs (APR)'!$A$7:$A$85,$F162,'F_Inputs (APR)'!$B$7:$B$85,$H$151))+(SUMIFS('F_Inputs (APR)'!I$7:I$85,'F_Inputs (APR)'!$A$7:$A$85,$F162,'F_Inputs (APR)'!$B$7:$B$85,$G$151))) -> 0.03153846154 | N162: =N$10*((SUMIFS('F_Inputs (APR)'!J$7:J$85,'F_Inputs (APR)'!$A$7:$A$85,$F162,'F_Inputs (APR)'!$B$7:$B$85,$H$151))+(SUMIFS('F_Inputs (APR)'!J$7:J$85,'F_Inputs (APR)'!$A$7:$A$85,$F162,'F_Inputs (APR)'!$B$7:$B$85,$G$151))) -> 0.053 | O162: =O$10*SUMIFS(F_Inputs!G$7:G$65,F_Inputs!$A$7:$A$65,$F162,F_Inputs!$B$7:$B$65,$G$152) -> 0.07590132827 | P162: =P$10*SUMIFS(F_Inputs!H$7:H$65,F_Inputs!$A$7:$A$65,$F162,F_Inputs!$B$7:$B$65,$G$152) -> 0.051 | Q162: =Q$10*SUMIFS(F_Inputs!I$7:I$65,F_Inputs!$A$7:$A$65,$F162,F_Inputs!$B$7:$B$65,$G$152) -> 0.051 | R162: =R$10*SUMIFS(F_Inputs!J$7:J$65,F_Inputs!$A$7:$A$65,$F162,F_Inputs!$B$7:$B$65,$G$152) -> 0.051 | S162: =S$10*SUMIFS(F_Inputs!K$7:K$65,F_Inputs!$A$7:$A$65,$F162,F_Inputs!$B$7:$B$65,$G$152) -> 0.051 | T162: =T$10*SUMIFS(F_Inputs!L$7:L$65,F_Inputs!$A$7:$A$65,$F162,F_Inputs!$B$7:$B$65,$G$152) -> 0.051 | U162: =U$10*SUMIFS(F_Inputs!M$7:M$65,F_Inputs!$A$7:$A$65,$F162,F_Inputs!$B$7:$B$65,$G$152) -> 0.051 | W162: =IF(SUM(--ISNUMBER(Q162:U162)),AVERAGE(Q162:U162),N_A) -> 0.051 | X162: 0.255
E163: =InpC!$E$33 -> United Utilities | F163: =InpC!$F$33 -> NWT | G163: £m | J163: =J$10*((SUMIFS('F_Inputs (APR)'!F$7:F$85,'F_Inputs (APR)'!$A$7:$A$85,$F163,'F_Inputs (APR)'!$B$7:$B$85,$H$151))+(SUMIFS('F_Inputs (APR)'!F$7:F$85,'F_Inputs (APR)'!$A$7:$A$85,$F163,'F_Inputs (APR)'!$B$7:$B$85,$G$151))) -> 1.765879979 | K163: =K$10*((SUMIFS('F_Inputs (APR)'!G$7:G$85,'F_Inputs (APR)'!$A$7:$A$85,$F163,'F_Inputs (APR)'!$B$7:$B$85,$H$151))+(SUMIFS('F_Inputs (APR)'!G$7:G$85,'F_Inputs (APR)'!$A$7:$A$85,$F163,'F_Inputs (APR)'!$B$7:$B$85,$G$151))) -> 1.324874752 | L163: =L$10*((SUMIFS('F_Inputs (APR)'!H$7:H$85,'F_Inputs (APR)'!$A$7:$A$85,$F163,'F_Inputs (APR)'!$B$7:$B$85,$H$151))+(SUMIFS('F_Inputs (APR)'!H$7:H$85,'F_Inputs (APR)'!$A$7:$A$85,$F163,'F_Inputs (APR)'!$B$7:$B$85,$G$151))) -> 1.344322865 | M163: =M$10*((SUMIFS('F_Inputs (APR)'!I$7:I$85,'F_Inputs (APR)'!$A$7:$A$85,$F163,'F_Inputs (APR)'!$B$7:$B$85,$H$151))+(SUMIFS('F_Inputs (APR)'!I$7:I$85,'F_Inputs (APR)'!$A$7:$A$85,$F163,'F_Inputs (APR)'!$B$7:$B$85,$G$151))) -> 1.371101485 | N163: =N$10*((SUMIFS('F_Inputs (APR)'!J$7:J$85,'F_Inputs (APR)'!$A$7:$A$85,$F163,'F_Inputs (APR)'!$B$7:$B$85,$H$151))+(SUMIFS('F_Inputs (APR)'!J$7:J$85,'F_Inputs (APR)'!$A$7:$A$85,$F163,'F_Inputs (APR)'!$B$7:$B$85,$G$151))) -> 1.180435701 | O163: =O$10*SUMIFS(F_Inputs!G$7:G$65,F_Inputs!$A$7:$A$65,$F163,F_Inputs!$B$7:$B$65,$G$152) -> 1.739456253 | P163: =P$10*SUMIFS(F_Inputs!H$7:H$65,F_Inputs!$A$7:$A$65,$F163,F_Inputs!$B$7:$B$65,$G$152) -> 0.8095451713 | Q163: =Q$10*SUMIFS(F_Inputs!I$7:I$65,F_Inputs!$A$7:$A$65,$F163,F_Inputs!$B$7:$B$65,$G$152) -> 0.5754864285 | R163: =R$10*SUMIFS(F_Inputs!J$7:J$65,F_Inputs!$A$7:$A$65,$F163,F_Inputs!$B$7:$B$65,$G$152) -> 0.5754864285 | S163: =S$10*SUMIFS(F_Inputs!K$7:K$65,F_Inputs!$A$7:$A$65,$F163,F_Inputs!$B$7:$B$65,$G$152) -> 0.5754864285 | T163: =T$10*SUMIFS(F_Inputs!L$7:L$65,F_Inputs!$A$7:$A$65,$F163,F_Inputs!$B$7:$B$65,$G$152) -> 0.5754864285 | U163: =U$10*SUMIFS(F_Inputs!M$7:M$65,F_Inputs!$A$7:$A$65,$F163,F_Inputs!$B$7:$B$65,$G$152) -> 0.5754864285 | W163: =IF(SUM(--ISNUMBER(Q163:U163)),AVERAGE(Q163:U163),N_A) -> 0.5754864285 | X163: 2.877432143
E164: =InpC!$E$34 -> Wessex Water | F164: =InpC!$F$34 -> WSX | G164: £m | J164: =J$10*((SUMIFS('F_Inputs (APR)'!F$7:F$85,'F_Inputs (APR)'!$A$7:$A$85,$F164,'F_Inputs (APR)'!$B$7:$B$85,$H$151))+(SUMIFS('F_Inputs (APR)'!F$7:F$85,'F_Inputs (APR)'!$A$7:$A$85,$F164,'F_Inputs (APR)'!$B$7:$B$85,$G$151))) -> 0 | K164: =K$10*((SUMIFS('F_Inputs (APR)'!G$7:G$85,'F_Inputs (APR)'!$A$7:$A$85,$F164,'F_Inputs (APR)'!$B$7:$B$85,$H$151))+(SUMIFS('F_Inputs (APR)'!G$7:G$85,'F_Inputs (APR)'!$A$7:$A$85,$F164,'F_Inputs (APR)'!$B$7:$B$85,$G$151))) -> 0 | L164: =L$10*((SUMIFS('F_Inputs (APR)'!H$7:H$85,'F_Inputs (APR)'!$A$7:$A$85,$F164,'F_Inputs (APR)'!$B$7:$B$85,$H$151))+(SUMIFS('F_Inputs (APR)'!H$7:H$85,'F_Inputs (APR)'!$A$7:$A$85,$F164,'F_Inputs (APR)'!$B$7:$B$85,$G$151))) -> 0 | M164: =M$10*((SUMIFS('F_Inputs (APR)'!I$7:I$85,'F_Inputs (APR)'!$A$7:$A$85,$F164,'F_Inputs (APR)'!$B$7:$B$85,$H$151))+(SUMIFS('F_Inputs (APR)'!I$7:I$85,'F_Inputs (APR)'!$A$7:$A$85,$F164,'F_Inputs (APR)'!$B$7:$B$85,$G$151))) -> 0 | N164: =N$10*((SUMIFS('F_Inputs (APR)'!J$7:J$85,'F_Inputs (APR)'!$A$7:$A$85,$F164,'F_Inputs (APR)'!$B$7:$B$85,$H$151))+(SUMIFS('F_Inputs (APR)'!J$7:J$85,'F_Inputs (APR)'!$A$7:$A$85,$F164,'F_Inputs (APR)'!$B$7:$B$85,$G$151))) -> 0 | O164: =O$10*SUMIFS(F_Inputs!G$7:G$65,F_Inputs!$A$7:$A$65,$F164,F_Inputs!$B$7:$B$65,$G$152) -> 0 | P164: =P$10*SUMIFS(F_Inputs!H$7:H$65,F_Inputs!$A$7:$A$65,$F164,F_Inputs!$B$7:$B$65,$G$152) -> 0 | Q164: =Q$10*SUMIFS(F_Inputs!I$7:I$65,F_Inputs!$A$7:$A$65,$F164,F_Inputs!$B$7:$B$65,$G$152) -> 0 | R164: =R$10*SUMIFS(F_Inputs!J$7:J$65,F_Inputs!$A$7:$A$65,$F164,F_Inputs!$B$7:$B$65,$G$152) -> 0 | S164: =S$10*SUMIFS(F_Inputs!K$7:K$65,F_Inputs!$A$7:$A$65,$F164,F_Inputs!$B$7:$B$65,$G$152) -> 0 | T164: =T$10*SUMIFS(F_Inputs!L$7:L$65,F_Inputs!$A$7:$A$65,$F164,F_Inputs!$B$7:$B$65,$G$152) -> 0 | U164: =U$10*SUMIFS(F_Inputs!M$7:M$65,F_Inputs!$A$7:$A$65,$F164,F_Inputs!$B$7:$B$65,$G$152) -> 0 | W164: =IF(SUM(--ISNUMBER(Q164:U164)),AVERAGE(Q164:U164),N_A) -> 0 | X164: 0
E165: =InpC!$E$35 -> Yorkshire Water | F165: =InpC!$F$35 -> YKY | G165: £m | J165: =J$10*((SUMIFS('F_Inputs (APR)'!F$7:F$85,'F_Inputs (APR)'!$A$7:$A$85,$F165,'F_Inputs (APR)'!$B$7:$B$85,$H$151))+(SUMIFS('F_Inputs (APR)'!F$7:F$85,'F_Inputs (APR)'!$A$7:$A$85,$F165,'F_Inputs (APR)'!$B$7:$B$85,$G$151))) -> 0 | K165: =K$10*((SUMIFS('F_Inputs (APR)'!G$7:G$85,'F_Inputs (APR)'!$A$7:$A$85,$F165,'F_Inputs (APR)'!$B$7:$B$85,$H$151))+(SUMIFS('F_Inputs (APR)'!G$7:G$85,'F_Inputs (APR)'!$A$7:$A$85,$F165,'F_Inputs (APR)'!$B$7:$B$85,$G$151))) -> 0 | L165: =L$10*((SUMIFS('F_Inputs (APR)'!H$7:H$85,'F_Inputs (APR)'!$A$7:$A$85,$F165,'F_Inputs (APR)'!$B$7:$B$85,$H$151))+(SUMIFS('F_Inputs (APR)'!H$7:H$85,'F_Inputs (APR)'!$A$7:$A$85,$F165,'F_Inputs (APR)'!$B$7:$B$85,$G$151))) -> 0 | M165: =M$10*((SUMIFS('F_Inputs (APR)'!I$7:I$85,'F_Inputs (APR)'!$A$7:$A$85,$F165,'F_Inputs (APR)'!$B$7:$B$85,$H$151))+(SUMIFS('F_Inputs (APR)'!I$7:I$85,'F_Inputs (APR)'!$A$7:$A$85,$F165,'F_Inputs (APR)'!$B$7:$B$85,$G$151))) -> 0 | N165: =N$10*((SUMIFS('F_Inputs (APR)'!J$7:J$85,'F_Inputs (APR)'!$A$7:$A$85,$F165,'F_Inputs (APR)'!$B$7:$B$85,$H$151))+(SUMIFS('F_Inputs (APR)'!J$7:J$85,'F_Inputs (APR)'!$A$7:$A$85,$F165,'F_Inputs (APR)'!$B$7:$B$85,$G$151))) -> 0 | O165: =O$10*SUMIFS(F_Inputs!G$7:G$65,F_Inputs!$A$7:$A$65,$F165,F_Inputs!$B$7:$B$65,$G$152) -> 0 | P165: =P$10*SUMIFS(F_Inputs!H$7:H$65,F_Inputs!$A$7:$A$65,$F165,F_Inputs!$B$7:$B$65,$G$152) -> 0 | Q165: =Q$10*SUMIFS(F_Inputs!I$7:I$65,F_Inputs!$A$7:$A$65,$F165,F_Inputs!$B$7:$B$65,$G$152) -> 0.132 | R165: =R$10*SUMIFS(F_Inputs!J$7:J$65,F_Inputs!$A$7:$A$65,$F165,F_Inputs!$B$7:$B$65,$G$152) -> 0.132 | S165: =S$10*SUMIFS(F_Inputs!K$7:K$65,F_Inputs!$A$7:$A$65,$F165,F_Inputs!$B$7:$B$65,$G$152) -> 0.132 | T165: =T$10*SUMIFS(F_Inputs!L$7:L$65,F_Inputs!$A$7:$A$65,$F165,F_Inputs!$B$7:$B$65,$G$152) -> 0.132 | U165: =U$10*SUMIFS(F_Inputs!M$7:M$65,F_Inputs!$A$7:$A$65,$F165,F_Inputs!$B$7:$B$65,$G$152) -> 0.132 | W165: =IF(SUM(--ISNUMBER(Q165:U165)),AVERAGE(Q165:U165),N_A) -> 0.132 | X165: 0.66
E166: Industry total | G166: £m | J166: =SUM(J155:J165) -> 2.019047272 | K166: 1.638627063 | L166: 1.430005724 | M166: 1.529881326 | N166: 1.377435701 | O166: 2.074471282 | P166: 1.133066088 | Q166: 1.545423131 | R166: 2.060082957 | S166: 2.063844926 | T166: 2.066860505 | U166: 2.068650488 | W166: =SUM(W155:W165) -> 1.960972401 | X166: =SUM(X155:X165) -> 9.804862005
E168: ='F_Inputs(APR)_chk'!E120 -> APR total | J168: ='F_Inputs(APR)_chk'!F120 -> 2.019047272 | K168: ='F_Inputs(APR)_chk'!G120 -> 1.638627063 | L168: ='F_Inputs(APR)_chk'!H120 -> 1.430005724 | M168: ='F_Inputs(APR)_chk'!I120 -> 1.529881326 | N168: ='F_Inputs(APR)_chk'!J120 -> 1.377435701
E169: ='F_Inputs(PR24)_chk'!E85 -> PR24 - total | O169: ='F_Inputs(PR24)_chk'!G85 -> 2.074471282 | P169: ='F_Inputs(PR24)_chk'!H85 -> 1.133066088 | Q169: ='F_Inputs(PR24)_chk'!I85 -> 1.545423131 | R169: ='F_Inputs(PR24)_chk'!J85 -> 2.060082957 | S169: ='F_Inputs(PR24)_chk'!K85 -> 2.063844926 | T169: ='F_Inputs(PR24)_chk'!L85 -> 2.066860505 | U169: ='F_Inputs(PR24)_chk'!M85 -> 2.068650488
E170: Error check | H170: =IF(SUM(J170:U170)>0,1,0) -> 0 | J170: =IF(ABS(J168-J166)>CHK_TOL,1,0) -> 0 | K170: =IF(ABS(K168-K166)>CHK_TOL,1,0) -> 0 | L170: =IF(ABS(L168-L166)>CHK_TOL,1,0) -> 0 | M170: =IF(ABS(M168-M166)>CHK_TOL,1,0) -> 0 | N170: =IF(ABS(N168-N166)>CHK_TOL,1,0) -> 0 | O170: =IF(ABS(O169-O166)>CHK_TOL,1,0) -> 0 | P170: 0 | Q170: 0 | R170: 0 | S170: 0 | T170: 0 | U170: 0
C172: =C148 -> Other expenditure - Costs associated with Industrial Emissions Directive - Total | J172: =J$2 -> 2019-03-31 | K172: 2020-03-31 | L172: 2021-03-31 | M172: 2022-03-31 | N172: 2023-03-31 | O172: 2024-03-31 | P172: 2025-03-31 | Q172: 2026-03-31 | R172: 2027-03-31 | S172: 2028-03-31 | T172: 2029-03-31 | U172: 2030-03-31 | W172: =W$2 -> PR24 Average | X172: =X$2 -> PR24 Total
D173: Location specific costs & obligations - Cost associated with the Industrial Emissions Directive - Total
E174: Cost data override
E176: £m, real
E177: =InpT!$F$8 -> 2023-03-31 | G177: prices
E179: =InpC!$E$25 -> Anglian Water | F179: =InpC!$F$25 -> ANH | G179: £m | W179: =IF(SUM(--ISNUMBER(Q179:U179)),AVERAGE(Q179:U179),N_A) -> N/A | X179: =SUM(Q179:U179) -> 0
E180: =InpC!$E$26 -> Dŵr Cymru | F180: =InpC!$F$26 -> WSH | G180: £m | W180: =IF(SUM(--ISNUMBER(Q180:U180)),AVERAGE(Q180:U180),N_A) -> N/A | X180: 0
E181: =InpC!$E$27 -> Hafren Dyfrdwy | F181: =InpC!$F$27 -> HDD | G181: £m | W181: =IF(SUM(--ISNUMBER(Q181:U181)),AVERAGE(Q181:U181),N_A) -> N/A | X181: 0
E182: =InpC!$E$28 -> Northumbrian Water | F182: =InpC!$F$28 -> NES | G182: £m | W182: =IF(SUM(--ISNUMBER(Q182:U182)),AVERAGE(Q182:U182),N_A) -> N/A | X182: 0
E183: =InpC!$E$29 -> Severn Trent Water | F183: =InpC!$F$29 -> SVE | G183: £m | W183: =IF(SUM(--ISNUMBER(Q183:U183)),AVERAGE(Q183:U183),N_A) -> N/A | X183: 0
E184: =InpC!$E$30 -> South West Water | F184: =InpC!$F$30 -> SWB | G184: £m | W184: =IF(SUM(--ISNUMBER(Q184:U184)),AVERAGE(Q184:U184),N_A) -> N/A | X184: 0
E185: =InpC!$E$31 -> Southern Water | F185: =InpC!$F$31 -> SRN | G185: £m | W185: =IF(SUM(--ISNUMBER(Q185:U185)),AVERAGE(Q185:U185),N_A) -> N/A | X185: 0
E186: =InpC!$E$32 -> Thames Water | F186: =InpC!$F$32 -> TMS | G186: £m | W186: =IF(SUM(--ISNUMBER(Q186:U186)),AVERAGE(Q186:U186),N_A) -> N/A | X186: 0
E187: =InpC!$E$33 -> United Utilities | F187: =InpC!$F$33 -> NWT | G187: £m | W187: =IF(SUM(--ISNUMBER(Q187:U187)),AVERAGE(Q187:U187),N_A) -> N/A | X187: 0
E188: =InpC!$E$34 -> Wessex Water | F188: =InpC!$F$34 -> WSX | G188: £m | W188: =IF(SUM(--ISNUMBER(Q188:U188)),AVERAGE(Q188:U188),N_A) -> N/A | X188: 0
E189: =InpC!$E$35 -> Yorkshire Water | F189: =InpC!$F$35 -> YKY | G189: £m | W189: =IF(SUM(--ISNUMBER(Q189:U189)),AVERAGE(Q189:U189),N_A) -> N/A | X189: 0
E190: Industry total | G190: £m | J190: =SUM(J179:J189) -> 0 | K190: 0 | L190: 0 | M190: 0 | N190: 0 | O190: 0 | P190: 0 | Q190: 0 | R190: 0 | S190: 0 | T190: 0 | U190: 0 | W190: =SUM(W179:W189) -> 0 | X190: =SUM(X179:X189) -> 0
C193: =+C148 -> Other expenditure - Costs associated with Industrial Emissions Directive - Total | J193: =J$2 -> 2019-03-31 | K193: 2020-03-31 | L193: 2021-03-31 | M193: 2022-03-31 | N193: 2023-03-31 | O193: 2024-03-31 | P193: 2025-03-31 | Q193: 2026-03-31 | R193: 2027-03-31 | S193: 2028-03-31 | T193: 2029-03-31 | U193: 2030-03-31 | W193: =W$2 -> PR24 Average | X193: =X$2 -> PR24 Total
D194: Location specific costs & obligations - Cost associated with the Industrial Emissions Directive - Total
E195: Cost data post override
E197: £m, real
E198: =InpT!$F$8 -> 2023-03-31 | G198: prices
E200: =InpC!$E$25 -> Anglian Water | F200: =InpC!$F$25 -> ANH | G200: £m | J200: =IF(ISBLANK(J179),J155,J179) -> 0 | K200: 0 | L200: 0 | M200: 0 | N200: 0 | O200: 0 | P200: 0 | Q200: 0.529 | R200: 0.529 | S200: 0.529 | T200: 0.529 | U200: 0.529 | W200: =IF(SUM(--ISNUMBER(Q200:U200)),AVERAGE(Q200:U200),N_A) -> 0.529 | X200: =SUM(Q200:U200) -> 2.645
E201: =InpC!$E$26 -> Dŵr Cymru | F201: =InpC!$F$26 -> WSH | G201: £m | J201: =IF(ISBLANK(J180),J156,J180) -> 0.03005639098 | K201: 0.05456561922 | L201: 0.03833180568 | M201: 0.03697612732 | N201: 0.027 | O201: 0.028 | P201: 0.04 | Q201: 0.024 | R201: 0.023 | S201: 0.023 | T201: 0.023 | U201: 0.022 | W201: =IF(SUM(--ISNUMBER(Q201:U201)),AVERAGE(Q201:U201),N_A) -> 0.023 | X201: 0.115
E202: =InpC!$E$27 -> Hafren Dyfrdwy | F202: =InpC!$F$27 -> HDD | G202: £m | J202: =IF(ISBLANK(J181),J157,J181) -> 0 | K202: 0 | L202: 0 | M202: 0 | N202: 0 | O202: 0 | P202: 0 | Q202: 0 | R202: 0 | S202: 0 | T202: 0 | U202: 0 | W202: =IF(SUM(--ISNUMBER(Q202:U202)),AVERAGE(Q202:U202),N_A) -> 0 | X202: 0
E203: =InpC!$E$28 -> Northumbrian Water | F203: =InpC!$F$28 -> NES | G203: £m | J203: =IF(ISBLANK(J182),J158,J182) -> 0 | K203: 0 | L203: 0 | M203: 0 | N203: 0 | O203: 0 | P203: 0 | Q203: 0 | R203: 0 | S203: 0 | T203: 0 | U203: 0 | W203: =IF(SUM(--ISNUMBER(Q203:U203)),AVERAGE(Q203:U203),N_A) -> 0 | X203: 0
E204: =InpC!$E$29 -> Severn Trent Water | F204: =InpC!$F$29 -> SVE | G204: £m | J204: =IF(ISBLANK(J183),J159,J183) -> 0.1606860902 | K204: 0.1818853974 | L204: 0 | M204: 0 | N204: 0.117 | O204: 0.2311137 | P204: 0.232520917 | Q204: 0.233936702 | R204: 0.235361107 | S204: 0.236794185 | T204: 0.23823599 | U204: 0.239686573 | W204: =IF(SUM(--ISNUMBER(Q204:U204)),AVERAGE(Q204:U204),N_A) -> 0.2368029114 | X204: 1.184014557
E205: =InpC!$E$30 -> South West Water | F205: =InpC!$F$30 -> SWB | G205: £m | J205: =IF(ISBLANK(J184),J160,J184) -> 0 | K205: 0 | L205: 0 | M205: 0 | N205: 0 | O205: 0 | P205: 0 | Q205: 0 | R205: 0.514235421 | S205: 0.516564312 | T205: 0.518138086 | U205: 0.519477486 | W205: =IF(SUM(--ISNUMBER(Q205:U205)),AVERAGE(Q205:U205),N_A) -> 0.413683061 | X205: 2.068415305
E206: =InpC!$E$31 -> Southern Water | F206: =InpC!$F$31 -> SRN | G206: £m | J206: =IF(ISBLANK(J185),J161,J185) -> 0 | K206: 0 | L206: 0 | M206: 0.09026525199 | N206: 0 | O206: 0 | P206: 0 | Q206: 0 | R206: 0 | S206: 0 | T206: 0 | U206: 0 | W206: =IF(SUM(--ISNUMBER(Q206:U206)),AVERAGE(Q206:U206),N_A) -> 0 | X206: 0
E207: =InpC!$E$32 -> Thames Water | F207: =InpC!$F$32 -> TMS | G207: £m | J207: =IF(ISBLANK(J186),J162,J186) -> 0.06242481203 | K207: 0.0773012939 | L207: 0.04735105408 | M207: 0.03153846154 | N207: 0.053 | O207: 0.07590132827 | P207: 0.051 | Q207: 0.051 | R207: 0.051 | S207: 0.051 | T207: 0.051 | U207: 0.051 | W207: =IF(SUM(--ISNUMBER(Q207:U207)),AVERAGE(Q207:U207),N_A) -> 0.051 | X207: 0.255
E208: =InpC!$E$33 -> United Utilities | F208: =InpC!$F$33 -> NWT | G208: £m | J208: =IF(ISBLANK(J187),J163,J187) -> 1.765879979 | K208: 1.324874752 | L208: 1.344322865 | M208: 1.371101485 | N208: 1.180435701 | O208: 1.739456253 | P208: 0.8095451713 | Q208: 0.5754864285 | R208: 0.5754864285 | S208: 0.5754864285 | T208: 0.5754864285 | U208: 0.5754864285 | W208: =IF(SUM(--ISNUMBER(Q208:U208)),AVERAGE(Q208:U208),N_A) -> 0.5754864285 | X208: 2.877432143
E209: =InpC!$E$34 -> Wessex Water | F209: =InpC!$F$34 -> WSX | G209: £m | J209: =IF(ISBLANK(J188),J164,J188) -> 0 | K209: 0 | L209: 0 | M209: 0 | N209: 0 | O209: 0 | P209: 0 | Q209: 0 | R209: 0 | S209: 0 | T209: 0 | U209: 0 | W209: =IF(SUM(--ISNUMBER(Q209:U209)),AVERAGE(Q209:U209),N_A) -> 0 | X209: 0
E210: =InpC!$E$35 -> Yorkshire Water | F210: =InpC!$F$35 -> YKY | G210: £m | J210: =IF(ISBLANK(J189),J165,J189) -> 0 | K210: 0 | L210: 0 | M210: 0 | N210: 0 | O210: 0 | P210: 0 | Q210: 0.132 | R210: 0.132 | S210: 0.132 | T210: 0.132 | U210: 0.132 | W210: =IF(SUM(--ISNUMBER(Q210:U210)),AVERAGE(Q210:U210),N_A) -> 0.132 | X210: 0.66
E211: Industry total | G211: £m | J211: =SUM(J200:J210) -> 2.019047272 | K211: 1.638627063 | L211: 1.430005724 | M211: 1.529881326 | N211: 1.377435701 | O211: 2.074471282 | P211: 1.133066088 | Q211: 1.545423131 | R211: 2.060082957 | S211: 2.063844926 | T211: 2.066860505 | U211: 2.068650488 | W211: =SUM(W200:W210) -> 1.960972401 | X211: =SUM(X200:X210) -> 9.804862005
D213: Error check
E214: =InpC!$E$25 -> Anglian Water | J214: =(J200-J135) -> 0 | K214: 0 | L214: 0 | M214: 0 | N214: 0 | O214: 0 | P214: 0 | Q214: 0 | R214: 0 | S214: 0 | T214: 0 | U214: 0
E215: =InpC!$E$26 -> Dŵr Cymru | J215: =(J201-J136) -> 0 | K215: 0 | L215: 0 | M215: 0 | N215: 0 | O215: 0 | P215: 0 | Q215: 0 | R215: 0 | S215: 0 | T215: 0 | U215: 0
E216: =InpC!$E$27 -> Hafren Dyfrdwy | J216: =(J202-J137) -> 0 | K216: 0 | L216: 0 | M216: 0 | N216: 0 | O216: 0 | P216: 0 | Q216: 0 | R216: 0 | S216: 0 | T216: 0 | U216: 0
E217: =InpC!$E$28 -> Northumbrian Water | J217: =(J203-J138) -> 0 | K217: 0 | L217: 0 | M217: 0 | N217: 0 | O217: 0 | P217: 0 | Q217: 0 | R217: 0 | S217: 0 | T217: 0 | U217: 0
E218: =InpC!$E$29 -> Severn Trent Water | J218: =(J204-J139) -> 0 | K218: 0 | L218: 0 | M218: 0 | N218: 0 | O218: 0 | P218: 0 | Q218: 0 | R218: 0 | S218: 0 | T218: 0 | U218: 0
E219: =InpC!$E$30 -> South West Water | J219: =(J205-J140) -> 0 | K219: 0 | L219: 0 | M219: 0 | N219: 0 | O219: 0 | P219: 0 | Q219: 0 | R219: 0.073681809 | S219: 0.073974145 | T219: 0.07418656 | U219: 0.074374424
E220: =InpC!$E$31 -> Southern Water | J220: =(J206-J141) -> 0 | K220: 0 | L220: 0 | M220: 0.09026525199 | N220: 0 | O220: 0 | P220: 0 | Q220: 0 | R220: 0 | S220: 0 | T220: 0 | U220: 0
E221: =InpC!$E$32 -> Thames Water | J221: =(J207-J142) -> 0 | K221: 0 | L221: 0 | M221: 0 | N221: 0 | O221: 0 | P221: 0 | Q221: 0 | R221: 0 | S221: 0 | T221: 0 | U221: 0
E222: =InpC!$E$33 -> United Utilities | J222: =(J208-J143) -> 0 | K222: 0 | L222: 0.1163998335 | M222: 0.1327057743 | N222: 0.1051194865 | O222: 0.04134354729 | P222: 0 | Q222: 0.06670796283 | R222: 0.06670796283 | S222: 0.06670796283 | T222: 0.06670796283 | U222: 0.06670796283
E223: =InpC!$E$34 -> Wessex Water | J223: =(J209-J144) -> 0 | K223: 0 | L223: 0 | M223: 0 | N223: 0 | O223: 0 | P223: 0 | Q223: 0 | R223: 0 | S223: 0 | T223: 0 | U223: 0
E224: =InpC!$E$35 -> Yorkshire Water | J224: =(J210-J145) -> 0 | K224: 0 | L224: 0 | M224: 0 | N224: 0 | O224: 0 | P224: 0 | Q224: 0 | R224: 0 | S224: 0 | T224: 0 | U224: 0
E225: Industry total | J225: =(J211-J146) -> 0 | K225: 0 | L225: 0.1163998335 | M225: 0.2229710263 | N225: 0.1051194865 | O225: 0.04134354729 | P225: 0 | Q225: 0.06670796283 | R225: 0.1403897718 | S225: 0.1406821078 | T225: 0.1408945228 | U225: 0.1410823868
E226: Error flagged when: Sludge Total < (Transport+Treatment+Disposal) | H226: =IF(SUM(J226:U226)>0,1,0) -> 0 | J226: =IF(COUNTIF(J214:J225,"<0")>0,1,0) -> 0 | K226: 0 | L226: 0 | M226: 0 | N226: 0 | O226: 0 | P226: =IF(COUNTIF(P214:P225,"<0")>0,1,0) -> 0 | Q226: 0 | R226: 0 | S226: 0 | T226: 0 | U226: 0

Sheet Analysis
A1: =RIGHT(CELL("filename", A1), LEN(CELL("filename", A1)) - SEARCH("]", CELL("filename", A1))) -> Analysis | G1: =A1&" - Errors on sheet" -> Analysis - Errors on sheet
E2: =Time!E2 -> Model period ending | G2: Error chks | H2: =Check!$F$9 -> 0 | J2: =Time!J2 -> 2019-03-31 | K2: =Time!K2 -> 2020-03-31 | L2: =Time!L2 -> 2021-03-31 | M2: =Time!M2 -> 2022-03-31 | N2: =Time!N2 -> 2023-03-31 | O2: =Time!O2 -> 2024-03-31 | P2: =Time!P2 -> 2025-03-31 | Q2: =Time!Q2 -> 2026-03-31 | R2: =Time!R2 -> 2027-03-31 | S2: =Time!S2 -> 2028-03-31 | T2: =Time!T2 -> 2029-03-31 | U2: =Time!U2 -> 2030-03-31 | W2: PR24 Average | X2: PR24 Total
E3: =Time!E3 -> Timeline label | J3: =Time!J3 -> APR | K3: =Time!K3 -> APR | L3: =Time!L3 -> APR | M3: =Time!M3 -> APR | N3: =Time!N3 -> APR | O3: =Time!O3 -> PR24 | P3: =Time!P3 -> PR24 | Q3: =Time!Q3 -> PR24 | R3: =Time!R3 -> PR24 | S3: =Time!S3 -> PR24 | T3: =Time!T3 -> PR24 | U3: =Time!U3 -> PR24 | Z3: Issues/Concerns | AA3: Any explanation in BusinessPlan? | AB3: Action | AC3: Allowance basis
E4: =Time!E4 -> Model column counter | J4: =Time!J4 -> 1 | K4: =Time!K4 -> 2 | L4: =Time!L4 -> 3 | M4: =Time!M4 -> 4 | N4: =Time!N4 -> 5 | O4: =Time!O4 -> 6 | P4: =Time!P4 -> 7 | Q4: =Time!Q4 -> 8 | R4: =Time!R4 -> 9 | S4: =Time!S4 -> 10 | T4: =Time!T4 -> 11 | U4: =Time!U4 -> 12 | AD4: Post DD changes
J5: ='F_Inputs (APR)'!F4 -> Cyclical | K5: ='F_Inputs (APR)'!G4 -> Cyclical | L5: ='F_Inputs (APR)'!H4 -> Cyclical | M5: ='F_Inputs (APR)'!I4 -> Cyclical | N5: ='F_Inputs (APR)'!J4 -> Cyclical | O5: =F_Inputs!F4 -> Price Review 2024 | P5: =F_Inputs!G4 -> Price Review 2024 | Q5: =F_Inputs!H4 -> Price Review 2024 | R5: =F_Inputs!I4 -> Price Review 2024 | S5: =F_Inputs!J4 -> Price Review 2024 | T5: =F_Inputs!K4 -> Price Review 2024 | U5: =F_Inputs!L4 -> Price Review 2024
J6: ='F_Inputs (APR)'!F5 -> Default for Cyclical base run | K6: ='F_Inputs (APR)'!G5 -> Default for Cyclical base run | L6: ='F_Inputs (APR)'!H5 -> Default for Cyclical base run | M6: ='F_Inputs (APR)'!I5 -> Default for Cyclical base run | N6: ='F_Inputs (APR)'!J5 -> Default for Cyclical base run | O6: =F_Inputs!F5 -> Run 11 - PR24 FD Data | P6: =F_Inputs!G5 -> Run 11 - PR24 FD Data | Q6: =F_Inputs!H5 -> Run 11 - PR24 FD Data | R6: =F_Inputs!I5 -> Run 11 - PR24 FD Data | S6: =F_Inputs!J5 -> Run 11 - PR24 FD Data | T6: =F_Inputs!K5 -> Run 11 - PR24 FD Data | U6: =F_Inputs!L5 -> Run 11 - PR24 FD Data
F7: Constant | G7: Unit | J7: ='F_Inputs (APR)'!F6 -> Latest | K7: ='F_Inputs (APR)'!G6 -> Latest | L7: ='F_Inputs (APR)'!H6 -> Latest | M7: ='F_Inputs (APR)'!I6 -> Latest | N7: ='F_Inputs (APR)'!J6 -> Latest | O7: =F_Inputs!F6 -> Latest | P7: =F_Inputs!G6 -> Latest | Q7: =F_Inputs!H6 -> Latest | R7: =F_Inputs!I6 -> Latest | S7: =F_Inputs!J6 -> Latest | T7: =F_Inputs!K6 -> Latest | U7: =F_Inputs!L6 -> Latest
C9: =IED!C193 -> Other expenditure - Costs associated with Industrial Emissions Directive - Total | J9: =J$2 -> 2019-03-31 | K9: 2020-03-31 | L9: 2021-03-31 | M9: 2022-03-31 | N9: 2023-03-31 | O9: 2024-03-31 | P9: 2025-03-31 | Q9: 2026-03-31 | R9: 2027-03-31 | S9: 2028-03-31 | T9: 2029-03-31 | U9: 2030-03-31 | W9: =W$2 -> PR24 Average | X9: =X$2 -> PR24 Total
D10: =IED!D194 -> Location specific costs & obligations - Cost associated with the Industrial Emissions Directive - Total
E11: =IED!E195 -> Cost data post override
E13: £m, real
E14: 2023-03-31 | G14: prices
E16: Anglian Water | F16: ANH | G16: £m | J16: =IED!J200 -> 0 | K16: =IED!K200 -> 0 | L16: =IED!L200 -> 0 | M16: =IED!M200 -> 0 | N16: =IED!N200 -> 0 | O16: =IED!O200 -> 0 | P16: =IED!P200 -> 0 | Q16: =IED!Q200 -> 0.529 | R16: =IED!R200 -> 0.529 | S16: =IED!S200 -> 0.529 | T16: =IED!T200 -> 0.529 | U16: =IED!U200 -> 0.529 | W16: =IF(SUM(--ISNUMBER(Q16:U16)),AVERAGE(Q16:U16),N_A) -> 0.529 | X16: =SUM(Q16:U16) -> 2.645
E17: Dŵr Cymru | F17: WSH | G17: £m | J17: =IED!J201 -> 0.03005639098 | K17: =IED!K201 -> 0.05456561922 | L17: =IED!L201 -> 0.03833180568 | M17: =IED!M201 -> 0.03697612732 | N17: =IED!N201 -> 0.027 | O17: =IED!O201 -> 0.028 | P17: =IED!P201 -> 0.04 | Q17: =IED!Q201 -> 0.024 | R17: =IED!R201 -> 0.023 | S17: =IED!S201 -> 0.023 | T17: =IED!T201 -> 0.023 | U17: =IED!U201 -> 0.022 | W17: =IF(SUM(--ISNUMBER(Q17:U17)),AVERAGE(Q17:U17),N_A) -> 0.023 | X17: 0.115
E18: Hafren Dyfrdwy | F18: HDD | G18: £m | J18: =IED!J202 -> 0 | K18: =IED!K202 -> 0 | L18: =IED!L202 -> 0 | M18: =IED!M202 -> 0 | N18: =IED!N202 -> 0 | O18: =IED!O202 -> 0 | P18: =IED!P202 -> 0 | Q18: =IED!Q202 -> 0 | R18: =IED!R202 -> 0 | S18: =IED!S202 -> 0 | T18: =IED!T202 -> 0 | U18: =IED!U202 -> 0 | W18: =IF(SUM(--ISNUMBER(Q18:U18)),AVERAGE(Q18:U18),N_A) -> 0 | X18: 0
E19: Northumbrian Water | F19: NES | G19: £m | J19: =IED!J203 -> 0 | K19: =IED!K203 -> 0 | L19: =IED!L203 -> 0 | M19: =IED!M203 -> 0 | N19: =IED!N203 -> 0 | O19: =IED!O203 -> 0 | P19: =IED!P203 -> 0 | Q19: =IED!Q203 -> 0 | R19: =IED!R203 -> 0 | S19: =IED!S203 -> 0 | T19: =IED!T203 -> 0 | U19: =IED!U203 -> 0 | W19: =IF(SUM(--ISNUMBER(Q19:U19)),AVERAGE(Q19:U19),N_A) -> 0 | X19: 0
E20: Severn Trent Water | F20: SVE | G20: £m | J20: =IED!J204 -> 0.1606860902 | K20: =IED!K204 -> 0.1818853974 | L20: =IED!L204 -> 0 | M20: =IED!M204 -> 0 | N20: =IED!N204 -> 0.117 | O20: =IED!O204 -> 0.2311137 | P20: =IED!P204 -> 0.232520917 | Q20: =IED!Q204 -> 0.233936702 | R20: =IED!R204 -> 0.235361107 | S20: =IED!S204 -> 0.236794185 | T20: =IED!T204 -> 0.23823599 | U20: =IED!U204 -> 0.239686573 | W20: =IF(SUM(--ISNUMBER(Q20:U20)),AVERAGE(Q20:U20),N_A) -> 0.2368029114 | X20: 1.184014557
E21: South West Water | F21: SWB | G21: £m | J21: =IED!J205 -> 0 | K21: =IED!K205 -> 0 | L21: =IED!L205 -> 0 | M21: =IED!M205 -> 0 | N21: =IED!N205 -> 0 | O21: =IED!O205 -> 0 | P21: =IED!P205 -> 0 | Q21: =IED!Q205 -> 0 | R21: =IED!R205 -> 0.514235421 | S21: =IED!S205 -> 0.516564312 | T21: =IED!T205 -> 0.518138086 | U21: =IED!U205 -> 0.519477486 | W21: =IF(SUM(--ISNUMBER(Q21:U21)),AVERAGE(Q21:U21),N_A) -> 0.413683061 | X21: 2.068415305
E22: Southern Water | F22: SRN | G22: £m | J22: =IED!J206 -> 0 | K22: =IED!K206 -> 0 | L22: =IED!L206 -> 0 | M22: =IED!M206 -> 0.09026525199 | N22: =IED!N206 -> 0 | O22: =IED!O206 -> 0 | P22: =IED!P206 -> 0 | Q22: =IED!Q206 -> 0 | R22: =IED!R206 -> 0 | S22: =IED!S206 -> 0 | T22: =IED!T206 -> 0 | U22: =IED!U206 -> 0 | W22: =IF(SUM(--ISNUMBER(Q22:U22)),AVERAGE(Q22:U22),N_A) -> 0 | X22: 0
E23: Thames Water | F23: TMS | G23: £m | J23: =IED!J207 -> 0.06242481203 | K23: =IED!K207 -> 0.0773012939 | L23: =IED!L207 -> 0.04735105408 | M23: =IED!M207 -> 0.03153846154 | N23: =IED!N207 -> 0.053 | O23: =IED!O207 -> 0.07590132827 | P23: =IED!P207 -> 0.051 | Q23: =IED!Q207 -> 0.051 | R23: =IED!R207 -> 0.051 | S23: =IED!S207 -> 0.051 | T23: =IED!T207 -> 0.051 | U23: =IED!U207 -> 0.051 | W23: =IF(SUM(--ISNUMBER(Q23:U23)),AVERAGE(Q23:U23),N_A) -> 0.051 | X23: 0.255
E24: United Utilities | F24: NWT | G24: £m | J24: =IED!J208 -> 1.765879979 | K24: =IED!K208 -> 1.324874752 | L24: =IED!L208 -> 1.344322865 | M24: =IED!M208 -> 1.371101485 | N24: =IED!N208 -> 1.180435701 | O24: =IED!O208 -> 1.739456253 | P24: =IED!P208 -> 0.8095451713 | Q24: =IED!Q208 -> 0.5754864285 | R24: =IED!R208 -> 0.5754864285 | S24: =IED!S208 -> 0.5754864285 | T24: =IED!T208 -> 0.5754864285 | U24: =IED!U208 -> 0.5754864285 | W24: =IF(SUM(--ISNUMBER(Q24:U24)),AVERAGE(Q24:U24),N_A) -> 0.5754864285 | X24: 2.877432143
E25: Wessex Water | F25: WSX | G25: £m | J25: =IED!J209 -> 0 | K25: =IED!K209 -> 0 | L25: =IED!L209 -> 0 | M25: =IED!M209 -> 0 | N25: =IED!N209 -> 0 | O25: =IED!O209 -> 0 | P25: =IED!P209 -> 0 | Q25: =IED!Q209 -> 0 | R25: =IED!R209 -> 0 | S25: =IED!S209 -> 0 | T25: =IED!T209 -> 0 | U25: =IED!U209 -> 0 | W25: =IF(SUM(--ISNUMBER(Q25:U25)),AVERAGE(Q25:U25),N_A) -> 0 | X25: 0
E26: Yorkshire Water | F26: YKY | G26: £m | J26: =IED!J210 -> 0 | K26: =IED!K210 -> 0 | L26: =IED!L210 -> 0 | M26: =IED!M210 -> 0 | N26: =IED!N210 -> 0 | O26: =IED!O210 -> 0 | P26: =IED!P210 -> 0 | Q26: =IED!Q210 -> 0.132 | R26: =IED!R210 -> 0.132 | S26: =IED!S210 -> 0.132 | T26: =IED!T210 -> 0.132 | U26: =IED!U210 -> 0.132 | W26: =IF(SUM(--ISNUMBER(Q26:U26)),AVERAGE(Q26:U26),N_A) -> 0.132 | X26: 0.66
E27: Industry total | G27: £m | J27: =SUM(J16:J26) -> 2.019047272 | K27: 1.638627063 | L27: 1.430005724 | M27: 1.529881326 | N27: 1.377435701 | O27: 2.074471282 | P27: 1.133066088 | Q27: 1.545423131 | R27: 2.060082957 | S27: 2.063844926 | T27: 2.066860505 | U27: 2.068650488 | W27: =SUM(W16:W26) -> 1.960972401 | X27: =SUM(X16:X26) -> 9.804862005
C29: Shallow dive efficiency factors | J29: =J$2 -> 2019-03-31 | K29: 2020-03-31 | L29: 2021-03-31 | M29: 2022-03-31 | N29: 2023-03-31 | O29: 2024-03-31 | P29: 2025-03-31 | Q29: 2026-03-31 | R29: 2027-03-31 | S29: 2028-03-31 | T29: 2029-03-31 | U29: 2030-03-31
E31: *Left blank intentionally as shallow dive efficiency has not been applied to IED opex
E35: Anglian Water | F35: ANH | G35: % | H35: 0
E36: Dŵr Cymru | F36: WSH | G36: % | H36: 0
E37: Hafren Dyfrdwy | F37: HDD | G37: % | H37: 0
E38: Northumbrian Water | F38: NES | G38: % | H38: 0
E39: Severn Trent Water | F39: SVE | G39: % | H39: 0
E40: South West Water | F40: SWB | G40: % | H40: 0
E41: Southern Water | F41: SRN | G41: % | H41: 0
E42: Thames Water | F42: TMS | G42: % | H42: 0
E43: United Utilities | F43: NWT | G43: % | H43: 0
E44: Wessex Water | F44: WSX | G44: % | H44: 0
E45: Yorkshire Water | F45: YKY | G45: % | H45: 0
C47: Allowance - apply shallow dive efficiency factors to company forecasts | J47: =J$2 -> 2019-03-31 | K47: 2020-03-31 | L47: 2021-03-31 | M47: 2022-03-31 | N47: 2023-03-31 | O47: 2024-03-31 | P47: 2025-03-31 | Q47: 2026-03-31 | R47: 2027-03-31 | S47: 2028-03-31 | T47: 2029-03-31 | U47: 2030-03-31 | W47: =W$2 -> PR24 Average | X47: =X$2 -> PR24 Total
D48: Calculation
E51: £m, real
E52: 2023-03-31 | G52: prices
E54: Anglian Water | F54: ANH | G54: £m | Q54: =Q16*(1-$H35) -> 0.529 | R54: 0.529 | S54: 0.529 | T54: 0.529 | U54: 0.529 | W54: =IF(SUM(--ISNUMBER(Q54:U54)),AVERAGE(Q54:U54),N_A) -> 0.529 | X54: =SUM(Q54:U54) -> 2.645
E55: Dŵr Cymru | F55: WSH | G55: £m | Q55: 0.024 | R55: 0.023 | S55: 0.023 | T55: 0.023 | U55: 0.022 | W55: =IF(SUM(--ISNUMBER(Q55:U55)),AVERAGE(Q55:U55),N_A) -> 0.023 | X55: 0.115
E56: Hafren Dyfrdwy | F56: HDD | G56: £m | Q56: 0 | R56: 0 | S56: 0 | T56: 0 | U56: 0 | W56: =IF(SUM(--ISNUMBER(Q56:U56)),AVERAGE(Q56:U56),N_A) -> 0 | X56: 0
E57: Northumbrian Water | F57: NES | G57: £m | Q57: 0 | R57: 0 | S57: 0 | T57: 0 | U57: 0 | W57: =IF(SUM(--ISNUMBER(Q57:U57)),AVERAGE(Q57:U57),N_A) -> 0 | X57: 0
E58: Severn Trent Water | F58: SVE | G58: £m | Q58: 0.233936702 | R58: 0.235361107 | S58: 0.236794185 | T58: 0.23823599 | U58: 0.239686573 | W58: =IF(SUM(--ISNUMBER(Q58:U58)),AVERAGE(Q58:U58),N_A) -> 0.2368029114 | X58: 1.184014557
E59: South West Water | F59: SWB | G59: £m | Q59: 0 | R59: 0.514235421 | S59: 0.516564312 | T59: 0.518138086 | U59: 0.519477486 | W59: =IF(SUM(--ISNUMBER(Q59:U59)),AVERAGE(Q59:U59),N_A) -> 0.413683061 | X59: 2.068415305
E60: Southern Water | F60: SRN | G60: £m | Q60: 0 | R60: 0 | S60: 0 | T60: 0 | U60: 0 | W60: =IF(SUM(--ISNUMBER(Q60:U60)),AVERAGE(Q60:U60),N_A) -> 0 | X60: 0
E61: Thames Water | F61: TMS | G61: £m | Q61: 0.051 | R61: 0.051 | S61: 0.051 | T61: 0.051 | U61: 0.051 | W61: =IF(SUM(--ISNUMBER(Q61:U61)),AVERAGE(Q61:U61),N_A) -> 0.051 | X61: 0.255
E62: United Utilities | F62: NWT | G62: £m | Q62: 0.5754864285 | R62: 0.5754864285 | S62: 0.5754864285 | T62: 0.5754864285 | U62: 0.5754864285 | W62: =IF(SUM(--ISNUMBER(Q62:U62)),AVERAGE(Q62:U62),N_A) -> 0.5754864285 | X62: 2.877432143
E63: Wessex Water | F63: WSX | G63: £m | Q63: 0 | R63: 0 | S63: 0 | T63: 0 | U63: 0 | W63: =IF(SUM(--ISNUMBER(Q63:U63)),AVERAGE(Q63:U63),N_A) -> 0 | X63: 0
E64: Yorkshire Water | F64: YKY | G64: £m | Q64: 0.132 | R64: 0.132 | S64: 0.132 | T64: 0.132 | U64: 0.132 | W64: =IF(SUM(--ISNUMBER(Q64:U64)),AVERAGE(Q64:U64),N_A) -> 0.132 | X64: 0.66
E65: Industry total | G65: £m | Q65: =SUM(Q54:Q64) -> 1.545423131 | R65: =SUM(R54:R64) -> 2.060082957 | S65: =SUM(S54:S64) -> 2.063844926 | T65: =SUM(T54:T64) -> 2.066860505 | U65: =SUM(U54:U64) -> 2.068650488 | W65: =SUM(W54:W64) -> 1.960972401 | X65: =SUM(X54:X64) -> 9.804862005
C67: Final allowance | J67: =J$2 -> 2019-03-31 | K67: 2020-03-31 | L67: 2021-03-31 | M67: 2022-03-31 | N67: 2023-03-31 | O67: 2024-03-31 | P67: 2025-03-31 | Q67: 2026-03-31 | R67: 2027-03-31 | S67: 2028-03-31 | T67: 2029-03-31 | U67: 2030-03-31 | W67: =W$2 -> PR24 Average | X67: =X$2 -> PR24 Total
D68: Adjustment
E70: £m, real
E71: 2023-03-31 | G71: prices
E73: Anglian Water | F73: ANH | G73: £m | W73: =IF(SUM(--ISNUMBER(Q73:U73)),AVERAGE(Q73:U73),N_A) -> N/A | X73: =SUM(Q73:U73) -> 0
E74: Dŵr Cymru | F74: WSH | G74: £m | W74: =IF(SUM(--ISNUMBER(Q74:U74)),AVERAGE(Q74:U74),N_A) -> N/A | X74: 0
E75: Hafren Dyfrdwy | F75: HDD | G75: £m | W75: =IF(SUM(--ISNUMBER(Q75:U75)),AVERAGE(Q75:U75),N_A) -> N/A | X75: 0
E76: Northumbrian Water | F76: NES | G76: £m | W76: =IF(SUM(--ISNUMBER(Q76:U76)),AVERAGE(Q76:U76),N_A) -> N/A | X76: 0
E77: Severn Trent Water | F77: SVE | G77: £m | W77: =IF(SUM(--ISNUMBER(Q77:U77)),AVERAGE(Q77:U77),N_A) -> N/A | X77: 0
E78: South West Water | F78: SWB | G78: £m | W78: =IF(SUM(--ISNUMBER(Q78:U78)),AVERAGE(Q78:U78),N_A) -> N/A | X78: 0
E79: Southern Water | F79: SRN | G79: £m | W79: =IF(SUM(--ISNUMBER(Q79:U79)),AVERAGE(Q79:U79),N_A) -> N/A | X79: 0
E80: Thames Water | F80: TMS | G80: £m | W80: =IF(SUM(--ISNUMBER(Q80:U80)),AVERAGE(Q80:U80),N_A) -> N/A | X80: 0
E81: United Utilities | F81: NWT | G81: £m | W81: =IF(SUM(--ISNUMBER(Q81:U81)),AVERAGE(Q81:U81),N_A) -> N/A | X81: 0
E82: Wessex Water | F82: WSX | G82: £m | W82: =IF(SUM(--ISNUMBER(Q82:U82)),AVERAGE(Q82:U82),N_A) -> N/A | X82: 0
E83: Yorkshire Water | F83: YKY | G83: £m | W83: =IF(SUM(--ISNUMBER(Q83:U83)),AVERAGE(Q83:U83),N_A) -> N/A | X83: 0
E84: Industry total | G84: £m | Q84: =SUM(Q73:Q83) -> 0 | R84: =SUM(R73:R83) -> 0 | S84: =SUM(S73:S83) -> 0 | T84: =SUM(T73:T83) -> 0 | U84: =SUM(U73:U83) -> 0 | W84: =SUM(W73:W83) -> 0 | X84: =SUM(X73:X83) -> 0
C86: Final allowance | J86: =J$2 -> 2019-03-31 | K86: 2020-03-31 | L86: 2021-03-31 | M86: 2022-03-31 | N86: 2023-03-31 | O86: 2024-03-31 | P86: 2025-03-31 | Q86: 2026-03-31 | R86: 2027-03-31 | S86: 2028-03-31 | T86: 2029-03-31 | U86: 2030-03-31 | W86: =W$2 -> PR24 Average | X86: =X$2 -> PR24 Total
D87: Calculation
E89: £m, real
E90: 2023-03-31 | G90: prices
E92: Anglian Water | F92: ANH | G92: £m | Q92: =Q54+Q73 -> 0.529 | R92: 0.529 | S92: 0.529 | T92: 0.529 | U92: 0.529 | W92: =IF(SUM(--ISNUMBER(Q92:U92)),AVERAGE(Q92:U92),N_A) -> 0.529 | X92: =SUM(Q92:U92) -> 2.645
E93: Dŵr Cymru | F93: WSH | G93: £m | Q93: 0.024 | R93: 0.023 | S93: 0.023 | T93: 0.023 | U93: 0.022 | W93: =IF(SUM(--ISNUMBER(Q93:U93)),AVERAGE(Q93:U93),N_A) -> 0.023 | X93: 0.115
E94: Hafren Dyfrdwy | F94: HDD | G94: £m | Q94: 0 | R94: 0 | S94: 0 | T94: 0 | U94: 0 | W94: =IF(SUM(--ISNUMBER(Q94:U94)),AVERAGE(Q94:U94),N_A) -> 0 | X94: 0
E95: Northumbrian Water | F95: NES | G95: £m | Q95: 0 | R95: 0 | S95: 0 | T95: 0 | U95: 0 | W95: =IF(SUM(--ISNUMBER(Q95:U95)),AVERAGE(Q95:U95),N_A) -> 0 | X95: 0
E96: Severn Trent Water | F96: SVE | G96: £m | Q96: 0.233936702 | R96: 0.235361107 | S96: 0.236794185 | T96: 0.23823599 | U96: 0.239686573 | W96: =IF(SUM(--ISNUMBER(Q96:U96)),AVERAGE(Q96:U96),N_A) -> 0.2368029114 | X96: 1.184014557
E97: South West Water | F97: SWB | G97: £m | Q97: 0 | R97: 0.514235421 | S97: 0.516564312 | T97: 0.518138086 | U97: 0.519477486 | W97: =IF(SUM(--ISNUMBER(Q97:U97)),AVERAGE(Q97:U97),N_A) -> 0.413683061 | X97: 2.068415305
E98: Southern Water | F98: SRN | G98: £m | Q98: 0 | R98: 0 | S98: 0 | T98: 0 | U98: 0 | W98: =IF(SUM(--ISNUMBER(Q98:U98)),AVERAGE(Q98:U98),N_A) -> 0 | X98: 0
E99: Thames Water | F99: TMS | G99: £m | Q99: 0.051 | R99: 0.051 | S99: 0.051 | T99: 0.051 | U99: 0.051 | W99: =IF(SUM(--ISNUMBER(Q99:U99)),AVERAGE(Q99:U99),N_A) -> 0.051 | X99: 0.255
E100: United Utilities | F100: NWT | G100: £m | Q100: 0.5754864285 | R100: 0.5754864285 | S100: 0.5754864285 | T100: 0.5754864285 | U100: 0.5754864285 | W100: =IF(SUM(--ISNUMBER(Q100:U100)),AVERAGE(Q100:U100),N_A) -> 0.5754864285 | X100: 2.877432143
E101: Wessex Water | F101: WSX | G101: £m | Q101: 0 | R101: 0 | S101: 0 | T101: 0 | U101: 0 | W101: =IF(SUM(--ISNUMBER(Q101:U101)),AVERAGE(Q101:U101),N_A) -> 0 | X101: 0
E102: Yorkshire Water | F102: YKY | G102: £m | Q102: 0.132 | R102: 0.132 | S102: 0.132 | T102: 0.132 | U102: 0.132 | W102: =IF(SUM(--ISNUMBER(Q102:U102)),AVERAGE(Q102:U102),N_A) -> 0.132 | X102: 0.66
E103: Industry total | G103: £m | Q103: =SUM(Q92:Q102) -> 1.545423131 | R103: =SUM(R92:R102) -> 2.060082957 | S103: =SUM(S92:S102) -> 2.063844926 | T103: =SUM(T92:T102) -> 2.066860505 | U103: =SUM(U92:U102) -> 2.068650488 | W103: =SUM(W92:W102) -> 1.960972401 | X103: =SUM(X92:X102) -> 9.804862005
A105: Allocations to price controls
C107: =IED!C128 -> Other expenditure - costs associated with the Industrial Emissions directive - Bioresources total | J107: =J$2 -> 2019-03-31 | K107: 2020-03-31 | L107: 2021-03-31 | M107: 2022-03-31 | N107: 2023-03-31 | O107: 2024-03-31 | P107: 2025-03-31 | Q107: 2026-03-31 | R107: 2027-03-31 | S107: 2028-03-31 | T107: 2029-03-31 | U107: 2030-03-31 | W107: =W$2 -> PR24 Average | X107: =X$2 -> PR24 Total
D108: =IED!D129 -> Location specific costs & obligations - Cost associated with the Industrial Emissions Directive - Bioresources total
E109: =IED!E130 -> Cost data post override
E112: £m, real
E113: 2023-03-31 | G113: prices
E115: Anglian Water | F115: ANH | G115: £m | Q115: =IED!Q135 -> 0.529 | R115: =IED!R135 -> 0.529 | S115: =IED!S135 -> 0.529 | T115: =IED!T135 -> 0.529 | U115: =IED!U135 -> 0.529 | W115: =IF(SUM(--ISNUMBER(Q115:U115)),AVERAGE(Q115:U115),N_A) -> 0.529 | X115: =SUM(Q115:U115) -> 2.645
E116: Dŵr Cymru | F116: WSH | G116: £m | Q116: =IED!Q136 -> 0.024 | R116: =IED!R136 -> 0.023 | S116: =IED!S136 -> 0.023 | T116: =IED!T136 -> 0.023 | U116: =IED!U136 -> 0.022 | W116: =IF(SUM(--ISNUMBER(Q116:U116)),AVERAGE(Q116:U116),N_A) -> 0.023 | X116: 0.115
E117: Hafren Dyfrdwy | F117: HDD | G117: £m | Q117: =IED!Q137 -> 0 | R117: =IED!R137 -> 0 | S117: =IED!S137 -> 0 | T117: =IED!T137 -> 0 | U117: =IED!U137 -> 0 | W117: =IF(SUM(--ISNUMBER(Q117:U117)),AVERAGE(Q117:U117),N_A) -> 0 | X117: 0
E118: Northumbrian Water | F118: NES | G118: £m | Q118: =IED!Q138 -> 0 | R118: =IED!R138 -> 0 | S118: =IED!S138 -> 0 | T118: =IED!T138 -> 0 | U118: =IED!U138 -> 0 | W118: =IF(SUM(--ISNUMBER(Q118:U118)),AVERAGE(Q118:U118),N_A) -> 0 | X118: 0
E119: Severn Trent Water | F119: SVE | G119: £m | Q119: =IED!Q139 -> 0.233936702 | R119: =IED!R139 -> 0.235361107 | S119: =IED!S139 -> 0.236794185 | T119: =IED!T139 -> 0.23823599 | U119: =IED!U139 -> 0.239686573 | W119: =IF(SUM(--ISNUMBER(Q119:U119)),AVERAGE(Q119:U119),N_A) -> 0.2368029114 | X119: 1.184014557
E120: South West Water | F120: SWB | G120: £m | Q120: =IED!Q140 -> 0 | R120: =IED!R140 -> 0.440553612 | S120: =IED!S140 -> 0.442590167 | T120: =IED!T140 -> 0.443951526 | U120: =IED!U140 -> 0.445103062 | W120: =IF(SUM(--ISNUMBER(Q120:U120)),AVERAGE(Q120:U120),N_A) -> 0.3544396734 | X120: 1.772198367
E121: Southern Water | F121: SRN | G121: £m | Q121: =IED!Q141 -> 0 | R121: =IED!R141 -> 0 | S121: =IED!S141 -> 0 | T121: =IED!T141 -> 0 | U121: =IED!U141 -> 0 | W121: =IF(SUM(--ISNUMBER(Q121:U121)),AVERAGE(Q121:U121),N_A) -> 0 | X121: 0
E122: Thames Water | F122: TMS | G122: £m | Q122: =IED!Q142 -> 0.051 | R122: =IED!R142 -> 0.051 | S122: =IED!S142 -> 0.051 | T122: =IED!T142 -> 0.051 | U122: =IED!U142 -> 0.051 | W122: =IF(SUM(--ISNUMBER(Q122:U122)),AVERAGE(Q122:U122),N_A) -> 0.051 | X122: 0.255
E123: United Utilities | F123: NWT | G123: £m | Q123: =IED!Q143 -> 0.5087784657 | R123: =IED!R143 -> 0.5087784657 | S123: =IED!S143 -> 0.5087784657 | T123: =IED!T143 -> 0.5087784657 | U123: =IED!U143 -> 0.5087784657 | W123: =IF(SUM(--ISNUMBER(Q123:U123)),AVERAGE(Q123:U123),N_A) -> 0.5087784657 | X123: 2.543892329
E124: Wessex Water | F124: WSX | G124: £m | Q124: =IED!Q144 -> 0 | R124: =IED!R144 -> 0 | S124: =IED!S144 -> 0 | T124: =IED!T144 -> 0 | U124: =IED!U144 -> 0 | W124: =IF(SUM(--ISNUMBER(Q124:U124)),AVERAGE(Q124:U124),N_A) -> 0 | X124: 0
E125: Yorkshire Water | F125: YKY | G125: £m | Q125: =IED!Q145 -> 0.132 | R125: =IED!R145 -> 0.132 | S125: =IED!S145 -> 0.132 | T125: =IED!T145 -> 0.132 | U125: =IED!U145 -> 0.132 | W125: =IF(SUM(--ISNUMBER(Q125:U125)),AVERAGE(Q125:U125),N_A) -> 0.132 | X125: 0.66
E126: Industry total | G126: £m | Q126: =SUM(Q115:Q125) -> 1.478715168 | R126: =SUM(R115:R125) -> 1.919693185 | S126: =SUM(S115:S125) -> 1.923162818 | T126: =SUM(T115:T125) -> 1.925965982 | U126: =SUM(U115:U125) -> 1.927568101 | W126: =SUM(W115:W125) -> 1.835021051 | X126: =SUM(X115:X125) -> 9.175105253
C128: Allocation to bioresources | J128: =J$2 -> 2019-03-31 | K128: 2020-03-31 | L128: 2021-03-31 | M128: 2022-03-31 | N128: 2023-03-31 | O128: 2024-03-31 | P128: 2025-03-31 | Q128: 2026-03-31 | R128: 2027-03-31 | S128: 2028-03-31 | T128: 2029-03-31 | U128: 2030-03-31
D129: Calculation
E132: £m, real
E133: 2023-03-31
E135: Anglian Water | F135: ANH | G135: % | Q135: =IF(Q16=0,0,(Q115/Q16)) -> 1 | R135: 1 | S135: 1 | T135: 1 | U135: 1
E136: Dŵr Cymru | F136: WSH | G136: % | Q136: 1 | R136: 1 | S136: 1 | T136: 1 | U136: 1
E137: Hafren Dyfrdwy | F137: HDD | G137: % | Q137: 0 | R137: 0 | S137: 0 | T137: 0 | U137: 0
E138: Northumbrian Water | F138: NES | G138: % | Q138: 0 | R138: 0 | S138: 0 | T138: 0 | U138: 0
E139: Severn Trent Water | F139: SVE | G139: % | Q139: 1 | R139: 1 | S139: 1 | T139: 1 | U139: 1
E140: South West Water | F140: SWB | G140: % | Q140: 0 | R140: 0.8567158037 | S140: 0.8567958659 | T140: 0.8568208707 | U140: 0.8568283978
E141: Southern Water | F141: SRN | G141: % | Q141: 0 | R141: 0 | S141: 0 | T141: 0 | U141: 0
E142: Thames Water | F142: TMS | G142: % | Q142: 1 | R142: 1 | S142: 1 | T142: 1 | U142: 1
E143: United Utilities | F143: NWT | G143: % | Q143: 0.884084212 | R143: 0.884084212 | S143: 0.884084212 | T143: 0.884084212 | U143: 0.884084212
E144: Wessex Water | F144: WSX | G144: % | Q144: 0 | R144: 0 | S144: 0 | T144: 0 | U144: 0
E145: Yorkshire Water | F145: YKY | G145: % | Q145: 1 | R145: 1 | S145: 1 | T145: 1 | U145: 1
E146: Industry total | G146: %
C148: Ofwat allowance - allocation to bioresources | J148: =J$2 -> 2019-03-31 | K148: 2020-03-31 | L148: 2021-03-31 | M148: 2022-03-31 | N148: 2023-03-31 | O148: 2024-03-31 | P148: 2025-03-31 | Q148: 2026-03-31 | R148: 2027-03-31 | S148: 2028-03-31 | T148: 2029-03-31 | U148: 2030-03-31 | W148: =W$2 -> PR24 Average | X148: =X$2 -> PR24 Total
D149: Calculation
E151: £m, real
E152: 2023-03-31 | G152: prices
E154: Anglian Water | F154: ANH | G154: £m | Q154: =Q92*Q135 -> 0.529 | R154: =R92*R135 -> 0.529 | S154: 0.529 | T154: 0.529 | U154: 0.529 | W154: =IF(SUM(--ISNUMBER(Q154:U154)),AVERAGE(Q154:U154),N_A) -> 0.529 | X154: =SUM(Q154:U154) -> 2.645
E155: Dŵr Cymru | F155: WSH | G155: £m | Q155: 0.024 | R155: =R93*R136 -> 0.023 | S155: 0.023 | T155: 0.023 | U155: 0.022 | W155: =IF(SUM(--ISNUMBER(Q155:U155)),AVERAGE(Q155:U155),N_A) -> 0.023 | X155: 0.115
E156: Hafren Dyfrdwy | F156: HDD | G156: £m | Q156: 0 | R156: 0 | S156: 0 | T156: 0 | U156: 0 | W156: =IF(SUM(--ISNUMBER(Q156:U156)),AVERAGE(Q156:U156),N_A) -> 0 | X156: 0
E157: Northumbrian Water | F157: NES | G157: £m | Q157: 0 | R157: 0 | S157: 0 | T157: 0 | U157: 0 | W157: =IF(SUM(--ISNUMBER(Q157:U157)),AVERAGE(Q157:U157),N_A) -> 0 | X157: 0
E158: Severn Trent Water | F158: SVE | G158: £m | Q158: 0.233936702 | R158: 0.235361107 | S158: 0.236794185 | T158: 0.23823599 | U158: 0.239686573 | W158: =IF(SUM(--ISNUMBER(Q158:U158)),AVERAGE(Q158:U158),N_A) -> 0.2368029114 | X158: 1.184014557
E159: South West Water | F159: SWB | G159: £m | Q159: 0 | R159: 0.440553612 | S159: 0.442590167 | T159: 0.443951526 | U159: 0.445103062 | W159: =IF(SUM(--ISNUMBER(Q159:U159)),AVERAGE(Q159:U159),N_A) -> 0.3544396734 | X159: 1.772198367
E160: Southern Water | F160: SRN | G160: £m | Q160: 0 | R160: 0 | S160: 0 | T160: 0 | U160: 0 | W160: =IF(SUM(--ISNUMBER(Q160:U160)),AVERAGE(Q160:U160),N_A) -> 0 | X160: 0
E161: Thames Water | F161: TMS | G161: £m | Q161: 0.051 | R161: 0.051 | S161: 0.051 | T161: 0.051 | U161: 0.051 | W161: =IF(SUM(--ISNUMBER(Q161:U161)),AVERAGE(Q161:U161),N_A) -> 0.051 | X161: 0.255
E162: United Utilities | F162: NWT | G162: £m | Q162: 0.5087784657 | R162: 0.5087784657 | S162: 0.5087784657 | T162: 0.5087784657 | U162: 0.5087784657 | W162: =IF(SUM(--ISNUMBER(Q162:U162)),AVERAGE(Q162:U162),N_A) -> 0.5087784657 | X162: 2.543892329
E163: Wessex Water | F163: WSX | G163: £m | Q163: 0 | R163: 0 | S163: 0 | T163: 0 | U163: 0 | W163: =IF(SUM(--ISNUMBER(Q163:U163)),AVERAGE(Q163:U163),N_A) -> 0 | X163: 0
E164: Yorkshire Water | F164: YKY | G164: £m | Q164: 0.132 | R164: 0.132 | S164: 0.132 | T164: 0.132 | U164: 0.132 | W164: =IF(SUM(--ISNUMBER(Q164:U164)),AVERAGE(Q164:U164),N_A) -> 0.132 | X164: 0.66
E165: Industry total | G165: £m | Q165: =SUM(Q154:Q164) -> 1.478715168 | R165: =SUM(R154:R164) -> 1.919693185 | S165: =SUM(S154:S164) -> 1.923162818 | T165: =SUM(T154:T164) -> 1.925965982 | U165: =SUM(U154:U164) -> 1.927568101 | W165: =SUM(W154:W164) -> 1.835021051 | X165: =SUM(X154:X164) -> 9.175105253
C167: Ofwat allowance - allocation to Wastewater network+ | J167: =J$2 -> 2019-03-31 | K167: 2020-03-31 | L167: 2021-03-31 | M167: 2022-03-31 | N167: 2023-03-31 | O167: 2024-03-31 | P167: 2025-03-31 | Q167: 2026-03-31 | R167: 2027-03-31 | S167: 2028-03-31 | T167: 2029-03-31 | U167: 2030-03-31 | W167: =W$2 -> PR24 Average | X167: =X$2 -> PR24 Total
D168: Calculation
E170: £m, real
E171: 2023-03-31 | G171: prices
E173: Anglian Water | F173: ANH | G173: £m | Q173: =Q92-Q154 -> 0 | R173: 0 | S173: 0 | T173: 0 | U173: 0 | W173: =IF(SUM(--ISNUMBER(Q173:U173)),AVERAGE(Q173:U173),N_A) -> 0 | X173: =SUM(Q173:U173) -> 0
E174: Dŵr Cymru | F174: WSH | G174: £m | Q174: 0 | R174: 0 | S174: 0 | T174: 0 | U174: 0 | W174: =IF(SUM(--ISNUMBER(Q174:U174)),AVERAGE(Q174:U174),N_A) -> 0 | X174: 0
E175: Hafren Dyfrdwy | F175: HDD | G175: £m | Q175: 0 | R175: 0 | S175: 0 | T175: 0 | U175: 0 | W175: =IF(SUM(--ISNUMBER(Q175:U175)),AVERAGE(Q175:U175),N_A) -> 0 | X175: 0
E176: Northumbrian Water | F176: NES | G176: £m | Q176: 0 | R176: 0 | S176: 0 | T176: 0 | U176: 0 | W176: =IF(SUM(--ISNUMBER(Q176:U176)),AVERAGE(Q176:U176),N_A) -> 0 | X176: 0
E177: Severn Trent Water | F177: SVE | G177: £m | Q177: 0 | R177: 0 | S177: 0 | T177: 0 | U177: 0 | W177: =IF(SUM(--ISNUMBER(Q177:U177)),AVERAGE(Q177:U177),N_A) -> 0 | X177: 0
E178: South West Water | F178: SWB | G178: £m | Q178: 0 | R178: 0.073681809 | S178: 0.073974145 | T178: 0.07418656 | U178: 0.074374424 | W178: =IF(SUM(--ISNUMBER(Q178:U178)),AVERAGE(Q178:U178),N_A) -> 0.0592433876 | X178: 0.296216938
E179: Southern Water | F179: SRN | G179: £m | Q179: 0 | R179: 0 | S179: 0 | T179: 0 | U179: 0 | W179: =IF(SUM(--ISNUMBER(Q179:U179)),AVERAGE(Q179:U179),N_A) -> 0 | X179: 0
E180: Thames Water | F180: TMS | G180: £m | Q180: 0 | R180: 0 | S180: 0 | T180: 0 | U180: 0 | W180: =IF(SUM(--ISNUMBER(Q180:U180)),AVERAGE(Q180:U180),N_A) -> 0 | X180: 0
E181: United Utilities | F181: NWT | G181: £m | Q181: 0.06670796283 | R181: 0.06670796283 | S181: 0.06670796283 | T181: 0.06670796283 | U181: 0.06670796283 | W181: =IF(SUM(--ISNUMBER(Q181:U181)),AVERAGE(Q181:U181),N_A) -> 0.06670796283 | X181: 0.3335398142
E182: Wessex Water | F182: WSX | G182: £m | Q182: 0 | R182: 0 | S182: 0 | T182: 0 | U182: 0 | W182: =IF(SUM(--ISNUMBER(Q182:U182)),AVERAGE(Q182:U182),N_A) -> 0 | X182: 0
E183: Yorkshire Water | F183: YKY | G183: £m | Q183: 0 | R183: 0 | S183: 0 | T183: 0 | U183: 0 | W183: =IF(SUM(--ISNUMBER(Q183:U183)),AVERAGE(Q183:U183),N_A) -> 0 | X183: 0
E184: Industry total | G184: £m | Q184: =SUM(Q173:Q183) -> 0.06670796283 | R184: =SUM(R173:R183) -> 0.1403897718 | S184: =SUM(S173:S183) -> 0.1406821078 | T184: =SUM(T173:T183) -> 0.1408945228 | U184: =SUM(U173:U183) -> 0.1410823868 | W184: =SUM(W173:W183) -> 0.1259513504 | X184: =SUM(X173:X183) -> 0.6297567522

Sheet F_Outputs
C1: IED - Calculated allowances
A2: Acronym | B2: Reference | C2: Item description | D2: Unit | E2: Model | F2: 2025-26 | G2: 2026-27 | H2: 2027-28 | I2: 2028-29 | J2: 2029-30 | K2: 2025-30
A4: ANH | B4: C_PR24CA26_BIO | C4: Costs associated with Industrial Emissions Directive - Calculated allowance - Bioresources | D4: £m | E4: Price Review 2024 | F4: =SUMIF(Analysis!$F$154:$F$164,F_Outputs!$A4,Analysis!Q$154:Q$164) -> 0.529 | G4: =SUMIF(Analysis!$F$154:$F$164,F_Outputs!$A4,Analysis!R$154:R$164) -> 0.529 | H4: =SUMIF(Analysis!$F$154:$F$164,F_Outputs!$A4,Analysis!S$154:S$164) -> 0.529 | I4: =SUMIF(Analysis!$F$154:$F$164,F_Outputs!$A4,Analysis!T$154:T$164) -> 0.529 | J4: =SUMIF(Analysis!$F$154:$F$164,F_Outputs!$A4,Analysis!U$154:U$164) -> 0.529 | K4: =SUM(F4:J4) -> 2.645
A5: ANH | B5: C_PR24CA26_WWN | C5: Costs associated with Industrial Emissions Directive - Calculated allowance - Wastewater network plus | D5: £m | E5: Price Review 2024 | F5: =SUMIF(Analysis!$F$173:$F$183,F_Outputs!$A5,Analysis!Q$173:Q$183) -> 0 | G5: =SUMIF(Analysis!$F$173:$F$183,F_Outputs!$A5,Analysis!R$173:R$183) -> 0 | H5: =SUMIF(Analysis!$F$173:$F$183,F_Outputs!$A5,Analysis!S$173:S$183) -> 0 | I5: =SUMIF(Analysis!$F$173:$F$183,F_Outputs!$A5,Analysis!T$173:T$183) -> 0 | J5: =SUMIF(Analysis!$F$173:$F$183,F_Outputs!$A5,Analysis!U$173:U$183) -> 0 | K5: =SUM(F5:J5) -> 0
A6: ANH | B6: C_PR24CA26_WW_TOT | C6: Costs associated with Industrial Emissions Directive - Calculated allowance - Wastewater - Total | D6: £m | E6: Price Review 2024 | F6: =SUMIF(Analysis!$F$92:$F$102,F_Outputs!$A6,Analysis!Q$92:Q$102) -> 0.529 | G6: =SUMIF(Analysis!$F$92:$F$102,F_Outputs!$A6,Analysis!R$92:R$102) -> 0.529 | H6: =SUMIF(Analysis!$F$92:$F$102,F_Outputs!$A6,Analysis!S$92:S$102) -> 0.529 | I6: =SUMIF(Analysis!$F$92:$F$102,F_Outputs!$A6,Analysis!T$92:T$102) -> 0.529 | J6: =SUMIF(Analysis!$F$92:$F$102,F_Outputs!$A6,Analysis!U$92:U$102) -> 0.529 | K6: =SUM(F6:J6) -> 2.645
A7: ANH | B7: PR24QA_PR24CA26_OUT1 | C7: Date & Time for Model - PR24CA26 | D7: Text | E7: Price Review 2024 | F7: =CONCATENATE("[…]", TEXT(NOW(),"dd/mm/yyy hh:mm:ss")) -> […]11/12/2024 08:20:33 | G7: […]11/12/2024 08:20:33 | H7: […]11/12/2024 08:20:33 | I7: […]11/12/2024 08:20:33 | J7: […]11/12/2024 08:20:33 | K7: […]11/12/2024 08:20:33
A8: ANH | B8: PR24QA_PR24CA26_OUT2 | C8: Name of Model - PR24CA26 | D8: Text | E8: Price Review 2024 | F8: =MID(CELL("filename"),SEARCH("[",CELL("filename"))+1,SEARCH("]",CELL("filename"))-SEARCH("[",CELL("filename"))-1) -> PR24CA26 - IED opex.xlsm | G8: PR24CA26 - IED opex.xlsm | H8: PR24CA26 - IED opex.xlsm | I8: PR24CA26 - IED opex.xlsm | J8: PR24CA26 - IED opex.xlsm | K8: PR24CA26 - IED opex.xlsm
A9: ANH | B9: PR24QA_PR24CA26_OUT3 | C9: F_Inputs time stamp - PR24CA26 | D9: Text | E9: Price Review 2024 | F9: =F_Inputs!$E$1 -> Run on 04 Sep 2024 12:11 | G9: =F_Inputs!$E$1 -> Run on 04 Sep 2024 12:11 | H9: =F_Inputs!$E$1 -> Run on 04 Sep 2024 12:11 | I9: =F_Inputs!$E$1 -> Run on 04 Sep 2024 12:11 | J9: =F_Inputs!$E$1 -> Run on 04 Sep 2024 12:11 | K9: =F_Inputs!$E$1 -> Run on 04 Sep 2024 12:11
A10: ANH | B10: PR24QA_PR24CA26_OUT4 | C10: Model override switch for - PR24CA26 | D10: nr | E10: Price Review 2024 | F10: 0 | G10: 0 | H10: 0 | I10: 0 | J10: 0 | K10: 0
A11: ANH | B11: C_PR24CA26_BIO_REQUESTED | C11: Costs associated with Industrial Emissions Directive - business plan requested - Bioresources | D11: £m | E11: Price Review 2024 | F11: 0.529 | G11: 0.529 | H11: 0.529 | I11: 0.529 | J11: 0.529 | K11: =SUM(F11:J11) -> 2.645
A12: ANH | B12: C_PR24CA26_WWN_REQUESTED | C12: Costs associated with Industrial Emissions Directive - business plan requested - Wastewater network plus | D12: £m | E12: Price Review 2024 | F12: 0 | G12: 0 | H12: 0 | I12: 0 | J12: 0 | K12: =SUM(F12:J12) -> 0
A13: WSH | B13: C_PR24CA26_BIO | C13: Costs associated with Industrial Emissions Directive - Calculated allowance - Bioresources | D13: £m | E13: Price Review 2024 | F13: =SUMIF(Analysis!$F$154:$F$164,F_Outputs!$A13,Analysis!Q$154:Q$164) -> 0.024 | G13: =SUMIF(Analysis!$F$154:$F$164,F_Outputs!$A13,Analysis!R$154:R$164) -> 0.023 | H13: =SUMIF(Analysis!$F$154:$F$164,F_Outputs!$A13,Analysis!S$154:S$164) -> 0.023 | I13: =SUMIF(Analysis!$F$154:$F$164,F_Outputs!$A13,Analysis!T$154:T$164) -> 0.023 | J13: =SUMIF(Analysis!$F$154:$F$164,F_Outputs!$A13,Analysis!U$154:U$164) -> 0.022 | K13: =SUM(F13:J13) -> 0.115
A14: WSH | B14: C_PR24CA26_WWN | C14: Costs associated with Industrial Emissions Directive - Calculated allowance - Wastewater network plus | D14: £m | E14: Price Review 2024 | F14: =SUMIF(Analysis!$F$173:$F$183,F_Outputs!$A14,Analysis!Q$173:Q$183) -> 0 | G14: =SUMIF(Analysis!$F$173:$F$183,F_Outputs!$A14,Analysis!R$173:R$183) -> 0 | H14: =SUMIF(Analysis!$F$173:$F$183,F_Outputs!$A14,Analysis!S$173:S$183) -> 0 | I14: =SUMIF(Analysis!$F$173:$F$183,F_Outputs!$A14,Analysis!T$173:T$183) -> 0 | J14: =SUMIF(Analysis!$F$173:$F$183,F_Outputs!$A14,Analysis!U$173:U$183) -> 0 | K14: =SUM(F14:J14) -> 0
A15: WSH | B15: C_PR24CA26_WW_TOT | C15: Costs associated with Industrial Emissions Directive - Calculated allowance - Wastewater - Total | D15: £m | E15: Price Review 2024 | F15: =SUMIF(Analysis!$F$92:$F$102,F_Outputs!$A15,Analysis!Q$92:Q$102) -> 0.024 | G15: =SUMIF(Analysis!$F$92:$F$102,F_Outputs!$A15,Analysis!R$92:R$102) -> 0.023 | H15: =SUMIF(Analysis!$F$92:$F$102,F_Outputs!$A15,Analysis!S$92:S$102) -> 0.023 | I15: =SUMIF(Analysis!$F$92:$F$102,F_Outputs!$A15,Analysis!T$92:T$102) -> 0.023 | J15: =SUMIF(Analysis!$F$92:$F$102,F_Outputs!$A15,Analysis!U$92:U$102) -> 0.022 | K15: =SUM(F15:J15) -> 0.115
A16: WSH | B16: PR24QA_PR24CA26_OUT1 | C16: Date & Time for Model - PR24CA26 | D16: Text | E16: Price Review 2024 | F16: =CONCATENATE("[…]", TEXT(NOW(),"dd/mm/yyy hh:mm:ss")) -> […]11/12/2024 08:20:33 | G16: […]11/12/2024 08:20:33 | H16: […]11/12/2024 08:20:33 | I16: […]11/12/2024 08:20:33 | J16: […]11/12/2024 08:20:33 | K16: […]11/12/2024 08:20:33
A17: WSH | B17: PR24QA_PR24CA26_OUT2 | C17: Name of Model - PR24CA26 | D17: Text | E17: Price Review 2024 | F17: =MID(CELL("filename"),SEARCH("[",CELL("filename"))+1,SEARCH("]",CELL("filename"))-SEARCH("[",CELL("filename"))-1) -> PR24CA26 - IED opex.xlsm | G17: PR24CA26 - IED opex.xlsm | H17: PR24CA26 - IED opex.xlsm | I17: PR24CA26 - IED opex.xlsm | J17: PR24CA26 - IED opex.xlsm | K17: PR24CA26 - IED opex.xlsm
A18: WSH | B18: PR24QA_PR24CA26_OUT3 | C18: F_Inputs time stamp - PR24CA26 | D18: Text | E18: Price Review 2024 | F18: =F_Inputs!$E$1 -> Run on 04 Sep 2024 12:11 | G18: =F_Inputs!$E$1 -> Run on 04 Sep 2024 12:11 | H18: =F_Inputs!$E$1 -> Run on 04 Sep 2024 12:11 | I18: =F_Inputs!$E$1 -> Run on 04 Sep 2024 12:11 | J18: =F_Inputs!$E$1 -> Run on 04 Sep 2024 12:11 | K18: =F_Inputs!$E$1 -> Run on 04 Sep 2024 12:11
A19: WSH | B19: PR24QA_PR24CA26_OUT4 | C19: Model override switch for - PR24CA26 | D19: nr | E19: Price Review 2024 | F19: 0 | G19: 0 | H19: 0 | I19: 0 | J19: 0 | K19: 0
A20: WSH | B20: C_PR24CA26_BIO_REQUESTED | C20: Costs associated with Industrial Emissions Directive - business plan requested - Bioresources | D20: £m | E20: Price Review 2024 | F20: 0.024 | G20: 0.023 | H20: 0.023 | I20: 0.023 | J20: 0.022 | K20: =SUM(F20:J20) -> 0.115
A21: WSH | B21: C_PR24CA26_WWN_REQUESTED | C21: Costs associated with Industrial Emissions Directive - business plan requested - Wastewater network plus | D21: £m | E21: Price Review 2024 | F21: 0 | G21: 0 | H21: 0 | I21: 0 | J21: 0 | K21: =SUM(F21:J21) -> 0
A22: HDD | B22: C_PR24CA26_BIO | C22: Costs associated with Industrial Emissions Directive - Calculated allowance - Bioresources | D22: £m | E22: Price Review 2024 | F22: =SUMIF(Analysis!$F$154:$F$164,F_Outputs!$A22,Analysis!Q$154:Q$164) -> 0 | G22: =SUMIF(Analysis!$F$154:$F$164,F_Outputs!$A22,Analysis!R$154:R$164) -> 0 | H22: =SUMIF(Analysis!$F$154:$F$164,F_Outputs!$A22,Analysis!S$154:S$164) -> 0 | I22: =SUMIF(Analysis!$F$154:$F$164,F_Outputs!$A22,Analysis!T$154:T$164) -> 0 | J22: =SUMIF(Analysis!$F$154:$F$164,F_Outputs!$A22,Analysis!U$154:U$164) -> 0 | K22: =SUM(F22:J22) -> 0
A23: HDD | B23: C_PR24CA26_WWN | C23: Costs associated with Industrial Emissions Directive - Calculated allowance - Wastewater network plus | D23: £m | E23: Price Review 2024 | F23: =SUMIF(Analysis!$F$173:$F$183,F_Outputs!$A23,Analysis!Q$173:Q$183) -> 0 | G23: =SUMIF(Analysis!$F$173:$F$183,F_Outputs!$A23,Analysis!R$173:R$183) -> 0 | H23: =SUMIF(Analysis!$F$173:$F$183,F_Outputs!$A23,Analysis!S$173:S$183) -> 0 | I23: =SUMIF(Analysis!$F$173:$F$183,F_Outputs!$A23,Analysis!T$173:T$183) -> 0 | J23: =SUMIF(Analysis!$F$173:$F$183,F_Outputs!$A23,Analysis!U$173:U$183) -> 0 | K23: =SUM(F23:J23) -> 0
A24: HDD | B24: C_PR24CA26_WW_TOT | C24: Costs associated with Industrial Emissions Directive - Calculated allowance - Wastewater - Total | D24: £m | E24: Price Review 2024 | F24: =SUMIF(Analysis!$F$92:$F$102,F_Outputs!$A24,Analysis!Q$92:Q$102) -> 0 | G24: =SUMIF(Analysis!$F$92:$F$102,F_Outputs!$A24,Analysis!R$92:R$102) -> 0 | H24: =SUMIF(Analysis!$F$92:$F$102,F_Outputs!$A24,Analysis!S$92:S$102) -> 0 | I24: =SUMIF(Analysis!$F$92:$F$102,F_Outputs!$A24,Analysis!T$92:T$102) -> 0 | J24: =SUMIF(Analysis!$F$92:$F$102,F_Outputs!$A24,Analysis!U$92:U$102) -> 0 | K24: =SUM(F24:J24) -> 0
A25: HDD | B25: PR24QA_PR24CA26_OUT1 | C25: Date & Time for Model - PR24CA26 | D25: Text | E25: Price Review 2024 | F25: =CONCATENATE("[…]", TEXT(NOW(),"dd/mm/yyy hh:mm:ss")) -> […]11/12/2024 08:20:33 | G25: […]11/12/2024 08:20:33 | H25: […]11/12/2024 08:20:33 | I25: […]11/12/2024 08:20:33 | J25: […]11/12/2024 08:20:33 | K25: […]11/12/2024 08:20:33
A26: HDD | B26: PR24QA_PR24CA26_OUT2 | C26: Name of Model - PR24CA26 | D26: Text | E26: Price Review 2024 | F26: =MID(CELL("filename"),SEARCH("[",CELL("filename"))+1,SEARCH("]",CELL("filename"))-SEARCH("[",CELL("filename"))-1) -> PR24CA26 - IED opex.xlsm | G26: PR24CA26 - IED opex.xlsm | H26: PR24CA26 - IED opex.xlsm | I26: PR24CA26 - IED opex.xlsm | J26: PR24CA26 - IED opex.xlsm | K26: PR24CA26 - IED opex.xlsm
A27: HDD | B27: PR24QA_PR24CA26_OUT3 | C27: F_Inputs time stamp - PR24CA26 | D27: Text | E27: Price Review 2024 | F27: =F_Inputs!$E$1 -> Run on 04 Sep 2024 12:11 | G27: =F_Inputs!$E$1 -> Run on 04 Sep 2024 12:11 | H27: =F_Inputs!$E$1 -> Run on 04 Sep 2024 12:11 | I27: =F_Inputs!$E$1 -> Run on 04 Sep 2024 12:11 | J27: =F_Inputs!$E$1 -> Run on 04 Sep 2024 12:11 | K27: =F_Inputs!$E$1 -> Run on 04 Sep 2024 12:11
A28: HDD | B28: PR24QA_PR24CA26_OUT4 | C28: Model override switch for - PR24CA26 | D28: nr | E28: Price Review 2024 | F28: 0 | G28: 0 | H28: 0 | I28: 0 | J28: 0 | K28: 0
A29: HDD | B29: C_PR24CA26_BIO_REQUESTED | C29: Costs associated with Industrial Emissions Directive - business plan requested - Bioresources | D29: £m | E29: Price Review 2024 | F29: 0 | G29: 0 | H29: 0 | I29: 0 | J29: 0 | K29: =SUM(F29:J29) -> 0
A30: HDD | B30: C_PR24CA26_WWN_REQUESTED | C30: Costs associated with Industrial Emissions Directive - business plan requested - Wastewater network plus | D30: £m | E30: Price Review 2024 | F30: 0 | G30: 0 | H30: 0 | I30: 0 | J30: 0 | K30: =SUM(F30:J30) -> 0
A31: NES | B31: C_PR24CA26_BIO | C31: Costs associated with Industrial Emissions Directive - Calculated allowance - Bioresources | D31: £m | E31: Price Review 2024 | F31: =SUMIF(Analysis!$F$154:$F$164,F_Outputs!$A31,Analysis!Q$154:Q$164) -> 0 | G31: =SUMIF(Analysis!$F$154:$F$164,F_Outputs!$A31,Analysis!R$154:R$164) -> 0 | H31: =SUMIF(Analysis!$F$154:$F$164,F_Outputs!$A31,Analysis!S$154:S$164) -> 0 | I31: =SUMIF(Analysis!$F$154:$F$164,F_Outputs!$A31,Analysis!T$154:T$164) -> 0 | J31: =SUMIF(Analysis!$F$154:$F$164,F_Outputs!$A31,Analysis!U$154:U$164) -> 0 | K31: =SUM(F31:J31) -> 0
A32: NES | B32: C_PR24CA26_WWN | C32: Costs associated with Industrial Emissions Directive - Calculated allowance - Wastewater network plus | D32: £m | E32: Price Review 2024 | F32: =SUMIF(Analysis!$F$173:$F$183,F_Outputs!$A32,Analysis!Q$173:Q$183) -> 0 | G32: =SUMIF(Analysis!$F$173:$F$183,F_Outputs!$A32,Analysis!R$173:R$183) -> 0 | H32: =SUMIF(Analysis!$F$173:$F$183,F_Outputs!$A32,Analysis!S$173:S$183) -> 0 | I32: =SUMIF(Analysis!$F$173:$F$183,F_Outputs!$A32,Analysis!T$173:T$183) -> 0 | J32: =SUMIF(Analysis!$F$173:$F$183,F_Outputs!$A32,Analysis!U$173:U$183) -> 0 | K32: =SUM(F32:J32) -> 0
A33: NES | B33: C_PR24CA26_WW_TOT | C33: Costs associated with Industrial Emissions Directive - Calculated allowance - Wastewater - Total | D33: £m | E33: Price Review 2024 | F33: =SUMIF(Analysis!$F$92:$F$102,F_Outputs!$A33,Analysis!Q$92:Q$102) -> 0 | G33: =SUMIF(Analysis!$F$92:$F$102,F_Outputs!$A33,Analysis!R$92:R$102) -> 0 | H33: =SUMIF(Analysis!$F$92:$F$102,F_Outputs!$A33,Analysis!S$92:S$102) -> 0 | I33: =SUMIF(Analysis!$F$92:$F$102,F_Outputs!$A33,Analysis!T$92:T$102) -> 0 | J33: =SUMIF(Analysis!$F$92:$F$102,F_Outputs!$A33,Analysis!U$92:U$102) -> 0 | K33: =SUM(F33:J33) -> 0
A34: NES | B34: PR24QA_PR24CA26_OUT1 | C34: Date & Time for Model - PR24CA26 | D34: Text | E34: Price Review 2024 | F34: =CONCATENATE("[…]", TEXT(NOW(),"dd/mm/yyy hh:mm:ss")) -> […]11/12/2024 08:20:33 | G34: […]11/12/2024 08:20:33 | H34: […]11/12/2024 08:20:33 | I34: […]11/12/2024 08:20:33 | J34: […]11/12/2024 08:20:33 | K34: […]11/12/2024 08:20:33
A35: NES | B35: PR24QA_PR24CA26_OUT2 | C35: Name of Model - PR24CA26 | D35: Text | E35: Price Review 2024 | F35: =MID(CELL("filename"),SEARCH("[",CELL("filename"))+1,SEARCH("]",CELL("filename"))-SEARCH("[",CELL("filename"))-1) -> PR24CA26 - IED opex.xlsm | G35: PR24CA26 - IED opex.xlsm | H35: PR24CA26 - IED opex.xlsm | I35: PR24CA26 - IED opex.xlsm | J35: PR24CA26 - IED opex.xlsm | K35: PR24CA26 - IED opex.xlsm
A36: NES | B36: PR24QA_PR24CA26_OUT3 | C36: F_Inputs time stamp - PR24CA26 | D36: Text | E36: Price Review 2024 | F36: =F_Inputs!$E$1 -> Run on 04 Sep 2024 12:11 | G36: =F_Inputs!$E$1 -> Run on 04 Sep 2024 12:11 | H36: =F_Inputs!$E$1 -> Run on 04 Sep 2024 12:11 | I36: =F_Inputs!$E$1 -> Run on 04 Sep 2024 12:11 | J36: =F_Inputs!$E$1 -> Run on 04 Sep 2024 12:11 | K36: =F_Inputs!$E$1 -> Run on 04 Sep 2024 12:11
A37: NES | B37: PR24QA_PR24CA26_OUT4 | C37: Model override switch for - PR24CA26 | D37: nr | E37: Price Review 2024 | F37: 0 | G37: 0 | H37: 0 | I37: 0 | J37: 0 | K37: 0
A38: NES | B38: C_PR24CA26_BIO_REQUESTED | C38: Costs associated with Industrial Emissions Directive - business plan requested - Bioresources | D38: £m | E38: Price Review 2024 | F38: 0 | G38: 0 | H38: 0 | I38: 0 | J38: 0 | K38: =SUM(F38:J38) -> 0
A39: NES | B39: C_PR24CA26_WWN_REQUESTED | C39: Costs associated with Industrial Emissions Directive - business plan requested - Wastewater network plus | D39: £m | E39: Price Review 2024 | F39: 0 | G39: 0 | H39: 0 | I39: 0 | J39: 0 | K39: =SUM(F39:J39) -> 0
A40: SVE | B40: C_PR24CA26_BIO | C40: Costs associated with Industrial Emissions Directive - Calculated allowance - Bioresources | D40: £m | E40: Price Review 2024 | F40: =SUMIF(Analysis!$F$154:$F$164,F_Outputs!$A40,Analysis!Q$154:Q$164) -> 0.233936702 | G40: =SUMIF(Analysis!$F$154:$F$164,F_Outputs!$A40,Analysis!R$154:R$164) -> 0.235361107 | H40: =SUMIF(Analysis!$F$154:$F$164,F_Outputs!$A40,Analysis!S$154:S$164) -> 0.236794185 | I40: =SUMIF(Analysis!$F$154:$F$164,F_Outputs!$A40,Analysis!T$154:T$164) -> 0.23823599 | J40: =SUMIF(Analysis!$F$154:$F$164,F_Outputs!$A40,Analysis!U$154:U$164) -> 0.239686573 | K40: =SUM(F40:J40) -> 1.184014557
A41: SVE | B41: C_PR24CA26_WWN | C41: Costs associated with Industrial Emissions Directive - Calculated allowance - Wastewater network plus | D41: £m | E41: Price Review 2024 | F41: =SUMIF(Analysis!$F$173:$F$183,F_Outputs!$A41,Analysis!Q$173:Q$183) -> 0 | G41: =SUMIF(Analysis!$F$173:$F$183,F_Outputs!$A41,Analysis!R$173:R$183) -> 0 | H41: =SUMIF(Analysis!$F$173:$F$183,F_Outputs!$A41,Analysis!S$173:S$183) -> 0 | I41: =SUMIF(Analysis!$F$173:$F$183,F_Outputs!$A41,Analysis!T$173:T$183) -> 0 | J41: =SUMIF(Analysis!$F$173:$F$183,F_Outputs!$A41,Analysis!U$173:U$183) -> 0 | K41: =SUM(F41:J41) -> 0
A42: SVE | B42: C_PR24CA26_WW_TOT | C42: Costs associated with Industrial Emissions Directive - Calculated allowance - Wastewater - Total | D42: £m | E42: Price Review 2024 | F42: =SUMIF(Analysis!$F$92:$F$102,F_Outputs!$A42,Analysis!Q$92:Q$102) -> 0.233936702 | G42: =SUMIF(Analysis!$F$92:$F$102,F_Outputs!$A42,Analysis!R$92:R$102) -> 0.235361107 | H42: =SUMIF(Analysis!$F$92:$F$102,F_Outputs!$A42,Analysis!S$92:S$102) -> 0.236794185 | I42: =SUMIF(Analysis!$F$92:$F$102,F_Outputs!$A42,Analysis!T$92:T$102) -> 0.23823599 | J42: =SUMIF(Analysis!$F$92:$F$102,F_Outputs!$A42,Analysis!U$92:U$102) -> 0.239686573 | K42: =SUM(F42:J42) -> 1.184014557
A43: SVE | B43: PR24QA_PR24CA26_OUT1 | C43: Date & Time for Model - PR24CA26 | D43: Text | E43: Price Review 2024 | F43: =CONCATENATE("[…]", TEXT(NOW(),"dd/mm/yyy hh:mm:ss")) -> […]11/12/2024 08:20:33 | G43: […]11/12/2024 08:20:33 | H43: […]11/12/2024 08:20:33 | I43: […]11/12/2024 08:20:33 | J43: […]11/12/2024 08:20:33 | K43: […]11/12/2024 08:20:33
A44: SVE | B44: PR24QA_PR24CA26_OUT2 | C44: Name of Model - PR24CA26 | D44: Text | E44: Price Review 2024 | F44: =MID(CELL("filename"),SEARCH("[",CELL("filename"))+1,SEARCH("]",CELL("filename"))-SEARCH("[",CELL("filename"))-1) -> PR24CA26 - IED opex.xlsm | G44: PR24CA26 - IED opex.xlsm | H44: PR24CA26 - IED opex.xlsm | I44: PR24CA26 - IED opex.xlsm | J44: PR24CA26 - IED opex.xlsm | K44: PR24CA26 - IED opex.xlsm
A45: SVE | B45: PR24QA_PR24CA26_OUT3 | C45: F_Inputs time stamp - PR24CA26 | D45: Text | E45: Price Review 2024 | F45: =F_Inputs!$E$1 -> Run on 04 Sep 2024 12:11 | G45: =F_Inputs!$E$1 -> Run on 04 Sep 2024 12:11 | H45: =F_Inputs!$E$1 -> Run on 04 Sep 2024 12:11 | I45: =F_Inputs!$E$1 -> Run on 04 Sep 2024 12:11 | J45: =F_Inputs!$E$1 -> Run on 04 Sep 2024 12:11 | K45: =F_Inputs!$E$1 -> Run on 04 Sep 2024 12:11
A46: SVE | B46: PR24QA_PR24CA26_OUT4 | C46: Model override switch for - PR24CA26 | D46: nr | E46: Price Review 2024 | F46: 0 | G46: 0 | H46: 0 | I46: 0 | J46: 0 | K46: 0
A47: SVE | B47: C_PR24CA26_BIO_REQUESTED | C47: Costs associated with Industrial Emissions Directive - business plan requested - Bioresources | D47: £m | E47: Price Review 2024 | F47: 0.233936702 | G47: 0.235361107 | H47: 0.236794185 | I47: 0.23823599 | J47: 0.239686573 | K47: =SUM(F47:J47) -> 1.184014557
A48: SVE | B48: C_PR24CA26_WWN_REQUESTED | C48: Costs associated with Industrial Emissions Directive - business plan requested - Wastewater network plus | D48: £m | E48: Price Review 2024 | F48: 0 | G48: 0 | H48: 0 | I48: 0 | J48: 0 | K48: =SUM(F48:J48) -> 0
A49: SWB | B49: C_PR24CA26_BIO | C49: Costs associated with Industrial Emissions Directive - Calculated allowance - Bioresources | D49: £m | E49: Price Review 2024 | F49: =SUMIF(Analysis!$F$154:$F$164,F_Outputs!$A49,Analysis!Q$154:Q$164) -> 0 | G49: =SUMIF(Analysis!$F$154:$F$164,F_Outputs!$A49,Analysis!R$154:R$164) -> 0.440553612 | H49: =SUMIF(Analysis!$F$154:$F$164,F_Outputs!$A49,Analysis!S$154:S$164) -> 0.442590167 | I49: =SUMIF(Analysis!$F$154:$F$164,F_Outputs!$A49,Analysis!T$154:T$164) -> 0.443951526 | J49: =SUMIF(Analysis!$F$154:$F$164,F_Outputs!$A49,Analysis!U$154:U$164) -> 0.445103062 | K49: =SUM(F49:J49) -> 1.772198367
A50: SWB | B50: C_PR24CA26_WWN | C50: Costs associated with Industrial Emissions Directive - Calculated allowance - Wastewater network plus | D50: £m | E50: Price Review 2024 | F50: =SUMIF(Analysis!$F$173:$F$183,F_Outputs!$A50,Analysis!Q$173:Q$183) -> 0 | G50: =SUMIF(Analysis!$F$173:$F$183,F_Outputs!$A50,Analysis!R$173:R$183) -> 0.073681809 | H50: =SUMIF(Analysis!$F$173:$F$183,F_Outputs!$A50,Analysis!S$173:S$183) -> 0.073974145 | I50: =SUMIF(Analysis!$F$173:$F$183,F_Outputs!$A50,Analysis!T$173:T$183) -> 0.07418656 | J50: =SUMIF(Analysis!$F$173:$F$183,F_Outputs!$A50,Analysis!U$173:U$183) -> 0.074374424 | K50: =SUM(F50:J50) -> 0.296216938
A51: SWB | B51: C_PR24CA26_WW_TOT | C51: Costs associated with Industrial Emissions Directive - Calculated allowance - Wastewater - Total | D51: £m | E51: Price Review 2024 | F51: =SUMIF(Analysis!$F$92:$F$102,F_Outputs!$A51,Analysis!Q$92:Q$102) -> 0 | G51: =SUMIF(Analysis!$F$92:$F$102,F_Outputs!$A51,Analysis!R$92:R$102) -> 0.514235421 | H51: =SUMIF(Analysis!$F$92:$F$102,F_Outputs!$A51,Analysis!S$92:S$102) -> 0.516564312 | I51: =SUMIF(Analysis!$F$92:$F$102,F_Outputs!$A51,Analysis!T$92:T$102) -> 0.518138086 | J51: =SUMIF(Analysis!$F$92:$F$102,F_Outputs!$A51,Analysis!U$92:U$102) -> 0.519477486 | K51: =SUM(F51:J51) -> 2.068415305
A52: SWB | B52: PR24QA_PR24CA26_OUT1 | C52: Date & Time for Model - PR24CA26 | D52: Text | E52: Price Review 2024 | F52: =CONCATENATE("[…]", TEXT(NOW(),"dd/mm/yyy hh:mm:ss")) -> […]11/12/2024 08:20:33 | G52: […]11/12/2024 08:20:33 | H52: […]11/12/2024 08:20:33 | I52: […]11/12/2024 08:20:33 | J52: […]11/12/2024 08:20:33 | K52: […]11/12/2024 08:20:33
A53: SWB | B53: PR24QA_PR24CA26_OUT2 | C53: Name of Model - PR24CA26 | D53: Text | E53: Price Review 2024 | F53: =MID(CELL("filename"),SEARCH("[",CELL("filename"))+1,SEARCH("]",CELL("filename"))-SEARCH("[",CELL("filename"))-1) -> PR24CA26 - IED opex.xlsm | G53: PR24CA26 - IED opex.xlsm | H53: PR24CA26 - IED opex.xlsm | I53: PR24CA26 - IED opex.xlsm | J53: PR24CA26 - IED opex.xlsm | K53: PR24CA26 - IED opex.xlsm
A54: SWB | B54: PR24QA_PR24CA26_OUT3 | C54: F_Inputs time stamp - PR24CA26 | D54: Text | E54: Price Review 2024 | F54: =F_Inputs!$E$1 -> Run on 04 Sep 2024 12:11 | G54: =F_Inputs!$E$1 -> Run on 04 Sep 2024 12:11 | H54: =F_Inputs!$E$1 -> Run on 04 Sep 2024 12:11 | I54: =F_Inputs!$E$1 -> Run on 04 Sep 2024 12:11 | J54: =F_Inputs!$E$1 -> Run on 04 Sep 2024 12:11 | K54: =F_Inputs!$E$1 -> Run on 04 Sep 2024 12:11
A55: SWB | B55: PR24QA_PR24CA26_OUT4 | C55: Model override switch for - PR24CA26 | D55: nr | E55: Price Review 2024 | F55: 0 | G55: 0 | H55: 0 | I55: 0 | J55: 0 | K55: 0
A56: SWB | B56: C_PR24CA26_BIO_REQUESTED | C56: Costs associated with Industrial Emissions Directive - business plan requested - Bioresources | D56: £m | E56: Price Review 2024 | F56: 0 | G56: 0.454 | H56: 0.454 | I56: 0.454 | J56: 0.454 | K56: =SUM(F56:J56) -> 1.816
A57: SWB | B57: C_PR24CA26_WWN_REQUESTED | C57: Costs associated with Industrial Emissions Directive - business plan requested - Wastewater network plus | D57: £m | E57: Price Review 2024 | F57: 0 | G57: 0.076 | H57: 0.076 | I57: 0.076 | J57: 0.076 | K57: =SUM(F57:J57) -> 0.304
A58: SRN | B58: C_PR24CA26_BIO | C58: Costs associated with Industrial Emissions Directive - Calculated allowance - Bioresources | D58: £m | E58: Price Review 2024 | F58: =SUMIF(Analysis!$F$154:$F$164,F_Outputs!$A58,Analysis!Q$154:Q$164) -> 0 | G58: =SUMIF(Analysis!$F$154:$F$164,F_Outputs!$A58,Analysis!R$154:R$164) -> 0 | H58: =SUMIF(Analysis!$F$154:$F$164,F_Outputs!$A58,Analysis!S$154:S$164) -> 0 | I58: =SUMIF(Analysis!$F$154:$F$164,F_Outputs!$A58,Analysis!T$154:T$164) -> 0 | J58: =SUMIF(Analysis!$F$154:$F$164,F_Outputs!$A58,Analysis!U$154:U$164) -> 0 | K58: =SUM(F58:J58) -> 0
A59: SRN | B59: C_PR24CA26_WWN | C59: Costs associated with Industrial Emissions Directive - Calculated allowance - Wastewater network plus | D59: £m | E59: Price Review 2024 | F59: =SUMIF(Analysis!$F$173:$F$183,F_Outputs!$A59,Analysis!Q$173:Q$183) -> 0 | G59: =SUMIF(Analysis!$F$173:$F$183,F_Outputs!$A59,Analysis!R$173:R$183) -> 0 | H59: =SUMIF(Analysis!$F$173:$F$183,F_Outputs!$A59,Analysis!S$173:S$183) -> 0 | I59: =SUMIF(Analysis!$F$173:$F$183,F_Outputs!$A59,Analysis!T$173:T$183) -> 0 | J59: =SUMIF(Analysis!$F$173:$F$183,F_Outputs!$A59,Analysis!U$173:U$183) -> 0 | K59: =SUM(F59:J59) -> 0
A60: SRN | B60: C_PR24CA26_WW_TOT | C60: Costs associated with Industrial Emissions Directive - Calculated allowance - Wastewater - Total | D60: £m | E60: Price Review 2024 | F60: =SUMIF(Analysis!$F$92:$F$102,F_Outputs!$A60,Analysis!Q$92:Q$102) -> 0 | G60: =SUMIF(Analysis!$F$92:$F$102,F_Outputs!$A60,Analysis!R$92:R$102) -> 0 | H60: =SUMIF(Analysis!$F$92:$F$102,F_Outputs!$A60,Analysis!S$92:S$102) -> 0 | I60: =SUMIF(Analysis!$F$92:$F$102,F_Outputs!$A60,Analysis!T$92:T$102) -> 0 | J60: =SUMIF(Analysis!$F$92:$F$102,F_Outputs!$A60,Analysis!U$92:U$102) -> 0 | K60: =SUM(F60:J60) -> 0
A61: SRN | B61: PR24QA_PR24CA26_OUT1 | C61: Date & Time for Model - PR24CA26 | D61: Text | E61: Price Review 2024 | F61: =CONCATENATE("[…]", TEXT(NOW(),"dd/mm/yyy hh:mm:ss")) -> […]11/12/2024 08:20:33 | G61: […]11/12/2024 08:20:33 | H61: […]11/12/2024 08:20:33 | I61: […]11/12/2024 08:20:33 | J61: […]11/12/2024 08:20:33 | K61: […]11/12/2024 08:20:33
A62: SRN | B62: PR24QA_PR24CA26_OUT2 | C62: Name of Model - PR24CA26 | D62: Text | E62: Price Review 2024 | F62: =MID(CELL("filename"),SEARCH("[",CELL("filename"))+1,SEARCH("]",CELL("filename"))-SEARCH("[",CELL("filename"))-1) -> PR24CA26 - IED opex.xlsm | G62: PR24CA26 - IED opex.xlsm | H62: PR24CA26 - IED opex.xlsm | I62: PR24CA26 - IED opex.xlsm | J62: PR24CA26 - IED opex.xlsm | K62: PR24CA26 - IED opex.xlsm
A63: SRN | B63: PR24QA_PR24CA26_OUT3 | C63: F_Inputs time stamp - PR24CA26 | D63: Text | E63: Price Review 2024 | F63: =F_Inputs!$E$1 -> Run on 04 Sep 2024 12:11 | G63: =F_Inputs!$E$1 -> Run on 04 Sep 2024 12:11 | H63: =F_Inputs!$E$1 -> Run on 04 Sep 2024 12:11 | I63: =F_Inputs!$E$1 -> Run on 04 Sep 2024 12:11 | J63: =F_Inputs!$E$1 -> Run on 04 Sep 2024 12:11 | K63: =F_Inputs!$E$1 -> Run on 04 Sep 2024 12:11
A64: SRN | B64: PR24QA_PR24CA26_OUT4 | C64: Model override switch for - PR24CA26 | D64: nr | E64: Price Review 2024 | F64: 0 | G64: 0 | H64: 0 | I64: 0 | J64: 0 | K64: 0
A65: SRN | B65: C_PR24CA26_BIO_REQUESTED | C65: Costs associated with Industrial Emissions Directive - business plan requested - Bioresources | D65: £m | E65: Price Review 2024 | F65: 0 | G65: 0 | H65: 0 | I65: 0 | J65: 0 | K65: =SUM(F65:J65) -> 0
A66: SRN | B66: C_PR24CA26_WWN_REQUESTED | C66: Costs associated with Industrial Emissions Directive - business plan requested - Wastewater network plus | D66: £m | E66: Price Review 2024 | F66: 0 | G66: 0 | H66: 0 | I66: 0 | J66: 0 | K66: =SUM(F66:J66) -> 0
A67: TMS | B67: C_PR24CA26_BIO | C67: Costs associated with Industrial Emissions Directive - Calculated allowance - Bioresources | D67: £m | E67: Price Review 2024 | F67: =SUMIF(Analysis!$F$154:$F$164,F_Outputs!$A67,Analysis!Q$154:Q$164) -> 0.051 | G67: =SUMIF(Analysis!$F$154:$F$164,F_Outputs!$A67,Analysis!R$154:R$164) -> 0.051 | H67: =SUMIF(Analysis!$F$154:$F$164,F_Outputs!$A67,Analysis!S$154:S$164) -> 0.051 | I67: =SUMIF(Analysis!$F$154:$F$164,F_Outputs!$A67,Analysis!T$154:T$164) -> 0.051 | J67: =SUMIF(Analysis!$F$154:$F$164,F_Outputs!$A67,Analysis!U$154:U$164) -> 0.051 | K67: =SUM(F67:J67) -> 0.255
A68: TMS | B68: C_PR24CA26_WWN | C68: Costs associated with Industrial Emissions Directive - Calculated allowance - Wastewater network plus | D68: £m | E68: Price Review 2024 | F68: =SUMIF(Analysis!$F$173:$F$183,F_Outputs!$A68,Analysis!Q$173:Q$183) -> 0 | G68: =SUMIF(Analysis!$F$173:$F$183,F_Outputs!$A68,Analysis!R$173:R$183) -> 0 | H68: =SUMIF(Analysis!$F$173:$F$183,F_Outputs!$A68,Analysis!S$173:S$183) -> 0 | I68: =SUMIF(Analysis!$F$173:$F$183,F_Outputs!$A68,Analysis!T$173:T$183) -> 0 | J68: =SUMIF(Analysis!$F$173:$F$183,F_Outputs!$A68,Analysis!U$173:U$183) -> 0 | K68: =SUM(F68:J68) -> 0
A69: TMS | B69: C_PR24CA26_WW_TOT | C69: Costs associated with Industrial Emissions Directive - Calculated allowance - Wastewater - Total | D69: £m | E69: Price Review 2024 | F69: =SUMIF(Analysis!$F$92:$F$102,F_Outputs!$A69,Analysis!Q$92:Q$102) -> 0.051 | G69: =SUMIF(Analysis!$F$92:$F$102,F_Outputs!$A69,Analysis!R$92:R$102) -> 0.051 | H69: =SUMIF(Analysis!$F$92:$F$102,F_Outputs!$A69,Analysis!S$92:S$102) -> 0.051 | I69: =SUMIF(Analysis!$F$92:$F$102,F_Outputs!$A69,Analysis!T$92:T$102) -> 0.051 | J69: =SUMIF(Analysis!$F$92:$F$102,F_Outputs!$A69,Analysis!U$92:U$102) -> 0.051 | K69: =SUM(F69:J69) -> 0.255
A70: TMS | B70: PR24QA_PR24CA26_OUT1 | C70: Date & Time for Model - PR24CA26 | D70: Text | E70: Price Review 2024 | F70: =CONCATENATE("[…]", TEXT(NOW(),"dd/mm/yyy hh:mm:ss")) -> […]11/12/2024 08:20:33 | G70: […]11/12/2024 08:20:33 | H70: […]11/12/2024 08:20:33 | I70: […]11/12/2024 08:20:33 | J70: […]11/12/2024 08:20:33 | K70: […]11/12/2024 08:20:33
A71: TMS | B71: PR24QA_PR24CA26_OUT2 | C71: Name of Model - PR24CA26 | D71: Text | E71: Price Review 2024 | F71: =MID(CELL("filename"),SEARCH("[",CELL("filename"))+1,SEARCH("]",CELL("filename"))-SEARCH("[",CELL("filename"))-1) -> PR24CA26 - IED opex.xlsm | G71: PR24CA26 - IED opex.xlsm | H71: PR24CA26 - IED opex.xlsm | I71: PR24CA26 - IED opex.xlsm | J71: PR24CA26 - IED opex.xlsm | K71: PR24CA26 - IED opex.xlsm
A72: TMS | B72: PR24QA_PR24CA26_OUT3 | C72: F_Inputs time stamp - PR24CA26 | D72: Text | E72: Price Review 2024 | F72: =F_Inputs!$E$1 -> Run on 04 Sep 2024 12:11 | G72: =F_Inputs!$E$1 -> Run on 04 Sep 2024 12:11 | H72: =F_Inputs!$E$1 -> Run on 04 Sep 2024 12:11 | I72: =F_Inputs!$E$1 -> Run on 04 Sep 2024 12:11 | J72: =F_Inputs!$E$1 -> Run on 04 Sep 2024 12:11 | K72: =F_Inputs!$E$1 -> Run on 04 Sep 2024 12:11
A73: TMS | B73: PR24QA_PR24CA26_OUT4 | C73: Model override switch for - PR24CA26 | D73: nr | E73: Price Review 2024 | F73: 0 | G73: 0 | H73: 0 | I73: 0 | J73: 0 | K73: 0
A74: TMS | B74: C_PR24CA26_BIO_REQUESTED | C74: Costs associated with Industrial Emissions Directive - business plan requested - Bioresources | D74: £m | E74: Price Review 2024 | F74: 0.051 | G74: 0.051 | H74: 0.051 | I74: 0.051 | J74: 0.051 | K74: =SUM(F74:J74) -> 0.255
A75: TMS | B75: C_PR24CA26_WWN_REQUESTED | C75: Costs associated with Industrial Emissions Directive - business plan requested - Wastewater network plus | D75: £m | E75: Price Review 2024 | F75: 0 | G75: 0 | H75: 0 | I75: 0 | J75: 0 | K75: =SUM(F75:J75) -> 0
A76: NWT | B76: C_PR24CA26_BIO | C76: Costs associated with Industrial Emissions Directive - Calculated allowance - Bioresources | D76: £m | E76: Price Review 2024 | F76: =SUMIF(Analysis!$F$154:$F$164,F_Outputs!$A76,Analysis!Q$154:Q$164) -> 0.5087784657 | G76: =SUMIF(Analysis!$F$154:$F$164,F_Outputs!$A76,Analysis!R$154:R$164) -> 0.5087784657 | H76: =SUMIF(Analysis!$F$154:$F$164,F_Outputs!$A76,Analysis!S$154:S$164) -> 0.5087784657 | I76: =SUMIF(Analysis!$F$154:$F$164,F_Outputs!$A76,Analysis!T$154:T$164) -> 0.5087784657 | J76: =SUMIF(Analysis!$F$154:$F$164,F_Outputs!$A76,Analysis!U$154:U$164) -> 0.5087784657 | K76: =SUM(F76:J76) -> 2.543892329
A77: NWT | B77: C_PR24CA26_WWN | C77: Costs associated with Industrial Emissions Directive - Calculated allowance - Wastewater network plus | D77: £m | E77: Price Review 2024 | F77: =SUMIF(Analysis!$F$173:$F$183,F_Outputs!$A77,Analysis!Q$173:Q$183) -> 0.06670796283 | G77: =SUMIF(Analysis!$F$173:$F$183,F_Outputs!$A77,Analysis!R$173:R$183) -> 0.06670796283 | H77: =SUMIF(Analysis!$F$173:$F$183,F_Outputs!$A77,Analysis!S$173:S$183) -> 0.06670796283 | I77: =SUMIF(Analysis!$F$173:$F$183,F_Outputs!$A77,Analysis!T$173:T$183) -> 0.06670796283 | J77: =SUMIF(Analysis!$F$173:$F$183,F_Outputs!$A77,Analysis!U$173:U$183) -> 0.06670796283 | K77: =SUM(F77:J77) -> 0.3335398142
A78: NWT | B78: C_PR24CA26_WW_TOT | C78: Costs associated with Industrial Emissions Directive - Calculated allowance - Wastewater - Total | D78: £m | E78: Price Review 2024 | F78: =SUMIF(Analysis!$F$92:$F$102,F_Outputs!$A78,Analysis!Q$92:Q$102) -> 0.5754864285 | G78: =SUMIF(Analysis!$F$92:$F$102,F_Outputs!$A78,Analysis!R$92:R$102) -> 0.5754864285 | H78: =SUMIF(Analysis!$F$92:$F$102,F_Outputs!$A78,Analysis!S$92:S$102) -> 0.5754864285 | I78: =SUMIF(Analysis!$F$92:$F$102,F_Outputs!$A78,Analysis!T$92:T$102) -> 0.5754864285 | J78: =SUMIF(Analysis!$F$92:$F$102,F_Outputs!$A78,Analysis!U$92:U$102) -> 0.5754864285 | K78: =SUM(F78:J78) -> 2.877432143
A79: NWT | B79: PR24QA_PR24CA26_OUT1 | C79: Date & Time for Model - PR24CA26 | D79: Text | E79: Price Review 2024 | F79: =CONCATENATE("[…]", TEXT(NOW(),"dd/mm/yyy hh:mm:ss")) -> […]11/12/2024 08:20:33 | G79: […]11/12/2024 08:20:33 | H79: […]11/12/2024 08:20:33 | I79: […]11/12/2024 08:20:33 | J79: […]11/12/2024 08:20:33 | K79: […]11/12/2024 08:20:33
A80: NWT | B80: PR24QA_PR24CA26_OUT2 | C80: Name of Model - PR24CA26 | D80: Text | E80: Price Review 2024 | F80: =MID(CELL("filename"),SEARCH("[",CELL("filename"))+1,SEARCH("]",CELL("filename"))-SEARCH("[",CELL("filename"))-1) -> PR24CA26 - IED opex.xlsm | G80: PR24CA26 - IED opex.xlsm | H80: PR24CA26 - IED opex.xlsm | I80: PR24CA26 - IED opex.xlsm | J80: PR24CA26 - IED opex.xlsm | K80: PR24CA26 - IED opex.xlsm
A81: NWT | B81: PR24QA_PR24CA26_OUT3 | C81: F_Inputs time stamp - PR24CA26 | D81: Text | E81: Price Review 2024 | F81: =F_Inputs!$E$1 -> Run on 04 Sep 2024 12:11 | G81: =F_Inputs!$E$1 -> Run on 04 Sep 2024 12:11 | H81: =F_Inputs!$E$1 -> Run on 04 Sep 2024 12:11 | I81: =F_Inputs!$E$1 -> Run on 04 Sep 2024 12:11 | J81: =F_Inputs!$E$1 -> Run on 04 Sep 2024 12:11 | K81: =F_Inputs!$E$1 -> Run on 04 Sep 2024 12:11
A82: NWT | B82: PR24QA_PR24CA26_OUT4 | C82: Model override switch for - PR24CA26 | D82: nr | E82: Price Review 2024 | F82: 0 | G82: 0 | H82: 0 | I82: 0 | J82: 0 | K82: 0
A83: NWT | B83: C_PR24CA26_BIO_REQUESTED | C83: Costs associated with Industrial Emissions Directive - business plan requested - Bioresources | D83: £m | E83: Price Review 2024 | F83: 0.5087784657 | G83: 0.5087784657 | H83: 0.5087784657 | I83: 0.5087784657 | J83: 0.5087784657 | K83: =SUM(F83:J83) -> 2.543892329
A84: NWT | B84: C_PR24CA26_WWN_REQUESTED | C84: Costs associated with Industrial Emissions Directive - business plan requested - Wastewater network plus | D84: £m | E84: Price Review 2024 | F84: 0.06670796283 | G84: 0.06670796283 | H84: 0.06670796283 | I84: 0.06670796283 | J84: 0.06670796283 | K84: =SUM(F84:J84) -> 0.3335398142
A85: WSX | B85: C_PR24CA26_BIO | C85: Costs associated with Industrial Emissions Directive - Calculated allowance - Bioresources | D85: £m | E85: Price Review 2024 | F85: =SUMIF(Analysis!$F$154:$F$164,F_Outputs!$A85,Analysis!Q$154:Q$164) -> 0 | G85: =SUMIF(Analysis!$F$154:$F$164,F_Outputs!$A85,Analysis!R$154:R$164) -> 0 | H85: =SUMIF(Analysis!$F$154:$F$164,F_Outputs!$A85,Analysis!S$154:S$164) -> 0 | I85: =SUMIF(Analysis!$F$154:$F$164,F_Outputs!$A85,Analysis!T$154:T$164) -> 0 | J85: =SUMIF(Analysis!$F$154:$F$164,F_Outputs!$A85,Analysis!U$154:U$164) -> 0 | K85: =SUM(F85:J85) -> 0
A86: WSX | B86: C_PR24CA26_WWN | C86: Costs associated with Industrial Emissions Directive - Calculated allowance - Wastewater network plus | D86: £m | E86: Price Review 2024 | F86: =SUMIF(Analysis!$F$173:$F$183,F_Outputs!$A86,Analysis!Q$173:Q$183) -> 0 | G86: =SUMIF(Analysis!$F$173:$F$183,F_Outputs!$A86,Analysis!R$173:R$183) -> 0 | H86: =SUMIF(Analysis!$F$173:$F$183,F_Outputs!$A86,Analysis!S$173:S$183) -> 0 | I86: =SUMIF(Analysis!$F$173:$F$183,F_Outputs!$A86,Analysis!T$173:T$183) -> 0 | J86: =SUMIF(Analysis!$F$173:$F$183,F_Outputs!$A86,Analysis!U$173:U$183) -> 0 | K86: =SUM(F86:J86) -> 0
A87: WSX | B87: C_PR24CA26_WW_TOT | C87: Costs associated with Industrial Emissions Directive - Calculated allowance - Wastewater - Total | D87: £m | E87: Price Review 2024 | F87: =SUMIF(Analysis!$F$92:$F$102,F_Outputs!$A87,Analysis!Q$92:Q$102) -> 0 | G87: =SUMIF(Analysis!$F$92:$F$102,F_Outputs!$A87,Analysis!R$92:R$102) -> 0 | H87: =SUMIF(Analysis!$F$92:$F$102,F_Outputs!$A87,Analysis!S$92:S$102) -> 0 | I87: =SUMIF(Analysis!$F$92:$F$102,F_Outputs!$A87,Analysis!T$92:T$102) -> 0 | J87: =SUMIF(Analysis!$F$92:$F$102,F_Outputs!$A87,Analysis!U$92:U$102) -> 0 | K87: =SUM(F87:J87) -> 0
A88: WSX | B88: PR24QA_PR24CA26_OUT1 | C88: Date & Time for Model - PR24CA26 | D88: Text | E88: Price Review 2024 | F88: =CONCATENATE("[…]", TEXT(NOW(),"dd/mm/yyy hh:mm:ss")) -> […]11/12/2024 08:20:33 | G88: […]11/12/2024 08:20:33 | H88: […]11/12/2024 08:20:33 | I88: […]11/12/2024 08:20:33 | J88: […]11/12/2024 08:20:33 | K88: […]11/12/2024 08:20:33
A89: WSX | B89: PR24QA_PR24CA26_OUT2 | C89: Name of Model - PR24CA26 | D89: Text | E89: Price Review 2024 | F89: =MID(CELL("filename"),SEARCH("[",CELL("filename"))+1,SEARCH("]",CELL("filename"))-SEARCH("[",CELL("filename"))-1) -> PR24CA26 - IED opex.xlsm | G89: PR24CA26 - IED opex.xlsm | H89: PR24CA26 - IED opex.xlsm | I89: PR24CA26 - IED opex.xlsm | J89: PR24CA26 - IED opex.xlsm | K89: PR24CA26 - IED opex.xlsm
A90: WSX | B90: PR24QA_PR24CA26_OUT3 | C90: F_Inputs time stamp - PR24CA26 | D90: Text | E90: Price Review 2024 | F90: =F_Inputs!$E$1 -> Run on 04 Sep 2024 12:11 | G90: =F_Inputs!$E$1 -> Run on 04 Sep 2024 12:11 | H90: =F_Inputs!$E$1 -> Run on 04 Sep 2024 12:11 | I90: =F_Inputs!$E$1 -> Run on 04 Sep 2024 12:11 | J90: =F_Inputs!$E$1 -> Run on 04 Sep 2024 12:11 | K90: =F_Inputs!$E$1 -> Run on 04 Sep 2024 12:11
A91: WSX | B91: PR24QA_PR24CA26_OUT4 | C91: Model override switch for - PR24CA26 | D91: nr | E91: Price Review 2024 | F91: 0 | G91: 0 | H91: 0 | I91: 0 | J91: 0 | K91: 0
A92: WSX | B92: C_PR24CA26_BIO_REQUESTED | C92: Costs associated with Industrial Emissions Directive - business plan requested - Bioresources | D92: £m | E92: Price Review 2024 | F92: 0 | G92: 0 | H92: 0 | I92: 0 | J92: 0 | K92: =SUM(F92:J92) -> 0
A93: WSX | B93: C_PR24CA26_WWN_REQUESTED | C93: Costs associated with Industrial Emissions Directive - business plan requested - Wastewater network plus | D93: £m | E93: Price Review 2024 | F93: 0 | G93: 0 | H93: 0 | I93: 0 | J93: 0 | K93: =SUM(F93:J93) -> 0
A94: YKY | B94: C_PR24CA26_BIO | C94: Costs associated with Industrial Emissions Directive - Calculated allowance - Bioresources | D94: £m | E94: Price Review 2024 | F94: =SUMIF(Analysis!$F$154:$F$164,F_Outputs!$A94,Analysis!Q$154:Q$164) -> 0.132 | G94: =SUMIF(Analysis!$F$154:$F$164,F_Outputs!$A94,Analysis!R$154:R$164) -> 0.132 | H94: =SUMIF(Analysis!$F$154:$F$164,F_Outputs!$A94,Analysis!S$154:S$164) -> 0.132 | I94: =SUMIF(Analysis!$F$154:$F$164,F_Outputs!$A94,Analysis!T$154:T$164) -> 0.132 | J94: =SUMIF(Analysis!$F$154:$F$164,F_Outputs!$A94,Analysis!U$154:U$164) -> 0.132 | K94: =SUM(F94:J94) -> 0.66
A95: YKY | B95: C_PR24CA26_WWN | C95: Costs associated with Industrial Emissions Directive - Calculated allowance - Wastewater network plus | D95: £m | E95: Price Review 2024 | F95: =SUMIF(Analysis!$F$173:$F$183,F_Outputs!$A95,Analysis!Q$173:Q$183) -> 0 | G95: =SUMIF(Analysis!$F$173:$F$183,F_Outputs!$A95,Analysis!R$173:R$183) -> 0 | H95: =SUMIF(Analysis!$F$173:$F$183,F_Outputs!$A95,Analysis!S$173:S$183) -> 0 | I95: =SUMIF(Analysis!$F$173:$F$183,F_Outputs!$A95,Analysis!T$173:T$183) -> 0 | J95: =SUMIF(Analysis!$F$173:$F$183,F_Outputs!$A95,Analysis!U$173:U$183) -> 0 | K95: =SUM(F95:J95) -> 0
A96: YKY | B96: C_PR24CA26_WW_TOT | C96: Costs associated with Industrial Emissions Directive - Calculated allowance - Wastewater - Total | D96: £m | E96: Price Review 2024 | F96: =SUMIF(Analysis!$F$92:$F$102,F_Outputs!$A96,Analysis!Q$92:Q$102) -> 0.132 | G96: =SUMIF(Analysis!$F$92:$F$102,F_Outputs!$A96,Analysis!R$92:R$102) -> 0.132 | H96: =SUMIF(Analysis!$F$92:$F$102,F_Outputs!$A96,Analysis!S$92:S$102) -> 0.132 | I96: =SUMIF(Analysis!$F$92:$F$102,F_Outputs!$A96,Analysis!T$92:T$102) -> 0.132 | J96: =SUMIF(Analysis!$F$92:$F$102,F_Outputs!$A96,Analysis!U$92:U$102) -> 0.132 | K96: =SUM(F96:J96) -> 0.66
A97: YKY | B97: PR24QA_PR24CA26_OUT1 | C97: Date & Time for Model - PR24CA26 | D97: Text | E97: Price Review 2024 | F97: =CONCATENATE("[…]", TEXT(NOW(),"dd/mm/yyy hh:mm:ss")) -> […]11/12/2024 08:20:33 | G97: […]11/12/2024 08:20:33 | H97: […]11/12/2024 08:20:33 | I97: […]11/12/2024 08:20:33 | J97: […]11/12/2024 08:20:33 | K97: […]11/12/2024 08:20:33
A98: YKY | B98: PR24QA_PR24CA26_OUT2 | C98: Name of Model - PR24CA26 | D98: Text | E98: Price Review 2024 | F98: =MID(CELL("filename"),SEARCH("[",CELL("filename"))+1,SEARCH("]",CELL("filename"))-SEARCH("[",CELL("filename"))-1) -> PR24CA26 - IED opex.xlsm | G98: PR24CA26 - IED opex.xlsm | H98: PR24CA26 - IED opex.xlsm | I98: PR24CA26 - IED opex.xlsm | J98: PR24CA26 - IED opex.xlsm | K98: PR24CA26 - IED opex.xlsm
A99: YKY | B99: PR24QA_PR24CA26_OUT3 | C99: F_Inputs time stamp - PR24CA26 | D99: Text | E99: Price Review 2024 | F99: =F_Inputs!$E$1 -> Run on 04 Sep 2024 12:11 | G99: =F_Inputs!$E$1 -> Run on 04 Sep 2024 12:11 | H99: =F_Inputs!$E$1 -> Run on 04 Sep 2024 12:11 | I99: =F_Inputs!$E$1 -> Run on 04 Sep 2024 12:11 | J99: =F_Inputs!$E$1 -> Run on 04 Sep 2024 12:11 | K99: =F_Inputs!$E$1 -> Run on 04 Sep 2024 12:11
A100: YKY | B100: PR24QA_PR24CA26_OUT4 | C100: Model override switch for - PR24CA26 | D100: nr | E100: Price Review 2024 | F100: 0 | G100: 0 | H100: 0 | I100: 0 | J100: 0 | K100: 0
A101: YKY | B101: C_PR24CA26_BIO_REQUESTED | C101: Costs associated with Industrial Emissions Directive - business plan requested - Bioresources | D101: £m | E101: Price Review 2024 | F101: 0.132 | G101: 0.132 | H101: 0.132 | I101: 0.132 | J101: 0.132 | K101: =SUM(F101:J101) -> 0.66
A102: YKY | B102: C_PR24CA26_WWN_REQUESTED | C102: Costs associated with Industrial Emissions Directive - business plan requested - Wastewater network plus | D102: £m | E102: Price Review 2024 | F102: 0 | G102: 0 | H102: 0 | I102: 0 | J102: 0 | K102: =SUM(F102:J102) -> 0

Sheet F_outputs_chk
A1: =RIGHT(CELL("filename", A1), LEN(CELL("filename", A1)) - SEARCH("]", CELL("filename", A1))) -> F_outputs_chk | C1: =F_Outputs!C1 -> IED - Calculated allowances | D1: Error chks | E1: =Check!$F$9 -> 0 | G1: =A1&" - Errors on sheet" -> F_outputs_chk - Errors on sheet | H1: =D107 -> 0
A2: =F_Outputs!A2 -> Acronym | B2: =F_Outputs!B2 -> Reference | C2: =F_Outputs!C2 -> Item description | D2: =F_Outputs!D2 -> Unit | E2: =F_Outputs!E2 -> Model | F2: =F_Outputs!F2 -> 2025-26 | G2: =F_Outputs!G2 -> 2026-27 | H2: =F_Outputs!H2 -> 2027-28 | I2: =F_Outputs!I2 -> 2028-29 | J2: =F_Outputs!J2 -> 2029-30 | K2: =F_Outputs!K2 -> 2025-30
A4: =F_Outputs!A4 -> ANH | B4: =F_Outputs!B4 -> C_PR24CA26_BIO | C4: =F_Outputs!C4 -> Costs associated with Industrial Emissions Directive - Calculated allowance - Bioresources | D4: =F_Outputs!D4 -> £m | E4: =F_Outputs!E4 -> Price Review 2024 | F4: =F_Outputs!F4 -> 0.529 | G4: =F_Outputs!G4 -> 0.529 | H4: =F_Outputs!H4 -> 0.529 | I4: =F_Outputs!I4 -> 0.529 | J4: =F_Outputs!J4 -> 0.529 | K4: =F_Outputs!K4 -> 2.645
A5: =F_Outputs!A5 -> ANH | B5: =F_Outputs!B5 -> C_PR24CA26_WWN | C5: =F_Outputs!C5 -> Costs associated with Industrial Emissions Directive - Calculated allowance - Wastewater network plus | D5: =F_Outputs!D5 -> £m | E5: =F_Outputs!E5 -> Price Review 2024 | F5: =F_Outputs!F5 -> 0 | G5: =F_Outputs!G5 -> 0 | H5: =F_Outputs!H5 -> 0 | I5: =F_Outputs!I5 -> 0 | J5: =F_Outputs!J5 -> 0 | K5: =F_Outputs!K5 -> 0
A6: =F_Outputs!A6 -> ANH | B6: =F_Outputs!B6 -> C_PR24CA26_WW_TOT | C6: =F_Outputs!C6 -> Costs associated with Industrial Emissions Directive - Calculated allowance - Wastewater - Total | D6: =F_Outputs!D6 -> £m | E6: =F_Outputs!E6 -> Price Review 2024 | F6: =F_Outputs!F6 -> 0.529 | G6: =F_Outputs!G6 -> 0.529 | H6: =F_Outputs!H6 -> 0.529 | I6: =F_Outputs!I6 -> 0.529 | J6: =F_Outputs!J6 -> 0.529 | K6: =F_Outputs!K6 -> 2.645
A7: =F_Outputs!A7 -> ANH | B7: =F_Outputs!B7 -> PR24QA_PR24CA26_OUT1 | C7: =F_Outputs!C7 -> Date & Time for Model - PR24CA26 | D7: =F_Outputs!D7 -> Text | E7: =F_Outputs!E7 -> Price Review 2024 | F7: =F_Outputs!F7 -> […]11/12/2024 08:20:33 | G7: =F_Outputs!G7 -> […]11/12/2024 08:20:33 | H7: =F_Outputs!H7 -> […]11/12/2024 08:20:33 | I7: =F_Outputs!I7 -> […]11/12/2024 08:20:33 | J7: =F_Outputs!J7 -> […]11/12/2024 08:20:33 | K7: =F_Outputs!K7 -> […]11/12/2024 08:20:33
A8: =F_Outputs!A8 -> ANH | B8: =F_Outputs!B8 -> PR24QA_PR24CA26_OUT2 | C8: =F_Outputs!C8 -> Name of Model - PR24CA26 | D8: =F_Outputs!D8 -> Text | E8: =F_Outputs!E8 -> Price Review 2024 | F8: =F_Outputs!F8 -> PR24CA26 - IED opex.xlsm | G8: =F_Outputs!G8 -> PR24CA26 - IED opex.xlsm | H8: =F_Outputs!H8 -> PR24CA26 - IED opex.xlsm | I8: =F_Outputs!I8 -> PR24CA26 - IED opex.xlsm | J8: =F_Outputs!J8 -> PR24CA26 - IED opex.xlsm | K8: =F_Outputs!K8 -> PR24CA26 - IED opex.xlsm
A9: =F_Outputs!A9 -> ANH | B9: =F_Outputs!B9 -> PR24QA_PR24CA26_OUT3 | C9: =F_Outputs!C9 -> F_Inputs time stamp - PR24CA26 | D9: =F_Outputs!D9 -> Text | E9: =F_Outputs!E9 -> Price Review 2024 | F9: =F_Outputs!F9 -> Run on 04 Sep 2024 12:11 | G9: =F_Outputs!G9 -> Run on 04 Sep 2024 12:11 | H9: =F_Outputs!H9 -> Run on 04 Sep 2024 12:11 | I9: =F_Outputs!I9 -> Run on 04 Sep 2024 12:11 | J9: =F_Outputs!J9 -> Run on 04 Sep 2024 12:11 | K9: =F_Outputs!K9 -> Run on 04 Sep 2024 12:11
A10: =F_Outputs!A10 -> ANH | B10: =F_Outputs!B10 -> PR24QA_PR24CA26_OUT4 | C10: =F_Outputs!C10 -> Model override switch for - PR24CA26 | D10: =F_Outputs!D10 -> nr | E10: =F_Outputs!E10 -> Price Review 2024 | F10: =F_Outputs!F10 -> 0 | G10: =F_Outputs!G10 -> 0 | H10: =F_Outputs!H10 -> 0 | I10: =F_Outputs!I10 -> 0 | J10: =F_Outputs!J10 -> 0 | K10: =F_Outputs!K10 -> 0
A11: =F_Outputs!A11 -> ANH | B11: =F_Outputs!B11 -> C_PR24CA26_BIO_REQUESTED | C11: =F_Outputs!C11 -> Costs associated with Industrial Emissions Directive - business plan requested - Bioresources | D11: =F_Outputs!D11 -> £m | E11: =F_Outputs!E11 -> Price Review 2024 | F11: =F_Outputs!F11 -> 0.529 | G11: =F_Outputs!G11 -> 0.529 | H11: =F_Outputs!H11 -> 0.529 | I11: =F_Outputs!I11 -> 0.529 | J11: =F_Outputs!J11 -> 0.529 | K11: =F_Outputs!K11 -> 2.645
A12: =F_Outputs!A12 -> ANH | B12: =F_Outputs!B12 -> C_PR24CA26_WWN_REQUESTED | C12: =F_Outputs!C12 -> Costs associated with Industrial Emissions Directive - business plan requested - Wastewater network plus | D12: =F_Outputs!D12 -> £m | E12: =F_Outputs!E12 -> Price Review 2024 | F12: =F_Outputs!F12 -> 0 | G12: =F_Outputs!G12 -> 0 | H12: =F_Outputs!H12 -> 0 | I12: =F_Outputs!I12 -> 0 | J12: =F_Outputs!J12 -> 0 | K12: =F_Outputs!K12 -> 0
A13: =F_Outputs!A13 -> WSH | B13: =F_Outputs!B13 -> C_PR24CA26_BIO | C13: =F_Outputs!C13 -> Costs associated with Industrial Emissions Directive - Calculated allowance - Bioresources | D13: =F_Outputs!D13 -> £m | E13: =F_Outputs!E13 -> Price Review 2024 | F13: =F_Outputs!F13 -> 0.024 | G13: =F_Outputs!G13 -> 0.023 | H13: =F_Outputs!H13 -> 0.023 | I13: =F_Outputs!I13 -> 0.023 | J13: =F_Outputs!J13 -> 0.022 | K13: =F_Outputs!K13 -> 0.115
A14: =F_Outputs!A14 -> WSH | B14: =F_Outputs!B14 -> C_PR24CA26_WWN | C14: =F_Outputs!C14 -> Costs associated with Industrial Emissions Directive - Calculated allowance - Wastewater network plus | D14: =F_Outputs!D14 -> £m | E14: =F_Outputs!E14 -> Price Review 2024 | F14: =F_Outputs!F14 -> 0 | G14: =F_Outputs!G14 -> 0 | H14: =F_Outputs!H14 -> 0 | I14: =F_Outputs!I14 -> 0 | J14: =F_Outputs!J14 -> 0 | K14: =F_Outputs!K14 -> 0
A15: =F_Outputs!A15 -> WSH | B15: =F_Outputs!B15 -> C_PR24CA26_WW_TOT | C15: =F_Outputs!C15 -> Costs associated with Industrial Emissions Directive - Calculated allowance - Wastewater - Total | D15: =F_Outputs!D15 -> £m | E15: =F_Outputs!E15 -> Price Review 2024 | F15: =F_Outputs!F15 -> 0.024 | G15: =F_Outputs!G15 -> 0.023 | H15: =F_Outputs!H15 -> 0.023 | I15: =F_Outputs!I15 -> 0.023 | J15: =F_Outputs!J15 -> 0.022 | K15: =F_Outputs!K15 -> 0.115
A16: =F_Outputs!A16 -> WSH | B16: =F_Outputs!B16 -> PR24QA_PR24CA26_OUT1 | C16: =F_Outputs!C16 -> Date & Time for Model - PR24CA26 | D16: =F_Outputs!D16 -> Text | E16: =F_Outputs!E16 -> Price Review 2024 | F16: =F_Outputs!F16 -> […]11/12/2024 08:20:33 | G16: =F_Outputs!G16 -> […]11/12/2024 08:20:33 | H16: =F_Outputs!H16 -> […]11/12/2024 08:20:33 | I16: =F_Outputs!I16 -> […]11/12/2024 08:20:33 | J16: =F_Outputs!J16 -> […]11/12/2024 08:20:33 | K16: =F_Outputs!K16 -> […]11/12/2024 08:20:33
A17: =F_Outputs!A17 -> WSH | B17: =F_Outputs!B17 -> PR24QA_PR24CA26_OUT2 | C17: =F_Outputs!C17 -> Name of Model - PR24CA26 | D17: =F_Outputs!D17 -> Text | E17: =F_Outputs!E17 -> Price Review 2024 | F17: =F_Outputs!F17 -> PR24CA26 - IED opex.xlsm | G17: =F_Outputs!G17 -> PR24CA26 - IED opex.xlsm | H17: =F_Outputs!H17 -> PR24CA26 - IED opex.xlsm | I17: =F_Outputs!I17 -> PR24CA26 - IED opex.xlsm | J17: =F_Outputs!J17 -> PR24CA26 - IED opex.xlsm | K17: =F_Outputs!K17 -> PR24CA26 - IED opex.xlsm
A18: =F_Outputs!A18 -> WSH | B18: =F_Outputs!B18 -> PR24QA_PR24CA26_OUT3 | C18: =F_Outputs!C18 -> F_Inputs time stamp - PR24CA26 | D18: =F_Outputs!D18 -> Text | E18: =F_Outputs!E18 -> Price Review 2024 | F18: =F_Outputs!F18 -> Run on 04 Sep 2024 12:11 | G18: =F_Outputs!G18 -> Run on 04 Sep 2024 12:11 | H18: =F_Outputs!H18 -> Run on 04 Sep 2024 12:11 | I18: =F_Outputs!I18 -> Run on 04 Sep 2024 12:11 | J18: =F_Outputs!J18 -> Run on 04 Sep 2024 12:11 | K18: =F_Outputs!K18 -> Run on 04 Sep 2024 12:11
A19: =F_Outputs!A19 -> WSH | B19: =F_Outputs!B19 -> PR24QA_PR24CA26_OUT4 | C19: =F_Outputs!C19 -> Model override switch for - PR24CA26 | D19: =F_Outputs!D19 -> nr | E19: =F_Outputs!E19 -> Price Review 2024 | F19: =F_Outputs!F19 -> 0 | G19: =F_Outputs!G19 -> 0 | H19: =F_Outputs!H19 -> 0 | I19: =F_Outputs!I19 -> 0 | J19: =F_Outputs!J19 -> 0 | K19: =F_Outputs!K19 -> 0
A20: =F_Outputs!A20 -> WSH | B20: =F_Outputs!B20 -> C_PR24CA26_BIO_REQUESTED | C20: =F_Outputs!C20 -> Costs associated with Industrial Emissions Directive - business plan requested - Bioresources | D20: =F_Outputs!D20 -> £m | E20: =F_Outputs!E20 -> Price Review 2024 | F20: =F_Outputs!F20 -> 0.024 | G20: =F_Outputs!G20 -> 0.023 | H20: =F_Outputs!H20 -> 0.023 | I20: =F_Outputs!I20 -> 0.023 | J20: =F_Outputs!J20 -> 0.022 | K20: =F_Outputs!K20 -> 0.115
A21: =F_Outputs!A21 -> WSH | B21: =F_Outputs!B21 -> C_PR24CA26_WWN_REQUESTED | C21: =F_Outputs!C21 -> Costs associated with Industrial Emissions Directive - business plan requested - Wastewater network plus | D21: =F_Outputs!D21 -> £m | E21: =F_Outputs!E21 -> Price Review 2024 | F21: =F_Outputs!F21 -> 0 | G21: =F_Outputs!G21 -> 0 | H21: =F_Outputs!H21 -> 0 | I21: =F_Outputs!I21 -> 0 | J21: =F_Outputs!J21 -> 0 | K21: =F_Outputs!K21 -> 0
A22: =F_Outputs!A22 -> HDD | B22: =F_Outputs!B22 -> C_PR24CA26_BIO | C22: =F_Outputs!C22 -> Costs associated with Industrial Emissions Directive - Calculated allowance - Bioresources | D22: =F_Outputs!D22 -> £m | E22: =F_Outputs!E22 -> Price Review 2024 | F22: =F_Outputs!F22 -> 0 | G22: =F_Outputs!G22 -> 0 | H22: =F_Outputs!H22 -> 0 | I22: =F_Outputs!I22 -> 0 | J22: =F_Outputs!J22 -> 0 | K22: =F_Outputs!K22 -> 0
A23: =F_Outputs!A23 -> HDD | B23: =F_Outputs!B23 -> C_PR24CA26_WWN | C23: =F_Outputs!C23 -> Costs associated with Industrial Emissions Directive - Calculated allowance - Wastewater network plus | D23: =F_Outputs!D23 -> £m | E23: =F_Outputs!E23 -> Price Review 2024 | F23: =F_Outputs!F23 -> 0 | G23: =F_Outputs!G23 -> 0 | H23: =F_Outputs!H23 -> 0 | I23: =F_Outputs!I23 -> 0 | J23: =F_Outputs!J23 -> 0 | K23: =F_Outputs!K23 -> 0
A24: =F_Outputs!A24 -> HDD | B24: =F_Outputs!B24 -> C_PR24CA26_WW_TOT | C24: =F_Outputs!C24 -> Costs associated with Industrial Emissions Directive - Calculated allowance - Wastewater - Total | D24: =F_Outputs!D24 -> £m | E24: =F_Outputs!E24 -> Price Review 2024 | F24: =F_Outputs!F24 -> 0 | G24: =F_Outputs!G24 -> 0 | H24: =F_Outputs!H24 -> 0 | I24: =F_Outputs!I24 -> 0 | J24: =F_Outputs!J24 -> 0 | K24: =F_Outputs!K24 -> 0
A25: =F_Outputs!A25 -> HDD | B25: =F_Outputs!B25 -> PR24QA_PR24CA26_OUT1 | C25: =F_Outputs!C25 -> Date & Time for Model - PR24CA26 | D25: =F_Outputs!D25 -> Text | E25: =F_Outputs!E25 -> Price Review 2024 | F25: =F_Outputs!F25 -> […]11/12/2024 08:20:33 | G25: =F_Outputs!G25 -> […]11/12/2024 08:20:33 | H25: =F_Outputs!H25 -> […]11/12/2024 08:20:33 | I25: =F_Outputs!I25 -> […]11/12/2024 08:20:33 | J25: =F_Outputs!J25 -> […]11/12/2024 08:20:33 | K25: =F_Outputs!K25 -> […]11/12/2024 08:20:33
A26: =F_Outputs!A26 -> HDD | B26: =F_Outputs!B26 -> PR24QA_PR24CA26_OUT2 | C26: =F_Outputs!C26 -> Name of Model - PR24CA26 | D26: =F_Outputs!D26 -> Text | E26: =F_Outputs!E26 -> Price Review 2024 | F26: =F_Outputs!F26 -> PR24CA26 - IED opex.xlsm | G26: =F_Outputs!G26 -> PR24CA26 - IED opex.xlsm | H26: =F_Outputs!H26 -> PR24CA26 - IED opex.xlsm | I26: =F_Outputs!I26 -> PR24CA26 - IED opex.xlsm | J26: =F_Outputs!J26 -> PR24CA26 - IED opex.xlsm | K26: =F_Outputs!K26 -> PR24CA26 - IED opex.xlsm
A27: =F_Outputs!A27 -> HDD | B27: =F_Outputs!B27 -> PR24QA_PR24CA26_OUT3 | C27: =F_Outputs!C27 -> F_Inputs time stamp - PR24CA26 | D27: =F_Outputs!D27 -> Text | E27: =F_Outputs!E27 -> Price Review 2024 | F27: =F_Outputs!F27 -> Run on 04 Sep 2024 12:11 | G27: =F_Outputs!G27 -> Run on 04 Sep 2024 12:11 | H27: =F_Outputs!H27 -> Run on 04 Sep 2024 12:11 | I27: =F_Outputs!I27 -> Run on 04 Sep 2024 12:11 | J27: =F_Outputs!J27 -> Run on 04 Sep 2024 12:11 | K27: =F_Outputs!K27 -> Run on 04 Sep 2024 12:11
A28: =F_Outputs!A28 -> HDD | B28: =F_Outputs!B28 -> PR24QA_PR24CA26_OUT4 | C28: =F_Outputs!C28 -> Model override switch for - PR24CA26 | D28: =F_Outputs!D28 -> nr | E28: =F_Outputs!E28 -> Price Review 2024 | F28: =F_Outputs!F28 -> 0 | G28: =F_Outputs!G28 -> 0 | H28: =F_Outputs!H28 -> 0 | I28: =F_Outputs!I28 -> 0 | J28: =F_Outputs!J28 -> 0 | K28: =F_Outputs!K28 -> 0
A29: =F_Outputs!A29 -> HDD | B29: =F_Outputs!B29 -> C_PR24CA26_BIO_REQUESTED | C29: =F_Outputs!C29 -> Costs associated with Industrial Emissions Directive - business plan requested - Bioresources | D29: =F_Outputs!D29 -> £m | E29: =F_Outputs!E29 -> Price Review 2024 | F29: =F_Outputs!F29 -> 0 | G29: =F_Outputs!G29 -> 0 | H29: =F_Outputs!H29 -> 0 | I29: =F_Outputs!I29 -> 0 | J29: =F_Outputs!J29 -> 0 | K29: =F_Outputs!K29 -> 0
A30: =F_Outputs!A30 -> HDD | B30: =F_Outputs!B30 -> C_PR24CA26_WWN_REQUESTED | C30: =F_Outputs!C30 -> Costs associated with Industrial Emissions Directive - business plan requested - Wastewater network plus | D30: =F_Outputs!D30 -> £m | E30: =F_Outputs!E30 -> Price Review 2024 | F30: =F_Outputs!F30 -> 0 | G30: =F_Outputs!G30 -> 0 | H30: =F_Outputs!H30 -> 0 | I30: =F_Outputs!I30 -> 0 | J30: =F_Outputs!J30 -> 0 | K30: =F_Outputs!K30 -> 0
A31: =F_Outputs!A31 -> NES | B31: =F_Outputs!B31 -> C_PR24CA26_BIO | C31: =F_Outputs!C31 -> Costs associated with Industrial Emissions Directive - Calculated allowance - Bioresources | D31: =F_Outputs!D31 -> £m | E31: =F_Outputs!E31 -> Price Review 2024 | F31: =F_Outputs!F31 -> 0 | G31: =F_Outputs!G31 -> 0 | H31: =F_Outputs!H31 -> 0 | I31: =F_Outputs!I31 -> 0 | J31: =F_Outputs!J31 -> 0 | K31: =F_Outputs!K31 -> 0
A32: =F_Outputs!A32 -> NES | B32: =F_Outputs!B32 -> C_PR24CA26_WWN | C32: =F_Outputs!C32 -> Costs associated with Industrial Emissions Directive - Calculated allowance - Wastewater network plus | D32: =F_Outputs!D32 -> £m | E32: =F_Outputs!E32 -> Price Review 2024 | F32: =F_Outputs!F32 -> 0 | G32: =F_Outputs!G32 -> 0 | H32: =F_Outputs!H32 -> 0 | I32: =F_Outputs!I32 -> 0 | J32: =F_Outputs!J32 -> 0 | K32: =F_Outputs!K32 -> 0
A33: =F_Outputs!A33 -> NES | B33: =F_Outputs!B33 -> C_PR24CA26_WW_TOT | C33: =F_Outputs!C33 -> Costs associated with Industrial Emissions Directive - Calculated allowance - Wastewater - Total | D33: =F_Outputs!D33 -> £m | E33: =F_Outputs!E33 -> Price Review 2024 | F33: =F_Outputs!F33 -> 0 | G33: =F_Outputs!G33 -> 0 | H33: =F_Outputs!H33 -> 0 | I33: =F_Outputs!I33 -> 0 | J33: =F_Outputs!J33 -> 0 | K33: =F_Outputs!K33 -> 0
A34: =F_Outputs!A34 -> NES | B34: =F_Outputs!B34 -> PR24QA_PR24CA26_OUT1 | C34: =F_Outputs!C34 -> Date & Time for Model - PR24CA26 | D34: =F_Outputs!D34 -> Text | E34: =F_Outputs!E34 -> Price Review 2024 | F34: =F_Outputs!F34 -> […]11/12/2024 08:20:33 | G34: =F_Outputs!G34 -> […]11/12/2024 08:20:33 | H34: =F_Outputs!H34 -> […]11/12/2024 08:20:33 | I34: =F_Outputs!I34 -> […]11/12/2024 08:20:33 | J34: =F_Outputs!J34 -> […]11/12/2024 08:20:33 | K34: =F_Outputs!K34 -> […]11/12/2024 08:20:33
A35: =F_Outputs!A35 -> NES | B35: =F_Outputs!B35 -> PR24QA_PR24CA26_OUT2 | C35: =F_Outputs!C35 -> Name of Model - PR24CA26 | D35: =F_Outputs!D35 -> Text | E35: =F_Outputs!E35 -> Price Review 2024 | F35: =F_Outputs!F35 -> PR24CA26 - IED opex.xlsm | G35: =F_Outputs!G35 -> PR24CA26 - IED opex.xlsm | H35: =F_Outputs!H35 -> PR24CA26 - IED opex.xlsm | I35: =F_Outputs!I35 -> PR24CA26 - IED opex.xlsm | J35: =F_Outputs!J35 -> PR24CA26 - IED opex.xlsm | K35: =F_Outputs!K35 -> PR24CA26 - IED opex.xlsm
A36: =F_Outputs!A36 -> NES | B36: =F_Outputs!B36 -> PR24QA_PR24CA26_OUT3 | C36: =F_Outputs!C36 -> F_Inputs time stamp - PR24CA26 | D36: =F_Outputs!D36 -> Text | E36: =F_Outputs!E36 -> Price Review 2024 | F36: =F_Outputs!F36 -> Run on 04 Sep 2024 12:11 | G36: =F_Outputs!G36 -> Run on 04 Sep 2024 12:11 | H36: =F_Outputs!H36 -> Run on 04 Sep 2024 12:11 | I36: =F_Outputs!I36 -> Run on 04 Sep 2024 12:11 | J36: =F_Outputs!J36 -> Run on 04 Sep 2024 12:11 | K36: =F_Outputs!K36 -> Run on 04 Sep 2024 12:11
A37: =F_Outputs!A37 -> NES | B37: =F_Outputs!B37 -> PR24QA_PR24CA26_OUT4 | C37: =F_Outputs!C37 -> Model override switch for - PR24CA26 | D37: =F_Outputs!D37 -> nr | E37: =F_Outputs!E37 -> Price Review 2024 | F37: =F_Outputs!F37 -> 0 | G37: =F_Outputs!G37 -> 0 | H37: =F_Outputs!H37 -> 0 | I37: =F_Outputs!I37 -> 0 | J37: =F_Outputs!J37 -> 0 | K37: =F_Outputs!K37 -> 0
A38: =F_Outputs!A38 -> NES | B38: =F_Outputs!B38 -> C_PR24CA26_BIO_REQUESTED | C38: =F_Outputs!C38 -> Costs associated with Industrial Emissions Directive - business plan requested - Bioresources | D38: =F_Outputs!D38 -> £m | E38: =F_Outputs!E38 -> Price Review 2024 | F38: =F_Outputs!F38 -> 0 | G38: =F_Outputs!G38 -> 0 | H38: =F_Outputs!H38 -> 0 | I38: =F_Outputs!I38 -> 0 | J38: =F_Outputs!J38 -> 0 | K38: =F_Outputs!K38 -> 0
A39: =F_Outputs!A39 -> NES | B39: =F_Outputs!B39 -> C_PR24CA26_WWN_REQUESTED | C39: =F_Outputs!C39 -> Costs associated with Industrial Emissions Directive - business plan requested - Wastewater network plus | D39: =F_Outputs!D39 -> £m | E39: =F_Outputs!E39 -> Price Review 2024 | F39: =F_Outputs!F39 -> 0 | G39: =F_Outputs!G39 -> 0 | H39: =F_Outputs!H39 -> 0 | I39: =F_Outputs!I39 -> 0 | J39: =F_Outputs!J39 -> 0 | K39: =F_Outputs!K39 -> 0
A40: =F_Outputs!A40 -> SVE | B40: =F_Outputs!B40 -> C_PR24CA26_BIO | C40: =F_Outputs!C40 -> Costs associated with Industrial Emissions Directive - Calculated allowance - Bioresources | D40: =F_Outputs!D40 -> £m | E40: =F_Outputs!E40 -> Price Review 2024 | F40: =F_Outputs!F40 -> 0.233936702 | G40: =F_Outputs!G40 -> 0.235361107 | H40: =F_Outputs!H40 -> 0.236794185 | I40: =F_Outputs!I40 -> 0.23823599 | J40: =F_Outputs!J40 -> 0.239686573 | K40: =F_Outputs!K40 -> 1.184014557
A41: =F_Outputs!A41 -> SVE | B41: =F_Outputs!B41 -> C_PR24CA26_WWN | C41: =F_Outputs!C41 -> Costs associated with Industrial Emissions Directive - Calculated allowance - Wastewater network plus | D41: =F_Outputs!D41 -> £m | E41: =F_Outputs!E41 -> Price Review 2024 | F41: =F_Outputs!F41 -> 0 | G41: =F_Outputs!G41 -> 0 | H41: =F_Outputs!H41 -> 0 | I41: =F_Outputs!I41 -> 0 | J41: =F_Outputs!J41 -> 0 | K41: =F_Outputs!K41 -> 0
A42: =F_Outputs!A42 -> SVE | B42: =F_Outputs!B42 -> C_PR24CA26_WW_TOT | C42: =F_Outputs!C42 -> Costs associated with Industrial Emissions Directive - Calculated allowance - Wastewater - Total | D42: =F_Outputs!D42 -> £m | E42: =F_Outputs!E42 -> Price Review 2024 | F42: =F_Outputs!F42 -> 0.233936702 | G42: =F_Outputs!G42 -> 0.235361107 | H42: =F_Outputs!H42 -> 0.236794185 | I42: =F_Outputs!I42 -> 0.23823599 | J42: =F_Outputs!J42 -> 0.239686573 | K42: =F_Outputs!K42 -> 1.184014557
A43: =F_Outputs!A43 -> SVE | B43: =F_Outputs!B43 -> PR24QA_PR24CA26_OUT1 | C43: =F_Outputs!C43 -> Date & Time for Model - PR24CA26 | D43: =F_Outputs!D43 -> Text | E43: =F_Outputs!E43 -> Price Review 2024 | F43: =F_Outputs!F43 -> […]11/12/2024 08:20:33 | G43: =F_Outputs!G43 -> […]11/12/2024 08:20:33 | H43: =F_Outputs!H43 -> […]11/12/2024 08:20:33 | I43: =F_Outputs!I43 -> […]11/12/2024 08:20:33 | J43: =F_Outputs!J43 -> […]11/12/2024 08:20:33 | K43: =F_Outputs!K43 -> […]11/12/2024 08:20:33
A44: =F_Outputs!A44 -> SVE | B44: =F_Outputs!B44 -> PR24QA_PR24CA26_OUT2 | C44: =F_Outputs!C44 -> Name of Model - PR24CA26 | D44: =F_Outputs!D44 -> Text | E44: =F_Outputs!E44 -> Price Review 2024 | F44: =F_Outputs!F44 -> PR24CA26 - IED opex.xlsm | G44: =F_Outputs!G44 -> PR24CA26 - IED opex.xlsm | H44: =F_Outputs!H44 -> PR24CA26 - IED opex.xlsm | I44: =F_Outputs!I44 -> PR24CA26 - IED opex.xlsm | J44: =F_Outputs!J44 -> PR24CA26 - IED opex.xlsm | K44: =F_Outputs!K44 -> PR24CA26 - IED opex.xlsm
A45: =F_Outputs!A45 -> SVE | B45: =F_Outputs!B45 -> PR24QA_PR24CA26_OUT3 | C45: =F_Outputs!C45 -> F_Inputs time stamp - PR24CA26 | D45: =F_Outputs!D45 -> Text | E45: =F_Outputs!E45 -> Price Review 2024 | F45: =F_Outputs!F45 -> Run on 04 Sep 2024 12:11 | G45: =F_Outputs!G45 -> Run on 04 Sep 2024 12:11 | H45: =F_Outputs!H45 -> Run on 04 Sep 2024 12:11 | I45: =F_Outputs!I45 -> Run on 04 Sep 2024 12:11 | J45: =F_Outputs!J45 -> Run on 04 Sep 2024 12:11 | K45: =F_Outputs!K45 -> Run on 04 Sep 2024 12:11
A46: =F_Outputs!A46 -> SVE | B46: =F_Outputs!B46 -> PR24QA_PR24CA26_OUT4 | C46: =F_Outputs!C46 -> Model override switch for - PR24CA26 | D46: =F_Outputs!D46 -> nr | E46: =F_Outputs!E46 -> Price Review 2024 | F46: =F_Outputs!F46 -> 0 | G46: =F_Outputs!G46 -> 0 | H46: =F_Outputs!H46 -> 0 | I46: =F_Outputs!I46 -> 0 | J46: =F_Outputs!J46 -> 0 | K46: =F_Outputs!K46 -> 0
A47: =F_Outputs!A47 -> SVE | B47: =F_Outputs!B47 -> C_PR24CA26_BIO_REQUESTED | C47: =F_Outputs!C47 -> Costs associated with Industrial Emissions Directive - business plan requested - Bioresources | D47: =F_Outputs!D47 -> £m | E47: =F_Outputs!E47 -> Price Review 2024 | F47: =F_Outputs!F47 -> 0.233936702 | G47: =F_Outputs!G47 -> 0.235361107 | H47: =F_Outputs!H47 -> 0.236794185 | I47: =F_Outputs!I47 -> 0.23823599 | J47: =F_Outputs!J47 -> 0.239686573 | K47: =F_Outputs!K47 -> 1.184014557
A48: =F_Outputs!A48 -> SVE | B48: =F_Outputs!B48 -> C_PR24CA26_WWN_REQUESTED | C48: =F_Outputs!C48 -> Costs associated with Industrial Emissions Directive - business plan requested - Wastewater network plus | D48: =F_Outputs!D48 -> £m | E48: =F_Outputs!E48 -> Price Review 2024 | F48: =F_Outputs!F48 -> 0 | G48: =F_Outputs!G48 -> 0 | H48: =F_Outputs!H48 -> 0 | I48: =F_Outputs!I48 -> 0 | J48: =F_Outputs!J48 -> 0 | K48: =F_Outputs!K48 -> 0
A49: =F_Outputs!A49 -> SWB | B49: =F_Outputs!B49 -> C_PR24CA26_BIO | C49: =F_Outputs!C49 -> Costs associated with Industrial Emissions Directive - Calculated allowance - Bioresources | D49: =F_Outputs!D49 -> £m | E49: =F_Outputs!E49 -> Price Review 2024 | F49: =F_Outputs!F49 -> 0 | G49: =F_Outputs!G49 -> 0.440553612 | H49: =F_Outputs!H49 -> 0.442590167 | I49: =F_Outputs!I49 -> 0.443951526 | J49: =F_Outputs!J49 -> 0.445103062 | K49: =F_Outputs!K49 -> 1.772198367
A50: =F_Outputs!A50 -> SWB | B50: =F_Outputs!B50 -> C_PR24CA26_WWN | C50: =F_Outputs!C50 -> Costs associated with Industrial Emissions Directive - Calculated allowance - Wastewater network plus | D50: =F_Outputs!D50 -> £m | E50: =F_Outputs!E50 -> Price Review 2024 | F50: =F_Outputs!F50 -> 0 | G50: =F_Outputs!G50 -> 0.073681809 | H50: =F_Outputs!H50 -> 0.073974145 | I50: =F_Outputs!I50 -> 0.07418656 | J50: =F_Outputs!J50 -> 0.074374424 | K50: =F_Outputs!K50 -> 0.296216938
A51: =F_Outputs!A51 -> SWB | B51: =F_Outputs!B51 -> C_PR24CA26_WW_TOT | C51: =F_Outputs!C51 -> Costs associated with Industrial Emissions Directive - Calculated allowance - Wastewater - Total | D51: =F_Outputs!D51 -> £m | E51: =F_Outputs!E51 -> Price Review 2024 | F51: =F_Outputs!F51 -> 0 | G51: =F_Outputs!G51 -> 0.514235421 | H51: =F_Outputs!H51 -> 0.516564312 | I51: =F_Outputs!I51 -> 0.518138086 | J51: =F_Outputs!J51 -> 0.519477486 | K51: =F_Outputs!K51 -> 2.068415305
A52: =F_Outputs!A52 -> SWB | B52: =F_Outputs!B52 -> PR24QA_PR24CA26_OUT1 | C52: =F_Outputs!C52 -> Date & Time for Model - PR24CA26 | D52: =F_Outputs!D52 -> Text | E52: =F_Outputs!E52 -> Price Review 2024 | F52: =F_Outputs!F52 -> […]11/12/2024 08:20:33 | G52: =F_Outputs!G52 -> […]11/12/2024 08:20:33 | H52: =F_Outputs!H52 -> […]11/12/2024 08:20:33 | I52: =F_Outputs!I52 -> […]11/12/2024 08:20:33 | J52: =F_Outputs!J52 -> […]11/12/2024 08:20:33 | K52: =F_Outputs!K52 -> […]11/12/2024 08:20:33
A53: =F_Outputs!A53 -> SWB | B53: =F_Outputs!B53 -> PR24QA_PR24CA26_OUT2 | C53: =F_Outputs!C53 -> Name of Model - PR24CA26 | D53: =F_Outputs!D53 -> Text | E53: =F_Outputs!E53 -> Price Review 2024 | F53: =F_Outputs!F53 -> PR24CA26 - IED opex.xlsm | G53: =F_Outputs!G53 -> PR24CA26 - IED opex.xlsm | H53: =F_Outputs!H53 -> PR24CA26 - IED opex.xlsm | I53: =F_Outputs!I53 -> PR24CA26 - IED opex.xlsm | J53: =F_Outputs!J53 -> PR24CA26 - IED opex.xlsm | K53: =F_Outputs!K53 -> PR24CA26 - IED opex.xlsm
A54: =F_Outputs!A54 -> SWB | B54: =F_Outputs!B54 -> PR24QA_PR24CA26_OUT3 | C54: =F_Outputs!C54 -> F_Inputs time stamp - PR24CA26 | D54: =F_Outputs!D54 -> Text | E54: =F_Outputs!E54 -> Price Review 2024 | F54: =F_Outputs!F54 -> Run on 04 Sep 2024 12:11 | G54: =F_Outputs!G54 -> Run on 04 Sep 2024 12:11 | H54: =F_Outputs!H54 -> Run on 04 Sep 2024 12:11 | I54: =F_Outputs!I54 -> Run on 04 Sep 2024 12:11 | J54: =F_Outputs!J54 -> Run on 04 Sep 2024 12:11 | K54: =F_Outputs!K54 -> Run on 04 Sep 2024 12:11
A55: =F_Outputs!A55 -> SWB | B55: =F_Outputs!B55 -> PR24QA_PR24CA26_OUT4 | C55: =F_Outputs!C55 -> Model override switch for - PR24CA26 | D55: =F_Outputs!D55 -> nr | E55: =F_Outputs!E55 -> Price Review 2024 | F55: =F_Outputs!F55 -> 0 | G55: =F_Outputs!G55 -> 0 | H55: =F_Outputs!H55 -> 0 | I55: =F_Outputs!I55 -> 0 | J55: =F_Outputs!J55 -> 0 | K55: =F_Outputs!K55 -> 0
A56: =F_Outputs!A56 -> SWB | B56: =F_Outputs!B56 -> C_PR24CA26_BIO_REQUESTED | C56: =F_Outputs!C56 -> Costs associated with Industrial Emissions Directive - business plan requested - Bioresources | D56: =F_Outputs!D56 -> £m | E56: =F_Outputs!E56 -> Price Review 2024 | F56: =F_Outputs!F56 -> 0 | G56: =F_Outputs!G56 -> 0.454 | H56: =F_Outputs!H56 -> 0.454 | I56: =F_Outputs!I56 -> 0.454 | J56: =F_Outputs!J56 -> 0.454 | K56: =F_Outputs!K56 -> 1.816
A57: =F_Outputs!A57 -> SWB | B57: =F_Outputs!B57 -> C_PR24CA26_WWN_REQUESTED | C57: =F_Outputs!C57 -> Costs associated with Industrial Emissions Directive - business plan requested - Wastewater network plus | D57: =F_Outputs!D57 -> £m | E57: =F_Outputs!E57 -> Price Review 2024 | F57: =F_Outputs!F57 -> 0 | G57: =F_Outputs!G57 -> 0.076 | H57: =F_Outputs!H57 -> 0.076 | I57: =F_Outputs!I57 -> 0.076 | J57: =F_Outputs!J57 -> 0.076 | K57: =F_Outputs!K57 -> 0.304
A58: =F_Outputs!A58 -> SRN | B58: =F_Outputs!B58 -> C_PR24CA26_BIO | C58: =F_Outputs!C58 -> Costs associated with Industrial Emissions Directive - Calculated allowance - Bioresources | D58: =F_Outputs!D58 -> £m | E58: =F_Outputs!E58 -> Price Review 2024 | F58: =F_Outputs!F58 -> 0 | G58: =F_Outputs!G58 -> 0 | H58: =F_Outputs!H58 -> 0 | I58: =F_Outputs!I58 -> 0 | J58: =F_Outputs!J58 -> 0 | K58: =F_Outputs!K58 -> 0
A59: =F_Outputs!A59 -> SRN | B59: =F_Outputs!B59 -> C_PR24CA26_WWN | C59: =F_Outputs!C59 -> Costs associated with Industrial Emissions Directive - Calculated allowance - Wastewater network plus | D59: =F_Outputs!D59 -> £m | E59: =F_Outputs!E59 -> Price Review 2024 | F59: =F_Outputs!F59 -> 0 | G59: =F_Outputs!G59 -> 0 | H59: =F_Outputs!H59 -> 0 | I59: =F_Outputs!I59 -> 0 | J59: =F_Outputs!J59 -> 0 | K59: =F_Outputs!K59 -> 0
A60: =F_Outputs!A60 -> SRN | B60: =F_Outputs!B60 -> C_PR24CA26_WW_TOT | C60: =F_Outputs!C60 -> Costs associated with Industrial Emissions Directive - Calculated allowance - Wastewater - Total | D60: =F_Outputs!D60 -> £m | E60: =F_Outputs!E60 -> Price Review 2024 | F60: =F_Outputs!F60 -> 0 | G60: =F_Outputs!G60 -> 0 | H60: =F_Outputs!H60 -> 0 | I60: =F_Outputs!I60 -> 0 | J60: =F_Outputs!J60 -> 0 | K60: =F_Outputs!K60 -> 0
A61: =F_Outputs!A61 -> SRN | B61: =F_Outputs!B61 -> PR24QA_PR24CA26_OUT1 | C61: =F_Outputs!C61 -> Date & Time for Model - PR24CA26 | D61: =F_Outputs!D61 -> Text | E61: =F_Outputs!E61 -> Price Review 2024 | F61: =F_Outputs!F61 -> […]11/12/2024 08:20:33 | G61: =F_Outputs!G61 -> […]11/12/2024 08:20:33 | H61: =F_Outputs!H61 -> […]11/12/2024 08:20:33 | I61: =F_Outputs!I61 -> […]11/12/2024 08:20:33 | J61: =F_Outputs!J61 -> […]11/12/2024 08:20:33 | K61: =F_Outputs!K61 -> […]11/12/2024 08:20:33
A62: =F_Outputs!A62 -> SRN | B62: =F_Outputs!B62 -> PR24QA_PR24CA26_OUT2 | C62: =F_Outputs!C62 -> Name of Model - PR24CA26 | D62: =F_Outputs!D62 -> Text | E62: =F_Outputs!E62 -> Price Review 2024 | F62: =F_Outputs!F62 -> PR24CA26 - IED opex.xlsm | G62: =F_Outputs!G62 -> PR24CA26 - IED opex.xlsm | H62: =F_Outputs!H62 -> PR24CA26 - IED opex.xlsm | I62: =F_Outputs!I62 -> PR24CA26 - IED opex.xlsm | J62: =F_Outputs!J62 -> PR24CA26 - IED opex.xlsm | K62: =F_Outputs!K62 -> PR24CA26 - IED opex.xlsm
A63: =F_Outputs!A63 -> SRN | B63: =F_Outputs!B63 -> PR24QA_PR24CA26_OUT3 | C63: =F_Outputs!C63 -> F_Inputs time stamp - PR24CA26 | D63: =F_Outputs!D63 -> Text | E63: =F_Outputs!E63 -> Price Review 2024 | F63: =F_Outputs!F63 -> Run on 04 Sep 2024 12:11 | G63: =F_Outputs!G63 -> Run on 04 Sep 2024 12:11 | H63: =F_Outputs!H63 -> Run on 04 Sep 2024 12:11 | I63: =F_Outputs!I63 -> Run on 04 Sep 2024 12:11 | J63: =F_Outputs!J63 -> Run on 04 Sep 2024 12:11 | K63: =F_Outputs!K63 -> Run on 04 Sep 2024 12:11
A64: =F_Outputs!A64 -> SRN | B64: =F_Outputs!B64 -> PR24QA_PR24CA26_OUT4 | C64: =F_Outputs!C64 -> Model override switch for - PR24CA26 | D64: =F_Outputs!D64 -> nr | E64: =F_Outputs!E64 -> Price Review 2024 | F64: =F_Outputs!F64 -> 0 | G64: =F_Outputs!G64 -> 0 | H64: =F_Outputs!H64 -> 0 | I64: =F_Outputs!I64 -> 0 | J64: =F_Outputs!J64 -> 0 | K64: =F_Outputs!K64 -> 0
A65: =F_Outputs!A65 -> SRN | B65: =F_Outputs!B65 -> C_PR24CA26_BIO_REQUESTED | C65: =F_Outputs!C65 -> Costs associated with Industrial Emissions Directive - business plan requested - Bioresources | D65: =F_Outputs!D65 -> £m | E65: =F_Outputs!E65 -> Price Review 2024 | F65: =F_Outputs!F65 -> 0 | G65: =F_Outputs!G65 -> 0 | H65: =F_Outputs!H65 -> 0 | I65: =F_Outputs!I65 -> 0 | J65: =F_Outputs!J65 -> 0 | K65: =F_Outputs!K65 -> 0
A66: =F_Outputs!A66 -> SRN | B66: =F_Outputs!B66 -> C_PR24CA26_WWN_REQUESTED | C66: =F_Outputs!C66 -> Costs associated with Industrial Emissions Directive - business plan requested - Wastewater network plus | D66: =F_Outputs!D66 -> £m | E66: =F_Outputs!E66 -> Price Review 2024 | F66: =F_Outputs!F66 -> 0 | G66: =F_Outputs!G66 -> 0 | H66: =F_Outputs!H66 -> 0 | I66: =F_Outputs!I66 -> 0 | J66: =F_Outputs!J66 -> 0 | K66: =F_Outputs!K66 -> 0
A67: =F_Outputs!A67 -> TMS | B67: =F_Outputs!B67 -> C_PR24CA26_BIO | C67: =F_Outputs!C67 -> Costs associated with Industrial Emissions Directive - Calculated allowance - Bioresources | D67: =F_Outputs!D67 -> £m | E67: =F_Outputs!E67 -> Price Review 2024 | F67: =F_Outputs!F67 -> 0.051 | G67: =F_Outputs!G67 -> 0.051 | H67: =F_Outputs!H67 -> 0.051 | I67: =F_Outputs!I67 -> 0.051 | J67: =F_Outputs!J67 -> 0.051 | K67: =F_Outputs!K67 -> 0.255
A68: =F_Outputs!A68 -> TMS | B68: =F_Outputs!B68 -> C_PR24CA26_WWN | C68: =F_Outputs!C68 -> Costs associated with Industrial Emissions Directive - Calculated allowance - Wastewater network plus | D68: =F_Outputs!D68 -> £m | E68: =F_Outputs!E68 -> Price Review 2024 | F68: =F_Outputs!F68 -> 0 | G68: =F_Outputs!G68 -> 0 | H68: =F_Outputs!H68 -> 0 | I68: =F_Outputs!I68 -> 0 | J68: =F_Outputs!J68 -> 0 | K68: =F_Outputs!K68 -> 0
A69: =F_Outputs!A69 -> TMS | B69: =F_Outputs!B69 -> C_PR24CA26_WW_TOT | C69: =F_Outputs!C69 -> Costs associated with Industrial Emissions Directive - Calculated allowance - Wastewater - Total | D69: =F_Outputs!D69 -> £m | E69: =F_Outputs!E69 -> Price Review 2024 | F69: =F_Outputs!F69 -> 0.051 | G69: =F_Outputs!G69 -> 0.051 | H69: =F_Outputs!H69 -> 0.051 | I69: =F_Outputs!I69 -> 0.051 | J69: =F_Outputs!J69 -> 0.051 | K69: =F_Outputs!K69 -> 0.255
A70: =F_Outputs!A70 -> TMS | B70: =F_Outputs!B70 -> PR24QA_PR24CA26_OUT1 | C70: =F_Outputs!C70 -> Date & Time for Model - PR24CA26 | D70: =F_Outputs!D70 -> Text | E70: =F_Outputs!E70 -> Price Review 2024 | F70: =F_Outputs!F70 -> […]11/12/2024 08:20:33 | G70: =F_Outputs!G70 -> […]11/12/2024 08:20:33 | H70: =F_Outputs!H70 -> […]11/12/2024 08:20:33 | I70: =F_Outputs!I70 -> […]11/12/2024 08:20:33 | J70: =F_Outputs!J70 -> […]11/12/2024 08:20:33 | K70: =F_Outputs!K70 -> […]11/12/2024 08:20:33
A71: =F_Outputs!A71 -> TMS | B71: =F_Outputs!B71 -> PR24QA_PR24CA26_OUT2 | C71: =F_Outputs!C71 -> Name of Model - PR24CA26 | D71: =F_Outputs!D71 -> Text | E71: =F_Outputs!E71 -> Price Review 2024 | F71: =F_Outputs!F71 -> PR24CA26 - IED opex.xlsm | G71: =F_Outputs!G71 -> PR24CA26 - IED opex.xlsm | H71: =F_Outputs!H71 -> PR24CA26 - IED opex.xlsm | I71: =F_Outputs!I71 -> PR24CA26 - IED opex.xlsm | J71: =F_Outputs!J71 -> PR24CA26 - IED opex.xlsm | K71: =F_Outputs!K71 -> PR24CA26 - IED opex.xlsm
A72: =F_Outputs!A72 -> TMS | B72: =F_Outputs!B72 -> PR24QA_PR24CA26_OUT3 | C72: =F_Outputs!C72 -> F_Inputs time stamp - PR24CA26 | D72: =F_Outputs!D72 -> Text | E72: =F_Outputs!E72 -> Price Review 2024 | F72: =F_Outputs!F72 -> Run on 04 Sep 2024 12:11 | G72: =F_Outputs!G72 -> Run on 04 Sep 2024 12:11 | H72: =F_Outputs!H72 -> Run on 04 Sep 2024 12:11 | I72: =F_Outputs!I72 -> Run on 04 Sep 2024 12:11 | J72: =F_Outputs!J72 -> Run on 04 Sep 2024 12:11 | K72: =F_Outputs!K72 -> Run on 04 Sep 2024 12:11
A73: =F_Outputs!A73 -> TMS | B73: =F_Outputs!B73 -> PR24QA_PR24CA26_OUT4 | C73: =F_Outputs!C73 -> Model override switch for - PR24CA26 | D73: =F_Outputs!D73 -> nr | E73: =F_Outputs!E73 -> Price Review 2024 | F73: =F_Outputs!F73 -> 0 | G73: =F_Outputs!G73 -> 0 | H73: =F_Outputs!H73 -> 0 | I73: =F_Outputs!I73 -> 0 | J73: =F_Outputs!J73 -> 0 | K73: =F_Outputs!K73 -> 0
A74: =F_Outputs!A74 -> TMS | B74: =F_Outputs!B74 -> C_PR24CA26_BIO_REQUESTED | C74: =F_Outputs!C74 -> Costs associated with Industrial Emissions Directive - business plan requested - Bioresources | D74: =F_Outputs!D74 -> £m | E74: =F_Outputs!E74 -> Price Review 2024 | F74: =F_Outputs!F74 -> 0.051 | G74: =F_Outputs!G74 -> 0.051 | H74: =F_Outputs!H74 -> 0.051 | I74: =F_Outputs!I74 -> 0.051 | J74: =F_Outputs!J74 -> 0.051 | K74: =F_Outputs!K74 -> 0.255
A75: =F_Outputs!A75 -> TMS | B75: =F_Outputs!B75 -> C_PR24CA26_WWN_REQUESTED | C75: =F_Outputs!C75 -> Costs associated with Industrial Emissions Directive - business plan requested - Wastewater network plus | D75: =F_Outputs!D75 -> £m | E75: =F_Outputs!E75 -> Price Review 2024 | F75: =F_Outputs!F75 -> 0 | G75: =F_Outputs!G75 -> 0 | H75: =F_Outputs!H75 -> 0 | I75: =F_Outputs!I75 -> 0 | J75: =F_Outputs!J75 -> 0 | K75: =F_Outputs!K75 -> 0
A76: =F_Outputs!A76 -> NWT | B76: =F_Outputs!B76 -> C_PR24CA26_BIO | C76: =F_Outputs!C76 -> Costs associated with Industrial Emissions Directive - Calculated allowance - Bioresources | D76: =F_Outputs!D76 -> £m | E76: =F_Outputs!E76 -> Price Review 2024 | F76: =F_Outputs!F76 -> 0.5087784657 | G76: =F_Outputs!G76 -> 0.5087784657 | H76: =F_Outputs!H76 -> 0.5087784657 | I76: =F_Outputs!I76 -> 0.5087784657 | J76: =F_Outputs!J76 -> 0.5087784657 | K76: =F_Outputs!K76 -> 2.543892329
A77: =F_Outputs!A77 -> NWT | B77: =F_Outputs!B77 -> C_PR24CA26_WWN | C77: =F_Outputs!C77 -> Costs associated with Industrial Emissions Directive - Calculated allowance - Wastewater network plus | D77: =F_Outputs!D77 -> £m | E77: =F_Outputs!E77 -> Price Review 2024 | F77: =F_Outputs!F77 -> 0.06670796283 | G77: =F_Outputs!G77 -> 0.06670796283 | H77: =F_Outputs!H77 -> 0.06670796283 | I77: =F_Outputs!I77 -> 0.06670796283 | J77: =F_Outputs!J77 -> 0.06670796283 | K77: =F_Outputs!K77 -> 0.3335398142
A78: =F_Outputs!A78 -> NWT | B78: =F_Outputs!B78 -> C_PR24CA26_WW_TOT | C78: =F_Outputs!C78 -> Costs associated with Industrial Emissions Directive - Calculated allowance - Wastewater - Total | D78: =F_Outputs!D78 -> £m | E78: =F_Outputs!E78 -> Price Review 2024 | F78: =F_Outputs!F78 -> 0.5754864285 | G78: =F_Outputs!G78 -> 0.5754864285 | H78: =F_Outputs!H78 -> 0.5754864285 | I78: =F_Outputs!I78 -> 0.5754864285 | J78: =F_Outputs!J78 -> 0.5754864285 | K78: =F_Outputs!K78 -> 2.877432143
A79: =F_Outputs!A79 -> NWT | B79: =F_Outputs!B79 -> PR24QA_PR24CA26_OUT1 | C79: =F_Outputs!C79 -> Date & Time for Model - PR24CA26 | D79: =F_Outputs!D79 -> Text | E79: =F_Outputs!E79 -> Price Review 2024 | F79: =F_Outputs!F79 -> […]11/12/2024 08:20:33 | G79: =F_Outputs!G79 -> […]11/12/2024 08:20:33 | H79: =F_Outputs!H79 -> […]11/12/2024 08:20:33 | I79: =F_Outputs!I79 -> […]11/12/2024 08:20:33 | J79: =F_Outputs!J79 -> […]11/12/2024 08:20:33 | K79: =F_Outputs!K79 -> […]11/12/2024 08:20:33
A80: =F_Outputs!A80 -> NWT | B80: =F_Outputs!B80 -> PR24QA_PR24CA26_OUT2 | C80: =F_Outputs!C80 -> Name of Model - PR24CA26 | D80: =F_Outputs!D80 -> Text | E80: =F_Outputs!E80 -> Price Review 2024 | F80: =F_Outputs!F80 -> PR24CA26 - IED opex.xlsm | G80: =F_Outputs!G80 -> PR24CA26 - IED opex.xlsm | H80: =F_Outputs!H80 -> PR24CA26 - IED opex.xlsm | I80: =F_Outputs!I80 -> PR24CA26 - IED opex.xlsm | J80: =F_Outputs!J80 -> PR24CA26 - IED opex.xlsm | K80: =F_Outputs!K80 -> PR24CA26 - IED opex.xlsm
A81: =F_Outputs!A81 -> NWT | B81: =F_Outputs!B81 -> PR24QA_PR24CA26_OUT3 | C81: =F_Outputs!C81 -> F_Inputs time stamp - PR24CA26 | D81: =F_Outputs!D81 -> Text | E81: =F_Outputs!E81 -> Price Review 2024 | F81: =F_Outputs!F81 -> Run on 04 Sep 2024 12:11 | G81: =F_Outputs!G81 -> Run on 04 Sep 2024 12:11 | H81: =F_Outputs!H81 -> Run on 04 Sep 2024 12:11 | I81: =F_Outputs!I81 -> Run on 04 Sep 2024 12:11 | J81: =F_Outputs!J81 -> Run on 04 Sep 2024 12:11 | K81: =F_Outputs!K81 -> Run on 04 Sep 2024 12:11
A82: =F_Outputs!A82 -> NWT | B82: =F_Outputs!B82 -> PR24QA_PR24CA26_OUT4 | C82: =F_Outputs!C82 -> Model override switch for - PR24CA26 | D82: =F_Outputs!D82 -> nr | E82: =F_Outputs!E82 -> Price Review 2024 | F82: =F_Outputs!F82 -> 0 | G82: =F_Outputs!G82 -> 0 | H82: =F_Outputs!H82 -> 0 | I82: =F_Outputs!I82 -> 0 | J82: =F_Outputs!J82 -> 0 | K82: =F_Outputs!K82 -> 0
A83: =F_Outputs!A83 -> NWT | B83: =F_Outputs!B83 -> C_PR24CA26_BIO_REQUESTED | C83: =F_Outputs!C83 -> Costs associated with Industrial Emissions Directive - business plan requested - Bioresources | D83: =F_Outputs!D83 -> £m | E83: =F_Outputs!E83 -> Price Review 2024 | F83: =F_Outputs!F83 -> 0.5087784657 | G83: =F_Outputs!G83 -> 0.5087784657 | H83: =F_Outputs!H83 -> 0.5087784657 | I83: =F_Outputs!I83 -> 0.5087784657 | J83: =F_Outputs!J83 -> 0.5087784657 | K83: =F_Outputs!K83 -> 2.543892329
A84: =F_Outputs!A84 -> NWT | B84: =F_Outputs!B84 -> C_PR24CA26_WWN_REQUESTED | C84: =F_Outputs!C84 -> Costs associated with Industrial Emissions Directive - business plan requested - Wastewater network plus | D84: =F_Outputs!D84 -> £m | E84: =F_Outputs!E84 -> Price Review 2024 | F84: =F_Outputs!F84 -> 0.06670796283 | G84: =F_Outputs!G84 -> 0.06670796283 | H84: =F_Outputs!H84 -> 0.06670796283 | I84: =F_Outputs!I84 -> 0.06670796283 | J84: =F_Outputs!J84 -> 0.06670796283 | K84: =F_Outputs!K84 -> 0.3335398142
A85: =F_Outputs!A85 -> WSX | B85: =F_Outputs!B85 -> C_PR24CA26_BIO | C85: =F_Outputs!C85 -> Costs associated with Industrial Emissions Directive - Calculated allowance - Bioresources | D85: =F_Outputs!D85 -> £m | E85: =F_Outputs!E85 -> Price Review 2024 | F85: =F_Outputs!F85 -> 0 | G85: =F_Outputs!G85 -> 0 | H85: =F_Outputs!H85 -> 0 | I85: =F_Outputs!I85 -> 0 | J85: =F_Outputs!J85 -> 0 | K85: =F_Outputs!K85 -> 0
A86: =F_Outputs!A86 -> WSX | B86: =F_Outputs!B86 -> C_PR24CA26_WWN | C86: =F_Outputs!C86 -> Costs associated with Industrial Emissions Directive - Calculated allowance - Wastewater network plus | D86: =F_Outputs!D86 -> £m | E86: =F_Outputs!E86 -> Price Review 2024 | F86: =F_Outputs!F86 -> 0 | G86: =F_Outputs!G86 -> 0 | H86: =F_Outputs!H86 -> 0 | I86: =F_Outputs!I86 -> 0 | J86: =F_Outputs!J86 -> 0 | K86: =F_Outputs!K86 -> 0
A87: =F_Outputs!A87 -> WSX | B87: =F_Outputs!B87 -> C_PR24CA26_WW_TOT | C87: =F_Outputs!C87 -> Costs associated with Industrial Emissions Directive - Calculated allowance - Wastewater - Total | D87: =F_Outputs!D87 -> £m | E87: =F_Outputs!E87 -> Price Review 2024 | F87: =F_Outputs!F87 -> 0 | G87: =F_Outputs!G87 -> 0 | H87: =F_Outputs!H87 -> 0 | I87: =F_Outputs!I87 -> 0 | J87: =F_Outputs!J87 -> 0 | K87: =F_Outputs!K87 -> 0
A88: =F_Outputs!A88 -> WSX | B88: =F_Outputs!B88 -> PR24QA_PR24CA26_OUT1 | C88: =F_Outputs!C88 -> Date & Time for Model - PR24CA26 | D88: =F_Outputs!D88 -> Text | E88: =F_Outputs!E88 -> Price Review 2024 | F88: =F_Outputs!F88 -> […]11/12/2024 08:20:33 | G88: =F_Outputs!G88 -> […]11/12/2024 08:20:33 | H88: =F_Outputs!H88 -> […]11/12/2024 08:20:33 | I88: =F_Outputs!I88 -> […]11/12/2024 08:20:33 | J88: =F_Outputs!J88 -> […]11/12/2024 08:20:33 | K88: =F_Outputs!K88 -> […]11/12/2024 08:20:33
A89: =F_Outputs!A89 -> WSX | B89: =F_Outputs!B89 -> PR24QA_PR24CA26_OUT2 | C89: =F_Outputs!C89 -> Name of Model - PR24CA26 | D89: =F_Outputs!D89 -> Text | E89: =F_Outputs!E89 -> Price Review 2024 | F89: =F_Outputs!F89 -> PR24CA26 - IED opex.xlsm | G89: =F_Outputs!G89 -> PR24CA26 - IED opex.xlsm | H89: =F_Outputs!H89 -> PR24CA26 - IED opex.xlsm | I89: =F_Outputs!I89 -> PR24CA26 - IED opex.xlsm | J89: =F_Outputs!J89 -> PR24CA26 - IED opex.xlsm | K89: =F_Outputs!K89 -> PR24CA26 - IED opex.xlsm
A90: =F_Outputs!A90 -> WSX | B90: =F_Outputs!B90 -> PR24QA_PR24CA26_OUT3 | C90: =F_Outputs!C90 -> F_Inputs time stamp - PR24CA26 | D90: =F_Outputs!D90 -> Text | E90: =F_Outputs!E90 -> Price Review 2024 | F90: =F_Outputs!F90 -> Run on 04 Sep 2024 12:11 | G90: =F_Outputs!G90 -> Run on 04 Sep 2024 12:11 | H90: =F_Outputs!H90 -> Run on 04 Sep 2024 12:11 | I90: =F_Outputs!I90 -> Run on 04 Sep 2024 12:11 | J90: =F_Outputs!J90 -> Run on 04 Sep 2024 12:11 | K90: =F_Outputs!K90 -> Run on 04 Sep 2024 12:11
A91: =F_Outputs!A91 -> WSX | B91: =F_Outputs!B91 -> PR24QA_PR24CA26_OUT4 | C91: =F_Outputs!C91 -> Model override switch for - PR24CA26 | D91: =F_Outputs!D91 -> nr | E91: =F_Outputs!E91 -> Price Review 2024 | F91: =F_Outputs!F91 -> 0 | G91: =F_Outputs!G91 -> 0 | H91: =F_Outputs!H91 -> 0 | I91: =F_Outputs!I91 -> 0 | J91: =F_Outputs!J91 -> 0 | K91: =F_Outputs!K91 -> 0
A92: =F_Outputs!A92 -> WSX | B92: =F_Outputs!B92 -> C_PR24CA26_BIO_REQUESTED | C92: =F_Outputs!C92 -> Costs associated with Industrial Emissions Directive - business plan requested - Bioresources | D92: =F_Outputs!D92 -> £m | E92: =F_Outputs!E92 -> Price Review 2024 | F92: =F_Outputs!F92 -> 0 | G92: =F_Outputs!G92 -> 0 | H92: =F_Outputs!H92 -> 0 | I92: =F_Outputs!I92 -> 0 | J92: =F_Outputs!J92 -> 0 | K92: =F_Outputs!K92 -> 0
A93: =F_Outputs!A93 -> WSX | B93: =F_Outputs!B93 -> C_PR24CA26_WWN_REQUESTED | C93: =F_Outputs!C93 -> Costs associated with Industrial Emissions Directive - business plan requested - Wastewater network plus | D93: =F_Outputs!D93 -> £m | E93: =F_Outputs!E93 -> Price Review 2024 | F93: =F_Outputs!F93 -> 0 | G93: =F_Outputs!G93 -> 0 | H93: =F_Outputs!H93 -> 0 | I93: =F_Outputs!I93 -> 0 | J93: =F_Outputs!J93 -> 0 | K93: =F_Outputs!K93 -> 0
A94: =F_Outputs!A94 -> YKY | B94: =F_Outputs!B94 -> C_PR24CA26_BIO | C94: =F_Outputs!C94 -> Costs associated with Industrial Emissions Directive - Calculated allowance - Bioresources | D94: =F_Outputs!D94 -> £m | E94: =F_Outputs!E94 -> Price Review 2024 | F94: =F_Outputs!F94 -> 0.132 | G94: =F_Outputs!G94 -> 0.132 | H94: =F_Outputs!H94 -> 0.132 | I94: =F_Outputs!I94 -> 0.132 | J94: =F_Outputs!J94 -> 0.132 | K94: =F_Outputs!K94 -> 0.66
A95: =F_Outputs!A95 -> YKY | B95: =F_Outputs!B95 -> C_PR24CA26_WWN | C95: =F_Outputs!C95 -> Costs associated with Industrial Emissions Directive - Calculated allowance - Wastewater network plus | D95: =F_Outputs!D95 -> £m | E95: =F_Outputs!E95 -> Price Review 2024 | F95: =F_Outputs!F95 -> 0 | G95: =F_Outputs!G95 -> 0 | H95: =F_Outputs!H95 -> 0 | I95: =F_Outputs!I95 -> 0 | J95: =F_Outputs!J95 -> 0 | K95: =F_Outputs!K95 -> 0
A96: =F_Outputs!A96 -> YKY | B96: =F_Outputs!B96 -> C_PR24CA26_WW_TOT | C96: =F_Outputs!C96 -> Costs associated with Industrial Emissions Directive - Calculated allowance - Wastewater - Total | D96: =F_Outputs!D96 -> £m | E96: =F_Outputs!E96 -> Price Review 2024 | F96: =F_Outputs!F96 -> 0.132 | G96: =F_Outputs!G96 -> 0.132 | H96: =F_Outputs!H96 -> 0.132 | I96: =F_Outputs!I96 -> 0.132 | J96: =F_Outputs!J96 -> 0.132 | K96: =F_Outputs!K96 -> 0.66
A97: =F_Outputs!A97 -> YKY | B97: =F_Outputs!B97 -> PR24QA_PR24CA26_OUT1 | C97: =F_Outputs!C97 -> Date & Time for Model - PR24CA26 | D97: =F_Outputs!D97 -> Text | E97: =F_Outputs!E97 -> Price Review 2024 | F97: =F_Outputs!F97 -> […]11/12/2024 08:20:33 | G97: =F_Outputs!G97 -> […]11/12/2024 08:20:33 | H97: =F_Outputs!H97 -> […]11/12/2024 08:20:33 | I97: =F_Outputs!I97 -> […]11/12/2024 08:20:33 | J97: =F_Outputs!J97 -> […]11/12/2024 08:20:33 | K97: =F_Outputs!K97 -> […]11/12/2024 08:20:33
A98: =F_Outputs!A98 -> YKY | B98: =F_Outputs!B98 -> PR24QA_PR24CA26_OUT2 | C98: =F_Outputs!C98 -> Name of Model - PR24CA26 | D98: =F_Outputs!D98 -> Text | E98: =F_Outputs!E98 -> Price Review 2024 | F98: =F_Outputs!F98 -> PR24CA26 - IED opex.xlsm | G98: =F_Outputs!G98 -> PR24CA26 - IED opex.xlsm | H98: =F_Outputs!H98 -> PR24CA26 - IED opex.xlsm | I98: =F_Outputs!I98 -> PR24CA26 - IED opex.xlsm | J98: =F_Outputs!J98 -> PR24CA26 - IED opex.xlsm | K98: =F_Outputs!K98 -> PR24CA26 - IED opex.xlsm
A99: =F_Outputs!A99 -> YKY | B99: =F_Outputs!B99 -> PR24QA_PR24CA26_OUT3 | C99: =F_Outputs!C99 -> F_Inputs time stamp - PR24CA26 | D99: =F_Outputs!D99 -> Text | E99: =F_Outputs!E99 -> Price Review 2024 | F99: =F_Outputs!F99 -> Run on 04 Sep 2024 12:11 | G99: =F_Outputs!G99 -> Run on 04 Sep 2024 12:11 | H99: =F_Outputs!H99 -> Run on 04 Sep 2024 12:11 | I99: =F_Outputs!I99 -> Run on 04 Sep 2024 12:11 | J99: =F_Outputs!J99 -> Run on 04 Sep 2024 12:11 | K99: =F_Outputs!K99 -> Run on 04 Sep 2024 12:11
A100: =F_Outputs!A100 -> YKY | B100: =F_Outputs!B100 -> PR24QA_PR24CA26_OUT4 | C100: =F_Outputs!C100 -> Model override switch for - PR24CA26 | D100: =F_Outputs!D100 -> nr | E100: =F_Outputs!E100 -> Price Review 2024 | F100: =F_Outputs!F100 -> 0 | G100: =F_Outputs!G100 -> 0 | H100: =F_Outputs!H100 -> 0 | I100: =F_Outputs!I100 -> 0 | J100: =F_Outputs!J100 -> 0 | K100: =F_Outputs!K100 -> 0
A101: =F_Outputs!A101 -> YKY | B101: =F_Outputs!B101 -> C_PR24CA26_BIO_REQUESTED | C101: =F_Outputs!C101 -> Costs associated with Industrial Emissions Directive - business plan requested - Bioresources | D101: =F_Outputs!D101 -> £m | E101: =F_Outputs!E101 -> Price Review 2024 | F101: =F_Outputs!F101 -> 0.132 | G101: =F_Outputs!G101 -> 0.132 | H101: =F_Outputs!H101 -> 0.132 | I101: =F_Outputs!I101 -> 0.132 | J101: =F_Outputs!J101 -> 0.132 | K101: =F_Outputs!K101 -> 0.66
A102: =F_Outputs!A102 -> YKY | B102: =F_Outputs!B102 -> C_PR24CA26_WWN_REQUESTED | C102: =F_Outputs!C102 -> Costs associated with Industrial Emissions Directive - business plan requested - Wastewater network plus | D102: =F_Outputs!D102 -> £m | E102: =F_Outputs!E102 -> Price Review 2024 | F102: =F_Outputs!F102 -> 0 | G102: =F_Outputs!G102 -> 0 | H102: =F_Outputs!H102 -> 0 | I102: =F_Outputs!I102 -> 0 | J102: =F_Outputs!J102 -> 0 | K102: =F_Outputs!K102 -> 0
A103: END | C103: SUBTOTAL | F103: =SUMIF($B$4:$B$102, $B$6, F$4:F$102) -> 1.545423131 | G103: =SUMIF($B$4:$B$102, $B$6, G$4:G$102) -> 2.060082957 | H103: 2.063844926 | I103: 2.066860505 | J103: 2.068650488 | K103: 9.804862005 | L103: =SUM(F103:K103) -> 19.60972401
E105: Total allowance | F105: =Analysis!Q103 -> 1.545423131 | G105: =Analysis!R103 -> 2.060082957 | H105: =Analysis!S103 -> 2.063844926 | I105: =Analysis!T103 -> 2.066860505 | J105: =Analysis!U103 -> 2.068650488
C107: F_outputs - Errors on sheet | D107: =IF(SUM(F107:J107)>0,1,0) -> 0 | F107: =IF(ABS(F103-F105)>CHK_TOL,1,0) -> 0 | G107: =IF(ABS(G103-G105)>CHK_TOL,1,0) -> 0 | H107: =IF(ABS(H103-H105)>CHK_TOL,1,0) -> 0 | I107: =IF(ABS(I103-I105)>CHK_TOL,1,0) -> 0 | J107: =IF(ABS(J103-J105)>CHK_TOL,1,0) -> 0

Sheet F_Inputs(APR)_chk
A1: =RIGHT(CELL("filename", A1), LEN(CELL("filename", A1)) - SEARCH("]", CELL("filename", A1))) -> F_Inputs(APR)_chk | D1: =A1&" - Errors on sheet" -> F_Inputs(APR)_chk - Errors on sheet | E1: =D101 -> 0
A2: =Time!E2 -> Model period ending | D2: Error chks | E2: =Check!$F$9 -> 0 | F2: ='F_Inputs (APR)'!F2 -> 2018-19 | G2: ='F_Inputs (APR)'!G2 -> 2019-20 | H2: ='F_Inputs (APR)'!H2 -> 2020-21 | I2: ='F_Inputs (APR)'!I2 -> 2021-22 | J2: ='F_Inputs (APR)'!J2 -> 2022-23
A3: =Time!E3 -> Timeline label
F4: ='F_Inputs (APR)'!F4 -> Cyclical | G4: ='F_Inputs (APR)'!G4 -> Cyclical | H4: ='F_Inputs (APR)'!H4 -> Cyclical | I4: ='F_Inputs (APR)'!I4 -> Cyclical | J4: ='F_Inputs (APR)'!J4 -> Cyclical
F5: ='F_Inputs (APR)'!F5 -> Default for Cyclical base run | G5: ='F_Inputs (APR)'!G5 -> Default for Cyclical base run | H5: ='F_Inputs (APR)'!H5 -> Default for Cyclical base run | I5: ='F_Inputs (APR)'!I5 -> Default for Cyclical base run | J5: ='F_Inputs (APR)'!J5 -> Default for Cyclical base run
A6: Acronym | B6: Reference | C6: Item description | D6: Unit | E6: Model | F6: ='F_Inputs (APR)'!F6 -> Latest | G6: ='F_Inputs (APR)'!G6 -> Latest | H6: ='F_Inputs (APR)'!H6 -> Latest | I6: ='F_Inputs (APR)'!I6 -> Latest | J6: ='F_Inputs (APR)'!J6 -> Latest
A7: ='F_Inputs (APR)'!A7 -> ANH | B7: ='F_Inputs (APR)'!B7 -> W3036SL | C7: ='F_Inputs (APR)'!C7 -> Costs associated with Industrial Emissions Directive - Sludge | D7: ='F_Inputs (APR)'!D7 -> £m | E7: ='F_Inputs (APR)'!E7 -> Cyclical Foundation | F7: ='F_Inputs (APR)'!F7 -> 0 | G7: ='F_Inputs (APR)'!G7 -> 0 | H7: ='F_Inputs (APR)'!H7 ->  | I7: ='F_Inputs (APR)'!I7 ->  | J7: ='F_Inputs (APR)'!J7 -> 
A8: ='F_Inputs (APR)'!A8 -> ANH | B8: ='F_Inputs (APR)'!B8 -> W3036OTHTOT | C8: ='F_Inputs (APR)'!C8 -> Costs associated with Industrial Emissions Directive - Advanced AD | D8: ='F_Inputs (APR)'!D8 -> £m | E8: ='F_Inputs (APR)'!E8 -> Cyclical Foundation | F8: ='F_Inputs (APR)'!F8 -> 0 | G8: ='F_Inputs (APR)'!G8 -> 0 | H8: ='F_Inputs (APR)'!H8 ->  | I8: ='F_Inputs (APR)'!I8 ->  | J8: ='F_Inputs (APR)'!J8 -> 
A9: ='F_Inputs (APR)'!A9 -> ANH | B9: ='F_Inputs (APR)'!B9 -> WWS1105STP | C9: ='F_Inputs (APR)'!C9 -> Other expenditure - Costs associated with Industrial Emissions Directive - Sludge Transport | D9: ='F_Inputs (APR)'!D9 -> £m | E9: ='F_Inputs (APR)'!E9 -> Cyclical Foundation | F9: ='F_Inputs (APR)'!F9 ->  | G9: ='F_Inputs (APR)'!G9 ->  | H9: ='F_Inputs (APR)'!H9 -> 0 | I9: ='F_Inputs (APR)'!I9 -> 0 | J9: ='F_Inputs (APR)'!J9 -> 0
A10: ='F_Inputs (APR)'!A10 -> ANH | B10: ='F_Inputs (APR)'!B10 -> WWS1105SDT | C10: ='F_Inputs (APR)'!C10 -> Other expenditure - Costs associated with Industrial Emissions Directive - Sludge Treatment | D10: ='F_Inputs (APR)'!D10 -> £m | E10: ='F_Inputs (APR)'!E10 -> Cyclical Foundation | F10: ='F_Inputs (APR)'!F10 ->  | G10: ='F_Inputs (APR)'!G10 ->  | H10: ='F_Inputs (APR)'!H10 -> 0 | I10: ='F_Inputs (APR)'!I10 -> 0 | J10: ='F_Inputs (APR)'!J10 -> 0
A11: ='F_Inputs (APR)'!A11 -> ANH | B11: ='F_Inputs (APR)'!B11 -> WWS1105SDD | C11: ='F_Inputs (APR)'!C11 -> Other expenditure - Costs associated with Industrial Emissions Directive - Sludge Disposal | D11: ='F_Inputs (APR)'!D11 -> £m | E11: ='F_Inputs (APR)'!E11 -> Cyclical Foundation | F11: ='F_Inputs (APR)'!F11 ->  | G11: ='F_Inputs (APR)'!G11 ->  | H11: ='F_Inputs (APR)'!H11 -> 0 | I11: ='F_Inputs (APR)'!I11 -> 0 | J11: ='F_Inputs (APR)'!J11 -> 0
A12: ='F_Inputs (APR)'!A12 -> ANH | B12: ='F_Inputs (APR)'!B12 -> WWS1105CAS | C12: ='F_Inputs (APR)'!C12 -> Other expenditure - Costs associated with Industrial Emissions Directive - Total | D12: ='F_Inputs (APR)'!D12 -> £m | E12: ='F_Inputs (APR)'!E12 -> Cyclical Foundation | F12: ='F_Inputs (APR)'!F12 ->  | G12: ='F_Inputs (APR)'!G12 ->  | H12: ='F_Inputs (APR)'!H12 -> 0 | I12: ='F_Inputs (APR)'!I12 -> 0 | J12: ='F_Inputs (APR)'!J12 -> 0
A13: ='F_Inputs (APR)'!A13 -> WSH | B13: ='F_Inputs (APR)'!B13 -> W3036SL | C13: ='F_Inputs (APR)'!C13 -> Costs associated with Industrial Emissions Directive - Sludge | D13: ='F_Inputs (APR)'!D13 -> £m | E13: ='F_Inputs (APR)'!E13 -> Cyclical Foundation | F13: ='F_Inputs (APR)'!F13 -> 0.026 | G13: ='F_Inputs (APR)'!G13 -> 0.048 | H13: ='F_Inputs (APR)'!H13 ->  | I13: ='F_Inputs (APR)'!I13 ->  | J13: ='F_Inputs (APR)'!J13 -> 
A14: ='F_Inputs (APR)'!A14 -> WSH | B14: ='F_Inputs (APR)'!B14 -> W3036OTHTOT | C14: ='F_Inputs (APR)'!C14 -> Costs associated with Industrial Emissions Directive - Advanced AD | D14: ='F_Inputs (APR)'!D14 -> £m | E14: ='F_Inputs (APR)'!E14 -> Cyclical Foundation | F14: ='F_Inputs (APR)'!F14 -> 0.026 | G14: ='F_Inputs (APR)'!G14 -> 0.048 | H14: ='F_Inputs (APR)'!H14 ->  | I14: ='F_Inputs (APR)'!I14 ->  | J14: ='F_Inputs (APR)'!J14 -> 
A15: ='F_Inputs (APR)'!A15 -> WSH | B15: ='F_Inputs (APR)'!B15 -> WWS1105STP | C15: ='F_Inputs (APR)'!C15 -> Other expenditure - Costs associated with Industrial Emissions Directive - Sludge Transport | D15: ='F_Inputs (APR)'!D15 -> £m | E15: ='F_Inputs (APR)'!E15 -> Cyclical Foundation | F15: ='F_Inputs (APR)'!F15 ->  | G15: ='F_Inputs (APR)'!G15 ->  | H15: ='F_Inputs (APR)'!H15 -> 0 | I15: ='F_Inputs (APR)'!I15 -> 0 | J15: ='F_Inputs (APR)'!J15 -> 0
A16: ='F_Inputs (APR)'!A16 -> WSH | B16: ='F_Inputs (APR)'!B16 -> WWS1105SDT | C16: ='F_Inputs (APR)'!C16 -> Other expenditure - Costs associated with Industrial Emissions Directive - Sludge Treatment | D16: ='F_Inputs (APR)'!D16 -> £m | E16: ='F_Inputs (APR)'!E16 -> Cyclical Foundation | F16: ='F_Inputs (APR)'!F16 ->  | G16: ='F_Inputs (APR)'!G16 ->  | H16: ='F_Inputs (APR)'!H16 -> 0.034 | I16: ='F_Inputs (APR)'!I16 -> 0.034 | J16: ='F_Inputs (APR)'!J16 -> 0.027
A17: ='F_Inputs (APR)'!A17 -> WSH | B17: ='F_Inputs (APR)'!B17 -> WWS1105SDD | C17: ='F_Inputs (APR)'!C17 -> Other expenditure - Costs associated with Industrial Emissions Directive - Sludge Disposal | D17: ='F_Inputs (APR)'!D17 -> £m | E17: ='F_Inputs (APR)'!E17 -> Cyclical Foundation | F17: ='F_Inputs (APR)'!F17 ->  | G17: ='F_Inputs (APR)'!G17 ->  | H17: ='F_Inputs (APR)'!H17 -> 0 | I17: ='F_Inputs (APR)'!I17 -> 0 | J17: ='F_Inputs (APR)'!J17 -> 0
A18: ='F_Inputs (APR)'!A18 -> WSH | B18: ='F_Inputs (APR)'!B18 -> WWS1105CAS | C18: ='F_Inputs (APR)'!C18 -> Other expenditure - Costs associated with Industrial Emissions Directive - Total | D18: ='F_Inputs (APR)'!D18 -> £m | E18: ='F_Inputs (APR)'!E18 -> Cyclical Foundation | F18: ='F_Inputs (APR)'!F18 ->  | G18: ='F_Inputs (APR)'!G18 ->  | H18: ='F_Inputs (APR)'!H18 -> 0.034 | I18: ='F_Inputs (APR)'!I18 -> 0.034 | J18: ='F_Inputs (APR)'!J18 -> 0.027
A19: ='F_Inputs (APR)'!A19 -> HDD | B19: ='F_Inputs (APR)'!B19 -> W3036SL | C19: ='F_Inputs (APR)'!C19 -> Costs associated with Industrial Emissions Directive - Sludge | D19: ='F_Inputs (APR)'!D19 -> £m | E19: ='F_Inputs (APR)'!E19 -> Cyclical Foundation | F19: ='F_Inputs (APR)'!F19 -> 0 | G19: ='F_Inputs (APR)'!G19 -> 0 | H19: ='F_Inputs (APR)'!H19 ->  | I19: ='F_Inputs (APR)'!I19 ->  | J19: ='F_Inputs (APR)'!J19 -> 
A20: ='F_Inputs (APR)'!A20 -> HDD | B20: ='F_Inputs (APR)'!B20 -> W3036OTHTOT | C20: ='F_Inputs (APR)'!C20 -> Costs associated with Industrial Emissions Directive - Advanced AD | D20: ='F_Inputs (APR)'!D20 -> £m | E20: ='F_Inputs (APR)'!E20 -> Cyclical Foundation | F20: ='F_Inputs (APR)'!F20 -> 0 | G20: ='F_Inputs (APR)'!G20 -> 0 | H20: ='F_Inputs (APR)'!H20 ->  | I20: ='F_Inputs (APR)'!I20 ->  | J20: ='F_Inputs (APR)'!J20 -> 
A21: ='F_Inputs (APR)'!A21 -> HDD | B21: ='F_Inputs (APR)'!B21 -> WWS1105STP | C21: ='F_Inputs (APR)'!C21 -> Other expenditure - Costs associated with Industrial Emissions Directive - Sludge Transport | D21: ='F_Inputs (APR)'!D21 -> £m | E21: ='F_Inputs (APR)'!E21 -> Cyclical Foundation | F21: ='F_Inputs (APR)'!F21 ->  | G21: ='F_Inputs (APR)'!G21 ->  | H21: ='F_Inputs (APR)'!H21 -> 0 | I21: ='F_Inputs (APR)'!I21 -> 0 | J21: ='F_Inputs (APR)'!J21 -> 0
A22: ='F_Inputs (APR)'!A22 -> HDD | B22: ='F_Inputs (APR)'!B22 -> WWS1105SDT | C22: ='F_Inputs (APR)'!C22 -> Other expenditure - Costs associated with Industrial Emissions Directive - Sludge Treatment | D22: ='F_Inputs (APR)'!D22 -> £m | E22: ='F_Inputs (APR)'!E22 -> Cyclical Foundation | F22: ='F_Inputs (APR)'!F22 ->  | G22: ='F_Inputs (APR)'!G22 ->  | H22: ='F_Inputs (APR)'!H22 -> 0 | I22: ='F_Inputs (APR)'!I22 -> 0 | J22: ='F_Inputs (APR)'!J22 -> 0
A23: ='F_Inputs (APR)'!A23 -> HDD | B23: ='F_Inputs (APR)'!B23 -> WWS1105SDD | C23: ='F_Inputs (APR)'!C23 -> Other expenditure - Costs associated with Industrial Emissions Directive - Sludge Disposal | D23: ='F_Inputs (APR)'!D23 -> £m | E23: ='F_Inputs (APR)'!E23 -> Cyclical Foundation | F23: ='F_Inputs (APR)'!F23 ->  | G23: ='F_Inputs (APR)'!G23 ->  | H23: ='F_Inputs (APR)'!H23 -> 0 | I23: ='F_Inputs (APR)'!I23 -> 0 | J23: ='F_Inputs (APR)'!J23 -> 0
A24: ='F_Inputs (APR)'!A24 -> HDD | B24: ='F_Inputs (APR)'!B24 -> WWS1105CAS | C24: ='F_Inputs (APR)'!C24 -> Other expenditure - Costs associated with Industrial Emissions Directive - Total | D24: ='F_Inputs (APR)'!D24 -> £m | E24: ='F_Inputs (APR)'!E24 -> Cyclical Foundation | F24: ='F_Inputs (APR)'!F24 ->  | G24: ='F_Inputs (APR)'!G24 ->  | H24: ='F_Inputs (APR)'!H24 -> 0 | I24: ='F_Inputs (APR)'!I24 -> 0 | J24: ='F_Inputs (APR)'!J24 -> 0
A25: ='F_Inputs (APR)'!A25 -> NES | B25: ='F_Inputs (APR)'!B25 -> W3036SL | C25: ='F_Inputs (APR)'!C25 -> Costs associated with Industrial Emissions Directive - Sludge | D25: ='F_Inputs (APR)'!D25 -> £m | E25: ='F_Inputs (APR)'!E25 -> Cyclical Foundation | F25: ='F_Inputs (APR)'!F25 -> 0 | G25: ='F_Inputs (APR)'!G25 -> 0 | H25: ='F_Inputs (APR)'!H25 ->  | I25: ='F_Inputs (APR)'!I25 ->  | J25: ='F_Inputs (APR)'!J25 -> 
A26: ='F_Inputs (APR)'!A26 -> NES | B26: ='F_Inputs (APR)'!B26 -> W3036OTHTOT | C26: ='F_Inputs (APR)'!C26 -> Costs associated with Industrial Emissions Directive - Advanced AD | D26: ='F_Inputs (APR)'!D26 -> £m | E26: ='F_Inputs (APR)'!E26 -> Cyclical Foundation | F26: ='F_Inputs (APR)'!F26 -> 0 | G26: ='F_Inputs (APR)'!G26 -> 0 | H26: ='F_Inputs (APR)'!H26 ->  | I26: ='F_Inputs (APR)'!I26 ->  | J26: ='F_Inputs (APR)'!J26 -> 
A27: ='F_Inputs (APR)'!A27 -> NES | B27: ='F_Inputs (APR)'!B27 -> WWS1105STP | C27: ='F_Inputs (APR)'!C27 -> Other expenditure - Costs associated with Industrial Emissions Directive - Sludge Transport | D27: ='F_Inputs (APR)'!D27 -> £m | E27: ='F_Inputs (APR)'!E27 -> Cyclical Foundation | F27: ='F_Inputs (APR)'!F27 ->  | G27: ='F_Inputs (APR)'!G27 ->  | H27: ='F_Inputs (APR)'!H27 -> 0 | I27: ='F_Inputs (APR)'!I27 -> 0 | J27: ='F_Inputs (APR)'!J27 -> 0
A28: ='F_Inputs (APR)'!A28 -> NES | B28: ='F_Inputs (APR)'!B28 -> WWS1105SDT | C28: ='F_Inputs (APR)'!C28 -> Other expenditure - Costs associated with Industrial Emissions Directive - Sludge Treatment | D28: ='F_Inputs (APR)'!D28 -> £m | E28: ='F_Inputs (APR)'!E28 -> Cyclical Foundation | F28: ='F_Inputs (APR)'!F28 ->  | G28: ='F_Inputs (APR)'!G28 ->  | H28: ='F_Inputs (APR)'!H28 -> 0 | I28: ='F_Inputs (APR)'!I28 -> 0 | J28: ='F_Inputs (APR)'!J28 -> 0
A29: ='F_Inputs (APR)'!A29 -> NES | B29: ='F_Inputs (APR)'!B29 -> WWS1105SDD | C29: ='F_Inputs (APR)'!C29 -> Other expenditure - Costs associated with Industrial Emissions Directive - Sludge Disposal | D29: ='F_Inputs (APR)'!D29 -> £m | E29: ='F_Inputs (APR)'!E29 -> Cyclical Foundation | F29: ='F_Inputs (APR)'!F29 ->  | G29: ='F_Inputs (APR)'!G29 ->  | H29: ='F_Inputs (APR)'!H29 -> 0 | I29: ='F_Inputs (APR)'!I29 -> 0 | J29: ='F_Inputs (APR)'!J29 -> 0
A30: ='F_Inputs (APR)'!A30 -> NES | B30: ='F_Inputs (APR)'!B30 -> WWS1105CAS | C30: ='F_Inputs (APR)'!C30 -> Other expenditure - Costs associated with Industrial Emissions Directive - Total | D30: ='F_Inputs (APR)'!D30 -> £m | E30: ='F_Inputs (APR)'!E30 -> Cyclical Foundation | F30: ='F_Inputs (APR)'!F30 ->  | G30: ='F_Inputs (APR)'!G30 ->  | H30: ='F_Inputs (APR)'!H30 -> 0 | I30: ='F_Inputs (APR)'!I30 -> 0 | J30: ='F_Inputs (APR)'!J30 -> 0
A31: ='F_Inputs (APR)'!A31 -> SVE | B31: ='F_Inputs (APR)'!B31 -> W3036SL | C31: ='F_Inputs (APR)'!C31 -> Costs associated with Industrial Emissions Directive - Sludge | D31: ='F_Inputs (APR)'!D31 -> £m | E31: ='F_Inputs (APR)'!E31 -> Cyclical Foundation | F31: ='F_Inputs (APR)'!F31 -> 0.139 | G31: ='F_Inputs (APR)'!G31 -> 0.16 | H31: ='F_Inputs (APR)'!H31 ->  | I31: ='F_Inputs (APR)'!I31 ->  | J31: ='F_Inputs (APR)'!J31 -> 
A32: ='F_Inputs (APR)'!A32 -> SVE | B32: ='F_Inputs (APR)'!B32 -> W3036OTHTOT | C32: ='F_Inputs (APR)'!C32 -> Costs associated with Industrial Emissions Directive - Advanced AD | D32: ='F_Inputs (APR)'!D32 -> £m | E32: ='F_Inputs (APR)'!E32 -> Cyclical Foundation | F32: ='F_Inputs (APR)'!F32 -> 0.139 | G32: ='F_Inputs (APR)'!G32 -> 0.16 | H32: ='F_Inputs (APR)'!H32 ->  | I32: ='F_Inputs (APR)'!I32 ->  | J32: ='F_Inputs (APR)'!J32 -> 
A33: ='F_Inputs (APR)'!A33 -> SVE | B33: ='F_Inputs (APR)'!B33 -> WWS1105STP | C33: ='F_Inputs (APR)'!C33 -> Other expenditure - Costs associated with Industrial Emissions Directive - Sludge Transport | D33: ='F_Inputs (APR)'!D33 -> £m | E33: ='F_Inputs (APR)'!E33 -> Cyclical Foundation | F33: ='F_Inputs (APR)'!F33 ->  | G33: ='F_Inputs (APR)'!G33 ->  | H33: ='F_Inputs (APR)'!H33 -> 0 | I33: ='F_Inputs (APR)'!I33 -> 0 | J33: ='F_Inputs (APR)'!J33 -> 0
A34: ='F_Inputs (APR)'!A34 -> SVE | B34: ='F_Inputs (APR)'!B34 -> WWS1105SDT | C34: ='F_Inputs (APR)'!C34 -> Other expenditure - Costs associated with Industrial Emissions Directive - Sludge Treatment | D34: ='F_Inputs (APR)'!D34 -> £m | E34: ='F_Inputs (APR)'!E34 -> Cyclical Foundation | F34: ='F_Inputs (APR)'!F34 ->  | G34: ='F_Inputs (APR)'!G34 ->  | H34: ='F_Inputs (APR)'!H34 -> 0 | I34: ='F_Inputs (APR)'!I34 -> 0 | J34: ='F_Inputs (APR)'!J34 -> 0.117
A35: ='F_Inputs (APR)'!A35 -> SVE | B35: ='F_Inputs (APR)'!B35 -> WWS1105SDD | C35: ='F_Inputs (APR)'!C35 -> Other expenditure - Costs associated with Industrial Emissions Directive - Sludge Disposal | D35: ='F_Inputs (APR)'!D35 -> £m | E35: ='F_Inputs (APR)'!E35 -> Cyclical Foundation | F35: ='F_Inputs (APR)'!F35 ->  | G35: ='F_Inputs (APR)'!G35 ->  | H35: ='F_Inputs (APR)'!H35 -> 0 | I35: ='F_Inputs (APR)'!I35 -> 0 | J35: ='F_Inputs (APR)'!J35 -> 0
A36: ='F_Inputs (APR)'!A36 -> SVE | B36: ='F_Inputs (APR)'!B36 -> WWS1105CAS | C36: ='F_Inputs (APR)'!C36 -> Other expenditure - Costs associated with Industrial Emissions Directive - Total | D36: ='F_Inputs (APR)'!D36 -> £m | E36: ='F_Inputs (APR)'!E36 -> Cyclical Foundation | F36: ='F_Inputs (APR)'!F36 ->  | G36: ='F_Inputs (APR)'!G36 ->  | H36: ='F_Inputs (APR)'!H36 -> 0 | I36: ='F_Inputs (APR)'!I36 -> 0 | J36: ='F_Inputs (APR)'!J36 -> 0.117
A37: ='F_Inputs (APR)'!A37 -> SWB | B37: ='F_Inputs (APR)'!B37 -> W3036SL | C37: ='F_Inputs (APR)'!C37 -> Costs associated with Industrial Emissions Directive - Sludge | D37: ='F_Inputs (APR)'!D37 -> £m | E37: ='F_Inputs (APR)'!E37 -> Cyclical Foundation | F37: ='F_Inputs (APR)'!F37 -> 0 | G37: ='F_Inputs (APR)'!G37 -> 0 | H37: ='F_Inputs (APR)'!H37 ->  | I37: ='F_Inputs (APR)'!I37 ->  | J37: ='F_Inputs (APR)'!J37 -> 
A38: ='F_Inputs (APR)'!A38 -> SWB | B38: ='F_Inputs (APR)'!B38 -> W3036OTHTOT | C38: ='F_Inputs (APR)'!C38 -> Costs associated with Industrial Emissions Directive - Advanced AD | D38: ='F_Inputs (APR)'!D38 -> £m | E38: ='F_Inputs (APR)'!E38 -> Cyclical Foundation | F38: ='F_Inputs (APR)'!F38 -> 0 | G38: ='F_Inputs (APR)'!G38 -> 0 | H38: ='F_Inputs (APR)'!H38 ->  | I38: ='F_Inputs (APR)'!I38 ->  | J38: ='F_Inputs (APR)'!J38 -> 
A39: ='F_Inputs (APR)'!A39 -> SWB | B39: ='F_Inputs (APR)'!B39 -> WWS1105STP | C39: ='F_Inputs (APR)'!C39 -> Other expenditure - Costs associated with Industrial Emissions Directive - Sludge Transport | D39: ='F_Inputs (APR)'!D39 -> £m | E39: ='F_Inputs (APR)'!E39 -> Cyclical Foundation | F39: ='F_Inputs (APR)'!F39 ->  | G39: ='F_Inputs (APR)'!G39 ->  | H39: ='F_Inputs (APR)'!H39 -> 0 | I39: ='F_Inputs (APR)'!I39 -> 0 | J39: ='F_Inputs (APR)'!J39 -> 0
A40: ='F_Inputs (APR)'!A40 -> SWB | B40: ='F_Inputs (APR)'!B40 -> WWS1105SDT | C40: ='F_Inputs (APR)'!C40 -> Other expenditure - Costs associated with Industrial Emissions Directive - Sludge Treatment | D40: ='F_Inputs (APR)'!D40 -> £m | E40: ='F_Inputs (APR)'!E40 -> Cyclical Foundation | F40: ='F_Inputs (APR)'!F40 ->  | G40: ='F_Inputs (APR)'!G40 ->  | H40: ='F_Inputs (APR)'!H40 -> 0 | I40: ='F_Inputs (APR)'!I40 -> 0 | J40: ='F_Inputs (APR)'!J40 -> 0
A41: ='F_Inputs (APR)'!A41 -> SWB | B41: ='F_Inputs (APR)'!B41 -> WWS1105SDD | C41: ='F_Inputs (APR)'!C41 -> Other expenditure - Costs associated with Industrial Emissions Directive - Sludge Disposal | D41: ='F_Inputs (APR)'!D41 -> £m | E41: ='F_Inputs (APR)'!E41 -> Cyclical Foundation | F41: ='F_Inputs (APR)'!F41 ->  | G41: ='F_Inputs (APR)'!G41 ->  | H41: ='F_Inputs (APR)'!H41 -> 0 | I41: ='F_Inputs (APR)'!I41 -> 0 | J41: ='F_Inputs (APR)'!J41 -> 0
A42: ='F_Inputs (APR)'!A42 -> SWB | B42: ='F_Inputs (APR)'!B42 -> WWS1105CAS | C42: ='F_Inputs (APR)'!C42 -> Other expenditure - Costs associated with Industrial Emissions Directive - Total | D42: ='F_Inputs (APR)'!D42 -> £m | E42: ='F_Inputs (APR)'!E42 -> Cyclical Foundation | F42: ='F_Inputs (APR)'!F42 ->  | G42: ='F_Inputs (APR)'!G42 ->  | H42: ='F_Inputs (APR)'!H42 -> 0 | I42: ='F_Inputs (APR)'!I42 -> 0 | J42: ='F_Inputs (APR)'!J42 -> 0
A43: ='F_Inputs (APR)'!A43 -> SRN | B43: ='F_Inputs (APR)'!B43 -> W3036SL | C43: ='F_Inputs (APR)'!C43 -> Costs associated with Industrial Emissions Directive - Sludge | D43: ='F_Inputs (APR)'!D43 -> £m | E43: ='F_Inputs (APR)'!E43 -> Cyclical Foundation | F43: ='F_Inputs (APR)'!F43 -> 0 | G43: ='F_Inputs (APR)'!G43 -> 0 | H43: ='F_Inputs (APR)'!H43 ->  | I43: ='F_Inputs (APR)'!I43 ->  | J43: ='F_Inputs (APR)'!J43 -> 
A44: ='F_Inputs (APR)'!A44 -> SRN | B44: ='F_Inputs (APR)'!B44 -> W3036OTHTOT | C44: ='F_Inputs (APR)'!C44 -> Costs associated with Industrial Emissions Directive - Advanced AD | D44: ='F_Inputs (APR)'!D44 -> £m | E44: ='F_Inputs (APR)'!E44 -> Cyclical Foundation | F44: ='F_Inputs (APR)'!F44 -> 0 | G44: ='F_Inputs (APR)'!G44 -> 0 | H44: ='F_Inputs (APR)'!H44 ->  | I44: ='F_Inputs (APR)'!I44 ->  | J44: ='F_Inputs (APR)'!J44 -> 
A45: ='F_Inputs (APR)'!A45 -> SRN | B45: ='F_Inputs (APR)'!B45 -> WWS1105STP | C45: ='F_Inputs (APR)'!C45 -> Other expenditure - Costs associated with Industrial Emissions Directive - Sludge Transport | D45: ='F_Inputs (APR)'!D45 -> £m | E45: ='F_Inputs (APR)'!E45 -> Cyclical Foundation | F45: ='F_Inputs (APR)'!F45 ->  | G45: ='F_Inputs (APR)'!G45 ->  | H45: ='F_Inputs (APR)'!H45 -> 0 | I45: ='F_Inputs (APR)'!I45 -> 0 | J45: ='F_Inputs (APR)'!J45 -> 0
A46: ='F_Inputs (APR)'!A46 -> SRN | B46: ='F_Inputs (APR)'!B46 -> WWS1105SDT | C46: ='F_Inputs (APR)'!C46 -> Other expenditure - Costs associated with Industrial Emissions Directive - Sludge Treatment | D46: ='F_Inputs (APR)'!D46 -> £m | E46: ='F_Inputs (APR)'!E46 -> Cyclical Foundation | F46: ='F_Inputs (APR)'!F46 ->  | G46: ='F_Inputs (APR)'!G46 ->  | H46: ='F_Inputs (APR)'!H46 -> 0 | I46: ='F_Inputs (APR)'!I46 -> 0 | J46: ='F_Inputs (APR)'!J46 -> 0
A47: ='F_Inputs (APR)'!A47 -> SRN | B47: ='F_Inputs (APR)'!B47 -> WWS1105SDD | C47: ='F_Inputs (APR)'!C47 -> Other expenditure - Costs associated with Industrial Emissions Directive - Sludge Disposal | D47: ='F_Inputs (APR)'!D47 -> £m | E47: ='F_Inputs (APR)'!E47 -> Cyclical Foundation | F47: ='F_Inputs (APR)'!F47 ->  | G47: ='F_Inputs (APR)'!G47 ->  | H47: ='F_Inputs (APR)'!H47 -> 0 | I47: ='F_Inputs (APR)'!I47 -> 0 | J47: ='F_Inputs (APR)'!J47 -> 0
A48: ='F_Inputs (APR)'!A48 -> SRN | B48: ='F_Inputs (APR)'!B48 -> WWS1105CAS | C48: ='F_Inputs (APR)'!C48 -> Other expenditure - Costs associated with Industrial Emissions Directive - Total | D48: ='F_Inputs (APR)'!D48 -> £m | E48: ='F_Inputs (APR)'!E48 -> Cyclical Foundation | F48: ='F_Inputs (APR)'!F48 ->  | G48: ='F_Inputs (APR)'!G48 ->  | H48: ='F_Inputs (APR)'!H48 -> 0 | I48: ='F_Inputs (APR)'!I48 -> 0.083 | J48: ='F_Inputs (APR)'!J48 -> 0
A49: ='F_Inputs (APR)'!A49 -> TMS | B49: ='F_Inputs (APR)'!B49 -> W3036SL | C49: ='F_Inputs (APR)'!C49 -> Costs associated with Industrial Emissions Directive - Sludge | D49: ='F_Inputs (APR)'!D49 -> £m | E49: ='F_Inputs (APR)'!E49 -> Cyclical Foundation | F49: ='F_Inputs (APR)'!F49 -> 0.054 | G49: ='F_Inputs (APR)'!G49 -> 0.068 | H49: ='F_Inputs (APR)'!H49 ->  | I49: ='F_Inputs (APR)'!I49 ->  | J49: ='F_Inputs (APR)'!J49 -> 
A50: ='F_Inputs (APR)'!A50 -> TMS | B50: ='F_Inputs (APR)'!B50 -> W3036OTHTOT | C50: ='F_Inputs (APR)'!C50 -> Costs associated with Industrial Emissions Directive - Advanced AD | D50: ='F_Inputs (APR)'!D50 -> £m | E50: ='F_Inputs (APR)'!E50 -> Cyclical Foundation | F50: ='F_Inputs (APR)'!F50 -> 0.054 | G50: ='F_Inputs (APR)'!G50 -> 0.068 | H50: ='F_Inputs (APR)'!H50 ->  | I50: ='F_Inputs (APR)'!I50 ->  | J50: ='F_Inputs (APR)'!J50 -> 
A51: ='F_Inputs (APR)'!A51 -> TMS | B51: ='F_Inputs (APR)'!B51 -> WWS1105STP | C51: ='F_Inputs (APR)'!C51 -> Other expenditure - Costs associated with Industrial Emissions Directive - Sludge Transport | D51: ='F_Inputs (APR)'!D51 -> £m | E51: ='F_Inputs (APR)'!E51 -> Cyclical Foundation | F51: ='F_Inputs (APR)'!F51 ->  | G51: ='F_Inputs (APR)'!G51 ->  | H51: ='F_Inputs (APR)'!H51 -> 0 | I51: ='F_Inputs (APR)'!I51 -> 0 | J51: ='F_Inputs (APR)'!J51 -> 0
A52: ='F_Inputs (APR)'!A52 -> TMS | B52: ='F_Inputs (APR)'!B52 -> WWS1105SDT | C52: ='F_Inputs (APR)'!C52 -> Other expenditure - Costs associated with Industrial Emissions Directive - Sludge Treatment | D52: ='F_Inputs (APR)'!D52 -> £m | E52: ='F_Inputs (APR)'!E52 -> Cyclical Foundation | F52: ='F_Inputs (APR)'!F52 ->  | G52: ='F_Inputs (APR)'!G52 ->  | H52: ='F_Inputs (APR)'!H52 -> 0.042 | I52: ='F_Inputs (APR)'!I52 -> 0.029 | J52: ='F_Inputs (APR)'!J52 -> 0.053
A53: ='F_Inputs (APR)'!A53 -> TMS | B53: ='F_Inputs (APR)'!B53 -> WWS1105SDD | C53: ='F_Inputs (APR)'!C53 -> Other expenditure - Costs associated with Industrial Emissions Directive - Sludge Disposal | D53: ='F_Inputs (APR)'!D53 -> £m | E53: ='F_Inputs (APR)'!E53 -> Cyclical Foundation | F53: ='F_Inputs (APR)'!F53 ->  | G53: ='F_Inputs (APR)'!G53 ->  | H53: ='F_Inputs (APR)'!H53 -> 0 | I53: ='F_Inputs (APR)'!I53 -> 0 | J53: ='F_Inputs (APR)'!J53 -> 0
A54: ='F_Inputs (APR)'!A54 -> TMS | B54: ='F_Inputs (APR)'!B54 -> WWS1105CAS | C54: ='F_Inputs (APR)'!C54 -> Other expenditure - Costs associated with Industrial Emissions Directive - Total | D54: ='F_Inputs (APR)'!D54 -> £m | E54: ='F_Inputs (APR)'!E54 -> Cyclical Foundation | F54: ='F_Inputs (APR)'!F54 ->  | G54: ='F_Inputs (APR)'!G54 ->  | H54: ='F_Inputs (APR)'!H54 -> 0.042 | I54: ='F_Inputs (APR)'!I54 -> 0.029 | J54: ='F_Inputs (APR)'!J54 -> 0.053
A55: ='F_Inputs (APR)'!A55 -> NWT | B55: ='F_Inputs (APR)'!B55 -> W3036SL | C55: ='F_Inputs (APR)'!C55 -> Costs associated with Industrial Emissions Directive - Sludge | D55: ='F_Inputs (APR)'!D55 -> £m | E55: ='F_Inputs (APR)'!E55 -> Cyclical Foundation | F55: ='F_Inputs (APR)'!F55 -> 1.527557966 | G55: ='F_Inputs (APR)'!G55 -> 1.165458928 | H55: ='F_Inputs (APR)'!H55 ->  | I55: ='F_Inputs (APR)'!I55 ->  | J55: ='F_Inputs (APR)'!J55 -> 
A56: ='F_Inputs (APR)'!A56 -> NWT | B56: ='F_Inputs (APR)'!B56 -> W3036OTHTOT | C56: ='F_Inputs (APR)'!C56 -> Costs associated with Industrial Emissions Directive - Advanced AD | D56: ='F_Inputs (APR)'!D56 -> £m | E56: ='F_Inputs (APR)'!E56 -> Cyclical Foundation | F56: ='F_Inputs (APR)'!F56 -> 1.527557966 | G56: ='F_Inputs (APR)'!G56 -> 1.165458928 | H56: ='F_Inputs (APR)'!H56 ->  | I56: ='F_Inputs (APR)'!I56 ->  | J56: ='F_Inputs (APR)'!J56 -> 
A57: ='F_Inputs (APR)'!A57 -> NWT | B57: ='F_Inputs (APR)'!B57 -> WWS1105STP | C57: ='F_Inputs (APR)'!C57 -> Other expenditure - Costs associated with Industrial Emissions Directive - Sludge Transport | D57: ='F_Inputs (APR)'!D57 -> £m | E57: ='F_Inputs (APR)'!E57 -> Cyclical Foundation | F57: ='F_Inputs (APR)'!F57 ->  | G57: ='F_Inputs (APR)'!G57 ->  | H57: ='F_Inputs (APR)'!H57 -> 0 | I57: ='F_Inputs (APR)'!I57 -> 0 | J57: ='F_Inputs (APR)'!J57 -> 0
A58: ='F_Inputs (APR)'!A58 -> NWT | B58: ='F_Inputs (APR)'!B58 -> WWS1105SDT | C58: ='F_Inputs (APR)'!C58 -> Other expenditure - Costs associated with Industrial Emissions Directive - Sludge Treatment | D58: ='F_Inputs (APR)'!D58 -> £m | E58: ='F_Inputs (APR)'!E58 -> Cyclical Foundation | F58: ='F_Inputs (APR)'!F58 ->  | G58: ='F_Inputs (APR)'!G58 ->  | H58: ='F_Inputs (APR)'!H58 -> 1.089157745 | I58: ='F_Inputs (APR)'!I58 -> 1.138719959 | J58: ='F_Inputs (APR)'!J58 -> 1.075316214
A59: ='F_Inputs (APR)'!A59 -> NWT | B59: ='F_Inputs (APR)'!B59 -> WWS1105SDD | C59: ='F_Inputs (APR)'!C59 -> Other expenditure - Costs associated with Industrial Emissions Directive - Sludge Disposal | D59: ='F_Inputs (APR)'!D59 -> £m | E59: ='F_Inputs (APR)'!E59 -> Cyclical Foundation | F59: ='F_Inputs (APR)'!F59 ->  | G59: ='F_Inputs (APR)'!G59 ->  | H59: ='F_Inputs (APR)'!H59 -> 0 | I59: ='F_Inputs (APR)'!I59 -> 0 | J59: ='F_Inputs (APR)'!J59 -> 0
A60: ='F_Inputs (APR)'!A60 -> NWT | B60: ='F_Inputs (APR)'!B60 -> WWS1105CAS | C60: ='F_Inputs (APR)'!C60 -> Other expenditure - Costs associated with Industrial Emissions Directive - Total | D60: ='F_Inputs (APR)'!D60 -> £m | E60: ='F_Inputs (APR)'!E60 -> Cyclical Foundation | F60: ='F_Inputs (APR)'!F60 ->  | G60: ='F_Inputs (APR)'!G60 ->  | H60: ='F_Inputs (APR)'!H60 -> 1.192403451 | I60: ='F_Inputs (APR)'!I60 -> 1.260744537 | J60: ='F_Inputs (APR)'!J60 -> 1.180435701
A61: ='F_Inputs (APR)'!A61 -> WSX | B61: ='F_Inputs (APR)'!B61 -> W3036SL | C61: ='F_Inputs (APR)'!C61 -> Costs associated with Industrial Emissions Directive - Sludge | D61: ='F_Inputs (APR)'!D61 -> £m | E61: ='F_Inputs (APR)'!E61 -> Cyclical Foundation | F61: ='F_Inputs (APR)'!F61 -> 0 | G61: ='F_Inputs (APR)'!G61 -> 0 | H61: ='F_Inputs (APR)'!H61 ->  | I61: ='F_Inputs (APR)'!I61 ->  | J61: ='F_Inputs (APR)'!J61 -> 
A62: ='F_Inputs (APR)'!A62 -> WSX | B62: ='F_Inputs (APR)'!B62 -> W3036OTHTOT | C62: ='F_Inputs (APR)'!C62 -> Costs associated with Industrial Emissions Directive - Advanced AD | D62: ='F_Inputs (APR)'!D62 -> £m | E62: ='F_Inputs (APR)'!E62 -> Cyclical Foundation | F62: ='F_Inputs (APR)'!F62 -> 0 | G62: ='F_Inputs (APR)'!G62 -> 0 | H62: ='F_Inputs (APR)'!H62 ->  | I62: ='F_Inputs (APR)'!I62 ->  | J62: ='F_Inputs (APR)'!J62 -> 
A63: ='F_Inputs (APR)'!A63 -> WSX | B63: ='F_Inputs (APR)'!B63 -> WWS1105STP | C63: ='F_Inputs (APR)'!C63 -> Other expenditure - Costs associated with Industrial Emissions Directive - Sludge Transport | D63: ='F_Inputs (APR)'!D63 -> £m | E63: ='F_Inputs (APR)'!E63 -> Cyclical Foundation | F63: ='F_Inputs (APR)'!F63 ->  | G63: ='F_Inputs (APR)'!G63 ->  | H63: ='F_Inputs (APR)'!H63 -> 0 | I63: ='F_Inputs (APR)'!I63 -> 0 | J63: ='F_Inputs (APR)'!J63 -> 0
A64: ='F_Inputs (APR)'!A64 -> WSX | B64: ='F_Inputs (APR)'!B64 -> WWS1105SDT | C64: ='F_Inputs (APR)'!C64 -> Other expenditure - Costs associated with Industrial Emissions Directive - Sludge Treatment | D64: ='F_Inputs (APR)'!D64 -> £m | E64: ='F_Inputs (APR)'!E64 -> Cyclical Foundation | F64: ='F_Inputs (APR)'!F64 ->  | G64: ='F_Inputs (APR)'!G64 ->  | H64: ='F_Inputs (APR)'!H64 -> 0 | I64: ='F_Inputs (APR)'!I64 -> 0 | J64: ='F_Inputs (APR)'!J64 -> 0
A65: ='F_Inputs (APR)'!A65 -> WSX | B65: ='F_Inputs (APR)'!B65 -> WWS1105SDD | C65: ='F_Inputs (APR)'!C65 -> Other expenditure - Costs associated with Industrial Emissions Directive - Sludge Disposal | D65: ='F_Inputs (APR)'!D65 -> £m | E65: ='F_Inputs (APR)'!E65 -> Cyclical Foundation | F65: ='F_Inputs (APR)'!F65 ->  | G65: ='F_Inputs (APR)'!G65 ->  | H65: ='F_Inputs (APR)'!H65 -> 0 | I65: ='F_Inputs (APR)'!I65 -> 0 | J65: ='F_Inputs (APR)'!J65 -> 0
A66: ='F_Inputs (APR)'!A66 -> WSX | B66: ='F_Inputs (APR)'!B66 -> WWS1105CAS | C66: ='F_Inputs (APR)'!C66 -> Other expenditure - Costs associated with Industrial Emissions Directive - Total | D66: ='F_Inputs (APR)'!D66 -> £m | E66: ='F_Inputs (APR)'!E66 -> Cyclical Foundation | F66: ='F_Inputs (APR)'!F66 ->  | G66: ='F_Inputs (APR)'!G66 ->  | H66: ='F_Inputs (APR)'!H66 -> 0 | I66: ='F_Inputs (APR)'!I66 -> 0 | J66: ='F_Inputs (APR)'!J66 -> 0
A67: ='F_Inputs (APR)'!A67 -> YKY | B67: ='F_Inputs (APR)'!B67 -> W3036SL | C67: ='F_Inputs (APR)'!C67 -> Costs associated with Industrial Emissions Directive - Sludge | D67: ='F_Inputs (APR)'!D67 -> £m | E67: ='F_Inputs (APR)'!E67 -> Cyclical Foundation | F67: ='F_Inputs (APR)'!F67 -> 0 | G67: ='F_Inputs (APR)'!G67 -> 0 | H67: ='F_Inputs (APR)'!H67 ->  | I67: ='F_Inputs (APR)'!I67 ->  | J67: ='F_Inputs (APR)'!J67 -> 
A68: ='F_Inputs (APR)'!A68 -> YKY | B68: ='F_Inputs (APR)'!B68 -> W3036OTHTOT | C68: ='F_Inputs (APR)'!C68 -> Costs associated with Industrial Emissions Directive - Advanced AD | D68: ='F_Inputs (APR)'!D68 -> £m | E68: ='F_Inputs (APR)'!E68 -> Cyclical Foundation | F68: ='F_Inputs (APR)'!F68 -> 0 | G68: ='F_Inputs (APR)'!G68 -> 0 | H68: ='F_Inputs (APR)'!H68 ->  | I68: ='F_Inputs (APR)'!I68 ->  | J68: ='F_Inputs (APR)'!J68 -> 
A69: ='F_Inputs (APR)'!A69 -> YKY | B69: ='F_Inputs (APR)'!B69 -> WWS1105STP | C69: ='F_Inputs (APR)'!C69 -> Other expenditure - Costs associated with Industrial Emissions Directive - Sludge Transport | D69: ='F_Inputs (APR)'!D69 -> £m | E69: ='F_Inputs (APR)'!E69 -> Cyclical Foundation | F69: ='F_Inputs (APR)'!F69 ->  | G69: ='F_Inputs (APR)'!G69 ->  | H69: ='F_Inputs (APR)'!H69 -> 0 | I69: ='F_Inputs (APR)'!I69 -> 0 | J69: ='F_Inputs (APR)'!J69 -> 0
A70: ='F_Inputs (APR)'!A70 -> YKY | B70: ='F_Inputs (APR)'!B70 -> WWS1105SDT | C70: ='F_Inputs (APR)'!C70 -> Other expenditure - Costs associated with Industrial Emissions Directive - Sludge Treatment | D70: ='F_Inputs (APR)'!D70 -> £m | E70: ='F_Inputs (APR)'!E70 -> Cyclical Foundation | F70: ='F_Inputs (APR)'!F70 ->  | G70: ='F_Inputs (APR)'!G70 ->  | H70: ='F_Inputs (APR)'!H70 -> 0 | I70: ='F_Inputs (APR)'!I70 -> 0 | J70: ='F_Inputs (APR)'!J70 -> 0
A71: ='F_Inputs (APR)'!A71 -> YKY | B71: ='F_Inputs (APR)'!B71 -> WWS1105SDD | C71: ='F_Inputs (APR)'!C71 -> Other expenditure - Costs associated with Industrial Emissions Directive - Sludge Disposal | D71: ='F_Inputs (APR)'!D71 -> £m | E71: ='F_Inputs (APR)'!E71 -> Cyclical Foundation | F71: ='F_Inputs (APR)'!F71 ->  | G71: ='F_Inputs (APR)'!G71 ->  | H71: ='F_Inputs (APR)'!H71 -> 0 | I71: ='F_Inputs (APR)'!I71 -> 0 | J71: ='F_Inputs (APR)'!J71 -> 0
A72: ='F_Inputs (APR)'!A72 -> YKY | B72: ='F_Inputs (APR)'!B72 -> WWS1105CAS | C72: ='F_Inputs (APR)'!C72 -> Other expenditure - Costs associated with Industrial Emissions Directive - Total | D72: ='F_Inputs (APR)'!D72 -> £m | E72: ='F_Inputs (APR)'!E72 -> Cyclical Foundation | F72: ='F_Inputs (APR)'!F72 ->  | G72: ='F_Inputs (APR)'!G72 ->  | H72: ='F_Inputs (APR)'!H72 -> 0 | I72: ='F_Inputs (APR)'!I72 -> 0 | J72: ='F_Inputs (APR)'!J72 -> 0
A73: ='F_Inputs (APR)'!A73 -> 0 | B73: ='F_Inputs (APR)'!B73 -> 0 | C73: ='F_Inputs (APR)'!C73 -> 0 | D73: ='F_Inputs (APR)'!D73 -> 0 | E73: ='F_Inputs (APR)'!E73 -> 0 | F73: ='F_Inputs (APR)'!F73 -> 0 | G73: ='F_Inputs (APR)'!G73 -> 0 | H73: ='F_Inputs (APR)'!H73 -> 0 | I73: ='F_Inputs (APR)'!I73 -> 0 | J73: ='F_Inputs (APR)'!J73 -> 0
A74: ='F_Inputs (APR)'!A74 -> 0 | B74: ='F_Inputs (APR)'!B74 -> 0 | C74: ='F_Inputs (APR)'!C74 -> 0 | D74: ='F_Inputs (APR)'!D74 -> 0 | E74: ='F_Inputs (APR)'!E74 -> 0 | F74: ='F_Inputs (APR)'!F74 -> 0 | G74: ='F_Inputs (APR)'!G74 -> 0 | H74: ='F_Inputs (APR)'!H74 -> 0 | I74: ='F_Inputs (APR)'!I74 -> 0 | J74: ='F_Inputs (APR)'!J74 -> 0
A75: ='F_Inputs (APR)'!A75 -> 0 | B75: ='F_Inputs (APR)'!B75 -> 0 | C75: ='F_Inputs (APR)'!C75 -> 0 | D75: ='F_Inputs (APR)'!D75 -> 0 | E75: ='F_Inputs (APR)'!E75 -> 0 | F75: ='F_Inputs (APR)'!F75 -> 0 | G75: ='F_Inputs (APR)'!G75 -> 0 | H75: ='F_Inputs (APR)'!H75 -> 0 | I75: ='F_Inputs (APR)'!I75 -> 0 | J75: ='F_Inputs (APR)'!J75 -> 0
A76: ='F_Inputs (APR)'!A76 -> 0 | B76: ='F_Inputs (APR)'!B76 -> 0 | C76: ='F_Inputs (APR)'!C76 -> 0 | D76: ='F_Inputs (APR)'!D76 -> 0 | E76: ='F_Inputs (APR)'!E76 -> 0 | F76: ='F_Inputs (APR)'!F76 -> 0 | G76: ='F_Inputs (APR)'!G76 -> 0 | H76: ='F_Inputs (APR)'!H76 -> 0 | I76: ='F_Inputs (APR)'!I76 -> 0 | J76: ='F_Inputs (APR)'!J76 -> 0
A77: ='F_Inputs (APR)'!A77 -> 0 | B77: ='F_Inputs (APR)'!B77 -> 0 | C77: ='F_Inputs (APR)'!C77 -> 0 | D77: ='F_Inputs (APR)'!D77 -> 0 | E77: ='F_Inputs (APR)'!E77 -> 0 | F77: ='F_Inputs (APR)'!F77 -> 0 | G77: ='F_Inputs (APR)'!G77 -> 0 | H77: ='F_Inputs (APR)'!H77 -> 0 | I77: ='F_Inputs (APR)'!I77 -> 0 | J77: ='F_Inputs (APR)'!J77 -> 0
A78: ='F_Inputs (APR)'!A78 -> 0 | B78: ='F_Inputs (APR)'!B78 -> 0 | C78: ='F_Inputs (APR)'!C78 -> 0 | D78: ='F_Inputs (APR)'!D78 -> 0 | E78: ='F_Inputs (APR)'!E78 -> 0 | F78: ='F_Inputs (APR)'!F78 -> 0 | G78: ='F_Inputs (APR)'!G78 -> 0 | H78: ='F_Inputs (APR)'!H78 -> 0 | I78: ='F_Inputs (APR)'!I78 -> 0 | J78: ='F_Inputs (APR)'!J78 -> 0
A79: ='F_Inputs (APR)'!A79 -> 0 | B79: ='F_Inputs (APR)'!B79 -> 0 | C79: ='F_Inputs (APR)'!C79 -> 0 | D79: ='F_Inputs (APR)'!D79 -> 0 | E79: ='F_Inputs (APR)'!E79 -> 0 | F79: ='F_Inputs (APR)'!F79 -> 0 | G79: ='F_Inputs (APR)'!G79 -> 0 | H79: ='F_Inputs (APR)'!H79 -> 0 | I79: ='F_Inputs (APR)'!I79 -> 0 | J79: ='F_Inputs (APR)'!J79 -> 0
A80: ='F_Inputs (APR)'!A80 -> 0 | B80: ='F_Inputs (APR)'!B80 -> 0 | C80: ='F_Inputs (APR)'!C80 -> 0 | D80: ='F_Inputs (APR)'!D80 -> 0 | E80: ='F_Inputs (APR)'!E80 -> 0 | F80: ='F_Inputs (APR)'!F80 -> 0 | G80: ='F_Inputs (APR)'!G80 -> 0 | H80: ='F_Inputs (APR)'!H80 -> 0 | I80: ='F_Inputs (APR)'!I80 -> 0 | J80: ='F_Inputs (APR)'!J80 -> 0
A81: ='F_Inputs (APR)'!A81 -> 0 | B81: ='F_Inputs (APR)'!B81 -> 0 | C81: ='F_Inputs (APR)'!C81 -> 0 | D81: ='F_Inputs (APR)'!D81 -> 0 | E81: ='F_Inputs (APR)'!E81 -> 0 | F81: ='F_Inputs (APR)'!F81 -> 0 | G81: ='F_Inputs (APR)'!G81 -> 0 | H81: ='F_Inputs (APR)'!H81 -> 0 | I81: ='F_Inputs (APR)'!I81 -> 0 | J81: ='F_Inputs (APR)'!J81 -> 0
A82: ='F_Inputs (APR)'!A82 -> 0 | B82: ='F_Inputs (APR)'!B82 -> 0 | C82: ='F_Inputs (APR)'!C82 -> 0 | D82: ='F_Inputs (APR)'!D82 -> 0 | E82: ='F_Inputs (APR)'!E82 -> 0 | F82: ='F_Inputs (APR)'!F82 -> 0 | G82: ='F_Inputs (APR)'!G82 -> 0 | H82: ='F_Inputs (APR)'!H82 -> 0 | I82: ='F_Inputs (APR)'!I82 -> 0 | J82: ='F_Inputs (APR)'!J82 -> 0
A83: ='F_Inputs (APR)'!A83 -> 0 | B83: ='F_Inputs (APR)'!B83 -> 0 | C83: ='F_Inputs (APR)'!C83 -> 0 | D83: ='F_Inputs (APR)'!D83 -> 0 | E83: ='F_Inputs (APR)'!E83 -> 0 | F83: ='F_Inputs (APR)'!F83 -> 0 | G83: ='F_Inputs (APR)'!G83 -> 0 | H83: ='F_Inputs (APR)'!H83 -> 0 | I83: ='F_Inputs (APR)'!I83 -> 0 | J83: ='F_Inputs (APR)'!J83 -> 0
A84: ='F_Inputs (APR)'!A84 -> 0 | B84: ='F_Inputs (APR)'!B84 -> 0 | C84: ='F_Inputs (APR)'!C84 -> 0 | D84: ='F_Inputs (APR)'!D84 -> 0 | E84: ='F_Inputs (APR)'!E84 -> 0 | F84: ='F_Inputs (APR)'!F84 -> 0 | G84: ='F_Inputs (APR)'!G84 -> 0 | H84: ='F_Inputs (APR)'!H84 -> 0 | I84: ='F_Inputs (APR)'!I84 -> 0 | J84: ='F_Inputs (APR)'!J84 -> 0
A85: ='F_Inputs (APR)'!A85 -> 0 | B85: ='F_Inputs (APR)'!B85 -> 0 | C85: ='F_Inputs (APR)'!C85 -> 0 | D85: ='F_Inputs (APR)'!D85 -> 0 | E85: ='F_Inputs (APR)'!E85 -> 0 | F85: ='F_Inputs (APR)'!F85 -> 0 | G85: ='F_Inputs (APR)'!G85 -> 0 | H85: ='F_Inputs (APR)'!H85 -> 0 | I85: ='F_Inputs (APR)'!I85 -> 0 | J85: ='F_Inputs (APR)'!J85 -> 0
A86: END | E86: SUBTOTAL | F86: =SUBTOTAL(9,'F_Inputs (APR)'!F7:F85) -> 3.493115931 | G86: =SUBTOTAL(9,'F_Inputs (APR)'!G7:G85) -> 2.882917856 | H86: =SUBTOTAL(9,'F_Inputs (APR)'!H7:H85) -> 2.433561197 | I86: =SUBTOTAL(9,'F_Inputs (APR)'!I7:I85) -> 2.608464495 | J86: =SUBTOTAL(9,'F_Inputs (APR)'!J7:J85) -> 2.649751915 | L86: =SUM(F86:K86) -> 14.0678114
B88: Totals | F88: Check codes cover full dataset - Remove filters
B90: =InpC!F42 -> W3036SL | C90: =InpC!E42 -> Costs associated with Industrial Emissions Directive - Sludge | F90: =SUMIF('F_Inputs (APR)'!$B$7:$B$85,$B90,'F_Inputs (APR)'!F$7:F$85) -> 1.746557966 | G90: =SUMIF('F_Inputs (APR)'!$B$7:$B$85,$B90,'F_Inputs (APR)'!G$7:G$85) -> 1.441458928 | H90: =SUMIF('F_Inputs (APR)'!$B$7:$B$85,$B90,'F_Inputs (APR)'!H$7:H$85) -> 0 | I90: =SUMIF('F_Inputs (APR)'!$B$7:$B$85,$B90,'F_Inputs (APR)'!I$7:I$85) -> 0 | J90: =SUMIF('F_Inputs (APR)'!$B$7:$B$85,$B90,'F_Inputs (APR)'!J$7:J$85) -> 0
B91: =InpC!F43 -> W3036OTHTOT | C91: =InpC!E43 -> Costs associated with Industrial Emissions Directive - Advanced AD | F91: =SUMIF('F_Inputs (APR)'!$B$7:$B$85,$B91,'F_Inputs (APR)'!F$7:F$85) -> 1.746557966 | G91: =SUMIF('F_Inputs (APR)'!$B$7:$B$85,$B91,'F_Inputs (APR)'!G$7:G$85) -> 1.441458928 | H91: =SUMIF('F_Inputs (APR)'!$B$7:$B$85,$B91,'F_Inputs (APR)'!H$7:H$85) -> 0 | I91: =SUMIF('F_Inputs (APR)'!$B$7:$B$85,$B91,'F_Inputs (APR)'!I$7:I$85) -> 0 | J91: =SUMIF('F_Inputs (APR)'!$B$7:$B$85,$B91,'F_Inputs (APR)'!J$7:J$85) -> 0
B93: =InpC!F44 -> WWS1105STP | C93: =InpC!E44 -> Other expenditure - Costs associated with Industrial Emissions Directive - Sludge Transport | F93: =SUMIF('F_Inputs (APR)'!$B$7:$B$85,$B93,'F_Inputs (APR)'!F$7:F$85) -> 0 | G93: =SUMIF('F_Inputs (APR)'!$B$7:$B$85,$B93,'F_Inputs (APR)'!G$7:G$85) -> 0 | H93: =SUMIF('F_Inputs (APR)'!$B$7:$B$85,$B93,'F_Inputs (APR)'!H$7:H$85) -> 0 | I93: =SUMIF('F_Inputs (APR)'!$B$7:$B$85,$B93,'F_Inputs (APR)'!I$7:I$85) -> 0 | J93: =SUMIF('F_Inputs (APR)'!$B$7:$B$85,$B93,'F_Inputs (APR)'!J$7:J$85) -> 0
B94: =InpC!F45 -> WWS1105SDT | C94: =InpC!E45 -> Other expenditure - Costs associated with Industrial Emissions Directive - Sludge Treatment | F94: =SUMIF('F_Inputs (APR)'!$B$7:$B$85,$B94,'F_Inputs (APR)'!F$7:F$85) -> 0 | G94: =SUMIF('F_Inputs (APR)'!$B$7:$B$85,$B94,'F_Inputs (APR)'!G$7:G$85) -> 0 | H94: =SUMIF('F_Inputs (APR)'!$B$7:$B$85,$B94,'F_Inputs (APR)'!H$7:H$85) -> 1.165157745 | I94: =SUMIF('F_Inputs (APR)'!$B$7:$B$85,$B94,'F_Inputs (APR)'!I$7:I$85) -> 1.201719959 | J94: =SUMIF('F_Inputs (APR)'!$B$7:$B$85,$B94,'F_Inputs (APR)'!J$7:J$85) -> 1.272316214
B95: =InpC!F46 -> WWS1105SDD | C95: =InpC!E46 -> Other expenditure - Costs associated with Industrial Emissions Directive - Sludge Disposal | F95: =SUMIF('F_Inputs (APR)'!$B$7:$B$85,$B95,'F_Inputs (APR)'!F$7:F$85) -> 0 | G95: =SUMIF('F_Inputs (APR)'!$B$7:$B$85,$B95,'F_Inputs (APR)'!G$7:G$85) -> 0 | H95: =SUMIF('F_Inputs (APR)'!$B$7:$B$85,$B95,'F_Inputs (APR)'!H$7:H$85) -> 0 | I95: =SUMIF('F_Inputs (APR)'!$B$7:$B$85,$B95,'F_Inputs (APR)'!I$7:I$85) -> 0 | J95: =SUMIF('F_Inputs (APR)'!$B$7:$B$85,$B95,'F_Inputs (APR)'!J$7:J$85) -> 0
B96: =InpC!F47 -> WWS1105CAS | C96: =InpC!E47 -> Other expenditure - Costs associated with Industrial Emissions Directive - Total | F96: =SUMIF('F_Inputs (APR)'!$B$7:$B$85,$B96,'F_Inputs (APR)'!F$7:F$85) -> 0 | G96: =SUMIF('F_Inputs (APR)'!$B$7:$B$85,$B96,'F_Inputs (APR)'!G$7:G$85) -> 0 | H96: =SUMIF('F_Inputs (APR)'!$B$7:$B$85,$B96,'F_Inputs (APR)'!H$7:H$85) -> 1.268403451 | I96: =SUMIF('F_Inputs (APR)'!$B$7:$B$85,$B96,'F_Inputs (APR)'!I$7:I$85) -> 1.406744537 | J96: =SUMIF('F_Inputs (APR)'!$B$7:$B$85,$B96,'F_Inputs (APR)'!J$7:J$85) -> 1.377435701
F98: =SUM(F90:F97) -> 3.493115931 | G98: =SUM(G90:G97) -> 2.882917856 | H98: =SUM(H90:H97) -> 2.433561197 | I98: =SUM(I90:I97) -> 2.608464495 | J98: =SUM(J90:J97) -> 2.649751915
C100: Difference | F100: =F98-F86 -> 0 | G100: =G98-G86 -> 0 | H100: =H98-H86 -> 0 | I100: =I98-I86 -> 0 | J100: =J98-J86 -> 0
C101: Error check | D101: =IF(SUM(F101:J101)>0,1,0) -> 0 | F101: =IF(ABS(F100)>CHK_TOL,1,0) -> 0 | G101: =IF(ABS(G100)>CHK_TOL,1,0) -> 0 | H101: =IF(ABS(H100)>CHK_TOL,1,0) -> 0 | I101: =IF(ABS(I100)>CHK_TOL,1,0) -> 0 | J101: =IF(ABS(J100)>CHK_TOL,1,0) -> 0
E103: Unindexed Totals
N104: Sludge transport & disposal checks - Filtering required
